Workbook

Sheet enero
R1: Página 01
B2: REPORTE MENSUAL DE ACTIVIDADES
B3: ATENCIÓN INTEGRAL DE SALUD DEL NIÑO
B4: DIRESA / RED / MR / EESS : | D4: MICRORED: VICTOR RAUL HINOJOZA | L4: Periodo : | M4: 01-31 ENERO 2020
D5: Edad Según ETV DESAGREGADO
B7: I. ATENCIÓN DEL RECIÉN NACIDO
B8: A) Atención Inmediata | J8: D) Morbilidad Neonatal
B9: ACTIVIDADES | F9: Nº | J9: CAUSAS DE MORBILIDAD | N9: Nº
B10: Atención Inmediata | F10: 0 | J10: Síndrome de Dristres Respiratorio | N10: 0
B11: Tamizaje Neonatal (Enfermed. Metabólicas) | F11: 0 | J11: Síndromes de Aspiración Neonatal | N11: 0
B12: Tamizaje Visual y Auditivo | F12: 0 | J12: Asfixia Neonatal | N12: 0
B13: Contacto Piel a Piel con la madre | F13: 19 | J13: Sepsis Neonatal | N13: 0
B14: Alojamiento Conjunto | F14: 19 | J14: Ictericia | N14: 2
B15: Lactancia Materna en la 1º Hora | F15: 19 | J15: Hipoglucemia | N15: 0
J16: Sífilis Congénita | N16: 0
B17: B) Resultados del Tamizaje Neonatal | J17: VIH Expuesto | N17: 0
B18: DIAGNÓSTICOS | F18: Nº | J18: Retinopatía de la Prematuridad | N18: 0
B19: Hipotiroidismo Congénito | F19: 0
B20: Fenilcetonuria | F20: 0 | J20: E) Mortalidad Neonatal
B21: Galactosemia | F21: 0 | J21: PESO AL NACER | M21: Nº | O21: Causas Defunción | R21: Nº
B22: Hiperplasia Suprarrenal Congénita | F22: 0 | J22: < 1,000 gr. | O22: Asfixia
B23: Fibrosis Quística | F23: 0 | J23: 1,000 a 1,499 gr. | O23: SDR
B24: Catarata Congénita | F24: 0 | J24: 1,500 a 2,499 gr. | O24: Sepsis
B25: Hipoacusia (todas las clasificaciones) | F25: 0 | J25: 2,500 a 4,000 gr. | O25: Malformaciones Congénitas
J26: > 4,000 y más gr. | O26: Otras
B27: C) Condición al Nacimiento | J27: No especificado
B28: CONDICIÓN | D28: Lugar de Nacimiento | J28: TIEMPO DE VIDA | M28: Nº
D29: EESS | E29: Domicilio | F29: Total | J29: Óbito fetal
B30: RN Normal | F30: =SUM(D30:E30) -> 0 | J30: < 24 horas
B31: RN Deprimido | F31: =SUM(D31:E31) -> 0 | J31: 01 a 07 días
B32: Prematuro | F32: =SUM(D32:E32) -> 0 | J32: 08 a 28 días
L34: Fuentes Externas
B35: La información del presente reporte debe ser complementada con fuentes externas (Libro de Atenciones, Reporte de Egresos, Certificado de Defunción, etc.) | M35: Libro de Atenciones y Reporte de Egresos
M36: Certificado de Defunción
B40: II. CONTROL DE CRECIMIENTO Y DESARROLLO | R40: Página 02
B42: Grupo de Edad | D42: Número de Controles | P42: Registros Errados
D43: 1º | E43: 2º | F43: 3º | G43: 4º | H43: 5º | I43: 6º | J43: 7º | K43: 8º | L43: 9º | M43: 10º | N43: 11º | O43: Total
B44: De 1d a 7d | D44: 13 | E44: 0 | F44: 0 | G44: 0 | H44: 0 | I44: 0 | J44: 0 | K44: 0 | L44: 0 | M44: 0 | N44: 0 | O44: =SUM(D44) -> 13 | P44: 0
B45: De 8d a 14d | D45: 17 | E45: 17 | F45: 1 | G45: 0 | H45: 0 | I45: 0 | J45: 0 | K45: 0 | L45: 0 | M45: 0 | N45: 0 | O45: =SUM(D45:E45) -> 34 | P45: 0
B46: De 15d a 21d | D46: 1 | E46: 6 | F46: 15 | G46: 0 | H46: 0 | I46: 0 | J46: 0 | K46: 0 | L46: 0 | M46: 0 | N46: 0 | O46: =SUM(D46:F46) -> 22 | P46: 0
B47: De 22d a +d | D47: 2 | E47: 1 | F47: 3 | G47: 4 | H47: 0 | I47: 0 | J47: 0 | K47: 0 | L47: 0 | M47: 0 | N47: 0 | O47: =SUM(D47:G47) -> 10 | P47: 0
B48: Total Recién Nacido | D48: =SUM(D44:D47) -> 33 | E48: =SUM(E45:E47) -> 24 | F48: =SUM(F46:F47) -> 18 | G48: =SUM(G47) -> 4 | H48: =SUM(H44:H47) -> 0 | I48: =SUM(I44:I47) -> 0 | J48: 0 | K48: 0 | L48: 0 | M48: 0 | N48: 0 | O48: =SUM(D48:G48) -> 79
B49: 29 días - 11 meses | D49: 39 | E49: 46 | F49: 41 | G49: 41 | H49: 31 | I49: 43 | J49: 28 | K49: 29 | L49: 37 | M49: 31 | N49: 22 | O49: =SUM(D49:N49) -> 388 | P49: 0
B50: 01 año | D50: 38 | E50: 28 | F50: 27 | G50: 21 | H50: 12 | I50: 14 | J50: 0 | K50: 0 | L50: 0 | M50: 0 | N50: 0 | O50: =SUM(D50:I50) -> 140 | P50: 0
B51: 02 años | D51: 41 | E51: 24 | F51: 11 | G51: 15 | H51: 0 | I51: 0 | J51: 0 | K51: 0 | L51: 0 | M51: 0 | N51: 0 | O51: =SUM(D51:G51) -> 91 | P51: 0
B52: 03 años | D52: 31 | E52: 14 | F52: 8 | G52: 7 | H52: 0 | I52: 0 | J52: 0 | K52: 0 | L52: 0 | M52: 0 | N52: 0 | O52: =SUM(D52:G52) -> 60 | P52: 0
B53: 04 años | D53: 25 | E53: 14 | F53: 8 | G53: 7 | H53: 0 | I53: 0 | J53: 0 | K53: 0 | L53: 0 | M53: 0 | N53: 0 | O53: =SUM(D53:G53) -> 54 | P53: 0
B54: 05 a 11 años | D54: 42 | E54: 0 | F54: 0 | G54: 0 | H54: 0 | I54: 0 | J54: 0 | K54: 0 | L54: 0 | M54: 0 | N54: 0 | O54: =SUM(D54) -> 42 | P54: 0
B55: =IF(P55>0,"Si en la columna P aparecen valores es porque hay registros con valores INCORRECTOS en el campo LAB perdiendo niños con controles CRED, REVISE.","") ->  | P55: =SUM(P44:P54) -> 0
B57: III. TAMIZAJE
B58: ACTIVIDADES | H58: 01m* | I58: 06m | J58: 01 a | K58: 02 a | L58: 03 a | M58: 04 a | N58: 05 -11 a | O58: Total
B59: 1. Detección de Anemia | E59: Solicitud de Dosaje de Hb | H59: 0 | I59: 0 | J59: 0 | K59: 0 | L59: 1 | M59: 0 | N59: 7 | O59: =SUM(I59:N59) -> 8
E60: Resultados Evaluados | H60: 0 | I60: 1 | J60: 2 | K60: 1 | L60: 0 | M60: 1 | N60: 3 | O60: =SUM(I60:N60) -> 8
B61: 2. Descarte de Parasitosis | E61: Solicitud de Examen | H61: 0 | I61: 0 | J61: 0 | K61: 0 | L61: 0 | M61: 0 | N61: 16 | O61: =SUM(J61:N61) -> 16
E62: Resultados Evaluados | H62: 0 | I62: 0 | J62: 0 | K62: 0 | L62: 1 | M62: 0 | N62: 2 | O62: =SUM(J62:N62) -> 3
B63: * Prematuros y Bajo Peso al Nacer.
B65: IV. ADMINISTRACIÓN DE PROFILAXIS ANTIPARASITARIA
B67: ACTIVIDADES | F67: 01 año | H67: 02 años | J67: 03 años | L67: 04 años | N67: 05 - 11 años
F68: 1º | G68: 2º | H68: 1º | I68: 2º | J68: 1º | K68: 2º | L68: 1º | M68: 2º | N68: 1º | O68: 2º
B69: Administración de Profilaxis Antiparasitaria | F69: 0 | G69: 0 | H69: 31 | I69: 2 | J69: 32 | K69: 3 | L69: 34 | M69: 2 | N69: 36 | O69: 2
B71: V. ADMINISTRACION DE MICRONUTRIENTES
B72: A) Sulfato Ferroso y Multimicronutriente (en polvo)
B74: ACTIVIDADES | E74: DOSIS | R74: Registros Errados
E75: 1º | F75: 2º | G75: 3º | H75: 4º | I75: 5º | J75: 6º | K75: 7º | L75: 8º | M75: 9º | N75: 10º | O75: 11º | P75: 12º | Q75: TA
B76: < 06 meses (BPN y Prematuros (SF)) | E76: 0 | F76: 0 | G76: 0 | H76: 0 | I76: 0 | J76: 0 | K76: 0 | L76: 0 | M76: 0 | N76: 0 | O76: 0 | P76: 0 | Q76: 0 | R76: 54
B77: De 6 a 11 meses | E77: 0 | F77: 0 | G77: 0 | H77: 0 | I77: 0 | J77: 0 | K77: 0 | L77: 0 | M77: 0 | N77: 0 | O77: 0 | P77: 0 | Q77: 25 | R77: 85
B78: De 1 año | E78: 0 | F78: 0 | G78: 0 | H78: 0 | I78: 0 | J78: 0 | K78: 0 | L78: 0 | M78: 0 | N78: 0 | O78: 0 | P78: 0 | Q78: 5 | R78: 70
B79: De 2 año | E79: 1 | F79: 0 | G79: 0 | H79: 0 | I79: 0 | J79: 0 | K79: 0 | L79: 0 | M79: 0 | N79: 0 | O79: 0 | P79: 1 | Q79: 2 | R79: 28
B80: De 3 año | E80: 1 | F80: 0 | G80: 0 | H80: 0 | I80: 0 | J80: 0 | K80: 0 | L80: 0 | M80: 0 | N80: 0 | O80: 0 | P80: 0 | Q80: 1 | R80: 2
B81: De 4 año | E81: 0 | F81: 0 | G81: 0 | H81: 0 | I81: 0 | J81: 0 | K81: 0 | L81: 0 | M81: 0 | N81: 0 | O81: 0 | P81: 0 | Q81: 3 | R81: 1
B82: Los Suplementados son los que CONSUMEN 360 sobres de MMN (a partir de los 18 meses, no antes) para indicar que se ha consumido el último sobre de MMN se registra TA | R82: =SUM(R76:R81) -> 240
B84: B) Vitamina "A" | D84: 06 meses | F84: 01 año | H84: 02 años | J84: 03 años | L84: 04 años | R84: Página 03
B85: Dosis | D85: 1º Dosis | E85: 2º Dosis | F85: 1º Dosis | G85: 2º Dosis | H85: 1º Dosis | I85: 2º Dosis | J85: 1º Dosis | K85: 2º Dosis | L85: 1º Dosis | M85: 2º Dosis
B86: Suplementados | D86: 0 | E86: 0 | F86: 0 | G86: 0 | H86: 0 | I86: 0 | J86: 0 | K86: 0 | L86: 0 | M86: 0
B88: VI. LACTANCIA MATERNA EXCLUSIVA | H88: VII. ALIMENTACIÓN COMPLEMENTARIA
B90: CONDICIÓN | E90: Nº | H90: CONDICIÓN | P90: Nº
B91: Niños con LME a los 06 meses | E91: 11 | H91: Niños con Inicio de Alimentación Complementaria antes de los 06 meses | P91: 2
B92: Solo se evalua el registro a los 06 meses | H92: Niños con Inicio de Alimentación Complementaria después de los 06 meses | P92: 15
H93: Niños con Inicio de Alimentación Complementaria Adecuada | P93: 11
B94: VIII. EVALUACION DEL ESTADO NUTRICIONAL | H94: Niños con Inicio de Alimentación Complementaria Inadecuada | P94: 2
B95: A) En el Recién Nacido de 01 día a 28 días
B96: Clasificación: Peso al Nacer | E96: Nº | H96: Clasificación: Ganancia de Peso / Talla | L96: Dx. | M96: Recup.
B97: Extremadamente bajo | E97: 0 | H97: Ganancia Inadecuada de Peso | L97: 0 | M97: 0
B98: Muy bajo peso al nacer | E98: 0 | H98: Ganancia Inadecuada de Talla | L98: 0 | M98: 0
B99: Bajo peso al nacer | E99: 0 | H99: Dx: Diagnosticado | J99: Recup: Recuperado
B100: Normal | E100: 36
B101: Macrosómico | E101: 0
B103: B) En los Niños y Niñas de 29 días a < 05 años
B105: GRUPO DE EDAD | D105: Ganancia Inadecuada de Peso o Talla | H105: Normal | M105: RN Bajo Peso Recuperados
D106: Peso | F106: Talla
D107: Dx. | E107: Recup. | F107: Dx. | G107: Recup. | M107: 0
B108: < 1 año | D108: 5 | E108: 3 | F108: 3 | G108: 0 | H108: 194
B109: 1 año | D109: 5 | E109: 0 | F109: 2 | G109: 0 | H109: 82
B110: 2 años | D110: 2 | E110: 0 | F110: 2 | G110: 0 | H110: 64
B111: 3 años | D111: 2 | E111: 0 | F111: 0 | G111: 0 | H111: 44
B112: 4 años | D112: 1 | E112: 0 | F112: 1 | G112: 0 | H112: 40
B113: Dx: Diagnosticado | C113: Recup: Recuperado
B115: GRUPO DE EDAD | C115: Peso para la Edad (PE) | G115: Peso para la Edad (TP) | O115: Talla para la Edad (TE)
C116: Sobrepeso | E116: Desnutrición | G116: Obesidad | I116: Sobrepeso | K116: Desnutrición Aguda | M116: Desnutrición Severa | O116: Alto | Q116: Talla Baja | Z116: Normal
C117: Dx. | D117: Recup. | E117: Dx. | F117: Recup. | G117: Dx. | H117: Recup. | I117: Dx. | J117: Recup. | K117: Dx. | L117: Recup. | M117: Dx. | N117: Recup. | O117: Dx. | P117: Recup. | Q117: Dx. | R117: Recup. | Z117: Dx. | AA117: Recup.
B118: < 1 año | C118: 5 | D118: 0 | E118: 4 | F118: 0 | G118: 0 | H118: 0 | I118: 33 | J118: 0 | K118: 2 | L118: 0 | M118: 0 | N118: 0 | O118: 2 | P118: 0 | Q118: 6 | R118: 0 | Z118: 185 | AA118: 0
B119: 1 año | C119: 185 | D119: 0 | E119: 4 | F119: 0 | G119: 0 | H119: 0 | I119: 6 | J119: 0 | K119: 1 | L119: 0 | M119: 0 | N119: 0 | O119: 0 | P119: 0 | Q119: 3 | R119: 0 | Z119: 75 | AA119: 0
B120: 2 años | C120: 75 | D120: 0 | E120: 2 | F120: 0 | G120: 0 | H120: 0 | I120: 8 | J120: 0 | K120: 0 | L120: 0 | M120: 0 | N120: 0 | O120: 0 | P120: 0 | Q120: 2 | R120: 0 | Z120: 59 | AA120: 0
B121: 3 años | C121: 59 | D121: 0 | E121: 1 | F121: 0 | G121: 0 | H121: 0 | I121: 2 | J121: 0 | K121: 1 | L121: 0 | M121: 0 | N121: 0 | O121: 0 | P121: 0 | Q121: 1 | R121: 0 | Z121: 39 | AA121: 0
B122: 4 años | C122: 39 | D122: 0 | E122: 0 | F122: 0 | G122: 0 | H122: 0 | I122: 6 | J122: 0 | K122: 0 | L122: 0 | M122: 0 | N122: 0 | O122: 0 | P122: 0 | Q122: 0 | R122: 0 | Z122: 43 | AA122: 0
B123: Dx: Diagnosticado | C123: Recup: Recuperado
B125: C) En los Niños y Niñas de 05 a 11 años | S125: Página 04
B127: GRUPO DE EDAD | C127: Índice de Masa Cororal (IMC) | K127: Talla para la Edad (TE) | Q127: Normal
C128: Obesidad | E128: Sobrepeso | G128: Delgadez | I128: Delgadez | K128: Alto | M128: Talla Baja | O128: Talla Baja Severa
C129: Dx. | D129: Recup. | E129: Dx. | F129: Recup. | G129: Dx. | H129: Recup. | I129: Dx. | J129: Recup. | K129: Dx. | L129: Recup. | M129: Dx. | N129: Recup. | O129: Dx. | P129: Recup.
B130: 05 a 11 años | C130: 43 | D130: 0 | E130: 9 | F130: 1 | G130: 0 | H130: 0 | I130: 0 | J130: 0 | K130: 0 | L130: 0 | M130: 0 | N130: 0 | O130: 0 | P130: 0 | Q130: 21
B131: Dx: Diagnosticado | C131: Recup: Recuperado
B133: IX. EVALUACION DEL DESARROLLO
B135: Edades | C135: Trastorno del Desarrollo | O135: Evaluac. Normal
C136: Lenguaje | E136: Motora | G136: Social | I136: Coordinación | K136: Cognitiva | M136: Con + de 1 Trastorno
C137: Dx. | D137: Recup. | E137: Dx. | F137: Recup. | G137: Dx. | H137: Recup. | I137: Dx. | J137: Recup. | K137: Dx. | L137: Recup. | M137: Dx. | N137: Recup.
B138: < 1 año | C138: 0 | D138: 0 | E138: 0 | F138: 0 | G138: 0 | H138: 0 | I138: 0 | J138: 0 | K138: 0 | L138: 0 | M138: 0 | N138: 0 | O138: 197
B139: 01 año | C139: 3 | D139: 0 | E139: 0 | F139: 0 | G139: 0 | H139: 0 | I139: 0 | J139: 0 | K139: 0 | L139: 0 | M139: 0 | N139: 0 | O139: 72
B140: 02 años | C140: 0 | D140: 0 | E140: 0 | F140: 0 | G140: 0 | H140: 0 | I140: 0 | J140: 0 | K140: 0 | L140: 0 | M140: 0 | N140: 0 | O140: 57
B141: Dx: Diagnosticado | D141: Recup: Recuperado
B143: Edades | C143: Déficit del Desarrollo | O143: Evaluac. Normal
C144: Lenguaje | E144: Motora | G144: Social | I144: Coordinación | K144: Cognitiva | M144: Más de 1 Déficit
C145: Dx. | D145: Recup. | E145: Dx. | F145: Recup. | G145: Dx. | H145: Recup. | I145: Dx. | J145: Recup. | K145: Dx. | L145: Recup. | M145: Dx. | N145: Recup.
B146: 03 años | C146: 0 | D146: 0 | E146: 0 | F146: 0 | G146: 0 | H146: 0 | I146: 0 | J146: 0 | K146: 0 | L146: 0 | M146: 1 | N146: 0 | O146: 31
B147: 04 años | C147: 0 | D147: 0 | E147: 0 | F147: 0 | G147: 0 | H147: 0 | I147: 0 | J147: 0 | K147: 0 | L147: 0 | M147: 0 | N147: 0 | O147: 32
B148: Dx: Diagnosticado | D148: Recup: Recuperado
B150: X. PLAN DE ATENCION INTEGRAL
B152: Edades | C152: RN | D152: <1 año | E152: 01 año | F152: 02 años | G152: 03 años | H152: 04 años | I152: 05 años | J152: 06 años | K152: 07 años | L152: 08 años | M152: 09 años | N152: 10 años | O152: 11 años
B153: Elaborado | C153: 34 | D153: 41 | E153: 36 | F153: 38 | G153: 32 | H153: 25 | I153: 3 | J153: 3 | K153: 3 | L153: 4 | M153: 3 | N153: 4 | O153: 3
B154: Ejecutado | C154: 12 | D154: 24 | E154: 14 | F154: 15 | G154: 9 | H154: 7 | I154: 9 | J154: 2 | K154: 4 | L154: 3 | M154: 3 | N154: 4 | O154: 0
B156: XI. CONSEJERÍA
B158: Tipos / Edades | E158: Total | F158: RN | G158: <1 año | H158: 01 año | I158: 02 años | J158: 03 años | K158: 04 años | L158: 05 - 11 a
B159: Nutricional por Suplementación | E159: =SUM(F159:K159) -> 2 | F159: 0 | G159: 0 | H159: 0 | I159: 2 | J159: 0 | K159: 0 | L159: 0
B160: Nutricional por Eval. PE, TP, TE, IMC | E160: =SUM(F160:L160) -> 38 | F160: 1 | G160: 15 | H160: 5 | I160: 5 | J160: 4 | K160: 0 | L160: 8
B161: Integral por Eval. del Desarrollo | E161: =SUM(G161:L161) -> 1 | F161: 0 | G161: 0 | H161: 1 | I161: 0 | J161: 0 | K161: 0 | L161: 0
B162: Integral por Aliment. Complement. | E162: =G162 -> 27 | F162: 0 | G162: 27 | H162: 15 | I162: 3 | J162: 1 | K162: 2 | L162: 0
B166: XII. VISITA DOMICILIARIA | R166: Página 05
B167: TIPOS DE VISITA / EDADES | F167: Total | G167: RN | H167: <1 año | I167: 01 año | J167: 02 años | K167: 03 años | L167: 04 años | M167: 05 - 11 a
B168: Seguimiento al Control CRED | F168: =SUM(G168:M168) -> 15 | G168: 0 | H168: 9 | I168: 3 | J168: 1 | K168: 1 | L168: 0 | M168: 1
B169: Seguimiento a Problemas Nutricionales | F169: =SUM(G169:M169) -> 0 | G169: 0 | H169: 0 | I169: 0 | J169: 0 | K169: 0 | L169: 0 | M169: 0
B170: Seguimiento a Problemas del Desarrollo | F170: =SUM(G170:M170) -> 0 | G170: 0 | H170: 0 | I170: 0 | J170: 0 | K170: 0 | L170: 0 | M170: 0
B171: Entrega de Suplementación | F171: =SUM(G171:L171) -> 2 | G171: 0 | H171: 0 | I171: 0 | J171: 1 | K171: 0 | L171: 1 | M171: 0
B172: Verificación de Consumo de Micronutrientes | F172: =SUM(G172:L172) -> 1 | G172: 0 | H172: 1 | I172: 0 | J172: 0 | K172: 0 | L172: 0 | M172: 0
B173: Seguimiento de IRA | F173: =SUM(G173:M173) -> 0 | G173: 0 | H173: 0 | I173: 0 | J173: 0 | K173: 0 | L173: 0 | M173: 0
B174: Seguimiento de EDA | F174: =SUM(G174:M174) -> 0 | G174: 0 | H174: 0 | I174: 0 | J174: 0 | K174: 0 | L174: 0 | M174: 0
B175: Seguimiento de Anemia | F175: =SUM(G175:M175) -> 0 | G175: 0 | H175: 0 | I175: 0 | J175: 0 | K175: 0 | L175: 0 | M175: 0
B177: XIII. ESTIMULACION TEMPRANA | K177: XIV. ACTIVIDADES EXTRAMURALES, MASIVAS Y DE GESTIÓN
B179: EDADES / SESIONES | D179: 1º | E179: 2º | F179: 3º | G179: 4º | H179: 5º | I179: 6º | K179: Unidad Medida | M179: Actividades Extramurales y Masivas | Q179: Actividades de Gestión
B180: Recién Nacido | D180: 26 | E180: 0 | F180: 0 | G180: 0 | H180: 0 | I180: 0 | M180: Sesiones Demostrativas | O180: Sesiones Educativas | Q180: Evaluación | R180: Supervisión | S180: Asitencia Técnica | T180: Reu.Téc: Personal de Salud | U180: Reu.Téc: Agente Com. de Salud
B181: < 01 año | D181: 60 | E181: 31 | F181: 21 | G181: 6 | H181: 22 | I181: 25
B182: 01 año | D182: 20 | E182: 11 | F182: 7 | G182: 3 | H182: 0 | I182: 0 | K182: Actividades | M182: 0 | O182: 0 | Q182: 0 | R182: 0 | S182: 0 | T182: 0 | U182: 0
B183: 02 años | D183: 16 | E183: 2 | F183: 0 | G183: 0 | H183: 0 | I183: 0 | K183: Participantes | M183: 0 | O183: 0 | Q183: 0 | R183: 0 | S183: 0 | T183: 0 | U183: 0
B184: 03 años | D184: 3 | E184: 0 | F184: 0 | G184: 0 | H184: 0 | I184: 0
B185: =IF(SUM(E180:I180,H182:I184,F183:G184,E184)>0,"Los casilleros en rojo son error de registro CORRIJA"," ") -> 
B186: XV. ATENCION DE LAS ENFERMEDADES PREVALENTES DE LA INFANCIA
B187: A. INFECCIÓN RESPIRATORIA AGUDA
B188: DIAGNÓSTICOS | G188: Grupo de Edad
G189: < 29 Días | I189: 29 d a 59 Días | K189: 02 - 11 Meses | M189: 01 - 04 Años | O189: 05 - 11 Años | Q189: Total
B190: 1. Total de Casos de IRA ( 1 + 2 ) | G190: =G191+G195 -> 1 | I190: =I191+I195 -> 3 | K190: =K191+K195 -> 63 | M190: =M191+M195 -> 81 | O190: =O191+O195 -> 34 | Q190: =SUM(G190:P190) -> 182
B191: 1.1. Nº casos de IRA complicada ( a + b + c ) | G191: =SUM(G192:G194) -> 0 | I191: =SUM(I192:I194) -> 0 | K191: =SUM(K192:K194) -> 10 | M191: =SUM(M192:M194) -> 7 | O191: =SUM(O192:O194) -> 4 | Q191: 21
B192: a. Neumonía complicada | G192: 0 | I192: 0 | K192: 0 | M192: 1 | O192: 0 | Q192: 1
B193: b. Neumonía no complicada | G193: 0 | I193: 0 | K193: 0 | M193: 0 | O193: 0 | Q193: 0
B194: c. SOBA o ASMA | G194: 0 | I194: 0 | K194: 10 | M194: 6 | O194: 4 | Q194: 20
B195: 1.2. Nº casos de IRA no complicada ( a + b + c ) | G195: =SUM(G197:G198) -> 1 | I195: =SUM(I197:I198) -> 3 | K195: =SUM(K197:K198) -> 53 | M195: =SUM(M196:M198) -> 74 | O195: =SUM(O196:O198) -> 30 | Q195: 161
B196: a. Faringo amigdalitis purulenta aguda | G196: 0 | I196: 0 | K196: 0 | M196: 0 | O196: 0 | Q196: =SUM(M196:P196) -> 0
B197: b. Otitis media aguda | G197: 0 | I197: 0 | K197: 0 | M197: 0 | O197: 0 | Q197: 0
B198: c. Resfrió, faringitis viral, bronquitis,etc | G198: 1 | I198: 3 | K198: 53 | M198: 74 | O198: 30 | Q198: 161
B199: 2. Total de casos IRA complicadas hospitalizadas | Q199: 0
B200: 3. Nº de casos de IRA complicada referidos | Q200: 0
B201: 4. Control de seguimiento de neumonia a las 48 horas | G201: 0 | I201: 0 | K201: 0 | M201: 0 | O201: 0 | Q201: 0
O202: Fuentes Externas
P203: Reporte de Egresos
B204: B. ENFERMEDAD DIARREICA AGUDA | R204: Página 06
G205: Grupo de Edad
G206: < 01 Año | I206: 01 - 04 Años | K206: 05 - 11 Años | M206: Total
B207: 1. EDA Sin Complicación ( a + b + c + d ) | G207: =SUM(G208:H211) -> 2 | I207: =SUM(I208:J211) -> 3 | K207: =SUM(K208:L211) -> 2 | M207: =SUM(G207:L207) -> 7
B208: a. Acuosa Aguda s/deshidratación | G208: 2 | I208: 3 | K208: 2 | M208: =SUM(G208:L208) -> 7
B209: b. Sospechoso de cólera s/deshidratación | G209: 0 | I209: 0 | K209: 0 | M209: =SUM(G209:L209) -> 0
B210: c. Disenteria s/deshidratación | G210: 0 | I210: 0 | K210: 0 | M210: 0
B211: d. Diarrea persistente | G211: 0 | I211: 0 | K211: 0 | M211: =SUM(G211:L211) -> 0
B212: 2. EDA Complicada ( a + b + c + d + e + f ) | G212: =SUM(G213:H218) -> 0 | I212: =SUM(I213:J218) -> 0 | K212: =SUM(K213:L218) -> 0 | M212: =SUM(G212:L212) -> 0
B213: a. Acuosa Aguda c/deshidratación | G213: 0 | I213: 0 | K213: 0 | M213: 0
B214: b. Sospechoso de cólera c/deshidratación | G214: 0 | I214: 0 | K214: 0 | M214: 0
B215: c. Disenteria c/deshidratación | G215: 0 | I215: 0 | K215: 0 | M215: 0
B216: d. Acuosa Aguda c/deshidratación c/shock | G216: 0 | I216: 0 | K216: 0 | M216: 0
B217: e. Sospechoso de cólera c/deshidratación c/shock | G217: 0 | I217: 0 | K217: 0 | M217: 0
B218: f. Disenteria c/deshidratación c/shock | G218: 0 | I218: 0 | K218: 0 | M218: 0
B219: 3. Hospitalizados por EDA (Egresos) | M219: =SUM(G219:L219) -> 0
B221: C. ANEMIA Y PARASITOSIS
B222: CAUSAS DE MORBILIDAD | E222: Diagnósticado
E223: Total | G223: RN | I223: < 01 año | K223: 01 año | M223: 02 años | O223: 03 años | Q223: 04 años | S223: 05 - 11 años
E224: Dx. | F224: Recup. | G224: Dx. | H224: Recup. | I224: Dx. | J224: Recup. | K224: Dx. | L224: Recup. | M224: Dx. | N224: Recup. | O224: Dx. | P224: Recup. | Q224: Dx. | R224: Recup. | S224: Dx. | T224: Recup.
B225: Anemia por Deficiencia de Hierro | E225: =G225+I225+K225+M225+O225+Q225+S225 -> 49 | F225: =H225+J225+L225+N225+P225+R225+T225 -> 13 | G225: 0 | H225: 0 | I225: 22 | J225: 0 | K225: 17 | L225: 8 | M225: 4 | N225: 3 | O225: 2 | P225: 1 | Q225: 0 | R225: 0 | S225: 4 | T225: 1
B226: Parasitosis Intestinal | E226: =G226+I226+K226+M226+O226+Q226+S226 -> 14 | F226: =H226+J226+L226+N226+P226+R226+T226 -> 0 | G226: 0 | H226: 0 | I226: 0 | J226: 0 | K226: 0 | L226: 0 | M226: 2 | N226: 0 | O226: 2 | P226: 0 | Q226: 2 | R226: 0 | S226: 8 | T226: 0
B228: XVI. DEFUNCIONES
B229: GRUPOS DE EDAD | D229: Intrahospitalario | J229: Extrahospitalario | P229: TOTAL
D230: IRA | F230: EDA | H230: Todas las Causas | J230: IRA | L230: EDA | N230: Todas las Causas
B231: < 29 días | P231: =SUM(D231:O231) -> 0
B232: 29 días a 59 días | P232: 0
B233: 02 meses a 11 meses | P233: 0
... 23 more rows

Sheet febrero
AZ3: REPORTE MENSUAL DE ACTIVIDADES ATENCIÓN INTEGRAL DE SALUD DEL NIÑO
B5: Periodo: Febrero - 2020
B6: Diresa/Red/M.Red/EE.SS: AREQUIPA/AREQUIPA CAYLLOMA/VICTOR RAUL HINOJOZA/TODOS LOS EE.SS
C9: I. ATENCIÓN DEL RECIÉN NACIDO
C11: A) Atención Inmediata
C13: ACTIVIDADES | X13: Nº
C14: Atención Inmediata
C15: Tamizaje Neonatal (Enfermed. Metabólicas)
C16: Tamizaje Visual y Auditivo
C17: Contacto Piel a Piel con la madre | X17: 21
C18: Alojamiento Conjunto | X18: 21
C19: Lactancia Materna en la 1º Hora | X19: 21
C21: B) Resultados del Tamizaje Neonatal
C23: DIAGNÓSTICOS | X23: Nº
C24: Hipotiroidismo Congénito
C25: Fenilcetonuria
C26: Galactosemia
C27: Hiperplasia Suprarrenal Congénita
C28: Fibrosis Quística
C29: Catarata Congénita
C30: Hipoacusia (todas las clasificaciones)
C33: D) Morbilidad Neonatal
C35: CAUSAS DE MORBILIDAD | Z35: Nº
C36: Síndrome de Dristres Respiratorio
C37: Síndromes de Aspiración Neonatal
C38: Asfixia Neonatal
C39: Sepsis Neonatal
C40: Ictericia | Z40: 9
C41: Hipoglucemia
C42: Sífilis Congénita
C43: VIH Expuesto
C44: Retinopatía de la Prematuridad
C47: II. CONTROL DE CRECIMIENTO Y DESARROLLO
C49: Grupo de Edad | K49: Número de Controles
K50: 1º | R50: 2º | AB50: 3º | AS50: 4º | BG50: 5º | BR50: 6º | CH50: 7º | CZ50: 8º | DN50: 9º | EG50: 10º | EP50: 11º | FD50: SN | FO50: TOTAL
C51: De 1d a 7d | K51: 16 | FO51: 16
C52: De 8d a 14d | K52: 16 | R52: 27 | FO52: 43
C53: De 15d a 21d | K53: 6 | R53: 10 | AB53: 21 | FO53: 37
C54: De 22d a +d | K54: 1 | R54: 3 | AB54: 10 | AS54: 7 | FO54: 21
C55: 29 días - 11 meses | K55: 38 | R55: 38 | AB55: 39 | AS55: 41 | BG55: 31 | BR55: 34 | CH55: 29 | CZ55: 24 | DN55: 21 | EG55: 33 | EP55: 32 | FD55: 1 | FO55: 361
C56: 01 año | K56: 42 | R56: 26 | AB56: 27 | AS56: 20 | BG56: 18 | BR56: 17 | FO56: 150
C57: 02 años | K57: 28 | R57: 21 | AB57: 13 | AS57: 15 | FO57: 77
C58: 03 años | K58: 26 | R58: 13 | AB58: 10 | AS58: 11 | FO58: 60
C59: 04 años | K59: 19 | R59: 10 | AB59: 6 | AS59: 6 | FO59: 41
C60: 05 a 11 años | K60: 29 | FD60: 1 | FO60: 30
C63: Evaluación del Estado Nutricional Antropométricas (Por personal técnico)
C65: Grupo de Edad | J65: Número de Evaluaciones Antropométricas
J66: 1º | Q66: 2º | AA66: 3º | AR66: 4º | BF66: 5º | BQ66: 6º | CG66: 7º | CY66: 8º | DM66: 9º | EF66: 10º | EO66: 11º | FC66: SN | FN66: TOTAL
C67: De 1d a 7d
C68: De 8d a 14d
C69: De 15d a 21d
C70: De 22d a +d
C71: 29 días - 11 meses
C72: 01 año
C73: 02 años
C74: 03 años
C75: 04 años
C76: 05 a 11 años
C79: III. TAMIZAJE
C81: ACTIVIDADES | AO81: 01m* | AZ81: 06m | BO81: 01 a | CE81: 02 a | CV81: 03 a | DL81: 04 a | EB81: 05 -11 a | EM81: TOTAL
C82: Detección de Anemia | I82: Solicitud de Dosaje de Hb | CE82: 3 | CV82: 1 | DL82: 2 | EB82: 9 | EM82: 15
I83: Resultados Evaluados | AZ83: 34 | BO83: 81 | CE83: 55 | CV83: 43 | DL83: 27 | EB83: 72 | EM83: 312
C84: Descarte de Parasitosis | I84: Solicitud de Examen | BO84: 1 | CE84: 1 | DL84: 1 | EB84: 11 | EM84: 14
I85: Resultados Evaluados | CE85: 3 | DL85: 2 | EB85: 8 | EM85: 13
C88: IV. ADMINISTRACIÓN DE PROFILAXIS ANTIPARASITARIA
C90: ACTIVIDADES | AH90: DOSIS
AH91: 01 año | CC91: 02 años | DP91: 03 años | EZ91: 04 años | GL91: 05 - 11 años
AH92: 1º | AZ92: 2º | CC92: 1º | CU92: 2º | DP92: 1º | EK92: 2º | EZ92: 1º | FQ92: 2º | GL92: 1º | GZ92: 2º
C93: Administración de Profilaxis Antiparasitaria | CC93: 31 | CU93: 5 | DP93: 26 | EK93: 2 | EZ93: 19 | GL93: 21
C95: IV. ADMINISTRACIÓN DE PROFILAXIS ANTIPARASITARIA
C97: A) Sulfato Ferroso y Multimicronutriente (en polvo)
C99: ACTIVIDADES | R99: DOSIS
R100: 1º | AE100: 2º | AV100: 3º | BK100: 4º | BY100: 5º | CN100: 6º | DD100: 7º | DS100: 8º | EI100: 9º | EV100: 10º | FM100: 11º | FY100: 12º | GG100: TA
C101: < 06 meses (BPN y Prematuros (SF))
C102: De 4 a 5 meses (Sulfato Ferroso)
C103: De 6 a 11 meses (MMN) | AV103: 1
C104: De 1 año (MMN) | AE104: 1 | EV104: 1 | GG104: 2
C105: De 2 año (MMN) | FY105: 1 | GG105: 2
C106: De 3 año (MMN) | BK106: 1 | DS106: 1 | EI106: 1 | GG106: 1
C107: De 4 año (MMN)
B110: Polimaltosado
B112: ACTIVIDADES | P112: DOSIS
P113: 1º | AC113: 2º | AT113: 3º | BI113: 4º | BV113: 5º | CK113: 6º | DB113: 7º | DR113: 8º | EH113: 9º | ET113: 10º | FK113: 11º | FX113: 12º | GF113: TA
B114: < 06 meses (BPN y Prematuros)
B115: De 4 a 5 meses | P115: 37 | AC115: 19
B116: De 6 a 11 meses | P116: 22 | AC116: 22 | AT116: 13 | BI116: 14 | BV116: 8 | CK116: 7
B117: De 1 año | P117: 6 | AC117: 3 | AT117: 10 | BI117: 8 | BV117: 5 | CK117: 4 | DB117: 6 | DR117: 6 | EH117: 5 | ET117: 3 | FK117: 2 | FX117: 3
B118: De 2 años | P118: 3 | AT118: 1 | BI118: 2 | EH118: 3 | FK118: 1
B119: De 3 años | DR119: 1 | FX119: 2
B120: De 4 años
C123: B) Vitamina "A"
Q125: 06 meses | AU125: 01 año | BY125: 02 años | DD125: 03 años | EI125: 04 años
C126: Dosis | Q126: 1º Dosis | AD126: 2º Dosis | AU126: 1º Dosis | BJ126: 2º Dosis | BY126: 1º Dosis | CN126: 2º Dosis | DD126: 1º Dosis | DS126: 2º Dosis | EI126: 1º Dosis | EV126: 2º Dosis
C127: Suplementados
C130: VI. LACTANCIA MATERNA EXCLUSIVA
C132: Condición | Q132: Nº
C133: Niños con LME a los 06 meses | Q133: 13
C135: VII. ALIMENTACIÓN COMPLEMENTARIA
C137: Condición | CA137: Nº
C138: Niños con Inicio de Alimentación Complementaria antes de los 06 meses | CA138: 3
C139: Niños con Inicio de Alimentación Complementaria después de los 06 meses | CA139: 4
C140: Niños con Inicio de Alimentación Complementaria Adecuada | CA140: 94
C141: Niños con Inicio de Alimentación Complementaria Inadecuada
C144: VIII. EVALUACION DEL ESTADO NUTRICIONAL
C146: A) En el Recién Nacido de 01 día a 28 días
C148: Clasificación | O148: Dx | BP148: Nº
C149: RN Bajo Peso Recuperados | O149: RN Bajo Peso Recuperados
C150: Peso al Nacer | O150: Extremadamente bajo
O151: Muy bajo peso al nacer
O152: Bajo peso al nacer
O153: Normal | BP153: 47
O154: Macrosómico
C155: Ganancia de Peso / Talla | O155: Ganancia Inadecuada de Peso Dx.
O156: Ganancia Inadecuada de Peso Recup.
O157: Ganancia Inadecuada de Talla Dx.
O158: Ganancia Inadecuada de Talla Recup.
C160: B) En los Niños y Niñas de 29 días a < 05 años
C162: Grupo de Edad | E162: Ganancia Inadecuada de Peso o Talla | BB162: Normal
E163: Peso | S163: Talla | BB163: Normal
E164: Dx. | L164: Recup. | S164: Dx. | AI164: Recup. | BB164: Normal
C165: < 1 año | E165: 7 | L165: 1 | S165: 16 | AI165: 1 | BB165: 302
C166: 1 año | E166: 8 | S166: 14 | BB166: 116
C167: 2 años | E167: 5 | L167: 1 | S167: 4 | BB167: 60
C168: 3 años | E168: 1 | S168: 3 | BB168: 52
C169: 4 años | E169: 2 | S169: 1 | BB169: 31
C172: Grupo de Edad | D172: Peso para la Edad (PE) | BC172: Peso para la Edad (TP) | GI172: Talla para la Edad (TE)
D173: Sobrepeso | T173: Desnutrición | BC173: Obesidad | CP173: Sobrepeso | EC173: Desnutrición Aguda | FG173: Desnutrición Severa | GI173: Alto | HB173: Talla Baja
D174: Dx. | L174: Recup. | T174: Dx. | AJ174: Recup. | BC174: Dx. | BW174: Recup. | CP174: Dx. | DI174: Recup. | EC174: Dx. | EQ174: Recup. | FG174: Dx. | FU174: Recup. | GI174: Dx. | GV174: Recup. | HB174: Dx. | HI174: Recup.
C175: < 1 año | D175: 3 | T175: 4 | BC175: 1 | CP175: 31 | EC175: 2 | FG175: 1 | GI175: 6 | HB175: 9
C176: 1 año | D176: 2 | CP176: 10 | FG176: 1 | GI176: 1 | HB176: 5
C177: 2 años | D177: 3 | T177: 2 | BC177: 3 | CP177: 8 | FG177: 1 | GI177: 1 | HB177: 2
C178: 3 años | D178: 3 | BC178: 2 | CP178: 4 | HB178: 1
C179: 4 años | D179: 1 | T179: 1 | CP179: 2 | FG179: 1 | HB179: 2
C182: C) En los Niños y Niñas de 05 a 11 años
C184: Grupo de Edad | E184: Índice de Masa Cororal (IMC) | DY184: Talla para la Edad (TE) | HA184: Normal
E185: Obesidad | S185: Sobrepeso | BB185: Delgadez | CO185: Delgadez Severa | DY185: Alto | FF185: Talla Baja | GE185: Talla Baja Severa | HA185: Normal
E186: Dx. | L186: Recup. | S186: Dx. | AI186: Recup. | BB186: Dx. | BT186: Recup. | CO186: Dx. | DE186: Recup. | DY186: Dx. | EN186: Recup. | FF186: Dx. | FR186: Recup. | GE186: Dx. | GS186: Recup. | HA186: Normal
C187: 05 a 11 años | E187: 3 | S187: 6 | DY187: 1 | HA187: 23
C189: IX. EVALUACION DEL DESARROLLO
C191: Grupo de Edad | D191: Trastorno del Desarrollo | GJ191: Evaluac. Normal
D192: Lenguaje | U192: Motora | BD192: Social | CQ192: Coordinación | ED192: Cognitiva | FH192: Con + de 1 Trastorno | GJ192: Evaluac. Normal
D193: Dx. | L193: Recup. | U193: Dx. | AK193: Recup. | BD193: Dx. | BX193: Recup. | CQ193: Dx. | DJ193: Recup. | ED193: Dx. | ER193: Recup. | FH193: Dx. | FV193: Recup. | GJ193: Evaluac. Normal
C194: < 1 año | GJ194: 240
C195: 1 año | GJ195: 100
C196: 2 años | GJ196: 56
C199: Grupo de Edad | D199: Déficit del Desarrollo | GJ199: Evaluac. Normal
D200: Lenguaje | U200: Motora | BD200: Social | CQ200: Coordinación | ED200: Cognitiva | FH200: Más de 1 Déficit | GJ200: Evaluac. Normal
D201: Dx. | L201: Recup. | U201: Dx. | AK201: Recup. | BD201: Dx. | BX201: Recup. | CQ201: Dx. | DJ201: Recup. | ED201: Dx. | ER201: Recup. | FH201: Dx. | FV201: Recup. | GJ201: Evaluac. Normal
C202: 03 años | GJ202: 42
C203: 04 años | GJ203: 28
C205: X. PLAN DE ATENCION INTEGRAL
C207: Edades | F207: RN | M207: <1 año | V207: 01 año | AL207: 02 años | BE207: 03 años | BZ207: 04 años | CR207: 05 años | DK207: 06 años | EE207: 07 años | ES207: 08 años | FI207: 09 años | FW207: 10 años | GK207: 11 años
C208: Elaborado | F208: 39 | M208: 38 | V208: 41 | AL208: 28 | BE208: 25 | BZ208: 18 | CR208: 5 | EE208: 1 | ES208: 1 | FI208: 3 | FW208: 1 | GK208: 1
C209: Ejecutado | F209: 22 | M209: 32 | V209: 17 | AL209: 15 | BE209: 11 | BZ209: 6 | CR209: 9 | DK209: 1 | EE209: 2 | ES209: 3 | FI209: 3 | FW209: 2 | GK209: 4
C212: XI. CONSEJERÍA
C214: Tipos / Edades | AH214: TOTAL | AX214: RN | BN214: <1 año | CI214: 01 año | DC214: 02 años | DX214: 03 años | EL214: 04 años | FE214: 05 - 11 a
C215: Nutricional por Suplementación
C216: Nutricional por Eval. PE, TP, TE, IMC | AH216: 440 | AX216: 13 | BN216: 208 | CI216: 121 | DC216: 47 | DX216: 17 | EL216: 9 | FE216: 25
C217: Integral por Eval. del Desarrollo
C218: Integral por Aliment. Complement.
C221: XII. VISITA DOMICILIARIA
C223: Tipos de Visita / Edades | AH223: TOTAL | AX223: RN | BN223: <1 año | CI223: 01 año | DC223: 02 años | DX223: 03 años | EL223: 04 años | FE223: 05 - 11 a
C224: Seguimiento al Control CRED | AH224: 2 | BN224: 1 | CI224: 1
C225: Seguimiento a Problemas Nutricionales
C226: Seguimiento a Problemas del Desarrollo
C227: Entrega de Suplementación | AH227: 1 | BN227: 1
C228: Verificación de Consumo de Micronutrientes | AH228: 2 | BN228: 1 | CI228: 1
C229: Seguimiento de IRA
C230: Seguimiento de EDA
C231: Seguimiento de Anemia | AH231: 8 | BN231: 2 | CI231: 3 | DC231: 2 | EL231: 1
C234: XIII. ESTIMULACION TEMPRANA
C236: Edad | G236: 1º | N236: 2º | AF236: 3º | AW236: 4º | BM236: 5º | CD236: 6º
C237: Recién Nacido | G237: 31
C238: < 01 año | G238: 40 | N238: 29 | AF238: 29 | AW238: 16 | BM238: 18 | CD238: 10
C239: 01 año | G239: 17 | N239: 5 | AF239: 17 | AW239: 2
C240: 02 años | G240: 10 | N240: 7
C241: 03 años | G241: 3
C243: XIV. ACTIVIDADES EXTRAMURALES, MASIVAS Y DE GESTIÓN
C245: Unidad Medida | G245: Actividad Extramural | BA245: Actividades de Gestión
G246: Sesiones Demostrativas | W246: Sesiones Educativas | BA246: Evaluación | CJ246: Supervisión | DQ246: Asistencia Técnica | EU246: Reu.Téc: Personal de Salud | FZ246: Reu.Téc: Agente Com. de Salud
C247: Actividades | G247: 3 | W247: 2
C248: Participantes | G248: 6 | W248: 17
C250: XV. ATENCION DE LAS ENFERMEDADES PREVALENTES DE LA INFANCIA
C252: A. INFECCIÓN RESPIRATORIA AGUDA
C254: DIAGNÓSTICOS | CX254: Grupo Edad
CX255: < 29 Días | EA255: 29 d a 59 Días | EX255: 02 - 11 Meses | GB255: 01 - 04 Años | GO255: 05 - 11 Años | HE255: TOTAL
C256: 1.1 N° casos de IRA sin complicaciones (a+b+c+d+e) | AH256: a. Infección Respiratoria Aguda (IRA) no complicada | CX256: 3 | EA256: 3 | EX256: 38 | GB256: 60 | GO256: 38 | HE256: 142
AH257: b. Faringoamigdalitis Aguda | CX257: 3 | EX257: 14 | GB257: 17 | GO257: 15 | HE257: 49
AH258: c. Otitis Media Aguda (OMA) | EX258: 1 | HE258: 1
AH259: d. Sinusitis Aguda
AH260: e. Neumonía sin complicaciones
C261: 1.2 N° casos IRA con complicaciones (a+b+c) | AH261: a. Infecciones Respiratorias Agudas con complicaciones
AH262: b. Neumonía Grave o Enfermedad Muy Grave en Niños Menores de 2 Meses | CX262: 1 | HE262: 1
AH263: c. Neumonía y Enfermedad Muy Grave en Niños de 2 Meses a 4 Años | EX263: 1 | HE263: 1
C266: DIAGNÓSTICOS | CW266: < 29 Días | DZ266: 29 d a 59 Días | EW266: 02 - 11 Meses | GA266: 12 - 23 Meses | GN266: 02- 02 Años con 11 Meses | HD266: 03 - 04 Años | HM266: 05 - 11 Años | HR266: TOTAL
C267: 1.3 SOB/Asma | AH267: a. SOB/Asma | EW267: 6 | GA267: 2 | GN267: 1 | HD267: 2 | HM267: 4 | HR267: 15
C269: B. ENFERMEDAD DIARREICA AGUDA
C271: DIAGNÓSTICOS | CW271: Grupo Edad
CW272: < 01 Año | DZ272: 01 - 04 Años | EW272: 05 - 11 Años | GA272: TOTAL
C273: 1. Enfermedades Diarreicas sin complicaciones ( a + b + c) | AH273: a. Diarrea Aguda Acuosa sin deshidratación | CW273: 9 | DZ273: 17 | EW273: 5 | GA273: 31
... 29 more rows

Sheet marzo
AZ3: REPORTE MENSUAL DE ACTIVIDADES ATENCIÓN INTEGRAL DE SALUD DEL NIÑO
B5: Periodo: Marzo - 2020
B6: Diresa/Red/M.Red/EE.SS: AREQUIPA/AREQUIPA CAYLLOMA/VICTOR RAUL HINOJOZA/TODOS LOS EE.SS
C9: I. ATENCIÓN DEL RECIÉN NACIDO
C11: A) Atención Inmediata
C13: ACTIVIDADES | X13: Nº
C14: Atención Inmediata
C15: Tamizaje Neonatal (Enfermed. Metabólicas)
C16: Tamizaje Visual y Auditivo
C17: Contacto Piel a Piel con la madre | X17: 9
C18: Alojamiento Conjunto | X18: 9
C19: Lactancia Materna en la 1º Hora | X19: 9
C21: B) Resultados del Tamizaje Neonatal
C23: DIAGNÓSTICOS | X23: Nº
C24: Hipotiroidismo Congénito
C25: Fenilcetonuria
C26: Galactosemia
C27: Hiperplasia Suprarrenal Congénita
C28: Fibrosis Quística
C29: Catarata Congénita
C30: Hipoacusia (todas las clasificaciones)
C33: D) Morbilidad Neonatal
C35: CAUSAS DE MORBILIDAD | Z35: Nº
C36: Síndrome de Dristres Respiratorio
C37: Síndromes de Aspiración Neonatal
C38: Asfixia Neonatal
C39: Sepsis Neonatal
C40: Ictericia | Z40: 4
C41: Hipoglucemia
C42: Sífilis Congénita
C43: VIH Expuesto
C44: Retinopatía de la Prematuridad
C47: II. CONTROL DE CRECIMIENTO Y DESARROLLO
C49: Grupo de Edad | K49: Número de Controles
K50: 1º | R50: 2º | AB50: 3º | AS50: 4º | BG50: 5º | BR50: 6º | CH50: 7º | CZ50: 8º | DN50: 9º | EG50: 10º | EP50: 11º | FD50: SN | FO50: TOTAL
C51: De 1d a 7d | K51: 9 | FO51: 9
C52: De 8d a 14d | K52: 7 | R52: 7 | FO52: 14
C53: De 15d a 21d | R53: 2 | AB53: 5 | FO53: 7
C54: De 22d a +d | K54: 1 | R54: 2 | AB54: 2 | AS54: 6 | FO54: 11
C55: 29 días - 11 meses | K55: 26 | R55: 25 | AB55: 22 | AS55: 22 | BG55: 23 | BR55: 17 | CH55: 21 | CZ55: 19 | DN55: 9 | EG55: 12 | EP55: 9 | FO55: 205
C56: 01 año | K56: 29 | R56: 17 | AB56: 10 | AS56: 12 | BG56: 9 | BR56: 2 | FO56: 79
C57: 02 años | K57: 9 | R57: 10 | AB57: 8 | AS57: 7 | FO57: 34
C58: 03 años | K58: 9 | R58: 7 | AB58: 7 | AS58: 4 | FD58: 1 | FO58: 28
C59: 04 años | K59: 14 | R59: 3 | AB59: 3 | AS59: 3 | FO59: 23
C60: 05 a 11 años | K60: 19 | FO60: 19
C63: Evaluación del Estado Nutricional Antropométricas (Por personal técnico)
C65: Grupo de Edad | J65: Número de Evaluaciones Antropométricas
J66: 1º | Q66: 2º | AA66: 3º | AR66: 4º | BF66: 5º | BQ66: 6º | CG66: 7º | CY66: 8º | DM66: 9º | EF66: 10º | EO66: 11º | FC66: SN | FN66: TOTAL
C67: De 1d a 7d
C68: De 8d a 14d
C69: De 15d a 21d
C70: De 22d a +d
C71: 29 días - 11 meses
C72: 01 año
C73: 02 años
C74: 03 años
C75: 04 años
C76: 05 a 11 años
C79: III. TAMIZAJE
C81: ACTIVIDADES | AO81: 01m* | AZ81: 06m | BO81: 01 a | CE81: 02 a | CV81: 03 a | DL81: 04 a | EB81: 05 -11 a | EM81: TOTAL
C82: Detección de Anemia | I82: Solicitud de Dosaje de Hb | EB82: 6 | EM82: 6
I83: Resultados Evaluados | AZ83: 14 | BO83: 43 | CE83: 16 | CV83: 9 | DL83: 4 | EB83: 25 | EM83: 111
C84: Descarte de Parasitosis | I84: Solicitud de Examen | BO84: 1 | CE84: 1 | DL84: 1 | EB84: 8 | EM84: 11
I85: Resultados Evaluados | BO85: 1 | DL85: 2 | EB85: 5 | EM85: 8
C88: IV. ADMINISTRACIÓN DE PROFILAXIS ANTIPARASITARIA
C90: ACTIVIDADES | AH90: DOSIS
AH91: 01 año | CC91: 02 años | DP91: 03 años | EZ91: 04 años | GL91: 05 - 11 años
AH92: 1º | AZ92: 2º | CC92: 1º | CU92: 2º | DP92: 1º | EK92: 2º | EZ92: 1º | FQ92: 2º | GL92: 1º | GZ92: 2º
C93: Administración de Profilaxis Antiparasitaria | CC93: 15 | CU93: 1 | DP93: 11 | EK93: 3 | EZ93: 13 | FQ93: 2 | GL93: 14
C95: IV. ADMINISTRACIÓN DE PROFILAXIS ANTIPARASITARIA
C97: A) Sulfato Ferroso y Multimicronutriente (en polvo)
C99: ACTIVIDADES | R99: DOSIS
R100: 1º | AE100: 2º | AV100: 3º | BK100: 4º | BY100: 5º | CN100: 6º | DD100: 7º | DS100: 8º | EI100: 9º | EV100: 10º | FM100: 11º | FY100: 12º | GG100: TA
C101: < 06 meses (BPN y Prematuros (SF))
C102: De 4 a 5 meses (Sulfato Ferroso)
C103: De 6 a 11 meses (MMN) | R103: 1 | AE103: 1 | AV103: 1 | BY103: 1
C104: De 1 año (MMN) | AV104: 1 | GG104: 3
C105: De 2 año (MMN) | GG105: 3
C106: De 3 año (MMN) | GG106: 1
C107: De 4 año (MMN)
B110: Polimaltosado
B112: ACTIVIDADES | P112: DOSIS
P113: 1º | AC113: 2º | AT113: 3º | BI113: 4º | BV113: 5º | CK113: 6º | DB113: 7º | DR113: 8º | EH113: 9º | ET113: 10º | FK113: 11º | FX113: 12º | GF113: TA
B114: < 06 meses (BPN y Prematuros) | P114: 1
B115: De 4 a 5 meses | P115: 24 | AC115: 5
B116: De 6 a 11 meses | P116: 14 | AC116: 16 | AT116: 6 | BI116: 1 | BV116: 5 | CK116: 2
B117: De 1 año | P117: 5 | AC117: 1 | AT117: 4 | BI117: 5 | BV117: 3 | CK117: 6 | DB117: 3 | DR117: 3 | EH117: 1 | ET117: 1 | FK117: 2 | FX117: 3
B118: De 2 años | AC118: 2 | BI118: 1 | BV118: 1 | CK118: 1 | DB118: 2 | FK118: 2 | FX118: 2
B119: De 3 años | DR119: 1 | FK119: 1
B120: De 4 años | FX120: 1
C123: B) Vitamina "A"
Q125: 06 meses | AU125: 01 año | BY125: 02 años | DD125: 03 años | EI125: 04 años
C126: Dosis | Q126: 1º Dosis | AD126: 2º Dosis | AU126: 1º Dosis | BJ126: 2º Dosis | BY126: 1º Dosis | CN126: 2º Dosis | DD126: 1º Dosis | DS126: 2º Dosis | EI126: 1º Dosis | EV126: 2º Dosis
C127: Suplementados
C130: VI. LACTANCIA MATERNA EXCLUSIVA
C132: Condición | Q132: Nº
C133: Niños con LME a los 06 meses | Q133: 5
C135: VII. ALIMENTACIÓN COMPLEMENTARIA
C137: Condición | CA137: Nº
C138: Niños con Inicio de Alimentación Complementaria antes de los 06 meses | CA138: 2
C139: Niños con Inicio de Alimentación Complementaria después de los 06 meses | CA139: 4
C140: Niños con Inicio de Alimentación Complementaria Adecuada | CA140: 49
C141: Niños con Inicio de Alimentación Complementaria Inadecuada
C144: VIII. EVALUACION DEL ESTADO NUTRICIONAL
C146: A) En el Recién Nacido de 01 día a 28 días
C148: Clasificación | O148: Dx | BP148: Nº
C149: RN Bajo Peso Recuperados | O149: RN Bajo Peso Recuperados
C150: Peso al Nacer | O150: Extremadamente bajo
O151: Muy bajo peso al nacer
O152: Bajo peso al nacer
O153: Normal | BP153: 17
O154: Macrosómico
C155: Ganancia de Peso / Talla | O155: Ganancia Inadecuada de Peso Dx.
O156: Ganancia Inadecuada de Peso Recup.
O157: Ganancia Inadecuada de Talla Dx.
O158: Ganancia Inadecuada de Talla Recup.
C160: B) En los Niños y Niñas de 29 días a < 05 años
C162: Grupo de Edad | E162: Ganancia Inadecuada de Peso o Talla | BB162: Normal
E163: Peso | S163: Talla | BB163: Normal
E164: Dx. | L164: Recup. | S164: Dx. | AI164: Recup. | BB164: Normal
C165: < 1 año | E165: 1 | S165: 5 | AI165: 1 | BB165: 190
C166: 1 año | E166: 6 | S166: 5 | BB166: 63
C167: 2 años | S167: 4 | BB167: 31
C168: 3 años | S168: 1 | BB168: 26
C169: 4 años | BB169: 21
C172: Grupo de Edad | D172: Peso para la Edad (PE) | BC172: Peso para la Edad (TP) | GI172: Talla para la Edad (TE)
D173: Sobrepeso | T173: Desnutrición | BC173: Obesidad | CP173: Sobrepeso | EC173: Desnutrición Aguda | FG173: Desnutrición Severa | GI173: Alto | HB173: Talla Baja
D174: Dx. | L174: Recup. | T174: Dx. | AJ174: Recup. | BC174: Dx. | BW174: Recup. | CP174: Dx. | DI174: Recup. | EC174: Dx. | EQ174: Recup. | FG174: Dx. | FU174: Recup. | GI174: Dx. | GV174: Recup. | HB174: Dx. | HI174: Recup.
C175: < 1 año | D175: 3 | T175: 3 | BC175: 2 | CP175: 7 | EC175: 1 | GI175: 3 | HB175: 4
C176: 1 año | D176: 1 | T176: 1 | BC176: 1 | CP176: 4 | EC176: 1 | HB176: 4
C177: 2 años | D177: 1 | T177: 1 | BC177: 2 | CP177: 3 | HB177: 2
C178: 3 años | T178: 1 | CP178: 5 | FG178: 1 | HB178: 1
C179: 4 años | D179: 1 | BC179: 1 | CP179: 1
C182: C) En los Niños y Niñas de 05 a 11 años
C184: Grupo de Edad | E184: Índice de Masa Cororal (IMC) | DY184: Talla para la Edad (TE) | HA184: Normal
E185: Obesidad | S185: Sobrepeso | BB185: Delgadez | CO185: Delgadez Severa | DY185: Alto | FF185: Talla Baja | GE185: Talla Baja Severa | HA185: Normal
E186: Dx. | L186: Recup. | S186: Dx. | AI186: Recup. | BB186: Dx. | BT186: Recup. | CO186: Dx. | DE186: Recup. | DY186: Dx. | EN186: Recup. | FF186: Dx. | FR186: Recup. | GE186: Dx. | GS186: Recup. | HA186: Normal
C187: 05 a 11 años | E187: 2 | S187: 5 | DY187: 2 | HA187: 15
C189: IX. EVALUACION DEL DESARROLLO
C191: Grupo de Edad | D191: Trastorno del Desarrollo | GJ191: Evaluac. Normal
D192: Lenguaje | U192: Motora | BD192: Social | CQ192: Coordinación | ED192: Cognitiva | FH192: Con + de 1 Trastorno | GJ192: Evaluac. Normal
D193: Dx. | L193: Recup. | U193: Dx. | AK193: Recup. | BD193: Dx. | BX193: Recup. | CQ193: Dx. | DJ193: Recup. | ED193: Dx. | ER193: Recup. | FH193: Dx. | FV193: Recup. | GJ193: Evaluac. Normal
C194: < 1 año | GJ194: 175
C195: 1 año | GJ195: 66
C196: 2 años | GJ196: 29
C199: Grupo de Edad | D199: Déficit del Desarrollo | GJ199: Evaluac. Normal
D200: Lenguaje | U200: Motora | BD200: Social | CQ200: Coordinación | ED200: Cognitiva | FH200: Más de 1 Déficit | GJ200: Evaluac. Normal
D201: Dx. | L201: Recup. | U201: Dx. | AK201: Recup. | BD201: Dx. | BX201: Recup. | CQ201: Dx. | DJ201: Recup. | ED201: Dx. | ER201: Recup. | FH201: Dx. | FV201: Recup. | GJ201: Evaluac. Normal
C202: 03 años | GJ202: 23
C203: 04 años | GJ203: 19
C205: X. PLAN DE ATENCION INTEGRAL
C207: Edades | F207: RN | M207: <1 año | V207: 01 año | AL207: 02 años | BE207: 03 años | BZ207: 04 años | CR207: 05 años | DK207: 06 años | EE207: 07 años | ES207: 08 años | FI207: 09 años | FW207: 10 años | GK207: 11 años
C208: Elaborado | F208: 16 | M208: 26 | V208: 29 | AL208: 9 | BE208: 9 | BZ208: 14 | CR208: 3
C209: Ejecutado | F209: 6 | M209: 9 | V209: 2 | AL209: 7 | BE209: 8 | BZ209: 4 | CR209: 4 | DK209: 3 | ES209: 2 | FI209: 2 | FW209: 1 | GK209: 3
C212: XI. CONSEJERÍA
C214: Tipos / Edades | AH214: TOTAL | AX214: RN | BN214: <1 año | CI214: 01 año | DC214: 02 años | DX214: 03 años | EL214: 04 años | FE214: 05 - 11 a
C215: Nutricional por Suplementación | AH215: 5 | CI215: 1 | DC215: 3 | DX215: 1
C216: Nutricional por Eval. PE, TP, TE, IMC | AH216: 246 | AX216: 6 | BN216: 111 | CI216: 78 | DC216: 21 | DX216: 13 | EL216: 7 | FE216: 10
C217: Integral por Eval. del Desarrollo
C218: Integral por Aliment. Complement.
C221: XII. VISITA DOMICILIARIA
C223: Tipos de Visita / Edades | AH223: TOTAL | AX223: RN | BN223: <1 año | CI223: 01 año | DC223: 02 años | DX223: 03 años | EL223: 04 años | FE223: 05 - 11 a
C224: Seguimiento al Control CRED | AH224: 5 | BN224: 3 | CI224: 2
C225: Seguimiento a Problemas Nutricionales
C226: Seguimiento a Problemas del Desarrollo
C227: Entrega de Suplementación | AH227: 10 | BN227: 5 | CI227: 2 | DC227: 2 | DX227: 1
C228: Verificación de Consumo de Micronutrientes | AH228: 7 | BN228: 6 | DX228: 1
C229: Seguimiento de IRA
C230: Seguimiento de EDA
C231: Seguimiento de Anemia | AH231: 25 | BN231: 5 | CI231: 16 | DX231: 4
C234: XIII. ESTIMULACION TEMPRANA
C236: Edad | G236: 1º | N236: 2º | AF236: 3º | AW236: 4º | BM236: 5º | CD236: 6º
C237: Recién Nacido | G237: 6
C238: < 01 año | G238: 22 | N238: 18 | AF238: 17 | AW238: 14 | BM238: 14 | CD238: 7
C239: 01 año | G239: 24 | N239: 2 | AF239: 6
C240: 02 años | G240: 3 | N240: 3
C241: 03 años | G241: 2
C243: XIV. ACTIVIDADES EXTRAMURALES, MASIVAS Y DE GESTIÓN
C245: Unidad Medida | G245: Actividad Extramural | BA245: Actividades de Gestión
G246: Sesiones Demostrativas | W246: Sesiones Educativas | BA246: Evaluación | CJ246: Supervisión | DQ246: Asistencia Técnica | EU246: Reu.Téc: Personal de Salud | FZ246: Reu.Téc: Agente Com. de Salud
C247: Actividades
C248: Participantes
C250: XV. ATENCION DE LAS ENFERMEDADES PREVALENTES DE LA INFANCIA
C252: A. INFECCIÓN RESPIRATORIA AGUDA
C254: DIAGNÓSTICOS | CX254: Grupo Edad
CX255: < 29 Días | EA255: 29 d a 59 Días | EX255: 02 - 11 Meses | GB255: 01 - 04 Años | GO255: 05 - 11 Años | HE255: TOTAL
C256: 1.1 N° casos de IRA sin complicaciones (a+b+c+d+e) | AH256: a. Infección Respiratoria Aguda (IRA) no complicada | CX256: 2 | EA256: 7 | EX256: 33 | GB256: 50 | GO256: 27 | HE256: 119
AH257: b. Faringoamigdalitis Aguda | CX257: 1 | EA257: 1 | EX257: 17 | GB257: 34 | GO257: 17 | HE257: 70
AH258: c. Otitis Media Aguda (OMA) | GB258: 1 | HE258: 1
AH259: d. Sinusitis Aguda
AH260: e. Neumonía sin complicaciones
C261: 1.2 N° casos IRA con complicaciones (a+b+c) | AH261: a. Infecciones Respiratorias Agudas con complicaciones
AH262: b. Neumonía Grave o Enfermedad Muy Grave en Niños Menores de 2 Meses
AH263: c. Neumonía y Enfermedad Muy Grave en Niños de 2 Meses a 4 Años
C266: DIAGNÓSTICOS | CW266: < 29 Días | DZ266: 29 d a 59 Días | EW266: 02 - 11 Meses | GA266: 12 - 23 Meses | GN266: 02- 02 Años con 11 Meses | HD266: 03 - 04 Años | HM266: 05 - 11 Años | HR266: TOTAL
C267: 1.3 SOB/Asma | AH267: a. SOB/Asma | EW267: 3 | HD267: 1 | HM267: 1 | HR267: 5
C269: B. ENFERMEDAD DIARREICA AGUDA
C271: DIAGNÓSTICOS | CW271: Grupo Edad
CW272: < 01 Año | DZ272: 01 - 04 Años | EW272: 05 - 11 Años | GA272: TOTAL
C273: 1. Enfermedades Diarreicas sin complicaciones ( a + b + c) | AH273: a. Diarrea Aguda Acuosa sin deshidratación | CW273: 5 | DZ273: 8 | EW273: 1 | GA273: 14
... 29 more rows

Sheet ITRIMESTRE
R1: Página 01
B2: REPORTE MENSUAL DE ACTIVIDADES
B3: ATENCIÓN INTEGRAL DE SALUD DEL NIÑO
B4: DIRESA / RED / MR / EESS : | D4: MICRORED: VICTOR RAUL HINOJOZA | L4: Periodo : | M4: 01-ENERO AL 31-MARZO 2020
D5: Edad Según ETV DESAGREGADO
B7: I. ATENCIÓN DEL RECIÉN NACIDO
B8: A) Atención Inmediata | J8: D) Morbilidad Neonatal
B9: ACTIVIDADES | F9: Nº | J9: CAUSAS DE MORBILIDAD | N9: Nº
B10: Atención Inmediata | F10: 0 | J10: Síndrome de Dristres Respiratorio | N10: 0
B11: Tamizaje Neonatal (Enfermed. Metabólicas) | F11: 0 | J11: Síndromes de Aspiración Neonatal | N11: 0
B12: Tamizaje Visual y Auditivo | F12: 0 | J12: Asfixia Neonatal | N12: 0
B13: Contacto Piel a Piel con la madre | F13: 49 | J13: Sepsis Neonatal | N13: 0
B14: Alojamiento Conjunto | F14: 49 | J14: Ictericia | N14: 15
B15: Lactancia Materna en la 1º Hora | F15: 49 | J15: Hipoglucemia | N15: 0
J16: Sífilis Congénita | N16: 0
B17: B) Resultados del Tamizaje Neonatal | J17: VIH Expuesto | N17: 0
B18: DIAGNÓSTICOS | F18: Nº | J18: Retinopatía de la Prematuridad | N18: 0
B19: Hipotiroidismo Congénito | F19: 0
B20: Fenilcetonuria | F20: 0 | J20: E) Mortalidad Neonatal
B21: Galactosemia | F21: 0 | J21: PESO AL NACER | M21: Nº | O21: Causas Defunción | R21: Nº
B22: Hiperplasia Suprarrenal Congénita | F22: 0 | J22: < 1,000 gr. | O22: Asfixia
B23: Fibrosis Quística | F23: 0 | J23: 1,000 a 1,499 gr. | O23: SDR
B24: Catarata Congénita | F24: 0 | J24: 1,500 a 2,499 gr. | O24: Sepsis
B25: Hipoacusia (todas las clasificaciones) | F25: 0 | J25: 2,500 a 4,000 gr. | O25: Malformaciones Congénitas
J26: > 4,000 y más gr. | O26: Otras
B27: C) Condición al Nacimiento | J27: No especificado
B28: CONDICIÓN | D28: Lugar de Nacimiento | J28: TIEMPO DE VIDA | M28: Nº
D29: EESS | E29: Domicilio | F29: Total | J29: Óbito fetal
B30: RN Normal | F30: =SUM(D30:E30) -> 0 | J30: < 24 horas
B31: RN Deprimido | F31: =SUM(D31:E31) -> 0 | J31: 01 a 07 días
B32: Prematuro | F32: =SUM(D32:E32) -> 0 | J32: 08 a 28 días
L34: Fuentes Externas
B35: La información del presente reporte debe ser complementada con fuentes externas (Libro de Atenciones, Reporte de Egresos, Certificado de Defunción, etc.) | M35: Libro de Atenciones y Reporte de Egresos
M36: Certificado de Defunción
B40: II. CONTROL DE CRECIMIENTO Y DESARROLLO | R40: Página 02
B42: Grupo de Edad | D42: Número de Controles | P42: Registros Errados
D43: 1º | E43: 2º | F43: 3º | G43: 4º | H43: 5º | I43: 6º | J43: 7º | K43: 8º | L43: 9º | M43: 10º | N43: 11º | O43: Total
B44: De 1d a 7d | D44: 38 | E44: 0 | F44: 0 | G44: 0 | H44: 0 | I44: 0 | J44: 0 | K44: 0 | L44: 0 | M44: 0 | N44: 0 | O44: =SUM(D44) -> 38 | P44: 0
B45: De 8d a 14d | D45: 39 | E45: 51 | F45: 1 | G45: 0 | H45: 0 | I45: 0 | J45: 0 | K45: 0 | L45: 0 | M45: 0 | N45: 0 | O45: =SUM(D45:E45) -> 90 | P45: 0
B46: De 15d a 21d | D46: 7 | E46: 18 | F46: 41 | G46: 0 | H46: 0 | I46: 0 | J46: 0 | K46: 0 | L46: 0 | M46: 0 | N46: 0 | O46: =SUM(D46:F46) -> 66 | P46: 0
B47: De 22d a +d | D47: 3 | E47: 6 | F47: 14 | G47: 17 | H47: 0 | I47: 0 | J47: 0 | K47: 0 | L47: 0 | M47: 0 | N47: 0 | O47: =SUM(D47:G47) -> 40 | P47: 0
B48: Total Recién Nacido | D48: =SUM(D44:D47) -> 87 | E48: =SUM(E45:E47) -> 75 | F48: =SUM(F46:F47) -> 55 | G48: =SUM(G47) -> 17 | H48: =SUM(H44:H47) -> 0 | I48: =SUM(I44:I47) -> 0 | J48: 0 | K48: 0 | L48: 0 | M48: 0 | N48: 0 | O48: =SUM(D48:G48) -> 234
B49: 29 días - 11 meses | D49: 103 | E49: 106 | F49: 100 | G49: 102 | H49: 85 | I49: 92 | J49: 77 | K49: 73 | L49: 65 | M49: 74 | N49: 63 | O49: =SUM(D49:N49) -> 940 | P49: 0
B50: 01 año | D50: 107 | E50: 71 | F50: 63 | G50: 51 | H50: 39 | I50: 32 | J50: 0 | K50: 0 | L50: 0 | M50: 0 | N50: 0 | O50: =SUM(D50:I50) -> 363 | P50: 0
B51: 02 años | D51: 74 | E51: 56 | F51: 30 | G51: 37 | H51: 0 | I51: 0 | J51: 0 | K51: 0 | L51: 0 | M51: 0 | N51: 0 | O51: =SUM(D51:G51) -> 197 | P51: 0
B52: 03 años | D52: 67 | E52: 34 | F52: 25 | G52: 22 | H52: 0 | I52: 0 | J52: 0 | K52: 0 | L52: 0 | M52: 0 | N52: 0 | O52: =SUM(D52:G52) -> 148 | P52: 0
B53: 04 años | D53: 57 | E53: 27 | F53: 17 | G53: 16 | H53: 0 | I53: 0 | J53: 0 | K53: 0 | L53: 0 | M53: 0 | N53: 0 | O53: =SUM(D53:G53) -> 117 | P53: 0
B54: 05 a 11 años | D54: 89 | E54: 0 | F54: 0 | G54: 0 | H54: 0 | I54: 0 | J54: 0 | K54: 0 | L54: 0 | M54: 0 | N54: 0 | O54: =SUM(D54) -> 89 | P54: 0
B55: =IF(P55>0,"Si en la columna P aparecen valores es porque hay registros con valores INCORRECTOS en el campo LAB perdiendo niños con controles CRED, REVISE.","") ->  | P55: =SUM(P44:P54) -> 0
B57: III. TAMIZAJE
B58: ACTIVIDADES | H58: 01m* | I58: 06m | J58: 01 a | K58: 02 a | L58: 03 a | M58: 04 a | N58: 05 -11 a | O58: Total
B59: 1. Detección de Anemia | E59: Solicitud de Dosaje de Hb | H59: 0 | I59: 0 | J59: 0 | K59: 0 | L59: 1 | M59: 0 | N59: 13 | O59: =SUM(I59:N59) -> 14
E60: Resultados Evaluados | H60: 0 | I60: 1 | J60: 3 | K60: 1 | L60: 0 | M60: 2 | N60: 9 | O60: =SUM(I60:N60) -> 16
B61: 2. Descarte de Parasitosis | E61: Solicitud de Examen | H61: 0 | I61: 0 | J61: 1 | K61: 1 | L61: 0 | M61: 1 | N61: 28 | O61: =SUM(J61:N61) -> 31
E62: Resultados Evaluados | H62: 0 | I62: 0 | J62: 0 | K62: 1 | L62: 1 | M62: 1 | N62: 13 | O62: =SUM(J62:N62) -> 16
B63: * Prematuros y Bajo Peso al Nacer.
B65: IV. ADMINISTRACIÓN DE PROFILAXIS ANTIPARASITARIA
B67: ACTIVIDADES | F67: 01 año | H67: 02 años | J67: 03 años | L67: 04 años | N67: 05 - 11 años
F68: 1º | G68: 2º | H68: 1º | I68: 2º | J68: 1º | K68: 2º | L68: 1º | M68: 2º | N68: 1º | O68: 2º
B69: Administración de Profilaxis Antiparasitaria | F69: 0 | G69: 0 | H69: 67 | I69: 5 | J69: 68 | K69: 7 | L69: 63 | M69: 4 | N69: 70 | O69: 2
B71: V. ADMINISTRACION DE MICRONUTRIENTES
B72: A) Sulfato Ferroso y Multimicronutriente (en polvo)
B74: ACTIVIDADES | E74: DOSIS | R74: Registros Errados
E75: 1º | F75: 2º | G75: 3º | H75: 4º | I75: 5º | J75: 6º | K75: 7º | L75: 8º | M75: 9º | N75: 10º | O75: 11º | P75: 12º | Q75: TA
B76: < 06 meses (BPN y Prematuros (SF)) | E76: 0 | F76: 0 | G76: 0 | H76: 0 | I76: 0 | J76: 0 | K76: 0 | L76: 0 | M76: 0 | N76: 0 | O76: 0 | P76: 0 | Q76: 0 | R76: 144
B77: De 6 a 11 meses | E77: 0 | F77: 1 | G77: 0 | H77: 0 | I77: 1 | J77: 0 | K77: 0 | L77: 2 | M77: 0 | N77: 0 | O77: 0 | P77: 0 | Q77: 57 | R77: 200
B78: De 1 año | E78: 0 | F78: 1 | G78: 0 | H78: 0 | I78: 0 | J78: 0 | K78: 0 | L78: 0 | M78: 0 | N78: 1 | O78: 0 | P78: 0 | Q78: 9 | R78: 167
B79: De 2 año | E79: 1 | F79: 0 | G79: 0 | H79: 0 | I79: 0 | J79: 0 | K79: 0 | L79: 0 | M79: 0 | N79: 0 | O79: 0 | P79: 2 | Q79: 7 | R79: 46
B80: De 3 año | E80: 1 | F80: 0 | G80: 0 | H80: 0 | I80: 0 | J80: 0 | K80: 0 | L80: 0 | M80: 0 | N80: 0 | O80: 0 | P80: 0 | Q80: 3 | R80: 10
B81: De 4 año | E81: 0 | F81: 0 | G81: 0 | H81: 0 | I81: 0 | J81: 0 | K81: 0 | L81: 0 | M81: 0 | N81: 0 | O81: 0 | P81: 0 | Q81: 3 | R81: 2
B82: Los Suplementados son los que CONSUMEN 360 sobres de MMN (a partir de los 18 meses, no antes) para indicar que se ha consumido el último sobre de MMN se registra TA | R82: =SUM(R76:R81) -> 569
B84: B) Vitamina "A" | D84: 06 meses | F84: 01 año | H84: 02 años | J84: 03 años | L84: 04 años | R84: Página 03
B85: Dosis | D85: 1º Dosis | E85: 2º Dosis | F85: 1º Dosis | G85: 2º Dosis | H85: 1º Dosis | I85: 2º Dosis | J85: 1º Dosis | K85: 2º Dosis | L85: 1º Dosis | M85: 2º Dosis
B86: Suplementados | D86: 0 | E86: 0 | F86: 0 | G86: 0 | H86: 0 | I86: 0 | J86: 0 | K86: 0 | L86: 0 | M86: 0
B88: VI. LACTANCIA MATERNA EXCLUSIVA | H88: VII. ALIMENTACIÓN COMPLEMENTARIA
B90: CONDICIÓN | E90: Nº | H90: CONDICIÓN | P90: Nº
B91: Niños con LME a los 06 meses | E91: 30 | H91: Niños con Inicio de Alimentación Complementaria antes de los 06 meses | P91: 5
B92: Solo se evalua el registro a los 06 meses | H92: Niños con Inicio de Alimentación Complementaria después de los 06 meses | P92: 21
H93: Niños con Inicio de Alimentación Complementaria Adecuada | P93: 18
B94: VIII. EVALUACION DEL ESTADO NUTRICIONAL | H94: Niños con Inicio de Alimentación Complementaria Inadecuada | P94: 4
B95: A) En el Recién Nacido de 01 día a 28 días
B96: Clasificación: Peso al Nacer | E96: Nº | H96: Clasificación: Ganancia de Peso / Talla | L96: Dx. | M96: Recup.
B97: Extremadamente bajo | E97: 0 | H97: Ganancia Inadecuada de Peso | L97: 0 | M97: 0
B98: Muy bajo peso al nacer | E98: 0 | H98: Ganancia Inadecuada de Talla | L98: 0 | M98: 0
B99: Bajo peso al nacer | E99: 0 | H99: Dx: Diagnosticado | J99: Recup: Recuperado
B100: Normal | E100: 119
B101: Macrosómico | E101: 0
B103: B) En los Niños y Niñas de 29 días a < 05 años
B105: GRUPO DE EDAD | D105: Ganancia Inadecuada de Peso o Talla | H105: Normal | M105: RN Bajo Peso Recuperados
D106: Peso | F106: Talla
D107: Dx. | E107: Recup. | F107: Dx. | G107: Recup. | M107: 0
B108: < 1 año | D108: 14 | E108: 3 | F108: 18 | G108: 2 | H108: 718
B109: 1 año | D109: 18 | E109: 0 | F109: 12 | G109: 0 | H109: 268
B110: 2 años | D110: 7 | E110: 1 | F110: 7 | G110: 0 | H110: 155
B111: 3 años | D111: 3 | E111: 0 | F111: 3 | G111: 0 | H111: 125
B112: 4 años | D112: 3 | E112: 0 | F112: 1 | G112: 0 | H112: 97
B113: Dx: Diagnosticado | C113: Recup: Recuperado
B115: GRUPO DE EDAD | C115: Peso para la Edad (PE) | G115: Peso para la Edad (TP) | O115: Talla para la Edad (TE)
C116: Sobrepeso | E116: Desnutrición | G116: Obesidad | I116: Sobrepeso | K116: Desnutrición Aguda | M116: Desnutrición Severa | O116: Alto | Q116: Talla Baja | Z116: Normal
C117: Dx. | D117: Recup. | E117: Dx. | F117: Recup. | G117: Dx. | H117: Recup. | I117: Dx. | J117: Recup. | K117: Dx. | L117: Recup. | M117: Dx. | N117: Recup. | O117: Dx. | P117: Recup. | Q117: Dx. | R117: Recup. | Z117: Dx. | AA117: Recup.
B118: < 1 año | C118: 11 | D118: 0 | E118: 11 | F118: 0 | G118: 0 | H118: 0 | I118: 70 | J118: 0 | K118: 5 | L118: 0 | M118: 0 | N118: 0 | O118: 7 | P118: 0 | Q118: 16 | R118: 0 | Z118: 674 | AA118: 0
B119: 1 año | C119: 674 | D119: 0 | E119: 5 | F119: 0 | G119: 0 | H119: 0 | I119: 18 | J119: 0 | K119: 2 | L119: 0 | M119: 1 | N119: 0 | O119: 0 | P119: 0 | Q119: 9 | R119: 0 | Z119: 251 | AA119: 0
B120: 2 años | C120: 251 | D120: 0 | E120: 4 | F120: 0 | G120: 2 | H120: 0 | I120: 19 | J120: 0 | K120: 0 | L120: 0 | M120: 0 | N120: 0 | O120: 0 | P120: 0 | Q120: 3 | R120: 0 | Z120: 141 | AA120: 0
B121: 3 años | C121: 141 | D121: 0 | E121: 2 | F121: 0 | G121: 1 | H121: 0 | I121: 11 | J121: 0 | K121: 1 | L121: 0 | M121: 0 | N121: 0 | O121: 0 | P121: 0 | Q121: 3 | R121: 0 | Z121: 113 | AA121: 0
B122: 4 años | C122: 113 | D122: 0 | E122: 1 | F122: 0 | G122: 0 | H122: 0 | I122: 9 | J122: 0 | K122: 0 | L122: 0 | M122: 0 | N122: 0 | O122: 0 | P122: 0 | Q122: 2 | R122: 0 | Z122: 99 | AA122: 0
B123: Dx: Diagnosticado | C123: Recup: Recuperado
B125: C) En los Niños y Niñas de 05 a 11 años | S125: Página 04
B127: GRUPO DE EDAD | C127: Índice de Masa Cororal (IMC) | K127: Talla para la Edad (TE) | Q127: Normal
C128: Obesidad | E128: Sobrepeso | G128: Delgadez | I128: Delgadez | K128: Alto | M128: Talla Baja | O128: Talla Baja Severa
C129: Dx. | D129: Recup. | E129: Dx. | F129: Recup. | G129: Dx. | H129: Recup. | I129: Dx. | J129: Recup. | K129: Dx. | L129: Recup. | M129: Dx. | N129: Recup. | O129: Dx. | P129: Recup.
B130: 05 a 11 años | C130: 99 | D130: 0 | E130: 20 | F130: 1 | G130: 0 | H130: 0 | I130: 0 | J130: 0 | K130: 1 | L130: 0 | M130: 0 | N130: 0 | O130: 0 | P130: 0 | Q130: 56
B131: Dx: Diagnosticado | C131: Recup: Recuperado
B133: IX. EVALUACION DEL DESARROLLO
B135: Edades | C135: Trastorno del Desarrollo | O135: Evaluac. Normal
C136: Lenguaje | E136: Motora | G136: Social | I136: Coordinación | K136: Cognitiva | M136: Con + de 1 Trastorno
C137: Dx. | D137: Recup. | E137: Dx. | F137: Recup. | G137: Dx. | H137: Recup. | I137: Dx. | J137: Recup. | K137: Dx. | L137: Recup. | M137: Dx. | N137: Recup.
B138: < 1 año | C138: 0 | D138: 0 | E138: 0 | F138: 0 | G138: 0 | H138: 0 | I138: 0 | J138: 0 | K138: 0 | L138: 0 | M138: 0 | N138: 0 | O138: 641
B139: 01 año | C139: 3 | D139: 0 | E139: 0 | F139: 0 | G139: 0 | H139: 0 | I139: 0 | J139: 0 | K139: 0 | L139: 0 | M139: 0 | N139: 0 | O139: 246
B140: 02 años | C140: 0 | D140: 0 | E140: 0 | F140: 0 | G140: 0 | H140: 0 | I140: 0 | J140: 0 | K140: 0 | L140: 0 | M140: 0 | N140: 0 | O140: 145
B141: Dx: Diagnosticado | D141: Recup: Recuperado
B143: Edades | C143: Déficit del Desarrollo | O143: Evaluac. Normal
C144: Lenguaje | E144: Motora | G144: Social | I144: Coordinación | K144: Cognitiva | M144: Más de 1 Déficit
C145: Dx. | D145: Recup. | E145: Dx. | F145: Recup. | G145: Dx. | H145: Recup. | I145: Dx. | J145: Recup. | K145: Dx. | L145: Recup. | M145: Dx. | N145: Recup.
B146: 03 años | C146: 0 | D146: 0 | E146: 0 | F146: 0 | G146: 0 | H146: 0 | I146: 0 | J146: 0 | K146: 0 | L146: 0 | M146: 1 | N146: 0 | O146: 103
B147: 04 años | C147: 0 | D147: 0 | E147: 0 | F147: 0 | G147: 0 | H147: 0 | I147: 0 | J147: 0 | K147: 0 | L147: 0 | M147: 0 | N147: 0 | O147: 85
B148: Dx: Diagnosticado | D148: Recup: Recuperado
B150: X. PLAN DE ATENCION INTEGRAL
B152: Edades | C152: RN | D152: <1 año | E152: 01 año | F152: 02 años | G152: 03 años | H152: 04 años | I152: 05 años | J152: 06 años | K152: 07 años | L152: 08 años | M152: 09 años | N152: 10 años | O152: 11 años
B153: Elaborado | C153: 87 | D153: 105 | E153: 104 | F153: 73 | G153: 67 | H153: 56 | I153: 10 | J153: 3 | K153: 4 | L153: 5 | M153: 6 | N153: 5 | O153: 4
B154: Ejecutado | C154: 40 | D154: 63 | E154: 32 | F154: 37 | G154: 27 | H154: 17 | I154: 19 | J154: 6 | K154: 6 | L154: 8 | M154: 8 | N154: 7 | O154: 6
B156: XI. CONSEJERÍA
B158: Tipos / Edades | E158: Total | F158: RN | G158: <1 año | H158: 01 año | I158: 02 años | J158: 03 años | K158: 04 años | L158: 05 - 11 a
B159: Nutricional por Suplementación | E159: =SUM(F159:K159) -> 8 | F159: 0 | G159: 0 | H159: 1 | I159: 5 | J159: 1 | K159: 1 | L159: 0
B160: Nutricional por Eval. PE, TP, TE, IMC | E160: =SUM(F160:L160) -> 99 | F160: 0 | G160: 38 | H160: 19 | I160: 10 | J160: 9 | K160: 2 | L160: 21
B161: Integral por Eval. del Desarrollo | E161: =SUM(G161:L161) -> 2 | F161: 0 | G161: 1 | H161: 1 | I161: 0 | J161: 0 | K161: 0 | L161: 0
B162: Integral por Aliment. Complement. | E162: =G162 -> 62 | F162: 0 | G162: 62 | H162: 38 | I162: 5 | J162: 2 | K162: 1 | L162: 0
B166: XII. VISITA DOMICILIARIA | R166: Página 05
B167: TIPOS DE VISITA / EDADES | F167: Total | G167: RN | H167: <1 año | I167: 01 año | J167: 02 años | K167: 03 años | L167: 04 años | M167: 05 - 11 a
B168: Seguimiento al Control CRED | F168: =SUM(G168:M168) -> 11 | G168: 0 | H168: 7 | I168: 2 | J168: 0 | K168: 1 | L168: 0 | M168: 1
B169: Seguimiento a Problemas Nutricionales | F169: =SUM(G169:M169) -> 0 | G169: 0 | H169: 0 | I169: 0 | J169: 0 | K169: 0 | L169: 0 | M169: 0
B170: Seguimiento a Problemas del Desarrollo | F170: =SUM(G170:M170) -> 0 | G170: 0 | H170: 0 | I170: 0 | J170: 0 | K170: 0 | L170: 0 | M170: 0
B171: Entrega de Suplementación | F171: =SUM(G171:L171) -> 0 | G171: 0 | H171: 0 | I171: 0 | J171: 0 | K171: 0 | L171: 0 | M171: 0
B172: Verificación de Consumo de Micronutrientes | F172: =SUM(G172:L172) -> 6 | G172: 0 | H172: 5 | I172: 1 | J172: 0 | K172: 0 | L172: 0 | M172: 0
B173: Seguimiento de IRA | F173: =SUM(G173:M173) -> 0 | G173: 0 | H173: 0 | I173: 0 | J173: 0 | K173: 0 | L173: 0 | M173: 0
B174: Seguimiento de EDA | F174: =SUM(G174:M174) -> 0 | G174: 0 | H174: 0 | I174: 0 | J174: 0 | K174: 0 | L174: 0 | M174: 0
B175: Seguimiento de Anemia | F175: =SUM(G175:M175) -> 3 | G175: 0 | H175: 0 | I175: 3 | J175: 0 | K175: 0 | L175: 0 | M175: 0
B177: XIII. ESTIMULACION TEMPRANA | K177: XIV. ACTIVIDADES EXTRAMURALES, MASIVAS Y DE GESTIÓN
B179: EDADES / SESIONES | D179: 1º | E179: 2º | F179: 3º | G179: 4º | H179: 5º | I179: 6º | K179: Unidad Medida | M179: Actividades Extramurales y Masivas | Q179: Actividades de Gestión
B180: Recién Nacido | D180: 61 | E180: 0 | F180: 0 | G180: 0 | H180: 0 | I180: 0 | M180: Sesiones Demostrativas | O180: Sesiones Educativas | Q180: Evaluación | R180: Supervisión | S180: Asitencia Técnica | T180: Reu.Téc: Personal de Salud | U180: Reu.Téc: Agente Com. de Salud
B181: < 01 año | D181: 114 | E181: 71 | F181: 50 | G181: 20 | H181: 54 | I181: 39
B182: 01 año | D182: 44 | E182: 18 | F182: 24 | G182: 5 | H182: 0 | I182: 0 | K182: Actividades | M182: 0 | O182: 0 | Q182: 0 | R182: 0 | S182: 0 | T182: 0 | U182: 0
B183: 02 años | D183: 28 | E183: 11 | F183: 0 | G183: 0 | H183: 0 | I183: 0 | K183: Participantes | M183: 0 | O183: 0 | Q183: 0 | R183: 0 | S183: 0 | T183: 0 | U183: 0
B184: 03 años | D184: 6 | E184: 0 | F184: 0 | G184: 0 | H184: 0 | I184: 0
B185: =IF(SUM(E180:I180,H182:I184,F183:G184,E184)>0,"Los casilleros en rojo son error de registro CORRIJA"," ") -> 
B186: XV. ATENCION DE LAS ENFERMEDADES PREVALENTES DE LA INFANCIA
B187: A. INFECCIÓN RESPIRATORIA AGUDA
B188: DIAGNÓSTICOS | G188: Grupo de Edad
G189: < 29 Días | I189: 29 d a 59 Días | K189: 02 - 11 Meses | M189: 01 - 04 Años | O189: 05 - 11 Años | Q189: Total
B190: 1. Total de Casos de IRA ( 1 + 2 ) | G190: =G191+G195 -> 11 | I190: =I191+I195 -> 10 | K190: =K191+K195 -> 149 | M190: =M191+M195 -> 207 | O190: =O191+O195 -> 97 | Q190: =SUM(G190:P190) -> 474
B191: 1.1. Nº casos de IRA complicada ( a + b + c ) | G191: =SUM(G192:G194) -> 1 | I191: =SUM(I192:I194) -> 0 | K191: =SUM(K192:K194) -> 20 | M191: =SUM(M192:M194) -> 16 | O191: =SUM(O192:O194) -> 11 | Q191: 48
B192: a. Neumonía complicada | G192: 1 | I192: 0 | K192: 1 | M192: 1 | O192: 0 | Q192: 3
B193: b. Neumonía no complicada | G193: 0 | I193: 0 | K193: 0 | M193: 0 | O193: 0 | Q193: 0
B194: c. SOBA o ASMA | G194: 0 | I194: 0 | K194: 19 | M194: 15 | O194: 11 | Q194: 45
B195: 1.2. Nº casos de IRA no complicada ( a + b + c ) | G195: =SUM(G197:G198) -> 10 | I195: =SUM(I197:I198) -> 10 | K195: =SUM(K197:K198) -> 129 | M195: =SUM(M196:M198) -> 191 | O195: =SUM(O196:O198) -> 86 | Q195: 426
B196: a. Faringo amigdalitis purulenta aguda | G196: 0 | I196: 0 | K196: 1 | M196: 1 | O196: 0 | Q196: =SUM(M196:P196) -> 1
B197: b. Otitis media aguda | G197: 0 | I197: 0 | K197: 0 | M197: 0 | O197: 0 | Q197: 0
B198: c. Resfrió, faringitis viral, bronquitis,etc | G198: 10 | I198: 10 | K198: 129 | M198: 190 | O198: 86 | Q198: 425
B199: 2. Total de casos IRA complicadas hospitalizadas | Q199: 0
B200: 3. Nº de casos de IRA complicada referidos | Q200: 0
B201: 4. Control de seguimiento de neumonia a las 48 horas | G201: 0 | I201: 0 | K201: 0 | M201: 0 | O201: 0 | Q201: 0
O202: Fuentes Externas
P203: Reporte de Egresos
B204: B. ENFERMEDAD DIARREICA AGUDA | R204: Página 06
G205: Grupo de Edad
G206: < 01 Año | I206: 01 - 04 Años | K206: 05 - 11 Años | M206: Total
B207: 1. EDA Sin Complicación ( a + b + c + d ) | G207: =SUM(G208:H211) -> 16 | I207: =SUM(I208:J211) -> 28 | K207: =SUM(K208:L211) -> 11 | M207: =SUM(G207:L207) -> 55
B208: a. Acuosa Aguda s/deshidratación | G208: 14 | I208: 24 | K208: 8 | M208: =SUM(G208:L208) -> 46
B209: b. Sospechoso de cólera s/deshidratación | G209: 0 | I209: 0 | K209: 0 | M209: =SUM(G209:L209) -> 0
B210: c. Disenteria s/deshidratación | G210: 2 | I210: 3 | K210: 3 | M210: 8
B211: d. Diarrea persistente | G211: 0 | I211: 1 | K211: 0 | M211: =SUM(G211:L211) -> 1
B212: 2. EDA Complicada ( a + b + c + d + e + f ) | G212: =SUM(G213:H218) -> 0 | I212: =SUM(I213:J218) -> 0 | K212: =SUM(K213:L218) -> 0 | M212: =SUM(G212:L212) -> 0
B213: a. Acuosa Aguda c/deshidratación | G213: 0 | I213: 0 | K213: 0 | M213: 0
B214: b. Sospechoso de cólera c/deshidratación | G214: 0 | I214: 0 | K214: 0 | M214: 0
B215: c. Disenteria c/deshidratación | G215: 0 | I215: 0 | K215: 0 | M215: 0
B216: d. Acuosa Aguda c/deshidratación c/shock | G216: 0 | I216: 0 | K216: 0 | M216: 0
B217: e. Sospechoso de cólera c/deshidratación c/shock | G217: 0 | I217: 0 | K217: 0 | M217: 0
B218: f. Disenteria c/deshidratación c/shock | G218: 0 | I218: 0 | K218: 0 | M218: 0
B219: 3. Hospitalizados por EDA (Egresos) | M219: =SUM(G219:L219) -> 0
B221: C. ANEMIA Y PARASITOSIS
B222: CAUSAS DE MORBILIDAD | E222: Diagnósticado
E223: Total | G223: RN | I223: < 01 año | K223: 01 año | M223: 02 años | O223: 03 años | Q223: 04 años | S223: 05 - 11 años
E224: Dx. | F224: Recup. | G224: Dx. | H224: Recup. | I224: Dx. | J224: Recup. | K224: Dx. | L224: Recup. | M224: Dx. | N224: Recup. | O224: Dx. | P224: Recup. | Q224: Dx. | R224: Recup. | S224: Dx. | T224: Recup.
B225: Anemia por Deficiencia de Hierro | E225: =G225+I225+K225+M225+O225+Q225+S225 -> 98 | F225: =H225+J225+L225+N225+P225+R225+T225 -> 26 | G225: 0 | H225: 0 | I225: 41 | J225: 0 | K225: 40 | L225: 14 | M225: 11 | N225: 8 | O225: 1 | P225: 2 | Q225: 0 | R225: 1 | S225: 5 | T225: 1
B226: Parasitosis Intestinal | E226: =G226+I226+K226+M226+O226+Q226+S226 -> 29 | F226: =H226+J226+L226+N226+P226+R226+T226 -> 0 | G226: 0 | H226: 0 | I226: 1 | J226: 0 | K226: 1 | L226: 0 | M226: 3 | N226: 0 | O226: 7 | P226: 0 | Q226: 2 | R226: 0 | S226: 15 | T226: 0
B228: XVI. DEFUNCIONES
B229: GRUPOS DE EDAD | D229: Intrahospitalario | J229: Extrahospitalario | P229: TOTAL
D230: IRA | F230: EDA | H230: Todas las Causas | J230: IRA | L230: EDA | N230: Todas las Causas
B231: < 29 días | P231: =SUM(D231:O231) -> 0
B232: 29 días a 59 días | P232: 0
B233: 02 meses a 11 meses | P233: 0
... 23 more rows

Sheet ABRIL
AZ3: REPORTE MENSUAL DE ACTIVIDADES ATENCIÓN INTEGRAL DE SALUD DEL NIÑO
B5: Periodo: Abril - 2020
B6: Diresa/Red/M.Red/EE.SS: AREQUIPA/AREQUIPA CAYLLOMA/VICTOR RAUL HINOJOZA/TODOS LOS EE.SS
C9: I. ATENCIÓN DEL RECIÉN NACIDO
C11: A) Atención Inmediata
C13: ACTIVIDADES | X13: Nº
C14: Atención Inmediata
C15: Tamizaje Neonatal (Enfermed. Metabólicas)
C16: Tamizaje Visual y Auditivo
C17: Contacto Piel a Piel con la madre
C18: Alojamiento Conjunto
C19: Lactancia Materna en la 1º Hora
C21: B) Resultados del Tamizaje Neonatal
C23: DIAGNÓSTICOS | X23: Nº
C24: Hipotiroidismo Congénito
C25: Fenilcetonuria
C26: Galactosemia
C27: Hiperplasia Suprarrenal Congénita
C28: Fibrosis Quística
C29: Catarata Congénita
C30: Hipoacusia (todas las clasificaciones)
C33: D) Morbilidad Neonatal
C35: CAUSAS DE MORBILIDAD | Z35: Nº
C36: Síndrome de Dristres Respiratorio
C37: Síndromes de Aspiración Neonatal
C38: Asfixia Neonatal
C39: Sepsis Neonatal
C40: Ictericia
C41: Hipoglucemia
C42: Sífilis Congénita
C43: VIH Expuesto
C44: Retinopatía de la Prematuridad
C47: II. CONTROL DE CRECIMIENTO Y DESARROLLO
C49: Grupo de Edad | K49: Número de Controles
K50: 1º | R50: 2º | AB50: 3º | AS50: 4º | BG50: 5º | BR50: 6º | CH50: 7º | CZ50: 8º | DN50: 9º | EG50: 10º | EP50: 11º | FD50: SN | FO50: TOTAL
C51: De 1d a 7d
C52: De 8d a 14d
C53: De 15d a 21d
C54: De 22d a +d
C55: 29 días - 11 meses
C56: 01 año
C57: 02 años
C58: 03 años
C59: 04 años
C60: 05 a 11 años
C63: Evaluación del Estado Nutricional Antropométricas (Por personal técnico)
C65: Grupo de Edad | J65: Número de Evaluaciones Antropométricas
J66: 1º | Q66: 2º | AA66: 3º | AR66: 4º | BF66: 5º | BQ66: 6º | CG66: 7º | CY66: 8º | DM66: 9º | EF66: 10º | EO66: 11º | FC66: SN | FN66: TOTAL
C67: De 1d a 7d
C68: De 8d a 14d
C69: De 15d a 21d
C70: De 22d a +d
C71: 29 días - 11 meses
C72: 01 año
C73: 02 años
C74: 03 años
C75: 04 años
C76: 05 a 11 años
C79: III. TAMIZAJE
C81: ACTIVIDADES | AO81: 01m* | AZ81: 06m | BO81: 01 a | CE81: 02 a | CV81: 03 a | DL81: 04 a | EB81: 05 -11 a | EM81: TOTAL
C82: Detección de Anemia | I82: Solicitud de Dosaje de Hb
I83: Resultados Evaluados
C84: Descarte de Parasitosis | I84: Solicitud de Examen
I85: Resultados Evaluados
C88: IV. ADMINISTRACIÓN DE PROFILAXIS ANTIPARASITARIA
C90: ACTIVIDADES | AH90: DOSIS
AH91: 01 año | CC91: 02 años | DP91: 03 años | EZ91: 04 años | GL91: 05 - 11 años
AH92: 1º | AZ92: 2º | CC92: 1º | CU92: 2º | DP92: 1º | EK92: 2º | EZ92: 1º | FQ92: 2º | GL92: 1º | GZ92: 2º
C93: Administración de Profilaxis Antiparasitaria
C95: IV. ADMINISTRACIÓN DE PROFILAXIS ANTIPARASITARIA
C97: A) Sulfato Ferroso y Multimicronutriente (en polvo)
C99: ACTIVIDADES | R99: DOSIS
R100: 1º | AE100: 2º | AV100: 3º | BK100: 4º | BY100: 5º | CN100: 6º | DD100: 7º | DS100: 8º | EI100: 9º | EV100: 10º | FM100: 11º | FY100: 12º | GG100: TA
C101: < 06 meses (BPN y Prematuros (SF))
C102: De 4 a 5 meses (Sulfato Ferroso)
C103: De 6 a 11 meses (MMN)
C104: De 1 año (MMN)
C105: De 2 año (MMN)
C106: De 3 año (MMN)
C107: De 4 año (MMN)
B110: Polimaltosado
B112: ACTIVIDADES | P112: DOSIS
P113: 1º | AC113: 2º | AT113: 3º | BI113: 4º | BV113: 5º | CK113: 6º | DB113: 7º | DR113: 8º | EH113: 9º | ET113: 10º | FK113: 11º | FX113: 12º | GF113: TA
B114: < 06 meses (BPN y Prematuros)
B115: De 4 a 5 meses | AC115: 2
B116: De 6 a 11 meses | AC116: 1
B117: De 1 año | FK117: 1
B118: De 2 años | BI118: 1 | DR118: 1
B119: De 3 años
B120: De 4 años
C123: B) Vitamina "A"
Q125: 06 meses | AU125: 01 año | BY125: 02 años | DD125: 03 años | EI125: 04 años
C126: Dosis | Q126: 1º Dosis | AD126: 2º Dosis | AU126: 1º Dosis | BJ126: 2º Dosis | BY126: 1º Dosis | CN126: 2º Dosis | DD126: 1º Dosis | DS126: 2º Dosis | EI126: 1º Dosis | EV126: 2º Dosis
C127: Suplementados
C130: VI. LACTANCIA MATERNA EXCLUSIVA
C132: Condición | Q132: Nº
C133: Niños con LME a los 06 meses
C135: VII. ALIMENTACIÓN COMPLEMENTARIA
C137: Condición | CA137: Nº
C138: Niños con Inicio de Alimentación Complementaria antes de los 06 meses
C139: Niños con Inicio de Alimentación Complementaria después de los 06 meses
C140: Niños con Inicio de Alimentación Complementaria Adecuada
C141: Niños con Inicio de Alimentación Complementaria Inadecuada
C144: VIII. EVALUACION DEL ESTADO NUTRICIONAL
C146: A) En el Recién Nacido de 01 día a 28 días
C148: Clasificación | O148: Dx | BP148: Nº
C149: RN Bajo Peso Recuperados | O149: RN Bajo Peso Recuperados
C150: Peso al Nacer | O150: Extremadamente bajo
O151: Muy bajo peso al nacer
O152: Bajo peso al nacer
O153: Normal
O154: Macrosómico
C155: Ganancia de Peso / Talla | O155: Ganancia Inadecuada de Peso Dx.
O156: Ganancia Inadecuada de Peso Recup.
O157: Ganancia Inadecuada de Talla Dx.
O158: Ganancia Inadecuada de Talla Recup.
C160: B) En los Niños y Niñas de 29 días a < 05 años
C162: Grupo de Edad | E162: Ganancia Inadecuada de Peso o Talla | BB162: Normal
E163: Peso | S163: Talla | BB163: Normal
E164: Dx. | L164: Recup. | S164: Dx. | AI164: Recup. | BB164: Normal
C165: < 1 año | BB165: 2
C166: 1 año | BB166: 1
C167: 2 años | BB167: 2
C168: 3 años
C169: 4 años
C172: Grupo de Edad | D172: Peso para la Edad (PE) | BC172: Peso para la Edad (TP) | GI172: Talla para la Edad (TE)
D173: Sobrepeso | T173: Desnutrición | BC173: Obesidad | CP173: Sobrepeso | EC173: Desnutrición Aguda | FG173: Desnutrición Severa | GI173: Alto | HB173: Talla Baja
D174: Dx. | L174: Recup. | T174: Dx. | AJ174: Recup. | BC174: Dx. | BW174: Recup. | CP174: Dx. | DI174: Recup. | EC174: Dx. | EQ174: Recup. | FG174: Dx. | FU174: Recup. | GI174: Dx. | GV174: Recup. | HB174: Dx. | HI174: Recup.
C175: < 1 año
C176: 1 año | HB176: 1
C177: 2 años | HB177: 1
C178: 3 años
C179: 4 años
C182: C) En los Niños y Niñas de 05 a 11 años
C184: Grupo de Edad | E184: Índice de Masa Cororal (IMC) | DY184: Talla para la Edad (TE) | HA184: Normal
E185: Obesidad | S185: Sobrepeso | BB185: Delgadez | CO185: Delgadez Severa | DY185: Alto | FF185: Talla Baja | GE185: Talla Baja Severa | HA185: Normal
E186: Dx. | L186: Recup. | S186: Dx. | AI186: Recup. | BB186: Dx. | BT186: Recup. | CO186: Dx. | DE186: Recup. | DY186: Dx. | EN186: Recup. | FF186: Dx. | FR186: Recup. | GE186: Dx. | GS186: Recup. | HA186: Normal
C187: 05 a 11 años
C189: IX. EVALUACION DEL DESARROLLO
C191: Grupo de Edad | D191: Trastorno del Desarrollo | GJ191: Evaluac. Normal
D192: Lenguaje | U192: Motora | BD192: Social | CQ192: Coordinación | ED192: Cognitiva | FH192: Con + de 1 Trastorno | GJ192: Evaluac. Normal
D193: Dx. | L193: Recup. | U193: Dx. | AK193: Recup. | BD193: Dx. | BX193: Recup. | CQ193: Dx. | DJ193: Recup. | ED193: Dx. | ER193: Recup. | FH193: Dx. | FV193: Recup. | GJ193: Evaluac. Normal
C194: < 1 año
C195: 1 año
C196: 2 años
C199: Grupo de Edad | D199: Déficit del Desarrollo | GJ199: Evaluac. Normal
D200: Lenguaje | U200: Motora | BD200: Social | CQ200: Coordinación | ED200: Cognitiva | FH200: Más de 1 Déficit | GJ200: Evaluac. Normal
D201: Dx. | L201: Recup. | U201: Dx. | AK201: Recup. | BD201: Dx. | BX201: Recup. | CQ201: Dx. | DJ201: Recup. | ED201: Dx. | ER201: Recup. | FH201: Dx. | FV201: Recup. | GJ201: Evaluac. Normal
C202: 03 años
C203: 04 años
C205: X. PLAN DE ATENCION INTEGRAL
C207: Edades | F207: RN | M207: <1 año | V207: 01 año | AL207: 02 años | BE207: 03 años | BZ207: 04 años | CR207: 05 años | DK207: 06 años | EE207: 07 años | ES207: 08 años | FI207: 09 años | FW207: 10 años | GK207: 11 años
C208: Elaborado
C209: Ejecutado
C212: XI. CONSEJERÍA
C214: Tipos / Edades | AH214: TOTAL | AX214: RN | BN214: <1 año | CI214: 01 año | DC214: 02 años | DX214: 03 años | EL214: 04 años | FE214: 05 - 11 a
C215: Nutricional por Suplementación
C216: Nutricional por Eval. PE, TP, TE, IMC | AH216: 40 | BN216: 28 | CI216: 5 | DC216: 5 | DX216: 2
C217: Integral por Eval. del Desarrollo
C218: Integral por Aliment. Complement.
C221: XII. VISITA DOMICILIARIA
C223: Tipos de Visita / Edades | AH223: TOTAL | AX223: RN | BN223: <1 año | CI223: 01 año | DC223: 02 años | DX223: 03 años | EL223: 04 años | FE223: 05 - 11 a
C224: Seguimiento al Control CRED | AH224: 4 | BN224: 2 | CI224: 2
C225: Seguimiento a Problemas Nutricionales
C226: Seguimiento a Problemas del Desarrollo
C227: Entrega de Suplementación
C228: Verificación de Consumo de Micronutrientes | AH228: 2 | BN228: 1 | DX228: 1
C229: Seguimiento de IRA
C230: Seguimiento de EDA
C231: Seguimiento de Anemia | AH231: 3 | CI231: 2 | DC231: 1
C234: XIII. ESTIMULACION TEMPRANA
C236: Edad | G236: 1º | N236: 2º | AF236: 3º | AW236: 4º | BM236: 5º | CD236: 6º
C237: Recién Nacido
C238: < 01 año
C239: 01 año
C240: 02 años
C241: 03 años
C243: XIV. ACTIVIDADES EXTRAMURALES, MASIVAS Y DE GESTIÓN
C245: Unidad Medida | G245: Actividad Extramural | BA245: Actividades de Gestión
G246: Sesiones Demostrativas | W246: Sesiones Educativas | BA246: Evaluación | CJ246: Supervisión | DQ246: Asistencia Técnica | EU246: Reu.Téc: Personal de Salud | FZ246: Reu.Téc: Agente Com. de Salud
C247: Actividades
C248: Participantes
C250: XV. ATENCION DE LAS ENFERMEDADES PREVALENTES DE LA INFANCIA
C252: A. INFECCIÓN RESPIRATORIA AGUDA
C254: DIAGNÓSTICOS | CX254: Grupo Edad
CX255: < 29 Días | EA255: 29 d a 59 Días | EX255: 02 - 11 Meses | GB255: 01 - 04 Años | GO255: 05 - 11 Años | HE255: TOTAL
C256: 1.1 N° casos de IRA sin complicaciones (a+b+c+d+e) | AH256: a. Infección Respiratoria Aguda (IRA) no complicada | EX256: 1 | GB256: 3 | GO256: 3 | HE256: 7
AH257: b. Faringoamigdalitis Aguda | CX257: 1 | EX257: 1 | GB257: 3 | GO257: 2 | HE257: 7
AH258: c. Otitis Media Aguda (OMA)
AH259: d. Sinusitis Aguda
AH260: e. Neumonía sin complicaciones
C261: 1.2 N° casos IRA con complicaciones (a+b+c) | AH261: a. Infecciones Respiratorias Agudas con complicaciones
AH262: b. Neumonía Grave o Enfermedad Muy Grave en Niños Menores de 2 Meses
AH263: c. Neumonía y Enfermedad Muy Grave en Niños de 2 Meses a 4 Años
C266: DIAGNÓSTICOS | CW266: < 29 Días | DZ266: 29 d a 59 Días | EW266: 02 - 11 Meses | GA266: 12 - 23 Meses | GN266: 02- 02 Años con 11 Meses | HD266: 03 - 04 Años | HM266: 05 - 11 Años | HR266: TOTAL
C267: 1.3 SOB/Asma | AH267: a. SOB/Asma | EW267: 1 | HR267: 1
C269: B. ENFERMEDAD DIARREICA AGUDA
C271: DIAGNÓSTICOS | CW271: Grupo Edad
CW272: < 01 Año | DZ272: 01 - 04 Años | EW272: 05 - 11 Años | GA272: TOTAL
C273: 1. Enfermedades Diarreicas sin complicaciones ( a + b + c) | AH273: a. Diarrea Aguda Acuosa sin deshidratación | CW273: 1 | DZ273: 3 | GA273: 4
... 29 more rows

Sheet MAYO
AZ3: REPORTE MENSUAL DE ACTIVIDADES ATENCIÓN INTEGRAL DE SALUD DEL NIÑO
B5: Periodo: Mayo - 2020
B6: Diresa/Red/M.Red/EE.SS: AREQUIPA/AREQUIPA CAYLLOMA/VICTOR RAUL HINOJOZA/TODOS LOS EE.SS
C9: I. ATENCIÓN DEL RECIÉN NACIDO
C11: A) Atención Inmediata
C13: ACTIVIDADES | X13: Nº
C14: Atención Inmediata
C15: Tamizaje Neonatal (Enfermed. Metabólicas)
C16: Tamizaje Visual y Auditivo
C17: Contacto Piel a Piel con la madre
C18: Alojamiento Conjunto
C19: Lactancia Materna en la 1º Hora
C21: B) Resultados del Tamizaje Neonatal
C23: DIAGNÓSTICOS | X23: Nº
C24: Hipotiroidismo Congénito
C25: Fenilcetonuria
C26: Galactosemia
C27: Hiperplasia Suprarrenal Congénita
C28: Fibrosis Quística
C29: Catarata Congénita
C30: Hipoacusia (todas las clasificaciones)
C33: D) Morbilidad Neonatal
C35: CAUSAS DE MORBILIDAD | Z35: Nº
C36: Síndrome de Dristres Respiratorio
C37: Síndromes de Aspiración Neonatal
C38: Asfixia Neonatal
C39: Sepsis Neonatal
C40: Ictericia
C41: Hipoglucemia
C42: Sífilis Congénita
C43: VIH Expuesto
C44: Retinopatía de la Prematuridad
C47: II. CONTROL DE CRECIMIENTO Y DESARROLLO
C49: Grupo de Edad | K49: Número de Controles
K50: 1º | R50: 2º | AB50: 3º | AS50: 4º | BG50: 5º | BR50: 6º | CH50: 7º | CZ50: 8º | DN50: 9º | EG50: 10º | EP50: 11º | FD50: SN | FO50: TOTAL
C51: De 1d a 7d
C52: De 8d a 14d
C53: De 15d a 21d
C54: De 22d a +d
C55: 29 días - 11 meses | FD55: 1 | FO55: 1
C56: 01 año
C57: 02 años
C58: 03 años
C59: 04 años
C60: 05 a 11 años
C63: Evaluación del Estado Nutricional Antropométricas (Por personal técnico)
C65: Grupo de Edad | J65: Número de Evaluaciones Antropométricas
J66: 1º | Q66: 2º | AA66: 3º | AR66: 4º | BF66: 5º | BQ66: 6º | CG66: 7º | CY66: 8º | DM66: 9º | EF66: 10º | EO66: 11º | FC66: SN | FN66: TOTAL
C67: De 1d a 7d
C68: De 8d a 14d
C69: De 15d a 21d
C70: De 22d a +d
C71: 29 días - 11 meses
C72: 01 año
C73: 02 años
C74: 03 años
C75: 04 años
C76: 05 a 11 años
C79: III. TAMIZAJE
C81: ACTIVIDADES | AO81: 01m* | AZ81: 06m | BO81: 01 a | CE81: 02 a | CV81: 03 a | DL81: 04 a | EB81: 05 -11 a | EM81: TOTAL
C82: Detección de Anemia | I82: Solicitud de Dosaje de Hb
I83: Resultados Evaluados | BO83: 8 | EM83: 8
C84: Descarte de Parasitosis | I84: Solicitud de Examen
I85: Resultados Evaluados
C88: IV. ADMINISTRACIÓN DE PROFILAXIS ANTIPARASITARIA
C90: ACTIVIDADES | AH90: DOSIS
AH91: 01 año | CC91: 02 años | DP91: 03 años | EZ91: 04 años | GL91: 05 - 11 años
AH92: 1º | AZ92: 2º | CC92: 1º | CU92: 2º | DP92: 1º | EK92: 2º | EZ92: 1º | FQ92: 2º | GL92: 1º | GZ92: 2º
C93: Administración de Profilaxis Antiparasitaria
C95: IV. ADMINISTRACIÓN DE PROFILAXIS ANTIPARASITARIA
C97: A) Sulfato Ferroso y Multimicronutriente (en polvo)
C99: ACTIVIDADES | R99: DOSIS
R100: 1º | AE100: 2º | AV100: 3º | BK100: 4º | BY100: 5º | CN100: 6º | DD100: 7º | DS100: 8º | EI100: 9º | EV100: 10º | FM100: 11º | FY100: 12º | GG100: TA
C101: < 06 meses (BPN y Prematuros (SF))
C102: De 4 a 5 meses (Sulfato Ferroso)
C103: De 6 a 11 meses (MMN)
C104: De 1 año (MMN) | GG104: 4
C105: De 2 año (MMN) | BY105: 1
C106: De 3 año (MMN)
C107: De 4 año (MMN)
B110: Polimaltosado
B112: ACTIVIDADES | P112: DOSIS
P113: 1º | AC113: 2º | AT113: 3º | BI113: 4º | BV113: 5º | CK113: 6º | DB113: 7º | DR113: 8º | EH113: 9º | ET113: 10º | FK113: 11º | FX113: 12º | GF113: TA
B114: < 06 meses (BPN y Prematuros)
B115: De 4 a 5 meses | P115: 25
B116: De 6 a 11 meses | P116: 18 | AC116: 6 | AT116: 2 | CK116: 1
B117: De 1 año | P117: 1 | AT117: 2 | BI117: 2 | BV117: 2 | CK117: 2
B118: De 2 años
B119: De 3 años | AT119: 1 | BI119: 1
B120: De 4 años
C123: B) Vitamina "A"
Q125: 06 meses | AU125: 01 año | BY125: 02 años | DD125: 03 años | EI125: 04 años
C126: Dosis | Q126: 1º Dosis | AD126: 2º Dosis | AU126: 1º Dosis | BJ126: 2º Dosis | BY126: 1º Dosis | CN126: 2º Dosis | DD126: 1º Dosis | DS126: 2º Dosis | EI126: 1º Dosis | EV126: 2º Dosis
C127: Suplementados
C130: VI. LACTANCIA MATERNA EXCLUSIVA
C132: Condición | Q132: Nº
C133: Niños con LME a los 06 meses
C135: VII. ALIMENTACIÓN COMPLEMENTARIA
C137: Condición | CA137: Nº
C138: Niños con Inicio de Alimentación Complementaria antes de los 06 meses
C139: Niños con Inicio de Alimentación Complementaria después de los 06 meses
C140: Niños con Inicio de Alimentación Complementaria Adecuada
C141: Niños con Inicio de Alimentación Complementaria Inadecuada
C144: VIII. EVALUACION DEL ESTADO NUTRICIONAL
C146: A) En el Recién Nacido de 01 día a 28 días
C148: Clasificación | O148: Dx | BP148: Nº
C149: RN Bajo Peso Recuperados | O149: RN Bajo Peso Recuperados
C150: Peso al Nacer | O150: Extremadamente bajo
O151: Muy bajo peso al nacer
O152: Bajo peso al nacer
O153: Normal
O154: Macrosómico
C155: Ganancia de Peso / Talla | O155: Ganancia Inadecuada de Peso Dx.
O156: Ganancia Inadecuada de Peso Recup.
O157: Ganancia Inadecuada de Talla Dx.
O158: Ganancia Inadecuada de Talla Recup.
C160: B) En los Niños y Niñas de 29 días a < 05 años
C162: Grupo de Edad | E162: Ganancia Inadecuada de Peso o Talla | BB162: Normal
E163: Peso | S163: Talla | BB163: Normal
E164: Dx. | L164: Recup. | S164: Dx. | AI164: Recup. | BB164: Normal
C165: < 1 año | BB165: 6
C166: 1 año
C167: 2 años
C168: 3 años
C169: 4 años
C172: Grupo de Edad | D172: Peso para la Edad (PE) | BC172: Peso para la Edad (TP) | GI172: Talla para la Edad (TE)
D173: Sobrepeso | T173: Desnutrición | BC173: Obesidad | CP173: Sobrepeso | EC173: Desnutrición Aguda | FG173: Desnutrición Severa | GI173: Alto | HB173: Talla Baja
D174: Dx. | L174: Recup. | T174: Dx. | AJ174: Recup. | BC174: Dx. | BW174: Recup. | CP174: Dx. | DI174: Recup. | EC174: Dx. | EQ174: Recup. | FG174: Dx. | FU174: Recup. | GI174: Dx. | GV174: Recup. | HB174: Dx. | HI174: Recup.
C175: < 1 año
C176: 1 año
C177: 2 años
C178: 3 años
C179: 4 años
C182: C) En los Niños y Niñas de 05 a 11 años
C184: Grupo de Edad | E184: Índice de Masa Cororal (IMC) | DY184: Talla para la Edad (TE) | HA184: Normal
E185: Obesidad | S185: Sobrepeso | BB185: Delgadez | CO185: Delgadez Severa | DY185: Alto | FF185: Talla Baja | GE185: Talla Baja Severa | HA185: Normal
E186: Dx. | L186: Recup. | S186: Dx. | AI186: Recup. | BB186: Dx. | BT186: Recup. | CO186: Dx. | DE186: Recup. | DY186: Dx. | EN186: Recup. | FF186: Dx. | FR186: Recup. | GE186: Dx. | GS186: Recup. | HA186: Normal
C187: 05 a 11 años
C189: IX. EVALUACION DEL DESARROLLO
C191: Grupo de Edad | D191: Trastorno del Desarrollo | GJ191: Evaluac. Normal
D192: Lenguaje | U192: Motora | BD192: Social | CQ192: Coordinación | ED192: Cognitiva | FH192: Con + de 1 Trastorno | GJ192: Evaluac. Normal
D193: Dx. | L193: Recup. | U193: Dx. | AK193: Recup. | BD193: Dx. | BX193: Recup. | CQ193: Dx. | DJ193: Recup. | ED193: Dx. | ER193: Recup. | FH193: Dx. | FV193: Recup. | GJ193: Evaluac. Normal
C194: < 1 año
C195: 1 año
C196: 2 años
C199: Grupo de Edad | D199: Déficit del Desarrollo | GJ199: Evaluac. Normal
D200: Lenguaje | U200: Motora | BD200: Social | CQ200: Coordinación | ED200: Cognitiva | FH200: Más de 1 Déficit | GJ200: Evaluac. Normal
D201: Dx. | L201: Recup. | U201: Dx. | AK201: Recup. | BD201: Dx. | BX201: Recup. | CQ201: Dx. | DJ201: Recup. | ED201: Dx. | ER201: Recup. | FH201: Dx. | FV201: Recup. | GJ201: Evaluac. Normal
C202: 03 años
C203: 04 años
C205: X. PLAN DE ATENCION INTEGRAL
C207: Edades | F207: RN | M207: <1 año | V207: 01 año | AL207: 02 años | BE207: 03 años | BZ207: 04 años | CR207: 05 años | DK207: 06 años | EE207: 07 años | ES207: 08 años | FI207: 09 años | FW207: 10 años | GK207: 11 años
C208: Elaborado
C209: Ejecutado
C212: XI. CONSEJERÍA
C214: Tipos / Edades | AH214: TOTAL | AX214: RN | BN214: <1 año | CI214: 01 año | DC214: 02 años | DX214: 03 años | EL214: 04 años | FE214: 05 - 11 a
C215: Nutricional por Suplementación
C216: Nutricional por Eval. PE, TP, TE, IMC | AH216: 395 | BN216: 223 | CI216: 135 | DC216: 16 | DX216: 10 | EL216: 3 | FE216: 8
C217: Integral por Eval. del Desarrollo
C218: Integral por Aliment. Complement.
C221: XII. VISITA DOMICILIARIA
C223: Tipos de Visita / Edades | AH223: TOTAL | AX223: RN | BN223: <1 año | CI223: 01 año | DC223: 02 años | DX223: 03 años | EL223: 04 años | FE223: 05 - 11 a
C224: Seguimiento al Control CRED | AH224: 1 | BN224: 1
C225: Seguimiento a Problemas Nutricionales
C226: Seguimiento a Problemas del Desarrollo
C227: Entrega de Suplementación
C228: Verificación de Consumo de Micronutrientes | AH228: 1 | BN228: 1
C229: Seguimiento de IRA
C230: Seguimiento de EDA
C231: Seguimiento de Anemia | AH231: 2 | CI231: 2
C234: XIII. ESTIMULACION TEMPRANA
C236: Edad | G236: 1º | N236: 2º | AF236: 3º | AW236: 4º | BM236: 5º | CD236: 6º
C237: Recién Nacido
C238: < 01 año
C239: 01 año
C240: 02 años
C241: 03 años
C243: XIV. ACTIVIDADES EXTRAMURALES, MASIVAS Y DE GESTIÓN
C245: Unidad Medida | G245: Actividad Extramural | BA245: Actividades de Gestión
G246: Sesiones Demostrativas | W246: Sesiones Educativas | BA246: Evaluación | CJ246: Supervisión | DQ246: Asistencia Técnica | EU246: Reu.Téc: Personal de Salud | FZ246: Reu.Téc: Agente Com. de Salud
C247: Actividades
C248: Participantes
C250: XV. ATENCION DE LAS ENFERMEDADES PREVALENTES DE LA INFANCIA
C252: A. INFECCIÓN RESPIRATORIA AGUDA
C254: DIAGNÓSTICOS | CX254: Grupo Edad
CX255: < 29 Días | EA255: 29 d a 59 Días | EX255: 02 - 11 Meses | GB255: 01 - 04 Años | GO255: 05 - 11 Años | HE255: TOTAL
C256: 1.1 N° casos de IRA sin complicaciones (a+b+c+d+e) | AH256: a. Infección Respiratoria Aguda (IRA) no complicada | EA256: 3 | EX256: 7 | GB256: 1 | GO256: 2 | HE256: 13
AH257: b. Faringoamigdalitis Aguda | EX257: 4 | GB257: 2 | GO257: 1 | HE257: 7
AH258: c. Otitis Media Aguda (OMA)
AH259: d. Sinusitis Aguda
AH260: e. Neumonía sin complicaciones
C261: 1.2 N° casos IRA con complicaciones (a+b+c) | AH261: a. Infecciones Respiratorias Agudas con complicaciones
AH262: b. Neumonía Grave o Enfermedad Muy Grave en Niños Menores de 2 Meses
AH263: c. Neumonía y Enfermedad Muy Grave en Niños de 2 Meses a 4 Años
C266: DIAGNÓSTICOS | CW266: < 29 Días | DZ266: 29 d a 59 Días | EW266: 02 - 11 Meses | GA266: 12 - 23 Meses | GN266: 02- 02 Años con 11 Meses | HD266: 03 - 04 Años | HM266: 05 - 11 Años | HR266: TOTAL
C267: 1.3 SOB/Asma | AH267: a. SOB/Asma
C269: B. ENFERMEDAD DIARREICA AGUDA
C271: DIAGNÓSTICOS | CW271: Grupo Edad
CW272: < 01 Año | DZ272: 01 - 04 Años | EW272: 05 - 11 Años | GA272: TOTAL
C273: 1. Enfermedades Diarreicas sin complicaciones ( a + b + c) | AH273: a. Diarrea Aguda Acuosa sin deshidratación | CW273: 4 | DZ273: 2 | GA273: 6
... 29 more rows

Sheet JUNIO
AZ3: REPORTE MENSUAL DE ACTIVIDADES ATENCIÓN INTEGRAL DE SALUD DEL NIÑO
B5: Periodo: Junio - 2020
B6: Diresa/Red/M.Red/EE.SS: AREQUIPA/AREQUIPA CAYLLOMA/VICTOR RAUL HINOJOZA/TODOS LOS EE.SS
C9: I. ATENCIÓN DEL RECIÉN NACIDO
C11: A) Atención Inmediata
C13: ACTIVIDADES | X13: Nº
C14: Atención Inmediata
C15: Tamizaje Neonatal (Enfermed. Metabólicas)
C16: Tamizaje Visual y Auditivo
C17: Contacto Piel a Piel con la madre
C18: Alojamiento Conjunto
C19: Lactancia Materna en la 1º Hora
C21: B) Resultados del Tamizaje Neonatal
C23: DIAGNÓSTICOS | X23: Nº
C24: Hipotiroidismo Congénito
C25: Fenilcetonuria
C26: Galactosemia
C27: Hiperplasia Suprarrenal Congénita
C28: Fibrosis Quística
C29: Catarata Congénita
C30: Hipoacusia (todas las clasificaciones)
C33: D) Morbilidad Neonatal
C35: CAUSAS DE MORBILIDAD | Z35: Nº
C36: Síndrome de Dristres Respiratorio
C37: Síndromes de Aspiración Neonatal
C38: Asfixia Neonatal
C39: Sepsis Neonatal
C40: Ictericia
C41: Hipoglucemia
C42: Sífilis Congénita
C43: VIH Expuesto
C44: Retinopatía de la Prematuridad
C47: II. CONTROL DE CRECIMIENTO Y DESARROLLO
C49: Grupo de Edad | K49: Número de Controles
K50: 1º | R50: 2º | AB50: 3º | AS50: 4º | BG50: 5º | BR50: 6º | CH50: 7º | CZ50: 8º | DN50: 9º | EG50: 10º | EP50: 11º | FD50: SN | FO50: TOTAL
C51: De 1d a 7d
C52: De 8d a 14d
C53: De 15d a 21d
C54: De 22d a +d
C55: 29 días - 11 meses | FD55: 2 | FO55: 2
C56: 01 año
C57: 02 años
C58: 03 años
C59: 04 años
C60: 05 a 11 años
C63: Evaluación del Estado Nutricional Antropométricas (Por personal técnico)
C65: Grupo de Edad | J65: Número de Evaluaciones Antropométricas
J66: 1º | Q66: 2º | AA66: 3º | AR66: 4º | BF66: 5º | BQ66: 6º | CG66: 7º | CY66: 8º | DM66: 9º | EF66: 10º | EO66: 11º | FC66: SN | FN66: TOTAL
C67: De 1d a 7d
C68: De 8d a 14d
C69: De 15d a 21d
C70: De 22d a +d
C71: 29 días - 11 meses
C72: 01 año
C73: 02 años
C74: 03 años
C75: 04 años
C76: 05 a 11 años
C79: III. TAMIZAJE
C81: ACTIVIDADES | AO81: 01m* | AZ81: 06m | BO81: 01 a | CE81: 02 a | CV81: 03 a | DL81: 04 a | EB81: 05 -11 a | EM81: TOTAL
C82: Detección de Anemia | I82: Solicitud de Dosaje de Hb
I83: Resultados Evaluados | AZ83: 2 | BO83: 16 | CE83: 12 | DL83: 1 | EB83: 1 | EM83: 32
C84: Descarte de Parasitosis | I84: Solicitud de Examen
I85: Resultados Evaluados
C88: IV. ADMINISTRACIÓN DE PROFILAXIS ANTIPARASITARIA
C90: ACTIVIDADES | AH90: DOSIS
AH91: 01 año | CC91: 02 años | DP91: 03 años | EZ91: 04 años | GL91: 05 - 11 años
AH92: 1º | AZ92: 2º | CC92: 1º | CU92: 2º | DP92: 1º | EK92: 2º | EZ92: 1º | FQ92: 2º | GL92: 1º | GZ92: 2º
C93: Administración de Profilaxis Antiparasitaria | CC93: 2
C95: IV. ADMINISTRACIÓN DE PROFILAXIS ANTIPARASITARIA
C97: A) Sulfato Ferroso y Multimicronutriente (en polvo)
C99: ACTIVIDADES | R99: DOSIS
R100: 1º | AE100: 2º | AV100: 3º | BK100: 4º | BY100: 5º | CN100: 6º | DD100: 7º | DS100: 8º | EI100: 9º | EV100: 10º | FM100: 11º | FY100: 12º | GG100: TA
C101: < 06 meses (BPN y Prematuros (SF))
C102: De 4 a 5 meses (Sulfato Ferroso)
C103: De 6 a 11 meses (MMN) | R103: 1
C104: De 1 año (MMN) | R104: 3
C105: De 2 año (MMN) | R105: 1
C106: De 3 año (MMN)
C107: De 4 año (MMN)
B110: Polimaltosado
B112: ACTIVIDADES | P112: DOSIS
P113: 1º | AC113: 2º | AT113: 3º | BI113: 4º | BV113: 5º | CK113: 6º | DB113: 7º | DR113: 8º | EH113: 9º | ET113: 10º | FK113: 11º | FX113: 12º | GF113: TA
B114: < 06 meses (BPN y Prematuros)
B115: De 4 a 5 meses | P115: 13
B116: De 6 a 11 meses | P116: 23 | AC116: 4 | AT116: 2
B117: De 1 año | P117: 2 | AC117: 5 | AT117: 2 | BI117: 5 | BV117: 2 | CK117: 2 | DR117: 2
B118: De 2 años | BV118: 1
B119: De 3 años
B120: De 4 años
C123: B) Vitamina "A"
Q125: 06 meses | AU125: 01 año | BY125: 02 años | DD125: 03 años | EI125: 04 años
C126: Dosis | Q126: 1º Dosis | AD126: 2º Dosis | AU126: 1º Dosis | BJ126: 2º Dosis | BY126: 1º Dosis | CN126: 2º Dosis | DD126: 1º Dosis | DS126: 2º Dosis | EI126: 1º Dosis | EV126: 2º Dosis
C127: Suplementados
C130: VI. LACTANCIA MATERNA EXCLUSIVA
C132: Condición | Q132: Nº
C133: Niños con LME a los 06 meses
C135: VII. ALIMENTACIÓN COMPLEMENTARIA
C137: Condición | CA137: Nº
C138: Niños con Inicio de Alimentación Complementaria antes de los 06 meses
C139: Niños con Inicio de Alimentación Complementaria después de los 06 meses
C140: Niños con Inicio de Alimentación Complementaria Adecuada | CA140: 5
C141: Niños con Inicio de Alimentación Complementaria Inadecuada
C144: VIII. EVALUACION DEL ESTADO NUTRICIONAL
C146: A) En el Recién Nacido de 01 día a 28 días
C148: Clasificación | O148: Dx | BP148: Nº
C149: RN Bajo Peso Recuperados | O149: RN Bajo Peso Recuperados
C150: Peso al Nacer | O150: Extremadamente bajo
O151: Muy bajo peso al nacer
O152: Bajo peso al nacer
O153: Normal
O154: Macrosómico
C155: Ganancia de Peso / Talla | O155: Ganancia Inadecuada de Peso Dx.
O156: Ganancia Inadecuada de Peso Recup.
O157: Ganancia Inadecuada de Talla Dx.
O158: Ganancia Inadecuada de Talla Recup.
C160: B) En los Niños y Niñas de 29 días a < 05 años
C162: Grupo de Edad | E162: Ganancia Inadecuada de Peso o Talla | BB162: Normal
E163: Peso | S163: Talla | BB163: Normal
E164: Dx. | L164: Recup. | S164: Dx. | AI164: Recup. | BB164: Normal
C165: < 1 año
C166: 1 año | BB166: 2
C167: 2 años | BB167: 2
C168: 3 años
C169: 4 años
C172: Grupo de Edad | D172: Peso para la Edad (PE) | BC172: Peso para la Edad (TP) | GI172: Talla para la Edad (TE)
D173: Sobrepeso | T173: Desnutrición | BC173: Obesidad | CP173: Sobrepeso | EC173: Desnutrición Aguda | FG173: Desnutrición Severa | GI173: Alto | HB173: Talla Baja
D174: Dx. | L174: Recup. | T174: Dx. | AJ174: Recup. | BC174: Dx. | BW174: Recup. | CP174: Dx. | DI174: Recup. | EC174: Dx. | EQ174: Recup. | FG174: Dx. | FU174: Recup. | GI174: Dx. | GV174: Recup. | HB174: Dx. | HI174: Recup.
C175: < 1 año
C176: 1 año
C177: 2 años
C178: 3 años
C179: 4 años
C182: C) En los Niños y Niñas de 05 a 11 años
C184: Grupo de Edad | E184: Índice de Masa Cororal (IMC) | DY184: Talla para la Edad (TE) | HA184: Normal
E185: Obesidad | S185: Sobrepeso | BB185: Delgadez | CO185: Delgadez Severa | DY185: Alto | FF185: Talla Baja | GE185: Talla Baja Severa | HA185: Normal
E186: Dx. | L186: Recup. | S186: Dx. | AI186: Recup. | BB186: Dx. | BT186: Recup. | CO186: Dx. | DE186: Recup. | DY186: Dx. | EN186: Recup. | FF186: Dx. | FR186: Recup. | GE186: Dx. | GS186: Recup. | HA186: Normal
C187: 05 a 11 años
C189: IX. EVALUACION DEL DESARROLLO
C191: Grupo de Edad | D191: Trastorno del Desarrollo | GJ191: Evaluac. Normal
D192: Lenguaje | U192: Motora | BD192: Social | CQ192: Coordinación | ED192: Cognitiva | FH192: Con + de 1 Trastorno | GJ192: Evaluac. Normal
D193: Dx. | L193: Recup. | U193: Dx. | AK193: Recup. | BD193: Dx. | BX193: Recup. | CQ193: Dx. | DJ193: Recup. | ED193: Dx. | ER193: Recup. | FH193: Dx. | FV193: Recup. | GJ193: Evaluac. Normal
C194: < 1 año
C195: 1 año
C196: 2 años
C199: Grupo de Edad | D199: Déficit del Desarrollo | GJ199: Evaluac. Normal
D200: Lenguaje | U200: Motora | BD200: Social | CQ200: Coordinación | ED200: Cognitiva | FH200: Más de 1 Déficit | GJ200: Evaluac. Normal
D201: Dx. | L201: Recup. | U201: Dx. | AK201: Recup. | BD201: Dx. | BX201: Recup. | CQ201: Dx. | DJ201: Recup. | ED201: Dx. | ER201: Recup. | FH201: Dx. | FV201: Recup. | GJ201: Evaluac. Normal
C202: 03 años
C203: 04 años
C205: X. PLAN DE ATENCION INTEGRAL
C207: Edades | F207: RN | M207: <1 año | V207: 01 año | AL207: 02 años | BE207: 03 años | BZ207: 04 años | CR207: 05 años | DK207: 06 años | EE207: 07 años | ES207: 08 años | FI207: 09 años | FW207: 10 años | GK207: 11 años
C208: Elaborado
C209: Ejecutado
C212: XI. CONSEJERÍA
C214: Tipos / Edades | AH214: TOTAL | AX214: RN | BN214: <1 año | CI214: 01 año | DC214: 02 años | DX214: 03 años | EL214: 04 años | FE214: 05 - 11 a
C215: Nutricional por Suplementación
C216: Nutricional por Eval. PE, TP, TE, IMC | AH216: 445 | BN216: 209 | CI216: 140 | DC216: 62 | DX216: 17 | EL216: 4 | FE216: 13
C217: Integral por Eval. del Desarrollo
C218: Integral por Aliment. Complement.
C221: XII. VISITA DOMICILIARIA
C223: Tipos de Visita / Edades | AH223: TOTAL | AX223: RN | BN223: <1 año | CI223: 01 año | DC223: 02 años | DX223: 03 años | EL223: 04 años | FE223: 05 - 11 a
C224: Seguimiento al Control CRED
C225: Seguimiento a Problemas Nutricionales
C226: Seguimiento a Problemas del Desarrollo
C227: Entrega de Suplementación
C228: Verificación de Consumo de Micronutrientes
C229: Seguimiento de IRA
C230: Seguimiento de EDA
C231: Seguimiento de Anemia
C234: XIII. ESTIMULACION TEMPRANA
C236: Edad | G236: 1º | N236: 2º | AF236: 3º | AW236: 4º | BM236: 5º | CD236: 6º
C237: Recién Nacido
C238: < 01 año
C239: 01 año
C240: 02 años
C241: 03 años
C243: XIV. ACTIVIDADES EXTRAMURALES, MASIVAS Y DE GESTIÓN
C245: Unidad Medida | G245: Actividad Extramural | BA245: Actividades de Gestión
G246: Sesiones Demostrativas | W246: Sesiones Educativas | BA246: Evaluación | CJ246: Supervisión | DQ246: Asistencia Técnica | EU246: Reu.Téc: Personal de Salud | FZ246: Reu.Téc: Agente Com. de Salud
C247: Actividades
C248: Participantes
C250: XV. ATENCION DE LAS ENFERMEDADES PREVALENTES DE LA INFANCIA
C252: A. INFECCIÓN RESPIRATORIA AGUDA
C254: DIAGNÓSTICOS | CX254: Grupo Edad
CX255: < 29 Días | EA255: 29 d a 59 Días | EX255: 02 - 11 Meses | GB255: 01 - 04 Años | GO255: 05 - 11 Años | HE255: TOTAL
C256: 1.1 N° casos de IRA sin complicaciones (a+b+c+d+e) | AH256: a. Infección Respiratoria Aguda (IRA) no complicada | EX256: 9 | GB256: 6 | GO256: 1 | HE256: 16
AH257: b. Faringoamigdalitis Aguda | EX257: 3 | GB257: 10 | GO257: 4 | HE257: 17
AH258: c. Otitis Media Aguda (OMA)
AH259: d. Sinusitis Aguda
AH260: e. Neumonía sin complicaciones
C261: 1.2 N° casos IRA con complicaciones (a+b+c) | AH261: a. Infecciones Respiratorias Agudas con complicaciones
AH262: b. Neumonía Grave o Enfermedad Muy Grave en Niños Menores de 2 Meses
AH263: c. Neumonía y Enfermedad Muy Grave en Niños de 2 Meses a 4 Años
C266: DIAGNÓSTICOS | CW266: < 29 Días | DZ266: 29 d a 59 Días | EW266: 02 - 11 Meses | GA266: 12 - 23 Meses | GN266: 02- 02 Años con 11 Meses | HD266: 03 - 04 Años | HM266: 05 - 11 Años | HR266: TOTAL
C267: 1.3 SOB/Asma | AH267: a. SOB/Asma | GA267: 1 | HD267: 2 | HR267: 3
C269: B. ENFERMEDAD DIARREICA AGUDA
C271: DIAGNÓSTICOS | CW271: Grupo Edad
CW272: < 01 Año | DZ272: 01 - 04 Años | EW272: 05 - 11 Años | GA272: TOTAL
C273: 1. Enfermedades Diarreicas sin complicaciones ( a + b + c) | AH273: a. Diarrea Aguda Acuosa sin deshidratación | CW273: 6 | DZ273: 1 | EW273: 2 | GA273: 9
... 29 more rows

Sheet IITRIMESTRE
AZ3: REPORTE MENSUAL DE ACTIVIDADES ATENCIÓN INTEGRAL DE SALUD DEL NIÑO
B5: Periodo:
B6: Diresa/Red/M.Red/EE.SS: AREQUIPA/AREQUIPA CAYLLOMA/TODAS LAS MICRO REDES/TODOS LOS EE.SS
C9: I. ATENCIÓN DEL RECIÉN NACIDO
C11: A) Atención Inmediata
C13: ACTIVIDADES | X13: Nº
C14: Atención Inmediata | X14: 0
C15: Tamizaje Neonatal (Enfermed. Metabólicas) | X15: 0
C16: Tamizaje Visual y Auditivo | X16: 0
C17: Contacto Piel a Piel con la madre | X17: 0
C18: Alojamiento Conjunto | X18: 0
C19: Lactancia Materna en la 1º Hora | X19: 0
C21: B) Resultados del Tamizaje Neonatal
C23: DIAGNÓSTICOS | X23: Nº
C24: Hipotiroidismo Congénito | X24: 0
C25: Fenilcetonuria | X25: 0
C26: Galactosemia | X26: 0
C27: Hiperplasia Suprarrenal Congénita | X27: 0
C28: Fibrosis Quística | X28: 0
C29: Catarata Congénita | X29: 0
C30: Hipoacusia (todas las clasificaciones) | X30: 0
C33: D) Morbilidad Neonatal
C35: CAUSAS DE MORBILIDAD | Z35: Nº
C36: Síndrome de Dristres Respiratorio | Z36: 0
C37: Síndromes de Aspiración Neonatal | Z37: 0
C38: Asfixia Neonatal | Z38: 0
C39: Sepsis Neonatal | Z39: 0
C40: Ictericia | Z40: 0
C41: Hipoglucemia | Z41: 0
C42: Sífilis Congénita | Z42: 0
C43: VIH Expuesto | Z43: 0
C44: Retinopatía de la Prematuridad | Z44: 0
C47: II. CONTROL DE CRECIMIENTO Y DESARROLLO
C49: Grupo de Edad | K49: Número de Controles
K50: 1º | R50: 2º | AB50: 3º | AS50: 4º | BG50: 5º | BR50: 6º | CH50: 7º | CZ50: 8º | DN50: 9º | EG50: 10º | EP50: 11º | FD50: SN | FO50: TOTAL
C51: De 1d a 7d | K51: 0 | Q51: 0 | R51: 0 | AA51: 0 | AB51: 0 | AR51: 0 | AS51: 0 | BF51: 0 | BG51: 0 | BQ51: 0 | BR51: 0 | CG51: 0 | CH51: 0 | CY51: 0 | CZ51: 0 | DM51: 0 | DN51: 0 | EF51: 0 | EG51: 0 | EO51: 0 | EP51: 0 | FC51: 0 | FD51: 0 | FN51: 0 | FO51: 0
C52: De 8d a 14d | K52: 0 | Q52: 0 | R52: 0 | AA52: 0 | AB52: 0 | AR52: 0 | AS52: 0 | BF52: 0 | BG52: 0 | BQ52: 0 | BR52: 0 | CG52: 0 | CH52: 0 | CY52: 0 | CZ52: 0 | DM52: 0 | DN52: 0 | EF52: 0 | EG52: 0 | EO52: 0 | EP52: 0 | FC52: 0 | FD52: 0 | FN52: 0 | FO52: 0
C53: De 15d a 21d | K53: 0 | Q53: 0 | R53: 0 | AA53: 0 | AB53: 0 | AR53: 0 | AS53: 0 | BF53: 0 | BG53: 0 | BQ53: 0 | BR53: 0 | CG53: 0 | CH53: 0 | CY53: 0 | CZ53: 0 | DM53: 0 | DN53: 0 | EF53: 0 | EG53: 0 | EO53: 0 | EP53: 0 | FC53: 0 | FD53: 0 | FN53: 0 | FO53: 0
C54: De 22d a +d | K54: 0 | Q54: 0 | R54: 0 | AA54: 0 | AB54: 0 | AR54: 0 | AS54: 0 | BF54: 0 | BG54: 0 | BQ54: 0 | BR54: 0 | CG54: 0 | CH54: 0 | CY54: 0 | CZ54: 0 | DM54: 0 | DN54: 0 | EF54: 0 | EG54: 0 | EO54: 0 | EP54: 0 | FC54: 0 | FD54: 0 | FN54: 0 | FO54: 0
C55: 29 días - 11 meses | K55: 0 | Q55: 0 | R55: 0 | AA55: 0 | AB55: 0 | AR55: 0 | AS55: 0 | BF55: 0 | BG55: 0 | BQ55: 0 | BR55: 0 | CG55: 0 | CH55: 0 | CY55: 0 | CZ55: 0 | DM55: 0 | DN55: 0 | EF55: 0 | EG55: 0 | EO55: 0 | EP55: 0 | FC55: 0 | FD55: 3 | FN55: 0 | FO55: 3
C56: 01 año | K56: 0 | Q56: 0 | R56: 0 | AA56: 0 | AB56: 0 | AR56: 0 | AS56: 0 | BF56: 0 | BG56: 0 | BQ56: 0 | BR56: 0 | CG56: 0 | CH56: 0 | CY56: 0 | CZ56: 0 | DM56: 0 | DN56: 0 | EF56: 0 | EG56: 0 | EO56: 0 | EP56: 0 | FC56: 0 | FD56: 0 | FN56: 0 | FO56: 0
C57: 02 años | K57: 0 | Q57: 0 | R57: 0 | AA57: 0 | AB57: 0 | AR57: 0 | AS57: 0 | BF57: 0 | BG57: 0 | BQ57: 0 | BR57: 0 | CG57: 0 | CH57: 0 | CY57: 0 | CZ57: 0 | DM57: 0 | DN57: 0 | EF57: 0 | EG57: 0 | EO57: 0 | EP57: 0 | FC57: 0 | FD57: 0 | FN57: 0 | FO57: 0
C58: 03 años | K58: 0 | Q58: 0 | R58: 0 | AA58: 0 | AB58: 0 | AR58: 0 | AS58: 0 | BF58: 0 | BG58: 0 | BQ58: 0 | BR58: 0 | CG58: 0 | CH58: 0 | CY58: 0 | CZ58: 0 | DM58: 0 | DN58: 0 | EF58: 0 | EG58: 0 | EO58: 0 | EP58: 0 | FC58: 0 | FD58: 0 | FN58: 0 | FO58: 0
C59: 04 años | K59: 0 | Q59: 0 | R59: 0 | AA59: 0 | AB59: 0 | AR59: 0 | AS59: 0 | BF59: 0 | BG59: 0 | BQ59: 0 | BR59: 0 | CG59: 0 | CH59: 0 | CY59: 0 | CZ59: 0 | DM59: 0 | DN59: 0 | EF59: 0 | EG59: 0 | EO59: 0 | EP59: 0 | FC59: 0 | FD59: 0 | FN59: 0 | FO59: 0
C60: 05 a 11 años | K60: 0 | Q60: 0 | R60: 0 | AA60: 0 | AB60: 0 | AR60: 0 | AS60: 0 | BF60: 0 | BG60: 0 | BQ60: 0 | BR60: 0 | CG60: 0 | CH60: 0 | CY60: 0 | CZ60: 0 | DM60: 0 | DN60: 0 | EF60: 0 | EG60: 0 | EO60: 0 | EP60: 0 | FC60: 0 | FD60: 0 | FN60: 0 | FO60: 0
C63: Evaluación del Estado Nutricional Antropométricas (Por personal técnico)
C65: Grupo de Edad | J65: Número de Evaluaciones Antropométricas
J66: 1º | Q66: 2º | AA66: 3º | AR66: 4º | BF66: 5º | BQ66: 6º | CG66: 7º | CY66: 8º | DM66: 9º | EF66: 10º | EO66: 11º | FC66: SN | FN66: TOTAL
C67: De 1d a 7d | J67: 0 | Q67: 0 | AA67: 0 | AR67: 0 | BE67: 0 | BF67: 0 | BQ67: 0 | CG67: 0 | CY67: 0 | DM67: 0 | EF67: 0 | EO67: 0 | FC67: 0 | FN67: 0
C68: De 8d a 14d | J68: 0 | Q68: 0 | AA68: 0 | AR68: 0 | BE68: 0 | BF68: 0 | BQ68: 0 | CG68: 0 | CY68: 0 | DM68: 0 | EF68: 0 | EO68: 0 | FC68: 0 | FN68: 0
C69: De 15d a 21d | J69: 0 | Q69: 0 | AA69: 0 | AR69: 0 | BE69: 0 | BF69: 0 | BQ69: 0 | CG69: 0 | CY69: 0 | DM69: 0 | EF69: 0 | EO69: 0 | FC69: 0 | FN69: 0
C70: De 22d a +d | J70: 0 | Q70: 0 | AA70: 0 | AR70: 0 | BE70: 0 | BF70: 0 | BQ70: 0 | CG70: 0 | CY70: 0 | DM70: 0 | EF70: 0 | EO70: 0 | FC70: 0 | FN70: 0
C71: 29 días - 11 meses | J71: 0 | Q71: 0 | AA71: 0 | AR71: 0 | BE71: 0 | BF71: 0 | BQ71: 0 | CG71: 0 | CY71: 0 | DM71: 0 | EF71: 0 | EO71: 0 | FC71: 0 | FN71: 0
C72: 01 año | J72: 0 | Q72: 0 | AA72: 0 | AR72: 0 | BE72: 0 | BF72: 0 | BQ72: 0 | CG72: 0 | CY72: 0 | DM72: 0 | EF72: 0 | EO72: 0 | FC72: 0 | FN72: 0
C73: 02 años | J73: 0 | Q73: 0 | AA73: 0 | AR73: 0 | BE73: 0 | BF73: 0 | BQ73: 0 | CG73: 0 | CY73: 0 | DM73: 0 | EF73: 0 | EO73: 0 | FC73: 0 | FN73: 0
C74: 03 años | J74: 0 | Q74: 0 | AA74: 0 | AR74: 0 | BE74: 0 | BF74: 0 | BQ74: 0 | CG74: 0 | CY74: 0 | DM74: 0 | EF74: 0 | EO74: 0 | FC74: 0 | FN74: 0
C75: 04 años | J75: 0 | Q75: 0 | AA75: 0 | AR75: 0 | BE75: 0 | BF75: 0 | BQ75: 0 | CG75: 0 | CY75: 0 | DM75: 0 | EF75: 0 | EO75: 0 | FC75: 0 | FN75: 0
C76: 05 a 11 años | J76: 0 | Q76: 0 | AA76: 0 | AR76: 0 | BE76: 0 | BF76: 0 | BQ76: 0 | CG76: 0 | CY76: 0 | DM76: 0 | EF76: 0 | EO76: 0 | FC76: 0 | FN76: 0
C79: III. TAMIZAJE
C81: ACTIVIDADES | AO81: 01m* | AZ81: 06m | BO81: 01 a | CE81: 02 a | CV81: 03 a | DL81: 04 a | EB81: 05 -11 a | EM81: TOTAL
C82: Detección de Anemia | I82: Solicitud de Dosaje de Hb | AO82: 0 | AZ82: 0 | BO82: 0 | CE82: 0 | CV82: 0 | DL82: 0 | EB82: 0 | EM82: 0
I83: Resultados Evaluados | AO83: 0 | AZ83: 2 | BO83: 25 | CE83: 12 | CV83: 0 | DL83: 1 | EB83: 1 | EM83: 41
C84: Descarte de Parasitosis | I84: Solicitud de Examen | AO84: 0 | AZ84: 0 | BO84: 0 | CE84: 0 | CV84: 0 | DL84: 0 | EB84: 0 | EM84: 0
I85: Resultados Evaluados | AO85: 0 | AZ85: 0 | BO85: 0 | CE85: 0 | CV85: 0 | DL85: 0 | EB85: 0 | EM85: 0
C88: IV. ADMINISTRACIÓN DE PROFILAXIS ANTIPARASITARIA
C90: ACTIVIDADES | AH90: DOSIS
AH91: 01 año | CC91: 02 años | DP91: 03 años | EZ91: 04 años | GL91: 05 - 11 años
AH92: 1º | AZ92: 2º | CC92: 1º | CU92: 2º | DP92: 1º | EK92: 2º | EZ92: 1º | FQ92: 2º | GL92: 1º | GZ92: 2º
C93: Administración de Profilaxis Antiparasitaria | AH93: 0 | AZ93: 0 | CC93: 3 | CU93: 0 | DP93: 0 | EK93: 0 | EZ93: 0 | FQ93: 0 | GL93: 0 | GZ93: 0
C95: IV. ADMINISTRACIÓN DE PROFILAXIS ANTIPARASITARIA
C97: A) Sulfato Ferroso y Multimicronutriente (en polvo)
C99: ACTIVIDADES | R99: DOSIS
R100: 1º | AE100: 2º | AV100: 3º | BK100: 4º | BY100: 5º | CN100: 6º | DD100: 7º | DS100: 8º | EI100: 9º | EV100: 10º | FM100: 11º | FY100: 12º | GG100: TA
C101: < 06 meses (BPN y Prematuros (SF)) | R101: 0 | AD101: 0 | AE101: 0 | AU101: 0 | AV101: 0 | BJ101: 0 | BK101: 0 | BY101: 0 | CM101: 0 | CN101: 0 | DD101: 0 | DS101: 0 | EI101: 0 | EV101: 0 | FL101: 0 | FM101: 0 | FY101: 0 | GG101: 0
C102: De 4 a 5 meses (Sulfato Ferroso) | R102: 0 | AD102: 0 | AE102: 0 | AU102: 0 | AV102: 0 | BJ102: 0 | BK102: 0 | BY102: 0 | CM102: 0 | CN102: 0 | DD102: 0 | DS102: 0 | EI102: 0 | EV102: 0 | FL102: 0 | FM102: 0 | FY102: 0 | GG102: 0
C103: De 6 a 11 meses (MMN) | R103: 1 | AD103: 0 | AE103: 0 | AU103: 0 | AV103: 0 | BJ103: 0 | BK103: 0 | BY103: 0 | CM103: 0 | CN103: 0 | DD103: 0 | DS103: 0 | EI103: 0 | EV103: 0 | FL103: 0 | FM103: 0 | FY103: 0 | GG103: 0
C104: De 1 año (MMN) | R104: 3 | AD104: 0 | AE104: 0 | AU104: 0 | AV104: 0 | BJ104: 0 | BK104: 0 | BY104: 0 | CM104: 0 | CN104: 0 | DD104: 0 | DS104: 0 | EI104: 0 | EV104: 0 | FL104: 0 | FM104: 0 | FY104: 0 | GG104: 4
C105: De 2 año (MMN) | R105: 2 | AD105: 0 | AE105: 0 | AU105: 0 | AV105: 0 | BJ105: 0 | BK105: 0 | BY105: 1 | CM105: 0 | CN105: 0 | DD105: 0 | DS105: 0 | EI105: 0 | EV105: 0 | FL105: 0 | FM105: 0 | FY105: 0 | GG105: 0
C106: De 3 año (MMN) | R106: 0 | AD106: 0 | AE106: 0 | AU106: 0 | AV106: 0 | BJ106: 0 | BK106: 0 | BY106: 0 | CM106: 0 | CN106: 0 | DD106: 0 | DS106: 0 | EI106: 0 | EV106: 0 | FL106: 0 | FM106: 0 | FY106: 0 | GG106: 0
C107: De 4 año (MMN) | R107: 0 | AD107: 0 | AE107: 0 | AU107: 0 | AV107: 0 | BJ107: 0 | BK107: 0 | BY107: 0 | CM107: 0 | CN107: 0 | DD107: 0 | DS107: 0 | EI107: 0 | EV107: 0 | FL107: 0 | FM107: 0 | FY107: 0 | GG107: 0
B110: Polimaltosado
B112: ACTIVIDADES | P112: DOSIS
P113: 1º | AC113: 2º | AT113: 3º | BI113: 4º | BV113: 5º | CK113: 6º | DB113: 7º | DR113: 8º | EH113: 9º | ET113: 10º | FK113: 11º | FX113: 12º | GF113: TA
B114: < 06 meses (BPN y Prematuros) | P114: 0 | AC114: 0 | AT114: 0 | BI114: 0 | BV114: 0 | CK114: 0 | DB114: 0 | DR114: 0 | EH114: 0 | ET114: 0 | FK114: 0 | FX114: 0 | GF114: 0 | GP114: 0
B115: De 4 a 5 meses | P115: 38 | AC115: 2 | AT115: 0 | BI115: 0 | BV115: 0 | CK115: 0 | DB115: 0 | DR115: 0 | EH115: 0 | ET115: 0 | FK115: 0 | FX115: 0 | GF115: 0 | GP115: 0
B116: De 6 a 11 meses | P116: 43 | AC116: 12 | AT116: 4 | BI116: 0 | BV116: 0 | CK116: 1 | DB116: 0 | DR116: 0 | EH116: 0 | ET116: 0 | FK116: 0 | FX116: 0 | GF116: 0 | GP116: 0
B117: De 1 año | P117: 3 | AC117: 5 | AT117: 4 | BI117: 8 | BV117: 4 | CK117: 4 | DB117: 0 | DR117: 2 | EH117: 0 | ET117: 0 | FK117: 1 | FX117: 0 | GF117: 0 | GP117: 0
B118: De 2 años | P118: 0 | AC118: 0 | AT118: 0 | BI118: 1 | BV118: 1 | CK118: 0 | DB118: 0 | DR118: 1 | EH118: 0 | ET118: 0 | FK118: 0 | FX118: 0 | GF118: 0 | GP118: 0
B119: De 3 años | P119: 0 | AC119: 0 | AT119: 1 | BI119: 1 | BV119: 0 | CK119: 0 | DB119: 0 | DR119: 0 | EH119: 0 | ET119: 0 | FK119: 0 | FX119: 0 | GF119: 0 | GP119: 0
B120: De 4 años | P120: 0 | AC120: 0 | AT120: 0 | BI120: 0 | BV120: 0 | CK120: 0 | DB120: 0 | DR120: 0 | EH120: 0 | ET120: 0 | FK120: 0 | FX120: 0 | GF120: 0 | GP120: 0
C123: B) Vitamina "A"
Q125: 06 meses | AU125: 01 año | BY125: 02 años | DD125: 03 años | EI125: 04 años
C126: Dosis | Q126: 1º Dosis | AD126: 2º Dosis | AU126: 1º Dosis | BJ126: 2º Dosis | BY126: 1º Dosis | CN126: 2º Dosis | DD126: 1º Dosis | DS126: 2º Dosis | EI126: 1º Dosis | EV126: 2º Dosis
C127: Suplementados | Q127: 0 | AD127: 0 | AU127: 0 | BJ127: 0 | BY127: 0 | CM127: 0 | CN127: 0 | DD127: 0 | DS127: 0 | EI127: 0 | EV127: 0
C130: VI. LACTANCIA MATERNA EXCLUSIVA
C132: Condición | Q132: Nº
C133: Niños con LME a los 06 meses | Q133: 0
C135: VII. ALIMENTACIÓN COMPLEMENTARIA
C137: Condición | CA137: Nº
C138: Niños con Inicio de Alimentación Complementaria antes de los 06 meses | CA138: 0
C139: Niños con Inicio de Alimentación Complementaria después de los 06 meses | CA139: 0
C140: Niños con Inicio de Alimentación Complementaria Adecuada | CA140: 5
C141: Niños con Inicio de Alimentación Complementaria Inadecuada | CA141: 0
C144: VIII. EVALUACION DEL ESTADO NUTRICIONAL
C146: A) En el Recién Nacido de 01 día a 28 días
C148: Clasificación | O148: Dx | BP148: Nº
C149: RN Bajo Peso Recuperados | O149: RN Bajo Peso Recuperados | BP149: 0
C150: Peso al Nacer | O150: Extremadamente bajo | BP150: 0
O151: Muy bajo peso al nacer | BP151: 0
O152: Bajo peso al nacer | BP152: 0
O153: Normal | BP153: 0
O154: Macrosómico | BP154: 0
C155: Ganancia de Peso / Talla | O155: Ganancia Inadecuada de Peso Dx. | BP155: 0
O156: Ganancia Inadecuada de Peso Recup. | BP156: 0
O157: Ganancia Inadecuada de Talla Dx. | BP157: 0
O158: Ganancia Inadecuada de Talla Recup. | BP158: 0
C160: B) En los Niños y Niñas de 29 días a < 05 años
C162: Grupo de Edad | E162: Ganancia Inadecuada de Peso o Talla | BB162: Normal
E163: Peso | S163: Talla | BB163: Normal
E164: Dx. | L164: Recup. | S164: Dx. | AI164: Recup. | BB164: Normal
C165: < 1 año | E165: 0 | L165: 0 | S165: 0 | AI165: 0 | BB165: 8
C166: 1 año | E166: 0 | L166: 0 | S166: 0 | AI166: 0 | BB166: 3
C167: 2 años | E167: 0 | L167: 0 | S167: 0 | AI167: 0 | BB167: 4
C168: 3 años | E168: 0 | L168: 0 | S168: 0 | AI168: 0 | BB168: 0
C169: 4 años | E169: 0 | L169: 0 | S169: 0 | AI169: 0 | BB169: 0
C172: Grupo de Edad | D172: Peso para la Edad (PE) | BC172: Peso para la Edad (TP) | GI172: Talla para la Edad (TE)
D173: Sobrepeso | T173: Desnutrición | BC173: Obesidad | CP173: Sobrepeso | EC173: Desnutrición Aguda | FG173: Desnutrición Severa | GI173: Alto | HB173: Talla Baja
D174: Dx. | L174: Recup. | T174: Dx. | AJ174: Recup. | BC174: Dx. | BW174: Recup. | CP174: Dx. | DI174: Recup. | EC174: Dx. | EQ174: Recup. | FG174: Dx. | FU174: Recup. | GI174: Dx. | GV174: Recup. | HB174: Dx. | HI174: Recup.
C175: < 1 año | D175: 0 | L175: 0 | T175: 0 | AJ175: 0 | BC175: 0 | BW175: 0 | CP175: 0 | DI175: 0 | EC175: 0 | EQ175: 0 | FG175: 0 | FU175: 0 | GI175: 0 | GV175: 0 | HB175: 0 | HI175: 0
C176: 1 año | D176: 0 | L176: 0 | T176: 0 | AJ176: 0 | BC176: 0 | BW176: 0 | CP176: 0 | DI176: 0 | EC176: 0 | EQ176: 0 | FG176: 0 | FU176: 0 | GI176: 0 | GV176: 0 | HB176: 1 | HI176: 0
C177: 2 años | D177: 0 | L177: 0 | T177: 0 | AJ177: 0 | BC177: 0 | BW177: 0 | CP177: 0 | DI177: 0 | EC177: 0 | EQ177: 0 | FG177: 0 | FU177: 0 | GI177: 0 | GV177: 0 | HB177: 1 | HI177: 0
C178: 3 años | D178: 0 | L178: 0 | T178: 0 | AJ178: 0 | BC178: 0 | BW178: 0 | CP178: 0 | DI178: 0 | EC178: 0 | EQ178: 0 | FG178: 0 | FU178: 0 | GI178: 0 | GV178: 0 | HB178: 0 | HI178: 0
C179: 4 años | D179: 0 | L179: 0 | T179: 0 | AJ179: 0 | BC179: 0 | BW179: 0 | CP179: 0 | DI179: 0 | EC179: 0 | EQ179: 0 | FG179: 0 | FU179: 0 | GI179: 0 | GV179: 0 | HB179: 0 | HI179: 0
C182: C) En los Niños y Niñas de 05 a 11 años
C184: Grupo de Edad | E184: Índice de Masa Cororal (IMC) | DY184: Talla para la Edad (TE) | HA184: Normal
E185: Obesidad | S185: Sobrepeso | BB185: Delgadez | CO185: Delgadez Severa | DY185: Alto | FF185: Talla Baja | GE185: Talla Baja Severa | HA185: Normal
E186: Dx. | L186: Recup. | S186: Dx. | AI186: Recup. | BB186: Dx. | BT186: Recup. | CO186: Dx. | DE186: Recup. | DY186: Dx. | EN186: Recup. | FF186: Dx. | FR186: Recup. | GE186: Dx. | GS186: Recup. | HA186: Normal
C187: 05 a 11 años | E187: 0 | L187: 0 | S187: 0 | AI187: 0 | BB187: 0 | BS187: 0 | BT187: 0 | CO187: 0 | DE187: 0 | DY187: 0 | EN187: 0 | FF187: 0 | FR187: 0 | GE187: 0 | GS187: 0 | HA187: 0
C189: IX. EVALUACION DEL DESARROLLO
C191: Grupo de Edad | D191: Trastorno del Desarrollo | GJ191: Evaluac. Normal
D192: Lenguaje | U192: Motora | BD192: Social | CQ192: Coordinación | ED192: Cognitiva | FH192: Con + de 1 Trastorno | GJ192: Evaluac. Normal
D193: Dx. | L193: Recup. | U193: Dx. | AK193: Recup. | BD193: Dx. | BX193: Recup. | CQ193: Dx. | DJ193: Recup. | ED193: Dx. | ER193: Recup. | FH193: Dx. | FV193: Recup. | GJ193: Evaluac. Normal
C194: < 1 año | D194: 0 | L194: 0 | T194: 0 | U194: 0 | AJ194: 0 | AK194: 0 | BC194: 0 | BD194: 0 | BW194: 0 | BX194: 0 | CP194: 0 | CQ194: 0 | DI194: 0 | DJ194: 0 | EC194: 0 | ED194: 0 | EQ194: 0 | ER194: 0 | FG194: 0 | FH194: 0 | FU194: 0 | FV194: 0 | GI194: 0 | GJ194: 0
C195: 1 año | D195: 0 | L195: 0 | T195: 0 | U195: 0 | AJ195: 0 | AK195: 0 | BC195: 0 | BD195: 0 | BW195: 0 | BX195: 0 | CP195: 0 | CQ195: 0 | DI195: 0 | DJ195: 0 | EC195: 0 | ED195: 0 | EQ195: 0 | ER195: 0 | FG195: 0 | FH195: 0 | FU195: 0 | FV195: 0 | GI195: 0 | GJ195: 0
C196: 2 años | D196: 0 | L196: 0 | T196: 0 | U196: 0 | AJ196: 0 | AK196: 0 | BC196: 0 | BD196: 0 | BW196: 0 | BX196: 0 | CP196: 0 | CQ196: 0 | DI196: 0 | DJ196: 0 | EC196: 0 | ED196: 0 | EQ196: 0 | ER196: 0 | FG196: 0 | FH196: 0 | FU196: 0 | FV196: 0 | GI196: 0 | GJ196: 0
C199: Grupo de Edad | D199: Déficit del Desarrollo | GJ199: Evaluac. Normal
D200: Lenguaje | U200: Motora | BD200: Social | CQ200: Coordinación | ED200: Cognitiva | FH200: Más de 1 Déficit | GJ200: Evaluac. Normal
D201: Dx. | L201: Recup. | U201: Dx. | AK201: Recup. | BD201: Dx. | BX201: Recup. | CQ201: Dx. | DJ201: Recup. | ED201: Dx. | ER201: Recup. | FH201: Dx. | FV201: Recup. | GJ201: Evaluac. Normal
C202: 03 años | D202: 0 | L202: 0 | T202: 0 | U202: 0 | AJ202: 0 | AK202: 0 | BC202: 0 | BD202: 0 | BW202: 0 | BX202: 0 | CP202: 0 | CQ202: 0 | DI202: 0 | DJ202: 0 | EC202: 0 | ED202: 0 | EQ202: 0 | ER202: 0 | FG202: 0 | FH202: 0 | FU202: 0 | FV202: 0 | GI202: 0 | GJ202: 0
C203: 04 años | D203: 0 | L203: 0 | T203: 0 | U203: 0 | AJ203: 0 | AK203: 0 | BC203: 0 | BD203: 0 | BW203: 0 | BX203: 0 | CP203: 0 | CQ203: 0 | DI203: 0 | DJ203: 0 | EC203: 0 | ED203: 0 | EQ203: 0 | ER203: 0 | FG203: 0 | FH203: 0 | FU203: 0 | FV203: 0 | GI203: 0 | GJ203: 0
C205: X. PLAN DE ATENCION INTEGRAL
C207: Edades | F207: RN | M207: <1 año | V207: 01 año | AL207: 02 años | BE207: 03 años | BZ207: 04 años | CR207: 05 años | DK207: 06 años | EE207: 07 años | ES207: 08 años | FI207: 09 años | FW207: 10 años | GK207: 11 años
C208: Elaborado | F208: 0 | M208: 0 | V208: 0 | AL208: 0 | BE208: 0 | BZ208: 0 | CR208: 0 | DK208: 0 | EE208: 0 | ES208: 0 | FI208: 0 | FW208: 0 | GK208: 0
C209: Ejecutado | F209: 0 | M209: 0 | V209: 0 | AL209: 0 | BE209: 0 | BZ209: 0 | CR209: 0 | DK209: 0 | EE209: 0 | ES209: 0 | FI209: 0 | FW209: 0 | GK209: 0
C212: XI. CONSEJERÍA
C214: Tipos / Edades | AH214: TOTAL | AX214: RN | BN214: <1 año | CI214: 01 año | DC214: 02 años | DX214: 03 años | EL214: 04 años | FE214: 05 - 11 a
C215: Nutricional por Suplementación | AH215: 0 | AX215: 0 | BN215: 0 | CI215: 0 | DC215: 0 | DX215: 0 | EL215: 0 | FE215: 0
C216: Nutricional por Eval. PE, TP, TE, IMC | AH216: 905 | AX216: 0 | BN216: 474 | CI216: 286 | DC216: 84 | DX216: 31 | EL216: 7 | FE216: 23
C217: Integral por Eval. del Desarrollo | AH217: 0 | AX217: 0 | BN217: 0 | CI217: 0 | DC217: 0 | DX217: 0 | EL217: 0 | FE217: 0
C218: Integral por Aliment. Complement. | AH218: 0 | AX218: 0 | BN218: 0 | CI218: 0 | DC218: 0 | DX218: 0 | EL218: 0 | FE218: 0
C221: XII. VISITA DOMICILIARIA
C223: Tipos de Visita / Edades | AH223: TOTAL | AX223: RN | BN223: <1 año | CI223: 01 año | DC223: 02 años | DX223: 03 años | EL223: 04 años | FE223: 05 - 11 a
C224: Seguimiento al Control CRED | AH224: 5 | AX224: 0 | BN224: 3 | CI224: 2 | DC224: 0 | DX224: 0 | EL224: 0 | FE224: 0
C225: Seguimiento a Problemas Nutricionales | AH225: 0 | AX225: 0 | BN225: 0 | CI225: 0 | DC225: 0 | DX225: 0 | EL225: 0 | FE225: 0
C226: Seguimiento a Problemas del Desarrollo | AH226: 0 | AX226: 0 | BN226: 0 | CI226: 0 | DC226: 0 | DX226: 0 | EL226: 0 | FE226: 0
C227: Entrega de Suplementación | AH227: 0 | AX227: 0 | BN227: 0 | CI227: 0 | DC227: 0 | DX227: 0 | EL227: 0 | FE227: 0
C228: Verificación de Consumo de Micronutrientes | AH228: 3 | AX228: 0 | BN228: 2 | CI228: 0 | DC228: 0 | DX228: 1 | EL228: 0 | FE228: 0
C229: Seguimiento de IRA | AH229: 0 | AX229: 0 | BN229: 0 | CI229: 0 | DC229: 0 | DX229: 0 | EL229: 0 | FE229: 0
C230: Seguimiento de EDA | AH230: 0 | AX230: 0 | BN230: 0 | CI230: 0 | DC230: 0 | DX230: 0 | EL230: 0 | FE230: 0
C231: Seguimiento de Anemia | AH231: 5 | AX231: 0 | BN231: 0 | CI231: 4 | DC231: 1 | DX231: 0 | EL231: 0 | FE231: 0
C234: XIII. ESTIMULACION TEMPRANA
C236: Edad | G236: 1º | N236: 2º | AF236: 3º | AW236: 4º | BM236: 5º | CD236: 6º
C237: Recién Nacido | G237: 0 | N237: 0 | AF237: 0 | AW237: 0 | BM237: 0 | CD237: 0
C238: < 01 año | G238: 0 | N238: 0 | AF238: 0 | AW238: 0 | BM238: 0 | CD238: 0
C239: 01 año | G239: 0 | N239: 0 | AF239: 0 | AW239: 0 | BM239: 0 | CD239: 0
C240: 02 años | G240: 0 | N240: 0 | AF240: 0 | AW240: 0 | BM240: 0 | CD240: 0
C241: 03 años | G241: 0 | N241: 0 | AF241: 0 | AW241: 0 | BM241: 0 | CD241: 0
C243: XIV. ACTIVIDADES EXTRAMURALES, MASIVAS Y DE GESTIÓN
C245: Unidad Medida | G245: Actividad Extramural | BA245: Actividades de Gestión
G246: Sesiones Demostrativas | W246: Sesiones Educativas | BA246: Evaluación | CJ246: Supervisión | DQ246: Asistencia Técnica | EU246: Reu.Téc: Personal de Salud | FZ246: Reu.Téc: Agente Com. de Salud
C247: Actividades | G247: 0 | W247: 0 | BA247: 0 | CJ247: 0 | DQ247: 0 | EU247: 0 | FZ247: 0
C248: Participantes | G248: 0 | W248: 0 | BA248: 0 | CJ248: 0 | DQ248: 0 | EU248: 0 | FZ248: 0
C250: XV. ATENCION DE LAS ENFERMEDADES PREVALENTES DE LA INFANCIA
C252: A. INFECCIÓN RESPIRATORIA AGUDA
C254: DIAGNÓSTICOS | CX254: Grupo Edad
CX255: < 29 Días | EA255: 29 d a 59 Días | EX255: 02 - 11 Meses | GB255: 01 - 04 Años | GO255: 05 - 11 Años | HE255: TOTAL
C256: 1.1 N° casos de IRA sin complicaciones (a+b+c+d+e) | AH256: a. Infección Respiratoria Aguda (IRA) no complicada | CX256: 0 | DZ256: 0 | EA256: 3 | EW256: 0 | EX256: 17 | GA256: 0 | GB256: 11 | GN256: 0 | GO256: 7 | HD256: 0 | HE256: 38
AH257: b. Faringoamigdalitis Aguda | CX257: 1 | DZ257: 0 | EA257: 0 | EW257: 0 | EX257: 8 | GA257: 0 | GB257: 15 | GN257: 0 | GO257: 7 | HD257: 0 | HE257: 31
AH258: c. Otitis Media Aguda (OMA) | CX258: 0 | DZ258: 0 | EA258: 0 | EW258: 0 | EX258: 0 | GA258: 0 | GB258: 0 | GN258: 0 | GO258: 0 | HD258: 0 | HE258: 0
AH259: d. Sinusitis Aguda | CX259: 0 | DZ259: 0 | EA259: 0 | EW259: 0 | EX259: 0 | GA259: 0 | GB259: 0 | GN259: 0 | GO259: 0 | HD259: 0 | HE259: 0
AH260: e. Neumonía sin complicaciones | CX260: 0 | DZ260: 0 | EA260: 0 | EW260: 0 | EX260: 0 | GA260: 0 | GB260: 0 | GN260: 0 | GO260: 0 | HD260: 0 | HE260: 0
C261: 1.2 N° casos IRA con complicaciones (a+b+c) | AH261: a. Infecciones Respiratorias Agudas con complicaciones | CX261: 0 | DZ261: 0 | EA261: 0 | EW261: 0 | EX261: 0 | GA261: 0 | GB261: 0 | GN261: 0 | GO261: 0 | HD261: 0 | HE261: 0
AH262: b. Neumonía Grave o Enfermedad Muy Grave en Niños Menores de 2 Meses | CX262: 0 | DZ262: 0 | EA262: 0 | EW262: 0 | EX262: 0 | GA262: 0 | GB262: 0 | GN262: 0 | GO262: 0 | HD262: 0 | HE262: 0
AH263: c. Neumonía y Enfermedad Muy Grave en Niños de 2 Meses a 4 Años | CX263: 0 | DZ263: 0 | EA263: 0 | EW263: 0 | EX263: 0 | GA263: 0 | GB263: 0 | GN263: 0 | GO263: 0 | HD263: 0 | HE263: 0
C266: DIAGNÓSTICOS | CW266: < 29 Días | DZ266: 29 d a 59 Días | EW266: 02 - 11 Meses | GA266: 12 - 23 Meses | GN266: 02- 02 Años con 11 Meses | HD266: 03 - 04 Años | HM266: 05 - 11 Años | HR266: TOTAL
C267: 1.3 SOB/Asma | AH267: a. SOB/Asma | CW267: 0 | DZ267: 0 | EW267: 1 | GA267: 1 | GN267: 0 | HD267: 2 | HM267: 0 | HR267: 4
C269: B. ENFERMEDAD DIARREICA AGUDA
C271: DIAGNÓSTICOS | CW271: Grupo Edad
CW272: < 01 Año | DZ272: 01 - 04 Años | EW272: 05 - 11 Años | GA272: TOTAL
C273: 1. Enfermedades Diarreicas sin complicaciones ( a + b + c) | AH273: a. Diarrea Aguda Acuosa sin deshidratación | CW273: 11 | DZ273: 6 | EW273: 2 | GA273: 19
... 29 more rows

Sheet ISEMESTRE
AZ3: REPORTE MENSUAL DE ACTIVIDADES ATENCIÓN INTEGRAL DE SALUD DEL NIÑO
B5: Periodo:
B6: Diresa/Red/M.Red/EE.SS: AREQUIPA/AREQUIPA CAYLLOMA/TODAS LAS MICRO REDES/TODOS LOS EE.SS
C9: I. ATENCIÓN DEL RECIÉN NACIDO
C11: A) Atención Inmediata
C13: ACTIVIDADES | X13: Nº
C14: Atención Inmediata | X14: 0
C15: Tamizaje Neonatal (Enfermed. Metabólicas) | X15: 0
C16: Tamizaje Visual y Auditivo | X16: 0
C17: Contacto Piel a Piel con la madre | X17: 49
C18: Alojamiento Conjunto | X18: 49
C19: Lactancia Materna en la 1º Hora | X19: 49
C21: B) Resultados del Tamizaje Neonatal
C23: DIAGNÓSTICOS | X23: Nº
C24: Hipotiroidismo Congénito | X24: 0
C25: Fenilcetonuria | X25: 0
C26: Galactosemia | X26: 0
C27: Hiperplasia Suprarrenal Congénita | X27: 0
C28: Fibrosis Quística | X28: 0
C29: Catarata Congénita | X29: 0
C30: Hipoacusia (todas las clasificaciones) | X30: 0
C33: D) Morbilidad Neonatal
C35: CAUSAS DE MORBILIDAD | Z35: Nº
C36: Síndrome de Dristres Respiratorio | Z36: 0
C37: Síndromes de Aspiración Neonatal | Z37: 0
C38: Asfixia Neonatal | Z38: 0
C39: Sepsis Neonatal | Z39: 0
C40: Ictericia | Z40: 15
C41: Hipoglucemia | Z41: 0
C42: Sífilis Congénita | Z42: 0
C43: VIH Expuesto | Z43: 0
C44: Retinopatía de la Prematuridad | Z44: 0
C47: II. CONTROL DE CRECIMIENTO Y DESARROLLO
C49: Grupo de Edad | K49: Número de Controles
K50: 1º | R50: 2º | AB50: 3º | AS50: 4º | BG50: 5º | BR50: 6º | CH50: 7º | CZ50: 8º | DN50: 9º | EG50: 10º | EP50: 11º | FD50: SN | FO50: TOTAL
C51: De 1d a 7d | K51: 38 | Q51: 0 | R51: 0 | AA51: 0 | AB51: 0 | AR51: 0 | AS51: 0 | BF51: 0 | BG51: 0 | BQ51: 0 | BR51: 0 | CG51: 0 | CH51: 0 | CY51: 0 | CZ51: 0 | DM51: 0 | DN51: 0 | EF51: 0 | EG51: 0 | EO51: 0 | EP51: 0 | FC51: 0 | FD51: 0 | FN51: 0 | FO51: 38
C52: De 8d a 14d | K52: 39 | Q52: 0 | R52: 51 | AA52: 0 | AB52: 1 | AR52: 0 | AS52: 0 | BF52: 0 | BG52: 0 | BQ52: 0 | BR52: 0 | CG52: 0 | CH52: 0 | CY52: 0 | CZ52: 0 | DM52: 0 | DN52: 0 | EF52: 0 | EG52: 0 | EO52: 0 | EP52: 0 | FC52: 0 | FD52: 0 | FN52: 0 | FO52: 91
C53: De 15d a 21d | K53: 7 | Q53: 0 | R53: 18 | AA53: 0 | AB53: 41 | AR53: 0 | AS53: 0 | BF53: 0 | BG53: 0 | BQ53: 0 | BR53: 0 | CG53: 0 | CH53: 0 | CY53: 0 | CZ53: 0 | DM53: 0 | DN53: 0 | EF53: 0 | EG53: 0 | EO53: 0 | EP53: 0 | FC53: 0 | FD53: 0 | FN53: 0 | FO53: 66
C54: De 22d a +d | K54: 3 | Q54: 0 | R54: 6 | AA54: 0 | AB54: 15 | AR54: 0 | AS54: 17 | BF54: 0 | BG54: 0 | BQ54: 0 | BR54: 0 | CG54: 0 | CH54: 0 | CY54: 0 | CZ54: 0 | DM54: 0 | DN54: 0 | EF54: 0 | EG54: 0 | EO54: 0 | EP54: 0 | FC54: 0 | FD54: 0 | FN54: 0 | FO54: 41
C55: 29 días - 11 meses | K55: 103 | Q55: 0 | R55: 109 | AA55: 0 | AB55: 101 | AR55: 0 | AS55: 103 | BF55: 0 | BG55: 85 | BQ55: 0 | BR55: 92 | CG55: 0 | CH55: 77 | CY55: 0 | CZ55: 73 | DM55: 0 | DN55: 65 | EF55: 0 | EG55: 75 | EO55: 0 | EP55: 63 | FC55: 0 | FD55: 4 | FN55: 0 | FO55: 950
C56: 01 año | K56: 109 | Q56: 0 | R56: 71 | AA56: 0 | AB56: 63 | AR56: 0 | AS56: 52 | BF56: 0 | BG56: 39 | BQ56: 0 | BR56: 33 | CG56: 0 | CH56: 0 | CY56: 0 | CZ56: 0 | DM56: 0 | DN56: 0 | EF56: 0 | EG56: 0 | EO56: 0 | EP56: 0 | FC56: 0 | FD56: 0 | FN56: 0 | FO56: 367
C57: 02 años | K57: 75 | Q57: 0 | R57: 56 | AA57: 0 | AB57: 31 | AR57: 0 | AS57: 37 | BF57: 0 | BG57: 0 | BQ57: 0 | BR57: 0 | CG57: 0 | CH57: 0 | CY57: 0 | CZ57: 0 | DM57: 0 | DN57: 0 | EF57: 0 | EG57: 0 | EO57: 0 | EP57: 0 | FC57: 0 | FD57: 0 | FN57: 0 | FO57: 199
C58: 03 años | K58: 67 | Q58: 0 | R58: 35 | AA58: 0 | AB58: 25 | AR58: 0 | AS58: 22 | BF58: 0 | BG58: 0 | BQ58: 0 | BR58: 0 | CG58: 0 | CH58: 0 | CY58: 0 | CZ58: 0 | DM58: 0 | DN58: 0 | EF58: 0 | EG58: 0 | EO58: 0 | EP58: 0 | FC58: 0 | FD58: 1 | FN58: 0 | FO58: 150
C59: 04 años | K59: 57 | Q59: 0 | R59: 27 | AA59: 0 | AB59: 17 | AR59: 0 | AS59: 16 | BF59: 0 | BG59: 0 | BQ59: 0 | BR59: 0 | CG59: 0 | CH59: 0 | CY59: 0 | CZ59: 0 | DM59: 0 | DN59: 0 | EF59: 0 | EG59: 0 | EO59: 0 | EP59: 0 | FC59: 0 | FD59: 0 | FN59: 0 | FO59: 117
C60: 05 a 11 años | K60: 89 | Q60: 0 | R60: 0 | AA60: 0 | AB60: 0 | AR60: 0 | AS60: 0 | BF60: 0 | BG60: 0 | BQ60: 0 | BR60: 0 | CG60: 0 | CH60: 0 | CY60: 0 | CZ60: 0 | DM60: 0 | DN60: 0 | EF60: 0 | EG60: 0 | EO60: 0 | EP60: 0 | FC60: 0 | FD60: 1 | FN60: 0 | FO60: 90
C63: Evaluación del Estado Nutricional Antropométricas (Por personal técnico)
C65: Grupo de Edad | J65: Número de Evaluaciones Antropométricas
J66: 1º | Q66: 2º | AA66: 3º | AR66: 4º | BF66: 5º | BQ66: 6º | CG66: 7º | CY66: 8º | DM66: 9º | EF66: 10º | EO66: 11º | FC66: SN | FN66: TOTAL
C67: De 1d a 7d | J67: 0 | Q67: 0 | AA67: 0 | AR67: 0 | BE67: 0 | BF67: 0 | BQ67: 0 | CG67: 0 | CY67: 0 | DM67: 0 | EF67: 0 | EO67: 0 | FC67: 0 | FN67: 0
C68: De 8d a 14d | J68: 0 | Q68: 0 | AA68: 0 | AR68: 0 | BE68: 0 | BF68: 0 | BQ68: 0 | CG68: 0 | CY68: 0 | DM68: 0 | EF68: 0 | EO68: 0 | FC68: 0 | FN68: 0
C69: De 15d a 21d | J69: 0 | Q69: 0 | AA69: 0 | AR69: 0 | BE69: 0 | BF69: 0 | BQ69: 0 | CG69: 0 | CY69: 0 | DM69: 0 | EF69: 0 | EO69: 0 | FC69: 0 | FN69: 0
C70: De 22d a +d | J70: 0 | Q70: 0 | AA70: 0 | AR70: 0 | BE70: 0 | BF70: 0 | BQ70: 0 | CG70: 0 | CY70: 0 | DM70: 0 | EF70: 0 | EO70: 0 | FC70: 0 | FN70: 0
C71: 29 días - 11 meses | J71: 0 | Q71: 0 | AA71: 0 | AR71: 0 | BE71: 0 | BF71: 0 | BQ71: 0 | CG71: 0 | CY71: 0 | DM71: 0 | EF71: 0 | EO71: 0 | FC71: 0 | FN71: 0
C72: 01 año | J72: 0 | Q72: 0 | AA72: 0 | AR72: 0 | BE72: 0 | BF72: 0 | BQ72: 0 | CG72: 0 | CY72: 0 | DM72: 0 | EF72: 0 | EO72: 0 | FC72: 0 | FN72: 0
C73: 02 años | J73: 0 | Q73: 0 | AA73: 0 | AR73: 0 | BE73: 0 | BF73: 0 | BQ73: 0 | CG73: 0 | CY73: 0 | DM73: 0 | EF73: 0 | EO73: 0 | FC73: 0 | FN73: 0
C74: 03 años | J74: 0 | Q74: 0 | AA74: 0 | AR74: 0 | BE74: 0 | BF74: 0 | BQ74: 0 | CG74: 0 | CY74: 0 | DM74: 0 | EF74: 0 | EO74: 0 | FC74: 0 | FN74: 0
C75: 04 años | J75: 0 | Q75: 0 | AA75: 0 | AR75: 0 | BE75: 0 | BF75: 0 | BQ75: 0 | CG75: 0 | CY75: 0 | DM75: 0 | EF75: 0 | EO75: 0 | FC75: 0 | FN75: 0
C76: 05 a 11 años | J76: 0 | Q76: 0 | AA76: 0 | AR76: 0 | BE76: 0 | BF76: 0 | BQ76: 0 | CG76: 0 | CY76: 0 | DM76: 0 | EF76: 0 | EO76: 0 | FC76: 0 | FN76: 0
C79: III. TAMIZAJE
C81: ACTIVIDADES | AO81: 01m* | AZ81: 06m | BO81: 01 a | CE81: 02 a | CV81: 03 a | DL81: 04 a | EB81: 05 -11 a | EM81: TOTAL
C82: Detección de Anemia | I82: Solicitud de Dosaje de Hb | AO82: 0 | AZ82: 2 | BO82: 1 | CE82: 3 | CV82: 2 | DL82: 2 | EB82: 31 | EM82: 41
I83: Resultados Evaluados | AO83: 0 | AZ83: 98 | BO83: 257 | CE83: 143 | CV83: 93 | DL83: 58 | EB83: 148 | EM83: 797
C84: Descarte de Parasitosis | I84: Solicitud de Examen | AO84: 0 | AZ84: 0 | BO84: 3 | CE84: 3 | CV84: 1 | DL84: 2 | EB84: 40 | EM84: 49
I85: Resultados Evaluados | AO85: 0 | AZ85: 0 | BO85: 1 | CE85: 3 | CV85: 3 | DL85: 5 | EB85: 16 | EM85: 28
C88: IV. ADMINISTRACIÓN DE PROFILAXIS ANTIPARASITARIA
C90: ACTIVIDADES | AH90: DOSIS
AH91: 01 año | CC91: 02 años | DP91: 03 años | EZ91: 04 años | GL91: 05 - 11 años
AH92: 1º | AZ92: 2º | CC92: 1º | CU92: 2º | DP92: 1º | EK92: 2º | EZ92: 1º | FQ92: 2º | GL92: 1º | GZ92: 2º
C93: Administración de Profilaxis Antiparasitaria | AH93: 0 | AZ93: 0 | CC93: 88 | CU93: 8 | DP93: 73 | EK93: 8 | EZ93: 65 | FQ93: 4 | GL93: 74 | GZ93: 4
C95: IV. ADMINISTRACIÓN DE PROFILAXIS ANTIPARASITARIA
C97: A) Sulfato Ferroso y Multimicronutriente (en polvo)
C99: ACTIVIDADES | R99: DOSIS
R100: 1º | AE100: 2º | AV100: 3º | BK100: 4º | BY100: 5º | CN100: 6º | DD100: 7º | DS100: 8º | EI100: 9º | EV100: 10º | FM100: 11º | FY100: 12º | GG100: TA
C101: < 06 meses (BPN y Prematuros (SF)) | R101: 0 | AD101: 0 | AE101: 0 | AU101: 0 | AV101: 0 | BJ101: 0 | BK101: 0 | BY101: 0 | CM101: 0 | CN101: 0 | DD101: 0 | DS101: 0 | EI101: 0 | EV101: 0 | FL101: 0 | FM101: 0 | FY101: 0 | GG101: 0
C102: De 4 a 5 meses (Sulfato Ferroso) | R102: 0 | AD102: 0 | AE102: 0 | AU102: 0 | AV102: 0 | BJ102: 0 | BK102: 0 | BY102: 0 | CM102: 0 | CN102: 0 | DD102: 0 | DS102: 0 | EI102: 0 | EV102: 0 | FL102: 0 | FM102: 0 | FY102: 0 | GG102: 0
C103: De 6 a 11 meses (MMN) | R103: 2 | AD103: 0 | AE103: 1 | AU103: 0 | AV103: 2 | BJ103: 0 | BK103: 0 | BY103: 1 | CM103: 0 | CN103: 0 | DD103: 0 | DS103: 0 | EI103: 0 | EV103: 0 | FL103: 0 | FM103: 0 | FY103: 0 | GG103: 0
C104: De 1 año (MMN) | R104: 3 | AD104: 0 | AE104: 1 | AU104: 0 | AV104: 1 | BJ104: 0 | BK104: 0 | BY104: 0 | CM104: 0 | CN104: 0 | DD104: 0 | DS104: 0 | EI104: 0 | EV104: 1 | FL104: 0 | FM104: 0 | FY104: 0 | GG104: 14
C105: De 2 año (MMN) | R105: 3 | AD105: 0 | AE105: 0 | AU105: 0 | AV105: 0 | BJ105: 0 | BK105: 0 | BY105: 1 | CM105: 0 | CN105: 0 | DD105: 0 | DS105: 0 | EI105: 0 | EV105: 0 | FL105: 0 | FM105: 0 | FY105: 2 | GG105: 7
C106: De 3 año (MMN) | R106: 1 | AD106: 0 | AE106: 0 | AU106: 0 | AV106: 0 | BJ106: 0 | BK106: 1 | BY106: 0 | CM106: 0 | CN106: 1 | DD106: 0 | DS106: 1 | EI106: 1 | EV106: 0 | FL106: 0 | FM106: 0 | FY106: 0 | GG106: 3
C107: De 4 año (MMN) | R107: 0 | AD107: 0 | AE107: 0 | AU107: 0 | AV107: 0 | BJ107: 0 | BK107: 0 | BY107: 0 | CM107: 0 | CN107: 0 | DD107: 0 | DS107: 0 | EI107: 0 | EV107: 0 | FL107: 0 | FM107: 0 | FY107: 0 | GG107: 3
B110: Polimaltosado
B112: ACTIVIDADES | P112: DOSIS
P113: 1º | AC113: 2º | AT113: 3º | BI113: 4º | BV113: 5º | CK113: 6º | DB113: 7º | DR113: 8º | EH113: 9º | ET113: 10º | FK113: 11º | FX113: 12º | GF113: TA
B114: < 06 meses (BPN y Prematuros) | P114: 1 | AC114: 0 | AT114: 0 | BI114: 0 | BV114: 0 | CK114: 0 | DB114: 0 | DR114: 0 | EH114: 0 | ET114: 0 | FK114: 0 | FX114: 0 | GF114: 0 | GP114: 0
B115: De 4 a 5 meses | P115: 133 | AC115: 42 | AT115: 0 | BI115: 0 | BV115: 0 | CK115: 0 | DB115: 0 | DR115: 0 | EH115: 0 | ET115: 0 | FK115: 0 | FX115: 0 | GF115: 0 | GP115: 0
B116: De 6 a 11 meses | P116: 100 | AC116: 65 | AT116: 39 | BI116: 24 | BV116: 31 | CK116: 17 | DB116: 0 | DR116: 0 | EH116: 0 | ET116: 0 | FK116: 0 | FX116: 0 | GF116: 0 | GP116: 0
B117: De 1 año | P117: 19 | AC117: 14 | AT117: 28 | BI117: 24 | BV117: 21 | CK117: 18 | DB117: 20 | DR117: 16 | EH117: 10 | ET117: 10 | FK117: 10 | FX117: 8 | GF117: 0 | GP117: 0
B118: De 2 años | P118: 6 | AC118: 2 | AT118: 4 | BI118: 6 | BV118: 2 | CK118: 4 | DB118: 4 | DR118: 3 | EH118: 7 | ET118: 2 | FK118: 5 | FX118: 6 | GF118: 0 | GP118: 0
B119: De 3 años | P119: 0 | AC119: 0 | AT119: 1 | BI119: 1 | BV119: 0 | CK119: 0 | DB119: 0 | DR119: 2 | EH119: 0 | ET119: 0 | FK119: 2 | FX119: 2 | GF119: 0 | GP119: 0
B120: De 4 años | P120: 0 | AC120: 0 | AT120: 0 | BI120: 0 | BV120: 0 | CK120: 0 | DB120: 0 | DR120: 0 | EH120: 0 | ET120: 1 | FK120: 0 | FX120: 1 | GF120: 0 | GP120: 0
C123: B) Vitamina "A"
Q125: 06 meses | AU125: 01 año | BY125: 02 años | DD125: 03 años | EI125: 04 años
C126: Dosis | Q126: 1º Dosis | AD126: 2º Dosis | AU126: 1º Dosis | BJ126: 2º Dosis | BY126: 1º Dosis | CN126: 2º Dosis | DD126: 1º Dosis | DS126: 2º Dosis | EI126: 1º Dosis | EV126: 2º Dosis
C127: Suplementados | Q127: 0 | AD127: 0 | AU127: 0 | BJ127: 0 | BY127: 0 | CM127: 0 | CN127: 0 | DD127: 0 | DS127: 0 | EI127: 0 | EV127: 0
C130: VI. LACTANCIA MATERNA EXCLUSIVA
C132: Condición | Q132: Nº
C133: Niños con LME a los 06 meses | Q133: 30
C135: VII. ALIMENTACIÓN COMPLEMENTARIA
C137: Condición | CA137: Nº
C138: Niños con Inicio de Alimentación Complementaria antes de los 06 meses | CA138: 11
C139: Niños con Inicio de Alimentación Complementaria después de los 06 meses | CA139: 16
C140: Niños con Inicio de Alimentación Complementaria Adecuada | CA140: 237
C141: Niños con Inicio de Alimentación Complementaria Inadecuada | CA141: 0
C144: VIII. EVALUACION DEL ESTADO NUTRICIONAL
C146: A) En el Recién Nacido de 01 día a 28 días
C148: Clasificación | O148: Dx | BP148: Nº
C149: RN Bajo Peso Recuperados | O149: RN Bajo Peso Recuperados | BP149: 0
C150: Peso al Nacer | O150: Extremadamente bajo | BP150: 0
O151: Muy bajo peso al nacer | BP151: 0
O152: Bajo peso al nacer | BP152: 0
O153: Normal | BP153: 88
O154: Macrosómico | BP154: 0
C155: Ganancia de Peso / Talla | O155: Ganancia Inadecuada de Peso Dx. | BP155: 0
O156: Ganancia Inadecuada de Peso Recup. | BP156: 0
O157: Ganancia Inadecuada de Talla Dx. | BP157: 0
O158: Ganancia Inadecuada de Talla Recup. | BP158: 0
C160: B) En los Niños y Niñas de 29 días a < 05 años
C162: Grupo de Edad | E162: Ganancia Inadecuada de Peso o Talla | BB162: Normal
E163: Peso | S163: Talla | BB163: Normal
E164: Dx. | L164: Recup. | S164: Dx. | AI164: Recup. | BB164: Normal
C165: < 1 año | E165: 14 | L165: 3 | S165: 25 | AI165: 3 | BB165: 744
C166: 1 año | E166: 19 | L166: 0 | S166: 22 | AI166: 0 | BB166: 279
C167: 2 años | E167: 7 | L167: 1 | S167: 10 | AI167: 0 | BB167: 163
C168: 3 años | E168: 3 | L168: 0 | S168: 5 | AI168: 0 | BB168: 128
C169: 4 años | E169: 3 | L169: 0 | S169: 2 | AI169: 0 | BB169: 98
C172: Grupo de Edad | D172: Peso para la Edad (PE) | BC172: Peso para la Edad (TP) | GI172: Talla para la Edad (TE)
D173: Sobrepeso | T173: Desnutrición | BC173: Obesidad | CP173: Sobrepeso | EC173: Desnutrición Aguda | FG173: Desnutrición Severa | GI173: Alto | HB173: Talla Baja
D174: Dx. | L174: Recup. | T174: Dx. | AJ174: Recup. | BC174: Dx. | BW174: Recup. | CP174: Dx. | DI174: Recup. | EC174: Dx. | EQ174: Recup. | FG174: Dx. | FU174: Recup. | GI174: Dx. | GV174: Recup. | HB174: Dx. | HI174: Recup.
C175: < 1 año | D175: 11 | L175: 0 | T175: 11 | AJ175: 0 | BC175: 6 | BW175: 0 | CP175: 71 | DI175: 0 | EC175: 5 | EQ175: 0 | FG175: 2 | FU175: 0 | GI175: 13 | GV175: 0 | HB175: 24 | HI175: 0
C176: 1 año | D176: 6 | L176: 0 | T176: 5 | AJ176: 0 | BC176: 4 | BW176: 0 | CP176: 20 | DI176: 0 | EC176: 2 | EQ176: 0 | FG176: 3 | FU176: 0 | GI176: 2 | GV176: 0 | HB176: 15 | HI176: 0
C177: 2 años | D177: 7 | L177: 0 | T177: 4 | AJ177: 0 | BC177: 5 | BW177: 0 | CP177: 20 | DI177: 0 | EC177: 0 | EQ177: 0 | FG177: 1 | FU177: 0 | GI177: 4 | GV177: 0 | HB177: 8 | HI177: 0
C178: 3 años | D178: 6 | L178: 0 | T178: 2 | AJ178: 0 | BC178: 3 | BW178: 0 | CP178: 11 | DI178: 0 | EC178: 1 | EQ178: 0 | FG178: 1 | FU178: 0 | GI178: 1 | GV178: 0 | HB178: 3 | HI178: 0
C179: 4 años | D179: 3 | L179: 0 | T179: 1 | AJ179: 0 | BC179: 2 | BW179: 0 | CP179: 9 | DI179: 0 | EC179: 0 | EQ179: 0 | FG179: 1 | FU179: 0 | GI179: 0 | GV179: 0 | HB179: 2 | HI179: 0
C182: C) En los Niños y Niñas de 05 a 11 años
C184: Grupo de Edad | E184: Índice de Masa Cororal (IMC) | DY184: Talla para la Edad (TE) | HA184: Normal
E185: Obesidad | S185: Sobrepeso | BB185: Delgadez | CO185: Delgadez Severa | DY185: Alto | FF185: Talla Baja | GE185: Talla Baja Severa | HA185: Normal
E186: Dx. | L186: Recup. | S186: Dx. | AI186: Recup. | BB186: Dx. | BT186: Recup. | CO186: Dx. | DE186: Recup. | DY186: Dx. | EN186: Recup. | FF186: Dx. | FR186: Recup. | GE186: Dx. | GS186: Recup. | HA186: Normal
C187: 05 a 11 años | E187: 13 | L187: 0 | S187: 20 | AI187: 1 | BB187: 0 | BS187: 0 | BT187: 0 | CO187: 0 | DE187: 0 | DY187: 3 | EN187: 0 | FF187: 0 | FR187: 0 | GE187: 0 | GS187: 0 | HA187: 60
C189: IX. EVALUACION DEL DESARROLLO
C191: Grupo de Edad | D191: Trastorno del Desarrollo | GJ191: Evaluac. Normal
D192: Lenguaje | U192: Motora | BD192: Social | CQ192: Coordinación | ED192: Cognitiva | FH192: Con + de 1 Trastorno | GJ192: Evaluac. Normal
D193: Dx. | L193: Recup. | U193: Dx. | AK193: Recup. | BD193: Dx. | BX193: Recup. | CQ193: Dx. | DJ193: Recup. | ED193: Dx. | ER193: Recup. | FH193: Dx. | FV193: Recup. | GJ193: Evaluac. Normal
C194: < 1 año | D194: 0 | L194: 0 | T194: 0 | U194: 0 | AJ194: 0 | AK194: 0 | BC194: 0 | BD194: 0 | BW194: 0 | BX194: 0 | CP194: 0 | CQ194: 0 | DI194: 0 | DJ194: 0 | EC194: 0 | ED194: 0 | EQ194: 0 | ER194: 0 | FG194: 0 | FH194: 0 | FU194: 0 | FV194: 0 | GI194: 0 | GJ194: 651
C195: 1 año | D195: 3 | L195: 0 | T195: 0 | U195: 0 | AJ195: 0 | AK195: 0 | BC195: 0 | BD195: 0 | BW195: 0 | BX195: 0 | CP195: 0 | CQ195: 0 | DI195: 0 | DJ195: 0 | EC195: 0 | ED195: 0 | EQ195: 0 | ER195: 0 | FG195: 0 | FH195: 0 | FU195: 0 | FV195: 0 | GI195: 0 | GJ195: 250
C196: 2 años | D196: 0 | L196: 0 | T196: 0 | U196: 0 | AJ196: 0 | AK196: 0 | BC196: 0 | BD196: 0 | BW196: 0 | BX196: 0 | CP196: 0 | CQ196: 0 | DI196: 0 | DJ196: 0 | EC196: 0 | ED196: 0 | EQ196: 0 | ER196: 0 | FG196: 0 | FH196: 0 | FU196: 0 | FV196: 0 | GI196: 0 | GJ196: 146
C199: Grupo de Edad | D199: Déficit del Desarrollo | GJ199: Evaluac. Normal
D200: Lenguaje | U200: Motora | BD200: Social | CQ200: Coordinación | ED200: Cognitiva | FH200: Más de 1 Déficit | GJ200: Evaluac. Normal
D201: Dx. | L201: Recup. | U201: Dx. | AK201: Recup. | BD201: Dx. | BX201: Recup. | CQ201: Dx. | DJ201: Recup. | ED201: Dx. | ER201: Recup. | FH201: Dx. | FV201: Recup. | GJ201: Evaluac. Normal
C202: 03 años | D202: 0 | L202: 0 | T202: 0 | U202: 0 | AJ202: 0 | AK202: 0 | BC202: 0 | BD202: 0 | BW202: 0 | BX202: 0 | CP202: 0 | CQ202: 0 | DI202: 0 | DJ202: 0 | EC202: 0 | ED202: 0 | EQ202: 0 | ER202: 0 | FG202: 0 | FH202: 1 | FU202: 0 | FV202: 0 | GI202: 0 | GJ202: 104
C203: 04 años | D203: 0 | L203: 0 | T203: 0 | U203: 0 | AJ203: 0 | AK203: 0 | BC203: 0 | BD203: 0 | BW203: 0 | BX203: 0 | CP203: 0 | CQ203: 0 | DI203: 0 | DJ203: 0 | EC203: 0 | ED203: 0 | EQ203: 0 | ER203: 0 | FG203: 0 | FH203: 0 | FU203: 0 | FV203: 0 | GI203: 0 | GJ203: 85
C205: X. PLAN DE ATENCION INTEGRAL
C207: Edades | F207: RN | M207: <1 año | V207: 01 año | AL207: 02 años | BE207: 03 años | BZ207: 04 años | CR207: 05 años | DK207: 06 años | EE207: 07 años | ES207: 08 años | FI207: 09 años | FW207: 10 años | GK207: 11 años
C208: Elaborado | F208: 87 | M208: 105 | V208: 106 | AL208: 74 | BE208: 67 | BZ208: 56 | CR208: 10 | DK208: 3 | EE208: 4 | ES208: 5 | FI208: 6 | FW208: 5 | GK208: 4
C209: Ejecutado | F209: 42 | M209: 63 | V209: 33 | AL209: 37 | BE209: 28 | BZ209: 17 | CR209: 22 | DK209: 6 | EE209: 6 | ES209: 8 | FI209: 8 | FW209: 7 | GK209: 7
C212: XI. CONSEJERÍA
C214: Tipos / Edades | AH214: TOTAL | AX214: RN | BN214: <1 año | CI214: 01 año | DC214: 02 años | DX214: 03 años | EL214: 04 años | FE214: 05 - 11 a
C215: Nutricional por Suplementación | AH215: 8 | AX215: 0 | BN215: 0 | CI215: 1 | DC215: 5 | DX215: 1 | EL215: 1 | FE215: 0
C216: Nutricional por Eval. PE, TP, TE, IMC | AH216: 2092 | AX216: 24 | BN216: 1023 | CI216: 628 | DC216: 208 | DX216: 86 | EL216: 38 | FE216: 85
C217: Integral por Eval. del Desarrollo | AH217: 0 | AX217: 0 | BN217: 0 | CI217: 0 | DC217: 0 | DX217: 0 | EL217: 0 | FE217: 0
C218: Integral por Aliment. Complement. | AH218: 0 | AX218: 0 | BN218: 0 | CI218: 0 | DC218: 0 | DX218: 0 | EL218: 0 | FE218: 0
C221: XII. VISITA DOMICILIARIA
C223: Tipos de Visita / Edades | AH223: TOTAL | AX223: RN | BN223: <1 año | CI223: 01 año | DC223: 02 años | DX223: 03 años | EL223: 04 años | FE223: 05 - 11 a
C224: Seguimiento al Control CRED | AH224: 31 | AX224: 0 | BN224: 17 | CI224: 10 | DC224: 2 | DX224: 1 | EL224: 0 | FE224: 1
C225: Seguimiento a Problemas Nutricionales | AH225: 0 | AX225: 0 | BN225: 0 | CI225: 0 | DC225: 0 | DX225: 0 | EL225: 0 | FE225: 0
C226: Seguimiento a Problemas del Desarrollo | AH226: 0 | AX226: 0 | BN226: 0 | CI226: 0 | DC226: 0 | DX226: 0 | EL226: 0 | FE226: 0
C227: Entrega de Suplementación | AH227: 23 | AX227: 0 | BN227: 9 | CI227: 8 | DC227: 4 | DX227: 1 | EL227: 1 | FE227: 0
C228: Verificación de Consumo de Micronutrientes | AH228: 27 | AX228: 0 | BN228: 23 | CI228: 2 | DC228: 0 | DX228: 2 | EL228: 0 | FE228: 0
C229: Seguimiento de IRA | AH229: 0 | AX229: 0 | BN229: 0 | CI229: 0 | DC229: 0 | DX229: 0 | EL229: 0 | FE229: 0
C230: Seguimiento de EDA | AH230: 0 | AX230: 0 | BN230: 0 | CI230: 0 | DC230: 0 | DX230: 0 | EL230: 0 | FE230: 0
C231: Seguimiento de Anemia | AH231: 57 | AX231: 0 | BN231: 12 | CI231: 30 | DC231: 9 | DX231: 5 | EL231: 1 | FE231: 0
C234: XIII. ESTIMULACION TEMPRANA
C236: Edad | G236: 1º | N236: 2º | AF236: 3º | AW236: 4º | BM236: 5º | CD236: 6º
C237: Recién Nacido | G237: 62 | N237: 0 | AF237: 0 | AW237: 0 | BM237: 0 | CD237: 0
C238: < 01 año | G238: 119 | N238: 80 | AF238: 69 | AW238: 51 | BM238: 58 | CD238: 41
C239: 01 año | G239: 69 | N239: 19 | AF239: 31 | AW239: 5 | BM239: 0 | CD239: 0
C240: 02 años | G240: 41 | N240: 13 | AF240: 0 | AW240: 0 | BM240: 0 | CD240: 0
C241: 03 años | G241: 12 | N241: 0 | AF241: 0 | AW241: 0 | BM241: 0 | CD241: 0
C243: XIV. ACTIVIDADES EXTRAMURALES, MASIVAS Y DE GESTIÓN
C245: Unidad Medida | G245: Actividad Extramural | BA245: Actividades de Gestión
G246: Sesiones Demostrativas | W246: Sesiones Educativas | BA246: Evaluación | CJ246: Supervisión | DQ246: Asistencia Técnica | EU246: Reu.Téc: Personal de Salud | FZ246: Reu.Téc: Agente Com. de Salud
C247: Actividades | G247: 3 | W247: 15 | BA247: 0 | CJ247: 3 | DQ247: 4 | EU247: 0 | FZ247: 0
C248: Participantes | G248: 6 | W248: 220 | BA248: 0 | CJ248: 3 | DQ248: 4 | EU248: 0 | FZ248: 0
C250: XV. ATENCION DE LAS ENFERMEDADES PREVALENTES DE LA INFANCIA
C252: A. INFECCIÓN RESPIRATORIA AGUDA
C254: DIAGNÓSTICOS | CX254: Grupo Edad
CX255: < 29 Días | EA255: 29 d a 59 Días | EX255: 02 - 11 Meses | GB255: 01 - 04 Años | GO255: 05 - 11 Años | HE255: TOTAL
C256: 1.1 N° casos de IRA sin complicaciones (a+b+c+d+e) | AH256: a. Infección Respiratoria Aguda (IRA) no complicada | CX256: 7 | DZ256: 0 | EA256: 15 | EW256: 0 | EX256: 135 | GA256: 0 | GB256: 182 | GN256: 0 | GO256: 99 | HD256: 0 | HE256: 438
AH257: b. Faringoamigdalitis Aguda | CX257: 5 | DZ257: 0 | EA257: 1 | EW257: 0 | EX257: 58 | GA257: 0 | GB257: 107 | GN257: 0 | GO257: 62 | HD257: 0 | HE257: 233
AH258: c. Otitis Media Aguda (OMA) | CX258: 0 | DZ258: 0 | EA258: 0 | EW258: 0 | EX258: 2 | GA258: 0 | GB258: 1 | GN258: 0 | GO258: 0 | HD258: 0 | HE258: 3
AH259: d. Sinusitis Aguda | CX259: 0 | DZ259: 0 | EA259: 0 | EW259: 0 | EX259: 0 | GA259: 0 | GB259: 0 | GN259: 0 | GO259: 0 | HD259: 0 | HE259: 0
AH260: e. Neumonía sin complicaciones | CX260: 0 | DZ260: 0 | EA260: 0 | EW260: 0 | EX260: 0 | GA260: 0 | GB260: 0 | GN260: 0 | GO260: 0 | HD260: 0 | HE260: 0
C261: 1.2 N° casos IRA con complicaciones (a+b+c) | AH261: a. Infecciones Respiratorias Agudas con complicaciones | CX261: 0 | DZ261: 0 | EA261: 0 | EW261: 0 | EX261: 0 | GA261: 0 | GB261: 0 | GN261: 0 | GO261: 0 | HD261: 0 | HE261: 0
AH262: b. Neumonía Grave o Enfermedad Muy Grave en Niños Menores de 2 Meses | CX262: 1 | DZ262: 0 | EA262: 0 | EW262: 0 | EX262: 0 | GA262: 0 | GB262: 0 | GN262: 0 | GO262: 0 | HD262: 0 | HE262: 1
AH263: c. Neumonía y Enfermedad Muy Grave en Niños de 2 Meses a 4 Años | CX263: 0 | DZ263: 0 | EA263: 0 | EW263: 0 | EX263: 1 | GA263: 0 | GB263: 1 | GN263: 0 | GO263: 0 | HD263: 0 | HE263: 2
C266: DIAGNÓSTICOS | CW266: < 29 Días | DZ266: 29 d a 59 Días | EW266: 02 - 11 Meses | GA266: 12 - 23 Meses | GN266: 02- 02 Años con 11 Meses | HD266: 03 - 04 Años | HM266: 05 - 11 Años | HR266: TOTAL
C267: 1.3 SOB/Asma | AH267: a. SOB/Asma | CW267: 0 | DZ267: 0 | EW267: 17 | GA267: 4 | GN267: 2 | HD267: 6 | HM267: 8 | HR267: 37
C269: B. ENFERMEDAD DIARREICA AGUDA
C271: DIAGNÓSTICOS | CW271: Grupo Edad
CW272: < 01 Año | DZ272: 01 - 04 Años | EW272: 05 - 11 Años | GA272: TOTAL
C273: 1. Enfermedades Diarreicas sin complicaciones ( a + b + c) | AH273: a. Diarrea Aguda Acuosa sin deshidratación | CW273: 27 | DZ273: 34 | EW273: 10 | GA273: 71
... 29 more rows

Sheet JULIO
AZ3: REPORTE MENSUAL DE ACTIVIDADES ATENCIÓN INTEGRAL DE SALUD DEL NIÑO
B5: Periodo: Julio - 2020
B6: Diresa/Red/M.Red/EE.SS: AREQUIPA/AREQUIPA CAYLLOMA/VICTOR RAUL HINOJOZA/TODOS LOS EE.SS
C9: I. ATENCIÓN DEL RECIÉN NACIDO
C11: A) Atención Inmediata
C13: ACTIVIDADES | X13: Nº
C14: Atención Inmediata
C15: Tamizaje Neonatal (Enfermed. Metabólicas)
C16: Tamizaje Visual y Auditivo
C17: Contacto Piel a Piel con la madre
C18: Alojamiento Conjunto
C19: Lactancia Materna en la 1º Hora
C21: B) Resultados del Tamizaje Neonatal
C23: DIAGNÓSTICOS | X23: Nº
C24: Hipotiroidismo Congénito
C25: Fenilcetonuria
C26: Galactosemia
C27: Hiperplasia Suprarrenal Congénita
C28: Fibrosis Quística
C29: Catarata Congénita
C30: Hipoacusia (todas las clasificaciones)
C33: D) Morbilidad Neonatal
C35: CAUSAS DE MORBILIDAD | Z35: Nº
C36: Síndrome de Dristres Respiratorio
C37: Síndromes de Aspiración Neonatal
C38: Asfixia Neonatal
C39: Sepsis Neonatal
C40: Ictericia | Z40: 1
C41: Hipoglucemia
C42: Sífilis Congénita
C43: VIH Expuesto
C44: Retinopatía de la Prematuridad
C47: II. CONTROL DE CRECIMIENTO Y DESARROLLO
C49: Grupo de Edad | K49: Número de Controles
K50: 1º | R50: 2º | AB50: 3º | AS50: 4º | BG50: 5º | BR50: 6º | CH50: 7º | CZ50: 8º | DN50: 9º | EG50: 10º | EP50: 11º | FD50: SN | FO50: TOTAL
C51: De 1d a 7d
C52: De 8d a 14d
C53: De 15d a 21d
C54: De 22d a +d
C55: 29 días - 11 meses
C56: 01 año
C57: 02 años
C58: 03 años
C59: 04 años
C60: 05 a 11 años
C63: Evaluación del Estado Nutricional Antropométricas (Por personal técnico)
C65: Grupo de Edad | J65: Número de Evaluaciones Antropométricas
J66: 1º | Q66: 2º | AA66: 3º | AR66: 4º | BF66: 5º | BQ66: 6º | CG66: 7º | CY66: 8º | DM66: 9º | EF66: 10º | EO66: 11º | FC66: SN | FN66: TOTAL
C67: De 1d a 7d
C68: De 8d a 14d
C69: De 15d a 21d
C70: De 22d a +d
C71: 29 días - 11 meses
C72: 01 año
C73: 02 años
C74: 03 años
C75: 04 años
C76: 05 a 11 años
C79: III. TAMIZAJE
C81: ACTIVIDADES | AO81: 01m* | AZ81: 06m | BO81: 01 a | CE81: 02 a | CV81: 03 a | DL81: 04 a | EB81: 05 -11 a | EM81: TOTAL
C82: Detección de Anemia | I82: Solicitud de Dosaje de Hb
I83: Resultados Evaluados | BO83: 10 | CV83: 1 | DL83: 1 | EM83: 12
C84: Descarte de Parasitosis | I84: Solicitud de Examen
I85: Resultados Evaluados
C88: IV. ADMINISTRACIÓN DE PROFILAXIS ANTIPARASITARIA
C90: ACTIVIDADES | AH90: DOSIS
AH91: 01 año | CC91: 02 años | DP91: 03 años | EZ91: 04 años | GL91: 05 - 11 años
AH92: 1º | AZ92: 2º | CC92: 1º | CU92: 2º | DP92: 1º | EK92: 2º | EZ92: 1º | FQ92: 2º | GL92: 1º | GZ92: 2º
C93: Administración de Profilaxis Antiparasitaria
C95: IV. ADMINISTRACIÓN DE PROFILAXIS ANTIPARASITARIA
C97: A) Sulfato Ferroso y Multimicronutriente (en polvo)
C99: ACTIVIDADES | R99: DOSIS
R100: 1º | AE100: 2º | AV100: 3º | BK100: 4º | BY100: 5º | CN100: 6º | DD100: 7º | DS100: 8º | EI100: 9º | EV100: 10º | FM100: 11º | FY100: 12º | GG100: TA
C101: < 06 meses (BPN y Prematuros (SF))
C102: De 4 a 5 meses (Sulfato Ferroso)
C103: De 6 a 11 meses (MMN) | BK103: 1 | BY103: 2
C104: De 1 año (MMN) | BY104: 2
C105: De 2 año (MMN)
C106: De 3 año (MMN)
C107: De 4 año (MMN)
B110: Polimaltosado
B112: ACTIVIDADES | P112: DOSIS
P113: 1º | AC113: 2º | AT113: 3º | BI113: 4º | BV113: 5º | CK113: 6º | DB113: 7º | DR113: 8º | EH113: 9º | ET113: 10º | FK113: 11º | FX113: 12º | GF113: TA
B114: < 06 meses (BPN y Prematuros)
B115: De 4 a 5 meses | P115: 2 | AC115: 3
B116: De 6 a 11 meses | P116: 10 | AC116: 3 | AT116: 2
B117: De 1 año | P117: 2 | AT117: 3 | BI117: 2
B118: De 2 años | BV118: 1
B119: De 3 años | CK119: 1
B120: De 4 años
C123: B) Vitamina "A"
Q125: 06 meses | AU125: 01 año | BY125: 02 años | DD125: 03 años | EI125: 04 años
C126: Dosis | Q126: 1º Dosis | AD126: 2º Dosis | AU126: 1º Dosis | BJ126: 2º Dosis | BY126: 1º Dosis | CN126: 2º Dosis | DD126: 1º Dosis | DS126: 2º Dosis | EI126: 1º Dosis | EV126: 2º Dosis
C127: Suplementados
C130: VI. LACTANCIA MATERNA EXCLUSIVA
C132: Condición | Q132: Nº
C133: Niños con LME a los 06 meses
C135: VII. ALIMENTACIÓN COMPLEMENTARIA
C137: Condición | CA137: Nº
C138: Niños con Inicio de Alimentación Complementaria antes de los 06 meses
C139: Niños con Inicio de Alimentación Complementaria después de los 06 meses
C140: Niños con Inicio de Alimentación Complementaria Adecuada
C141: Niños con Inicio de Alimentación Complementaria Inadecuada
C144: VIII. EVALUACION DEL ESTADO NUTRICIONAL
C146: A) En el Recién Nacido de 01 día a 28 días
C148: Clasificación | O148: Dx | BP148: Nº
C149: RN Bajo Peso Recuperados | O149: RN Bajo Peso Recuperados
C150: Peso al Nacer | O150: Extremadamente bajo
O151: Muy bajo peso al nacer
O152: Bajo peso al nacer
O153: Normal
O154: Macrosómico
C155: Ganancia de Peso / Talla | O155: Ganancia Inadecuada de Peso Dx.
O156: Ganancia Inadecuada de Peso Recup.
O157: Ganancia Inadecuada de Talla Dx.
O158: Ganancia Inadecuada de Talla Recup.
C160: B) En los Niños y Niñas de 29 días a < 05 años
C162: Grupo de Edad | E162: Ganancia Inadecuada de Peso o Talla | BB162: Normal
E163: Peso | S163: Talla | BB163: Normal
E164: Dx. | L164: Recup. | S164: Dx. | AI164: Recup. | BB164: Normal
C165: < 1 año
C166: 1 año | BB166: 2
C167: 2 años
C168: 3 años
C169: 4 años
C172: Grupo de Edad | D172: Peso para la Edad (PE) | BC172: Peso para la Edad (TP) | GI172: Talla para la Edad (TE)
D173: Sobrepeso | T173: Desnutrición | BC173: Obesidad | CP173: Sobrepeso | EC173: Desnutrición Aguda | FG173: Desnutrición Severa | GI173: Alto | HB173: Talla Baja
D174: Dx. | L174: Recup. | T174: Dx. | AJ174: Recup. | BC174: Dx. | BW174: Recup. | CP174: Dx. | DI174: Recup. | EC174: Dx. | EQ174: Recup. | FG174: Dx. | FU174: Recup. | GI174: Dx. | GV174: Recup. | HB174: Dx. | HI174: Recup.
C175: < 1 año
C176: 1 año
C177: 2 años
C178: 3 años
C179: 4 años
C182: C) En los Niños y Niñas de 05 a 11 años
C184: Grupo de Edad | E184: Índice de Masa Cororal (IMC) | DY184: Talla para la Edad (TE) | HA184: Normal
E185: Obesidad | S185: Sobrepeso | BB185: Delgadez | CO185: Delgadez Severa | DY185: Alto | FF185: Talla Baja | GE185: Talla Baja Severa | HA185: Normal
E186: Dx. | L186: Recup. | S186: Dx. | AI186: Recup. | BB186: Dx. | BT186: Recup. | CO186: Dx. | DE186: Recup. | DY186: Dx. | EN186: Recup. | FF186: Dx. | FR186: Recup. | GE186: Dx. | GS186: Recup. | HA186: Normal
C187: 05 a 11 años
C189: IX. EVALUACION DEL DESARROLLO
C191: Grupo de Edad | D191: Trastorno del Desarrollo | GJ191: Evaluac. Normal
D192: Lenguaje | U192: Motora | BD192: Social | CQ192: Coordinación | ED192: Cognitiva | FH192: Con + de 1 Trastorno | GJ192: Evaluac. Normal
D193: Dx. | L193: Recup. | U193: Dx. | AK193: Recup. | BD193: Dx. | BX193: Recup. | CQ193: Dx. | DJ193: Recup. | ED193: Dx. | ER193: Recup. | FH193: Dx. | FV193: Recup. | GJ193: Evaluac. Normal
C194: < 1 año
C195: 1 año
C196: 2 años
C199: Grupo de Edad | D199: Déficit del Desarrollo | GJ199: Evaluac. Normal
D200: Lenguaje | U200: Motora | BD200: Social | CQ200: Coordinación | ED200: Cognitiva | FH200: Más de 1 Déficit | GJ200: Evaluac. Normal
D201: Dx. | L201: Recup. | U201: Dx. | AK201: Recup. | BD201: Dx. | BX201: Recup. | CQ201: Dx. | DJ201: Recup. | ED201: Dx. | ER201: Recup. | FH201: Dx. | FV201: Recup. | GJ201: Evaluac. Normal
C202: 03 años
C203: 04 años
C205: X. PLAN DE ATENCION INTEGRAL
C207: Edades | F207: RN | M207: <1 año | V207: 01 año | AL207: 02 años | BE207: 03 años | BZ207: 04 años | CR207: 05 años | DK207: 06 años | EE207: 07 años | ES207: 08 años | FI207: 09 años | FW207: 10 años | GK207: 11 años
C208: Elaborado
C209: Ejecutado
C212: XI. CONSEJERÍA
C214: Tipos / Edades | AH214: TOTAL | AX214: RN | BN214: <1 año | CI214: 01 año | DC214: 02 años | DX214: 03 años | EL214: 04 años | FE214: 05 - 11 a
C215: Nutricional por Suplementación
C216: Nutricional por Eval. PE, TP, TE, IMC | AH216: 56 | BN216: 26 | CI216: 22 | DC216: 5 | DX216: 1 | EL216: 1 | FE216: 1
C217: Integral por Eval. del Desarrollo
C218: Integral por Aliment. Complement.
C221: XII. VISITA DOMICILIARIA
C223: Tipos de Visita / Edades | AH223: TOTAL | AX223: RN | BN223: <1 año | CI223: 01 año | DC223: 02 años | DX223: 03 años | EL223: 04 años | FE223: 05 - 11 a
C224: Seguimiento al Control CRED
C225: Seguimiento a Problemas Nutricionales
C226: Seguimiento a Problemas del Desarrollo
C227: Entrega de Suplementación
C228: Verificación de Consumo de Micronutrientes
C229: Seguimiento de IRA
C230: Seguimiento de EDA
C231: Seguimiento de Anemia
C234: XIII. ESTIMULACION TEMPRANA
C236: Edad | G236: 1º | N236: 2º | AF236: 3º | AW236: 4º | BM236: 5º | CD236: 6º
C237: Recién Nacido
C238: < 01 año
C239: 01 año
C240: 02 años
C241: 03 años
C243: XIV. ACTIVIDADES EXTRAMURALES, MASIVAS Y DE GESTIÓN
C245: Unidad Medida | G245: Actividad Extramural | BA245: Actividades de Gestión
G246: Sesiones Demostrativas | W246: Sesiones Educativas | BA246: Evaluación | CJ246: Supervisión | DQ246: Asistencia Técnica | EU246: Reu.Téc: Personal de Salud | FZ246: Reu.Téc: Agente Com. de Salud
C247: Actividades
C248: Participantes
C250: XV. ATENCION DE LAS ENFERMEDADES PREVALENTES DE LA INFANCIA
C252: A. INFECCIÓN RESPIRATORIA AGUDA
C254: DIAGNÓSTICOS | CX254: Grupo Edad
CX255: < 29 Días | EA255: 29 d a 59 Días | EX255: 02 - 11 Meses | GB255: 01 - 04 Años | GO255: 05 - 11 Años | HE255: TOTAL
C256: 1.1 N° casos de IRA sin complicaciones (a+b+c+d+e) | AH256: a. Infección Respiratoria Aguda (IRA) no complicada | CX256: 1 | EX256: 2 | GB256: 9 | GO256: 4 | HE256: 16
AH257: b. Faringoamigdalitis Aguda | EX257: 1 | GB257: 3 | GO257: 5 | HE257: 9
AH258: c. Otitis Media Aguda (OMA)
AH259: d. Sinusitis Aguda
AH260: e. Neumonía sin complicaciones | GB260: 1 | HE260: 1
C261: 1.2 N° casos IRA con complicaciones (a+b+c) | AH261: a. Infecciones Respiratorias Agudas con complicaciones
AH262: b. Neumonía Grave o Enfermedad Muy Grave en Niños Menores de 2 Meses
AH263: c. Neumonía y Enfermedad Muy Grave en Niños de 2 Meses a 4 Años
C266: DIAGNÓSTICOS | CW266: < 29 Días | DZ266: 29 d a 59 Días | EW266: 02 - 11 Meses | GA266: 12 - 23 Meses | GN266: 02- 02 Años con 11 Meses | HD266: 03 - 04 Años | HM266: 05 - 11 Años | HR266: TOTAL
C267: 1.3 SOB/Asma | AH267: a. SOB/Asma
C269: B. ENFERMEDAD DIARREICA AGUDA
C271: DIAGNÓSTICOS | CW271: Grupo Edad
CW272: < 01 Año | DZ272: 01 - 04 Años | EW272: 05 - 11 Años | GA272: TOTAL
C273: 1. Enfermedades Diarreicas sin complicaciones ( a + b + c) | AH273: a. Diarrea Aguda Acuosa sin deshidratación | DZ273: 4 | EW273: 3 | GA273: 7
... 29 more rows

Sheet AGOSTO
AZ3: REPORTE MENSUAL DE ACTIVIDADES ATENCIÓN INTEGRAL DE SALUD DEL NIÑO
B5: Periodo: Agosto - 2020
B6: Diresa/Red/M.Red/EE.SS: AREQUIPA/AREQUIPA CAYLLOMA/VICTOR RAUL HINOJOZA/I-3 - 000023488 - CENTRO DE SALUD MENTAL COMUNITARIO SIMON BOLIVAR
C9: I. ATENCIÓN DEL RECIÉN NACIDO
C11: A) Atención Inmediata
C13: ACTIVIDADES | X13: Nº
C14: Atención Inmediata
C15: Tamizaje Neonatal (Enfermed. Metabólicas)
C16: Tamizaje Visual y Auditivo
C17: Contacto Piel a Piel con la madre
C18: Alojamiento Conjunto
C19: Lactancia Materna en la 1º Hora
C21: B) Resultados del Tamizaje Neonatal
C23: DIAGNÓSTICOS | X23: Nº
C24: Hipotiroidismo Congénito
C25: Fenilcetonuria
C26: Galactosemia
C27: Hiperplasia Suprarrenal Congénita
C28: Fibrosis Quística
C29: Catarata Congénita
C30: Hipoacusia (todas las clasificaciones)
C33: D) Morbilidad Neonatal
C35: CAUSAS DE MORBILIDAD | Z35: Nº
C36: Síndrome de Dristres Respiratorio
C37: Síndromes de Aspiración Neonatal
C38: Asfixia Neonatal
C39: Sepsis Neonatal
C40: Ictericia
C41: Hipoglucemia
C42: Sífilis Congénita
C43: VIH Expuesto
C44: Retinopatía de la Prematuridad
C47: II. CONTROL DE CRECIMIENTO Y DESARROLLO
C49: Grupo de Edad | K49: Número de Controles
K50: 1º | R50: 2º | AB50: 3º | AS50: 4º | BG50: 5º | BR50: 6º | CH50: 7º | CZ50: 8º | DN50: 9º | EG50: 10º | EP50: 11º | FD50: SN | FO50: TOTAL
C51: De 1d a 7d
C52: De 8d a 14d
C53: De 15d a 21d
C54: De 22d a +d
C55: 29 días - 11 meses
C56: 01 año
C57: 02 años
C58: 03 años
C59: 04 años
C60: 05 a 11 años
C63: Evaluación del Estado Nutricional Antropométricas (Por personal técnico)
C65: Grupo de Edad | J65: Número de Evaluaciones Antropométricas
J66: 1º | Q66: 2º | AA66: 3º | AR66: 4º | BF66: 5º | BQ66: 6º | CG66: 7º | CY66: 8º | DM66: 9º | EF66: 10º | EO66: 11º | FC66: SN | FN66: TOTAL
C67: De 1d a 7d
C68: De 8d a 14d
C69: De 15d a 21d
C70: De 22d a +d
C71: 29 días - 11 meses
C72: 01 año
C73: 02 años
C74: 03 años
C75: 04 años
C76: 05 a 11 años
C79: III. TAMIZAJE
C81: ACTIVIDADES | AO81: 01m* | AZ81: 06m | BO81: 01 a | CE81: 02 a | CV81: 03 a | DL81: 04 a | EB81: 05 -11 a | EM81: TOTAL
C82: Detección de Anemia | I82: Solicitud de Dosaje de Hb
I83: Resultados Evaluados
C84: Descarte de Parasitosis | I84: Solicitud de Examen
I85: Resultados Evaluados
C88: IV. ADMINISTRACIÓN DE PROFILAXIS ANTIPARASITARIA
C90: ACTIVIDADES | AH90: DOSIS
AH91: 01 año | CC91: 02 años | DP91: 03 años | EZ91: 04 años | GL91: 05 - 11 años
AH92: 1º | AZ92: 2º | CC92: 1º | CU92: 2º | DP92: 1º | EK92: 2º | EZ92: 1º | FQ92: 2º | GL92: 1º | GZ92: 2º
C93: Administración de Profilaxis Antiparasitaria
C95: IV. ADMINISTRACIÓN DE PROFILAXIS ANTIPARASITARIA
C97: A) Sulfato Ferroso y Multimicronutriente (en polvo)
C99: ACTIVIDADES | R99: DOSIS
R100: 1º | AE100: 2º | AV100: 3º | BK100: 4º | BY100: 5º | CN100: 6º | DD100: 7º | DS100: 8º | EI100: 9º | EV100: 10º | FM100: 11º | FY100: 12º | GG100: TA
C101: < 06 meses (BPN y Prematuros (SF))
C102: De 4 a 5 meses (Sulfato Ferroso)
C103: De 6 a 11 meses (MMN)
C104: De 1 año (MMN)
C105: De 2 año (MMN)
C106: De 3 año (MMN)
C107: De 4 año (MMN)
B110: Polimaltosado
B112: ACTIVIDADES | P112: DOSIS
P113: 1º | AC113: 2º | AT113: 3º | BI113: 4º | BV113: 5º | CK113: 6º | DB113: 7º | DR113: 8º | EH113: 9º | ET113: 10º | FK113: 11º | FX113: 12º | GF113: TA
B114: < 06 meses (BPN y Prematuros)
B115: De 4 a 5 meses
B116: De 6 a 11 meses
B117: De 1 año
B118: De 2 años
B119: De 3 años
B120: De 4 años
C123: B) Vitamina "A"
Q125: 06 meses | AU125: 01 año | BY125: 02 años | DD125: 03 años | EI125: 04 años
C126: Dosis | Q126: 1º Dosis | AD126: 2º Dosis | AU126: 1º Dosis | BJ126: 2º Dosis | BY126: 1º Dosis | CN126: 2º Dosis | DD126: 1º Dosis | DS126: 2º Dosis | EI126: 1º Dosis | EV126: 2º Dosis
C127: Suplementados
C130: VI. LACTANCIA MATERNA EXCLUSIVA
C132: Condición | Q132: Nº
C133: Niños con LME a los 06 meses
C135: VII. ALIMENTACIÓN COMPLEMENTARIA
C137: Condición | CA137: Nº
C138: Niños con Inicio de Alimentación Complementaria antes de los 06 meses
C139: Niños con Inicio de Alimentación Complementaria después de los 06 meses
C140: Niños con Inicio de Alimentación Complementaria Adecuada
C141: Niños con Inicio de Alimentación Complementaria Inadecuada
C144: VIII. EVALUACION DEL ESTADO NUTRICIONAL
C146: A) En el Recién Nacido de 01 día a 28 días
C148: Clasificación | O148: Dx | BP148: Nº
C149: RN Bajo Peso Recuperados | O149: RN Bajo Peso Recuperados
C150: Peso al Nacer | O150: Extremadamente bajo
O151: Muy bajo peso al nacer
O152: Bajo peso al nacer
O153: Normal
O154: Macrosómico
C155: Ganancia de Peso / Talla | O155: Ganancia Inadecuada de Peso Dx.
O156: Ganancia Inadecuada de Peso Recup.
O157: Ganancia Inadecuada de Talla Dx.
O158: Ganancia Inadecuada de Talla Recup.
C160: B) En los Niños y Niñas de 29 días a < 05 años
C162: Grupo de Edad | E162: Ganancia Inadecuada de Peso o Talla | BB162: Normal
E163: Peso | S163: Talla | BB163: Normal
E164: Dx. | L164: Recup. | S164: Dx. | AI164: Recup. | BB164: Normal
C165: < 1 año
C166: 1 año
C167: 2 años
C168: 3 años
C169: 4 años
C172: Grupo de Edad | D172: Peso para la Edad (PE) | BC172: Peso para la Edad (TP) | GI172: Talla para la Edad (TE)
D173: Sobrepeso | T173: Desnutrición | BC173: Obesidad | CP173: Sobrepeso | EC173: Desnutrición Aguda | FG173: Desnutrición Severa | GI173: Alto | HB173: Talla Baja
D174: Dx. | L174: Recup. | T174: Dx. | AJ174: Recup. | BC174: Dx. | BW174: Recup. | CP174: Dx. | DI174: Recup. | EC174: Dx. | EQ174: Recup. | FG174: Dx. | FU174: Recup. | GI174: Dx. | GV174: Recup. | HB174: Dx. | HI174: Recup.
C175: < 1 año
C176: 1 año
C177: 2 años
C178: 3 años
C179: 4 años
C182: C) En los Niños y Niñas de 05 a 11 años
C184: Grupo de Edad | E184: Índice de Masa Cororal (IMC) | DY184: Talla para la Edad (TE) | HA184: Normal
E185: Obesidad | S185: Sobrepeso | BB185: Delgadez | CO185: Delgadez Severa | DY185: Alto | FF185: Talla Baja | GE185: Talla Baja Severa | HA185: Normal
E186: Dx. | L186: Recup. | S186: Dx. | AI186: Recup. | BB186: Dx. | BT186: Recup. | CO186: Dx. | DE186: Recup. | DY186: Dx. | EN186: Recup. | FF186: Dx. | FR186: Recup. | GE186: Dx. | GS186: Recup. | HA186: Normal
C187: 05 a 11 años
C189: IX. EVALUACION DEL DESARROLLO
C191: Grupo de Edad | D191: Trastorno del Desarrollo | GJ191: Evaluac. Normal
D192: Lenguaje | U192: Motora | BD192: Social | CQ192: Coordinación | ED192: Cognitiva | FH192: Con + de 1 Trastorno | GJ192: Evaluac. Normal
D193: Dx. | L193: Recup. | U193: Dx. | AK193: Recup. | BD193: Dx. | BX193: Recup. | CQ193: Dx. | DJ193: Recup. | ED193: Dx. | ER193: Recup. | FH193: Dx. | FV193: Recup. | GJ193: Evaluac. Normal
C194: < 1 año
C195: 1 año
C196: 2 años
C199: Grupo de Edad | D199: Déficit del Desarrollo | GJ199: Evaluac. Normal
D200: Lenguaje | U200: Motora | BD200: Social | CQ200: Coordinación | ED200: Cognitiva | FH200: Más de 1 Déficit | GJ200: Evaluac. Normal
D201: Dx. | L201: Recup. | U201: Dx. | AK201: Recup. | BD201: Dx. | BX201: Recup. | CQ201: Dx. | DJ201: Recup. | ED201: Dx. | ER201: Recup. | FH201: Dx. | FV201: Recup. | GJ201: Evaluac. Normal
C202: 03 años
C203: 04 años
C205: X. PLAN DE ATENCION INTEGRAL
C207: Edades | F207: RN | M207: <1 año | V207: 01 año | AL207: 02 años | BE207: 03 años | BZ207: 04 años | CR207: 05 años | DK207: 06 años | EE207: 07 años | ES207: 08 años | FI207: 09 años | FW207: 10 años | GK207: 11 años
C208: Elaborado
C209: Ejecutado
C212: XI. CONSEJERÍA
C214: Tipos / Edades | AH214: TOTAL | AX214: RN | BN214: <1 año | CI214: 01 año | DC214: 02 años | DX214: 03 años | EL214: 04 años | FE214: 05 - 11 a
C215: Nutricional por Suplementación
C216: Nutricional por Eval. PE, TP, TE, IMC
C217: Integral por Eval. del Desarrollo
C218: Integral por Aliment. Complement.
C221: XII. VISITA DOMICILIARIA
C223: Tipos de Visita / Edades | AH223: TOTAL | AX223: RN | BN223: <1 año | CI223: 01 año | DC223: 02 años | DX223: 03 años | EL223: 04 años | FE223: 05 - 11 a
C224: Seguimiento al Control CRED
C225: Seguimiento a Problemas Nutricionales
C226: Seguimiento a Problemas del Desarrollo
C227: Entrega de Suplementación
C228: Verificación de Consumo de Micronutrientes
C229: Seguimiento de IRA
C230: Seguimiento de EDA
C231: Seguimiento de Anemia
C234: XIII. ESTIMULACION TEMPRANA
C236: Edad | G236: 1º | N236: 2º | AF236: 3º | AW236: 4º | BM236: 5º | CD236: 6º
C237: Recién Nacido
C238: < 01 año
C239: 01 año
C240: 02 años
C241: 03 años
C243: XIV. ACTIVIDADES EXTRAMURALES, MASIVAS Y DE GESTIÓN
C245: Unidad Medida | G245: Actividad Extramural | BA245: Actividades de Gestión
G246: Sesiones Demostrativas | W246: Sesiones Educativas | BA246: Evaluación | CJ246: Supervisión | DQ246: Asistencia Técnica | EU246: Reu.Téc: Personal de Salud | FZ246: Reu.Téc: Agente Com. de Salud
C247: Actividades | DQ247: 13
C248: Participantes | DQ248: 16
C250: XV. ATENCION DE LAS ENFERMEDADES PREVALENTES DE LA INFANCIA
C252: A. INFECCIÓN RESPIRATORIA AGUDA
C254: DIAGNÓSTICOS | CX254: Grupo Edad
CX255: < 29 Días | EA255: 29 d a 59 Días | EX255: 02 - 11 Meses | GB255: 01 - 04 Años | GO255: 05 - 11 Años | HE255: TOTAL
C256: 1.1 N° casos de IRA sin complicaciones (a+b+c+d+e) | AH256: a. Infección Respiratoria Aguda (IRA) no complicada
AH257: b. Faringoamigdalitis Aguda
AH258: c. Otitis Media Aguda (OMA)
AH259: d. Sinusitis Aguda
AH260: e. Neumonía sin complicaciones
C261: 1.2 N° casos IRA con complicaciones (a+b+c) | AH261: a. Infecciones Respiratorias Agudas con complicaciones
AH262: b. Neumonía Grave o Enfermedad Muy Grave en Niños Menores de 2 Meses
AH263: c. Neumonía y Enfermedad Muy Grave en Niños de 2 Meses a 4 Años
C266: DIAGNÓSTICOS | CW266: < 29 Días | DZ266: 29 d a 59 Días | EW266: 02 - 11 Meses | GA266: 12 - 23 Meses | GN266: 02- 02 Años con 11 Meses | HD266: 03 - 04 Años | HM266: 05 - 11 Años | HR266: TOTAL
C267: 1.3 SOB/Asma | AH267: a. SOB/Asma
C269: B. ENFERMEDAD DIARREICA AGUDA
C271: DIAGNÓSTICOS | CW271: Grupo Edad
CW272: < 01 Año | DZ272: 01 - 04 Años | EW272: 05 - 11 Años | GA272: TOTAL
C273: 1. Enfermedades Diarreicas sin complicaciones ( a + b + c) | AH273: a. Diarrea Aguda Acuosa sin deshidratación
... 29 more rows

Sheet SETIEMBRE
AZ3: REPORTE MENSUAL DE ACTIVIDADES ATENCIÓN INTEGRAL DE SALUD DEL NIÑO
B5: Periodo: Septiembre - 2020
B6: Diresa/Red/M.Red/EE.SS: AREQUIPA/AREQUIPA CAYLLOMA/VICTOR RAUL HINOJOZA/I-3 - 000023488 - CENTRO DE SALUD MENTAL COMUNITARIO SIMON BOLIVAR
C9: I. ATENCIÓN DEL RECIÉN NACIDO
C11: A) Atención Inmediata
C13: ACTIVIDADES | X13: Nº
C14: Atención Inmediata
C15: Tamizaje Neonatal (Enfermed. Metabólicas)
C16: Tamizaje Visual y Auditivo
C17: Contacto Piel a Piel con la madre
C18: Alojamiento Conjunto
C19: Lactancia Materna en la 1º Hora
C21: B) Resultados del Tamizaje Neonatal
C23: DIAGNÓSTICOS | X23: Nº
C24: Hipotiroidismo Congénito
C25: Fenilcetonuria
C26: Galactosemia
C27: Hiperplasia Suprarrenal Congénita
C28: Fibrosis Quística
C29: Catarata Congénita
C30: Hipoacusia (todas las clasificaciones)
C33: D) Morbilidad Neonatal
C35: CAUSAS DE MORBILIDAD | Z35: Nº
C36: Síndrome de Dristres Respiratorio
C37: Síndromes de Aspiración Neonatal
C38: Asfixia Neonatal
C39: Sepsis Neonatal
C40: Ictericia
C41: Hipoglucemia
C42: Sífilis Congénita
C43: VIH Expuesto
C44: Retinopatía de la Prematuridad
C47: II. CONTROL DE CRECIMIENTO Y DESARROLLO
C49: Grupo de Edad | K49: Número de Controles
K50: 1º | R50: 2º | AB50: 3º | AS50: 4º | BG50: 5º | BR50: 6º | CH50: 7º | CZ50: 8º | DN50: 9º | EG50: 10º | EP50: 11º | FD50: SN | FO50: TOTAL
C51: De 1d a 7d
C52: De 8d a 14d
C53: De 15d a 21d
C54: De 22d a +d
C55: 29 días - 11 meses
C56: 01 año
C57: 02 años
C58: 03 años
C59: 04 años
C60: 05 a 11 años
C63: Evaluación del Estado Nutricional Antropométricas (Por personal técnico)
C65: Grupo de Edad | J65: Número de Evaluaciones Antropométricas
J66: 1º | Q66: 2º | AA66: 3º | AR66: 4º | BF66: 5º | BQ66: 6º | CG66: 7º | CY66: 8º | DM66: 9º | EF66: 10º | EO66: 11º | FC66: SN | FN66: TOTAL
C67: De 1d a 7d
C68: De 8d a 14d
C69: De 15d a 21d
C70: De 22d a +d
C71: 29 días - 11 meses
C72: 01 año
C73: 02 años
C74: 03 años
C75: 04 años
C76: 05 a 11 años
C79: III. TAMIZAJE
C81: ACTIVIDADES | AO81: 01m* | AZ81: 06m | BO81: 01 a | CE81: 02 a | CV81: 03 a | DL81: 04 a | EB81: 05 -11 a | EM81: TOTAL
C82: Detección de Anemia | I82: Solicitud de Dosaje de Hb
I83: Resultados Evaluados
C84: Descarte de Parasitosis | I84: Solicitud de Examen
I85: Resultados Evaluados
C88: IV. ADMINISTRACIÓN DE PROFILAXIS ANTIPARASITARIA
C90: ACTIVIDADES | AH90: DOSIS
AH91: 01 año | CC91: 02 años | DP91: 03 años | EZ91: 04 años | GL91: 05 - 11 años
AH92: 1º | AZ92: 2º | CC92: 1º | CU92: 2º | DP92: 1º | EK92: 2º | EZ92: 1º | FQ92: 2º | GL92: 1º | GZ92: 2º
C93: Administración de Profilaxis Antiparasitaria
C95: IV. ADMINISTRACIÓN DE PROFILAXIS ANTIPARASITARIA
C97: A) Sulfato Ferroso y Multimicronutriente (en polvo)
C99: ACTIVIDADES | R99: DOSIS
R100: 1º | AE100: 2º | AV100: 3º | BK100: 4º | BY100: 5º | CN100: 6º | DD100: 7º | DS100: 8º | EI100: 9º | EV100: 10º | FM100: 11º | FY100: 12º | GG100: TA
C101: < 06 meses (BPN y Prematuros (SF))
C102: De 4 a 5 meses (Sulfato Ferroso)
C103: De 6 a 11 meses (MMN)
C104: De 1 año (MMN)
C105: De 2 año (MMN)
C106: De 3 año (MMN)
C107: De 4 año (MMN)
B110: Polimaltosado
B112: ACTIVIDADES | P112: DOSIS
P113: 1º | AC113: 2º | AT113: 3º | BI113: 4º | BV113: 5º | CK113: 6º | DB113: 7º | DR113: 8º | EH113: 9º | ET113: 10º | FK113: 11º | FX113: 12º | GF113: TA
B114: < 06 meses (BPN y Prematuros)
B115: De 4 a 5 meses
B116: De 6 a 11 meses
B117: De 1 año
B118: De 2 años
B119: De 3 años
B120: De 4 años
C123: B) Vitamina "A"
Q125: 06 meses | AU125: 01 año | BY125: 02 años | DD125: 03 años | EI125: 04 años
C126: Dosis | Q126: 1º Dosis | AD126: 2º Dosis | AU126: 1º Dosis | BJ126: 2º Dosis | BY126: 1º Dosis | CN126: 2º Dosis | DD126: 1º Dosis | DS126: 2º Dosis | EI126: 1º Dosis | EV126: 2º Dosis
C127: Suplementados
C130: VI. LACTANCIA MATERNA EXCLUSIVA
C132: Condición | Q132: Nº
C133: Niños con LME a los 06 meses
C135: VII. ALIMENTACIÓN COMPLEMENTARIA
C137: Condición | CA137: Nº
C138: Niños con Inicio de Alimentación Complementaria antes de los 06 meses
C139: Niños con Inicio de Alimentación Complementaria después de los 06 meses
C140: Niños con Inicio de Alimentación Complementaria Adecuada
C141: Niños con Inicio de Alimentación Complementaria Inadecuada
C144: VIII. EVALUACION DEL ESTADO NUTRICIONAL
C146: A) En el Recién Nacido de 01 día a 28 días
C148: Clasificación | O148: Dx | BP148: Nº
C149: RN Bajo Peso Recuperados | O149: RN Bajo Peso Recuperados
C150: Peso al Nacer | O150: Extremadamente bajo
O151: Muy bajo peso al nacer
O152: Bajo peso al nacer
O153: Normal
O154: Macrosómico
C155: Ganancia de Peso / Talla | O155: Ganancia Inadecuada de Peso Dx.
O156: Ganancia Inadecuada de Peso Recup.
O157: Ganancia Inadecuada de Talla Dx.
O158: Ganancia Inadecuada de Talla Recup.
C160: B) En los Niños y Niñas de 29 días a < 05 años
C162: Grupo de Edad | E162: Ganancia Inadecuada de Peso o Talla | BB162: Normal
E163: Peso | S163: Talla | BB163: Normal
E164: Dx. | L164: Recup. | S164: Dx. | AI164: Recup. | BB164: Normal
C165: < 1 año
C166: 1 año
C167: 2 años
C168: 3 años
C169: 4 años
C172: Grupo de Edad | D172: Peso para la Edad (PE) | BC172: Peso para la Edad (TP) | GI172: Talla para la Edad (TE)
D173: Sobrepeso | T173: Desnutrición | BC173: Obesidad | CP173: Sobrepeso | EC173: Desnutrición Aguda | FG173: Desnutrición Severa | GI173: Alto | HB173: Talla Baja
D174: Dx. | L174: Recup. | T174: Dx. | AJ174: Recup. | BC174: Dx. | BW174: Recup. | CP174: Dx. | DI174: Recup. | EC174: Dx. | EQ174: Recup. | FG174: Dx. | FU174: Recup. | GI174: Dx. | GV174: Recup. | HB174: Dx. | HI174: Recup.
C175: < 1 año
C176: 1 año
C177: 2 años
C178: 3 años
C179: 4 años
C182: C) En los Niños y Niñas de 05 a 11 años
C184: Grupo de Edad | E184: Índice de Masa Cororal (IMC) | DY184: Talla para la Edad (TE) | HA184: Normal
E185: Obesidad | S185: Sobrepeso | BB185: Delgadez | CO185: Delgadez Severa | DY185: Alto | FF185: Talla Baja | GE185: Talla Baja Severa | HA185: Normal
E186: Dx. | L186: Recup. | S186: Dx. | AI186: Recup. | BB186: Dx. | BT186: Recup. | CO186: Dx. | DE186: Recup. | DY186: Dx. | EN186: Recup. | FF186: Dx. | FR186: Recup. | GE186: Dx. | GS186: Recup. | HA186: Normal
C187: 05 a 11 años
C189: IX. EVALUACION DEL DESARROLLO
C191: Grupo de Edad | D191: Trastorno del Desarrollo | GJ191: Evaluac. Normal
D192: Lenguaje | U192: Motora | BD192: Social | CQ192: Coordinación | ED192: Cognitiva | FH192: Con + de 1 Trastorno | GJ192: Evaluac. Normal
D193: Dx. | L193: Recup. | U193: Dx. | AK193: Recup. | BD193: Dx. | BX193: Recup. | CQ193: Dx. | DJ193: Recup. | ED193: Dx. | ER193: Recup. | FH193: Dx. | FV193: Recup. | GJ193: Evaluac. Normal
C194: < 1 año
C195: 1 año
C196: 2 años
C199: Grupo de Edad | D199: Déficit del Desarrollo | GJ199: Evaluac. Normal
D200: Lenguaje | U200: Motora | BD200: Social | CQ200: Coordinación | ED200: Cognitiva | FH200: Más de 1 Déficit | GJ200: Evaluac. Normal
D201: Dx. | L201: Recup. | U201: Dx. | AK201: Recup. | BD201: Dx. | BX201: Recup. | CQ201: Dx. | DJ201: Recup. | ED201: Dx. | ER201: Recup. | FH201: Dx. | FV201: Recup. | GJ201: Evaluac. Normal
C202: 03 años
C203: 04 años
C205: X. PLAN DE ATENCION INTEGRAL
C207: Edades | F207: RN | M207: <1 año | V207: 01 año | AL207: 02 años | BE207: 03 años | BZ207: 04 años | CR207: 05 años | DK207: 06 años | EE207: 07 años | ES207: 08 años | FI207: 09 años | FW207: 10 años | GK207: 11 años
C208: Elaborado
C209: Ejecutado
C212: XI. CONSEJERÍA
C214: Tipos / Edades | AH214: TOTAL | AX214: RN | BN214: <1 año | CI214: 01 año | DC214: 02 años | DX214: 03 años | EL214: 04 años | FE214: 05 - 11 a
C215: Nutricional por Suplementación
C216: Nutricional por Eval. PE, TP, TE, IMC
C217: Integral por Eval. del Desarrollo
C218: Integral por Aliment. Complement.
C221: XII. VISITA DOMICILIARIA
C223: Tipos de Visita / Edades | AH223: TOTAL | AX223: RN | BN223: <1 año | CI223: 01 año | DC223: 02 años | DX223: 03 años | EL223: 04 años | FE223: 05 - 11 a
C224: Seguimiento al Control CRED
C225: Seguimiento a Problemas Nutricionales
C226: Seguimiento a Problemas del Desarrollo
C227: Entrega de Suplementación
C228: Verificación de Consumo de Micronutrientes
C229: Seguimiento de IRA
C230: Seguimiento de EDA
C231: Seguimiento de Anemia
C234: XIII. ESTIMULACION TEMPRANA
C236: Edad | G236: 1º | N236: 2º | AF236: 3º | AW236: 4º | BM236: 5º | CD236: 6º
C237: Recién Nacido
C238: < 01 año
C239: 01 año
C240: 02 años
C241: 03 años
C243: XIV. ACTIVIDADES EXTRAMURALES, MASIVAS Y DE GESTIÓN
C245: Unidad Medida | G245: Actividad Extramural | BA245: Actividades de Gestión
G246: Sesiones Demostrativas | W246: Sesiones Educativas | BA246: Evaluación | CJ246: Supervisión | DQ246: Asistencia Técnica | EU246: Reu.Téc: Personal de Salud | FZ246: Reu.Téc: Agente Com. de Salud
C247: Actividades
C248: Participantes
C250: XV. ATENCION DE LAS ENFERMEDADES PREVALENTES DE LA INFANCIA
C252: A. INFECCIÓN RESPIRATORIA AGUDA
C254: DIAGNÓSTICOS | CX254: Grupo Edad
CX255: < 29 Días | EA255: 29 d a 59 Días | EX255: 02 - 11 Meses | GB255: 01 - 04 Años | GO255: 05 - 11 Años | HE255: TOTAL
C256: 1.1 N° casos de IRA sin complicaciones (a+b+c+d+e) | AH256: a. Infección Respiratoria Aguda (IRA) no complicada
AH257: b. Faringoamigdalitis Aguda
AH258: c. Otitis Media Aguda (OMA)
AH259: d. Sinusitis Aguda
AH260: e. Neumonía sin complicaciones
C261: 1.2 N° casos IRA con complicaciones (a+b+c) | AH261: a. Infecciones Respiratorias Agudas con complicaciones
AH262: b. Neumonía Grave o Enfermedad Muy Grave en Niños Menores de 2 Meses
AH263: c. Neumonía y Enfermedad Muy Grave en Niños de 2 Meses a 4 Años
C266: DIAGNÓSTICOS | CW266: < 29 Días | DZ266: 29 d a 59 Días | EW266: 02 - 11 Meses | GA266: 12 - 23 Meses | GN266: 02- 02 Años con 11 Meses | HD266: 03 - 04 Años | HM266: 05 - 11 Años | HR266: TOTAL
C267: 1.3 SOB/Asma | AH267: a. SOB/Asma
C269: B. ENFERMEDAD DIARREICA AGUDA
C271: DIAGNÓSTICOS | CW271: Grupo Edad
CW272: < 01 Año | DZ272: 01 - 04 Años | EW272: 05 - 11 Años | GA272: TOTAL
C273: 1. Enfermedades Diarreicas sin complicaciones ( a + b + c) | AH273: a. Diarrea Aguda Acuosa sin deshidratación
... 29 more rows

Sheet IIITRIME
R1: Página 01
B2: REPORTE MENSUAL DE ACTIVIDADES
B3: ATENCIÓN INTEGRAL DE SALUD DEL NIÑO
B4: DIRESA / RED / MR / EESS : | D4: MICRORED: VICTOR RAUL HINOJOZA | L4: Periodo : | M4: 01-JULIO AL 30-SETIEMBRE 2020
D5: Edad Según ETV DESAGREGADO
B7: I. ATENCIÓN DEL RECIÉN NACIDO
B8: A) Atención Inmediata | J8: D) Morbilidad Neonatal
B9: ACTIVIDADES | F9: Nº | J9: CAUSAS DE MORBILIDAD | N9: Nº
B10: Atención Inmediata | F10: 0 | J10: Síndrome de Dristres Respiratorio | N10: 0
B11: Tamizaje Neonatal (Enfermed. Metabólicas) | F11: 0 | J11: Síndromes de Aspiración Neonatal | N11: 0
B12: Tamizaje Visual y Auditivo | F12: 0 | J12: Asfixia Neonatal | N12: 0
B13: Contacto Piel a Piel con la madre | F13: 0 | J13: Sepsis Neonatal | N13: 0
B14: Alojamiento Conjunto | F14: 0 | J14: Ictericia | N14: 1
B15: Lactancia Materna en la 1º Hora | F15: 0 | J15: Hipoglucemia | N15: 0
J16: Sífilis Congénita | N16: 0
B17: B) Resultados del Tamizaje Neonatal | J17: VIH Expuesto | N17: 0
B18: DIAGNÓSTICOS | F18: Nº | J18: Retinopatía de la Prematuridad | N18: 0
B19: Hipotiroidismo Congénito | F19: 0
B20: Fenilcetonuria | F20: 0 | J20: E) Mortalidad Neonatal
B21: Galactosemia | F21: 0 | J21: PESO AL NACER | M21: Nº | O21: Causas Defunción | R21: Nº
B22: Hiperplasia Suprarrenal Congénita | F22: 0 | J22: < 1,000 gr. | O22: Asfixia
B23: Fibrosis Quística | F23: 0 | J23: 1,000 a 1,499 gr. | O23: SDR
B24: Catarata Congénita | F24: 0 | J24: 1,500 a 2,499 gr. | O24: Sepsis
B25: Hipoacusia (todas las clasificaciones) | F25: 0 | J25: 2,500 a 4,000 gr. | O25: Malformaciones Congénitas
J26: > 4,000 y más gr. | O26: Otras
B27: C) Condición al Nacimiento | J27: No especificado
B28: CONDICIÓN | D28: Lugar de Nacimiento | J28: TIEMPO DE VIDA | M28: Nº
D29: EESS | E29: Domicilio | F29: Total | J29: Óbito fetal
B30: RN Normal | F30: =SUM(D30:E30) -> 0 | J30: < 24 horas
B31: RN Deprimido | F31: =SUM(D31:E31) -> 0 | J31: 01 a 07 días
B32: Prematuro | F32: =SUM(D32:E32) -> 0 | J32: 08 a 28 días
L34: Fuentes Externas
B35: La información del presente reporte debe ser complementada con fuentes externas (Libro de Atenciones, Reporte de Egresos, Certificado de Defunción, etc.) | M35: Libro de Atenciones y Reporte de Egresos
M36: Certificado de Defunción
B40: II. CONTROL DE CRECIMIENTO Y DESARROLLO | R40: Página 02
B42: Grupo de Edad | D42: Número de Controles | P42: Registros Errados
D43: 1º | E43: 2º | F43: 3º | G43: 4º | H43: 5º | I43: 6º | J43: 7º | K43: 8º | L43: 9º | M43: 10º | N43: 11º | O43: Total
B44: De 1d a 7d | D44: 0 | E44: 0 | F44: 0 | G44: 0 | H44: 0 | I44: 0 | J44: 0 | K44: 0 | L44: 0 | M44: 0 | N44: 0 | O44: =SUM(D44) -> 0 | P44: 0
B45: De 8d a 14d | D45: 0 | E45: 0 | F45: 0 | G45: 0 | H45: 0 | I45: 0 | J45: 0 | K45: 0 | L45: 0 | M45: 0 | N45: 0 | O45: =SUM(D45:E45) -> 0 | P45: 0
B46: De 15d a 21d | D46: 0 | E46: 0 | F46: 0 | G46: 0 | H46: 0 | I46: 0 | J46: 0 | K46: 0 | L46: 0 | M46: 0 | N46: 0 | O46: =SUM(D46:F46) -> 0 | P46: 0
B47: De 22d a +d | D47: 0 | E47: 0 | F47: 0 | G47: 0 | H47: 0 | I47: 0 | J47: 0 | K47: 0 | L47: 0 | M47: 0 | N47: 0 | O47: =SUM(D47:G47) -> 0 | P47: 0
B48: Total Recién Nacido | D48: =SUM(D44:D47) -> 0 | E48: =SUM(E45:E47) -> 0 | F48: =SUM(F46:F47) -> 0 | G48: =SUM(G47) -> 0 | H48: =SUM(H44:H47) -> 0 | I48: =SUM(I44:I47) -> 0 | J48: 0 | K48: 0 | L48: 0 | M48: 0 | N48: 0 | O48: =SUM(D48:G48) -> 0
B49: 29 días - 11 meses | D49: 0 | E49: 0 | F49: 0 | G49: 0 | H49: 0 | I49: 0 | J49: 0 | K49: 0 | L49: 0 | M49: 0 | N49: 0 | O49: =SUM(D49:N49) -> 0 | P49: 0
B50: 01 año | D50: 0 | E50: 0 | F50: 0 | G50: 0 | H50: 0 | I50: 0 | J50: 0 | K50: 0 | L50: 0 | M50: 0 | N50: 0 | O50: =SUM(D50:I50) -> 0 | P50: 0
B51: 02 años | D51: 0 | E51: 0 | F51: 0 | G51: 0 | H51: 0 | I51: 0 | J51: 0 | K51: 0 | L51: 0 | M51: 0 | N51: 0 | O51: =SUM(D51:G51) -> 0 | P51: 0
B52: 03 años | D52: 0 | E52: 0 | F52: 0 | G52: 0 | H52: 0 | I52: 0 | J52: 0 | K52: 0 | L52: 0 | M52: 0 | N52: 0 | O52: =SUM(D52:G52) -> 0 | P52: 0
B53: 04 años | D53: 0 | E53: 0 | F53: 0 | G53: 0 | H53: 0 | I53: 0 | J53: 0 | K53: 0 | L53: 0 | M53: 0 | N53: 0 | O53: =SUM(D53:G53) -> 0 | P53: 0
B54: 05 a 11 años | D54: 0 | E54: 0 | F54: 0 | G54: 0 | H54: 0 | I54: 0 | J54: 0 | K54: 0 | L54: 0 | M54: 0 | N54: 0 | O54: =SUM(D54) -> 0 | P54: 0
B55: =IF(P55>0,"Si en la columna P aparecen valores es porque hay registros con valores INCORRECTOS en el campo LAB perdiendo niños con controles CRED, REVISE.","") ->  | P55: =SUM(P44:P54) -> 0
B57: III. TAMIZAJE
B58: ACTIVIDADES | H58: 01m* | I58: 06m | J58: 01 a | K58: 02 a | L58: 03 a | M58: 04 a | N58: 05 -11 a | O58: Total
B59: 1. Detección de Anemia | E59: Solicitud de Dosaje de Hb | H59: 0 | I59: 0 | J59: 0 | K59: 0 | L59: 0 | M59: 0 | N59: 0 | O59: =SUM(I59:N59) -> 0
E60: Resultados Evaluados | H60: 0 | I60: 0 | J60: 0 | K60: 0 | L60: 0 | M60: 0 | N60: 0 | O60: =SUM(I60:N60) -> 0
B61: 2. Descarte de Parasitosis | E61: Solicitud de Examen | H61: 0 | I61: 0 | J61: 0 | K61: 0 | L61: 0 | M61: 0 | N61: 0 | O61: =SUM(J61:N61) -> 0
E62: Resultados Evaluados | H62: 0 | I62: 0 | J62: 0 | K62: 0 | L62: 0 | M62: 0 | N62: 0 | O62: =SUM(J62:N62) -> 0
B63: * Prematuros y Bajo Peso al Nacer.
B65: IV. ADMINISTRACIÓN DE PROFILAXIS ANTIPARASITARIA
B67: ACTIVIDADES | F67: 01 año | H67: 02 años | J67: 03 años | L67: 04 años | N67: 05 - 11 años
F68: 1º | G68: 2º | H68: 1º | I68: 2º | J68: 1º | K68: 2º | L68: 1º | M68: 2º | N68: 1º | O68: 2º
B69: Administración de Profilaxis Antiparasitaria | F69: 0 | G69: 0 | H69: 5 | I69: 0 | J69: 1 | K69: 0 | L69: 2 | M69: 0 | N69: 0 | O69: 0
B71: V. ADMINISTRACION DE MICRONUTRIENTES
B72: A) Sulfato Ferroso y Multimicronutriente (en polvo)
B74: ACTIVIDADES | E74: DOSIS | R74: Registros Errados
E75: 1º | F75: 2º | G75: 3º | H75: 4º | I75: 5º | J75: 6º | K75: 7º | L75: 8º | M75: 9º | N75: 10º | O75: 11º | P75: 12º | Q75: TA
B76: < 06 meses (BPN y Prematuros (SF)) | E76: 0 | F76: 0 | G76: 0 | H76: 0 | I76: 0 | J76: 0 | K76: 0 | L76: 0 | M76: 0 | N76: 0 | O76: 0 | P76: 0 | Q76: 0 | R76: 31
B77: De 6 a 11 meses | E77: 3 | F77: 1 | G77: 0 | H77: 1 | I77: 3 | J77: 1 | K77: 0 | L77: 0 | M77: 0 | N77: 1 | O77: 0 | P77: 0 | Q77: 0 | R77: 159
B78: De 1 año | E78: 0 | F78: 1 | G78: 2 | H78: 1 | I78: 2 | J78: 1 | K78: 0 | L78: 0 | M78: 0 | N78: 0 | O78: 0 | P78: 0 | Q78: 0 | R78: 80
B79: De 2 año | E79: 0 | F79: 0 | G79: 0 | H79: 0 | I79: 0 | J79: 1 | K79: 0 | L79: 0 | M79: 0 | N79: 0 | O79: 0 | P79: 0 | Q79: 1 | R79: 12
B80: De 3 año | E80: 0 | F80: 0 | G80: 0 | H80: 0 | I80: 0 | J80: 0 | K80: 0 | L80: 0 | M80: 0 | N80: 0 | O80: 0 | P80: 0 | Q80: 0 | R80: 1
B81: De 4 año | E81: 0 | F81: 0 | G81: 0 | H81: 0 | I81: 0 | J81: 0 | K81: 0 | L81: 0 | M81: 0 | N81: 0 | O81: 0 | P81: 0 | Q81: 0 | R81: 3
B82: Los Suplementados son los que CONSUMEN 360 sobres de MMN (a partir de los 18 meses, no antes) para indicar que se ha consumido el último sobre de MMN se registra TA | R82: =SUM(R76:R81) -> 286
B84: B) Vitamina "A" | D84: 06 meses | F84: 01 año | H84: 02 años | J84: 03 años | L84: 04 años | R84: Página 03
B85: Dosis | D85: 1º Dosis | E85: 2º Dosis | F85: 1º Dosis | G85: 2º Dosis | H85: 1º Dosis | I85: 2º Dosis | J85: 1º Dosis | K85: 2º Dosis | L85: 1º Dosis | M85: 2º Dosis
B86: Suplementados | D86: 0 | E86: 0 | F86: 0 | G86: 0 | H86: 0 | I86: 0 | J86: 0 | K86: 0 | L86: 0 | M86: 0
B88: VI. LACTANCIA MATERNA EXCLUSIVA | H88: VII. ALIMENTACIÓN COMPLEMENTARIA
B90: CONDICIÓN | E90: Nº | H90: CONDICIÓN | P90: Nº
B91: Niños con LME a los 06 meses | E91: 2 | H91: Niños con Inicio de Alimentación Complementaria antes de los 06 meses | P91: 0
B92: Solo se evalua el registro a los 06 meses | H92: Niños con Inicio de Alimentación Complementaria después de los 06 meses | P92: 0
H93: Niños con Inicio de Alimentación Complementaria Adecuada | P93: 14
B94: VIII. EVALUACION DEL ESTADO NUTRICIONAL | H94: Niños con Inicio de Alimentación Complementaria Inadecuada | P94: 0
B95: A) En el Recién Nacido de 01 día a 28 días
B96: Clasificación: Peso al Nacer | E96: Nº | H96: Clasificación: Ganancia de Peso / Talla | L96: Dx. | M96: Recup.
B97: Extremadamente bajo | E97: 0 | H97: Ganancia Inadecuada de Peso | L97: 0 | M97: 0
B98: Muy bajo peso al nacer | E98: 0 | H98: Ganancia Inadecuada de Talla | L98: 0 | M98: 0
B99: Bajo peso al nacer | E99: 0 | H99: Dx: Diagnosticado | J99: Recup: Recuperado
B100: Normal | E100: 0
B101: Macrosómico | E101: 0
B103: B) En los Niños y Niñas de 29 días a < 05 años
B105: GRUPO DE EDAD | D105: Ganancia Inadecuada de Peso o Talla | H105: Normal | M105: RN Bajo Peso Recuperados
D106: Peso | F106: Talla
D107: Dx. | E107: Recup. | F107: Dx. | G107: Recup. | M107: 0
B108: < 1 año | D108: 3 | E108: 0 | F108: 0 | G108: 0 | H108: 114
B109: 1 año | D109: 0 | E109: 0 | F109: 1 | G109: 0 | H109: 96
B110: 2 años | D110: 0 | E110: 0 | F110: 0 | G110: 0 | H110: 13
B111: 3 años | D111: 0 | E111: 0 | F111: 0 | G111: 0 | H111: 5
B112: 4 años | D112: 0 | E112: 0 | F112: 0 | G112: 0 | H112: 13
B113: Dx: Diagnosticado | C113: Recup: Recuperado
B115: GRUPO DE EDAD | C115: Peso para la Edad (PE) | G115: Peso para la Edad (TP) | O115: Talla para la Edad (TE)
C116: Sobrepeso | E116: Desnutrición | G116: Obesidad | I116: Sobrepeso | K116: Desnutrición Aguda | M116: Desnutrición Severa | O116: Alto | Q116: Talla Baja | Z116: Normal
C117: Dx. | D117: Recup. | E117: Dx. | F117: Recup. | G117: Dx. | H117: Recup. | I117: Dx. | J117: Recup. | K117: Dx. | L117: Recup. | M117: Dx. | N117: Recup. | O117: Dx. | P117: Recup. | Q117: Dx. | R117: Recup. | Z117: Dx. | AA117: Recup.
B118: < 1 año | C118: 1 | D118: 0 | E118: 3 | F118: 0 | G118: 0 | H118: 0 | I118: 7 | J118: 0 | K118: 1 | L118: 0 | M118: 0 | N118: 0 | O118: 0 | P118: 0 | Q118: 0 | R118: 0 | Z118: 112 | AA118: 0
B119: 1 año | C119: 112 | D119: 0 | E119: 0 | F119: 0 | G119: 0 | H119: 0 | I119: 4 | J119: 0 | K119: 0 | L119: 0 | M119: 0 | N119: 0 | O119: 1 | P119: 0 | Q119: 0 | R119: 0 | Z119: 95 | AA119: 0
B120: 2 años | C120: 95 | D120: 0 | E120: 0 | F120: 0 | G120: 0 | H120: 0 | I120: 0 | J120: 0 | K120: 0 | L120: 0 | M120: 0 | N120: 0 | O120: 0 | P120: 0 | Q120: 0 | R120: 0 | Z120: 13 | AA120: 0
B121: 3 años | C121: 13 | D121: 0 | E121: 0 | F121: 0 | G121: 0 | H121: 0 | I121: 0 | J121: 0 | K121: 0 | L121: 0 | M121: 0 | N121: 0 | O121: 0 | P121: 0 | Q121: 0 | R121: 0 | Z121: 6 | AA121: 0
B122: 4 años | C122: 6 | D122: 0 | E122: 0 | F122: 0 | G122: 1 | H122: 0 | I122: 2 | J122: 0 | K122: 0 | L122: 0 | M122: 0 | N122: 0 | O122: 0 | P122: 0 | Q122: 0 | R122: 0 | Z122: 13 | AA122: 0
B123: Dx: Diagnosticado | C123: Recup: Recuperado
B125: C) En los Niños y Niñas de 05 a 11 años | S125: Página 04
B127: GRUPO DE EDAD | C127: Índice de Masa Cororal (IMC) | K127: Talla para la Edad (TE) | Q127: Normal
C128: Obesidad | E128: Sobrepeso | G128: Delgadez | I128: Delgadez | K128: Alto | M128: Talla Baja | O128: Talla Baja Severa
C129: Dx. | D129: Recup. | E129: Dx. | F129: Recup. | G129: Dx. | H129: Recup. | I129: Dx. | J129: Recup. | K129: Dx. | L129: Recup. | M129: Dx. | N129: Recup. | O129: Dx. | P129: Recup.
B130: 05 a 11 años | C130: 13 | D130: 0 | E130: 2 | F130: 0 | G130: 0 | H130: 0 | I130: 0 | J130: 0 | K130: 0 | L130: 0 | M130: 0 | N130: 0 | O130: 0 | P130: 0 | Q130: 1
B131: Dx: Diagnosticado | C131: Recup: Recuperado
B133: IX. EVALUACION DEL DESARROLLO
B135: Edades | C135: Trastorno del Desarrollo | O135: Evaluac. Normal
C136: Lenguaje | E136: Motora | G136: Social | I136: Coordinación | K136: Cognitiva | M136: Con + de 1 Trastorno
C137: Dx. | D137: Recup. | E137: Dx. | F137: Recup. | G137: Dx. | H137: Recup. | I137: Dx. | J137: Recup. | K137: Dx. | L137: Recup. | M137: Dx. | N137: Recup.
B138: < 1 año | C138: 0 | D138: 0 | E138: 0 | F138: 0 | G138: 0 | H138: 0 | I138: 0 | J138: 0 | K138: 0 | L138: 0 | M138: 0 | N138: 0 | O138: 0
B139: 01 año | C139: 0 | D139: 0 | E139: 0 | F139: 0 | G139: 0 | H139: 0 | I139: 0 | J139: 0 | K139: 0 | L139: 0 | M139: 0 | N139: 0 | O139: 0
B140: 02 años | C140: 0 | D140: 0 | E140: 0 | F140: 0 | G140: 0 | H140: 0 | I140: 0 | J140: 0 | K140: 0 | L140: 0 | M140: 0 | N140: 0 | O140: 0
B141: Dx: Diagnosticado | D141: Recup: Recuperado
B143: Edades | C143: Déficit del Desarrollo | O143: Evaluac. Normal
C144: Lenguaje | E144: Motora | G144: Social | I144: Coordinación | K144: Cognitiva | M144: Más de 1 Déficit
C145: Dx. | D145: Recup. | E145: Dx. | F145: Recup. | G145: Dx. | H145: Recup. | I145: Dx. | J145: Recup. | K145: Dx. | L145: Recup. | M145: Dx. | N145: Recup.
B146: 03 años | C146: 0 | D146: 0 | E146: 0 | F146: 0 | G146: 0 | H146: 0 | I146: 0 | J146: 0 | K146: 0 | L146: 0 | M146: 0 | N146: 0 | O146: 0
B147: 04 años | C147: 0 | D147: 0 | E147: 0 | F147: 0 | G147: 0 | H147: 0 | I147: 0 | J147: 0 | K147: 0 | L147: 0 | M147: 0 | N147: 0 | O147: 0
B148: Dx: Diagnosticado | D148: Recup: Recuperado
B150: X. PLAN DE ATENCION INTEGRAL
B152: Edades | C152: RN | D152: <1 año | E152: 01 año | F152: 02 años | G152: 03 años | H152: 04 años | I152: 05 años | J152: 06 años | K152: 07 años | L152: 08 años | M152: 09 años | N152: 10 años | O152: 11 años
B153: Elaborado | C153: 0 | D153: 0 | E153: 0 | F153: 0 | G153: 0 | H153: 0 | I153: 0 | J153: 0 | K153: 0 | L153: 0 | M153: 0 | N153: 1 | O153: 0
B154: Ejecutado | C154: 0 | D154: 0 | E154: 0 | F154: 0 | G154: 0 | H154: 0 | I154: 0 | J154: 0 | K154: 0 | L154: 0 | M154: 0 | N154: 0 | O154: 0
B156: XI. CONSEJERÍA
B158: Tipos / Edades | E158: Total | F158: RN | G158: <1 año | H158: 01 año | I158: 02 años | J158: 03 años | K158: 04 años | L158: 05 - 11 a
B159: Nutricional por Suplementación | E159: =SUM(F159:K159) -> 0 | F159: 0 | G159: 0 | H159: 0 | I159: 0 | J159: 0 | K159: 0 | L159: 0
B160: Nutricional por Eval. PE, TP, TE, IMC | E160: =SUM(F160:L160) -> 25 | F160: 0 | G160: 13 | H160: 8 | I160: 1 | J160: 0 | K160: 3 | L160: 0
B161: Integral por Eval. del Desarrollo | E161: =SUM(G161:L161) -> 0 | F161: 0 | G161: 0 | H161: 0 | I161: 0 | J161: 0 | K161: 0 | L161: 0
B162: Integral por Aliment. Complement. | E162: =G162 -> 0 | F162: 0 | G162: 0 | H162: 0 | I162: 0 | J162: 0 | K162: 0 | L162: 0
B166: XII. VISITA DOMICILIARIA | R166: Página 05
B167: TIPOS DE VISITA / EDADES | F167: Total | G167: RN | H167: <1 año | I167: 01 año | J167: 02 años | K167: 03 años | L167: 04 años | M167: 05 - 11 a
B168: Seguimiento al Control CRED | F168: =SUM(G168:M168) -> 0 | G168: 0 | H168: 0 | I168: 0 | J168: 0 | K168: 0 | L168: 0 | M168: 0
B169: Seguimiento a Problemas Nutricionales | F169: =SUM(G169:M169) -> 0 | G169: 0 | H169: 0 | I169: 0 | J169: 0 | K169: 0 | L169: 0 | M169: 0
B170: Seguimiento a Problemas del Desarrollo | F170: =SUM(G170:M170) -> 0 | G170: 0 | H170: 0 | I170: 0 | J170: 0 | K170: 0 | L170: 0 | M170: 0
B171: Entrega de Suplementación | F171: =SUM(G171:L171) -> 0 | G171: 0 | H171: 0 | I171: 0 | J171: 0 | K171: 0 | L171: 0 | M171: 0
B172: Verificación de Consumo de Micronutrientes | F172: =SUM(G172:L172) -> 0 | G172: 0 | H172: 0 | I172: 0 | J172: 0 | K172: 0 | L172: 0 | M172: 0
B173: Seguimiento de IRA | F173: =SUM(G173:M173) -> 0 | G173: 0 | H173: 0 | I173: 0 | J173: 0 | K173: 0 | L173: 0 | M173: 0
B174: Seguimiento de EDA | F174: =SUM(G174:M174) -> 0 | G174: 0 | H174: 0 | I174: 0 | J174: 0 | K174: 0 | L174: 0 | M174: 0
B175: Seguimiento de Anemia | F175: =SUM(G175:M175) -> 0 | G175: 0 | H175: 0 | I175: 0 | J175: 0 | K175: 0 | L175: 0 | M175: 0
B177: XIII. ESTIMULACION TEMPRANA | K177: XIV. ACTIVIDADES EXTRAMURALES, MASIVAS Y DE GESTIÓN
B179: EDADES / SESIONES | D179: 1º | E179: 2º | F179: 3º | G179: 4º | H179: 5º | I179: 6º | K179: Unidad Medida | M179: Actividades Extramurales y Masivas | Q179: Actividades de Gestión
B180: Recién Nacido | D180: 0 | E180: 0 | F180: 0 | G180: 0 | H180: 0 | I180: 0 | M180: Sesiones Demostrativas | O180: Sesiones Educativas | Q180: Evaluación | R180: Supervisión | S180: Asitencia Técnica | T180: Reu.Téc: Personal de Salud | U180: Reu.Téc: Agente Com. de Salud
B181: < 01 año | D181: 0 | E181: 0 | F181: 0 | G181: 0 | H181: 0 | I181: 0
B182: 01 año | D182: 0 | E182: 0 | F182: 0 | G182: 0 | H182: 0 | I182: 0 | K182: Actividades | M182: 0 | O182: 0 | Q182: 0 | R182: 0 | S182: 0 | T182: 0 | U182: 0
B183: 02 años | D183: 0 | E183: 0 | F183: 0 | G183: 0 | H183: 0 | I183: 0 | K183: Participantes | M183: 0 | O183: 0 | Q183: 0 | R183: 0 | S183: 0 | T183: 0 | U183: 0
B184: 03 años | D184: 0 | E184: 0 | F184: 0 | G184: 0 | H184: 0 | I184: 0
B185: =IF(SUM(E180:I180,H182:I184,F183:G184,E184)>0,"Los casilleros en rojo son error de registro CORRIJA"," ") -> 
B186: XV. ATENCION DE LAS ENFERMEDADES PREVALENTES DE LA INFANCIA
B187: A. INFECCIÓN RESPIRATORIA AGUDA
B188: DIAGNÓSTICOS | G188: Grupo de Edad
G189: < 29 Días | I189: 29 d a 59 Días | K189: 02 - 11 Meses | M189: 01 - 04 Años | O189: 05 - 11 Años | Q189: Total
B190: 1. Total de Casos de IRA ( 1 + 2 ) | G190: =G191+G195 -> 2 | I190: =I191+I195 -> 1 | K190: =K191+K195 -> 15 | M190: =M191+M195 -> 14 | O190: =O191+O195 -> 12 | Q190: =SUM(G190:P190) -> 44
B191: 1.1. Nº casos de IRA complicada ( a + b + c ) | G191: =SUM(G192:G194) -> 0 | I191: =SUM(I192:I194) -> 0 | K191: =SUM(K192:K194) -> 0 | M191: =SUM(M192:M194) -> 1 | O191: =SUM(O192:O194) -> 1 | Q191: 2
B192: a. Neumonía complicada | G192: 0 | I192: 0 | K192: 0 | M192: 0 | O192: 0 | Q192: 0
B193: b. Neumonía no complicada | G193: 0 | I193: 0 | K193: 0 | M193: 1 | O193: 0 | Q193: 1
B194: c. SOBA o ASMA | G194: 0 | I194: 0 | K194: 0 | M194: 0 | O194: 1 | Q194: 1
B195: 1.2. Nº casos de IRA no complicada ( a + b + c ) | G195: =SUM(G197:G198) -> 2 | I195: =SUM(I197:I198) -> 1 | K195: =SUM(K197:K198) -> 15 | M195: =SUM(M196:M198) -> 13 | O195: =SUM(O196:O198) -> 11 | Q195: 42
B196: a. Faringo amigdalitis purulenta aguda | G196: 0 | I196: 0 | K196: 0 | M196: 0 | O196: 0 | Q196: =SUM(M196:P196) -> 0
B197: b. Otitis media aguda | G197: 0 | I197: 0 | K197: 0 | M197: 0 | O197: 0 | Q197: 0
B198: c. Resfrió, faringitis viral, bronquitis,etc | G198: 2 | I198: 1 | K198: 15 | M198: 13 | O198: 11 | Q198: 42
B199: 2. Total de casos IRA complicadas hospitalizadas | Q199: 0
B200: 3. Nº de casos de IRA complicada referidos | Q200: 0
B201: 4. Control de seguimiento de neumonia a las 48 horas | G201: 0 | I201: 0 | K201: 0 | M201: 0 | O201: 0 | Q201: 0
O202: Fuentes Externas
P203: Reporte de Egresos
B204: B. ENFERMEDAD DIARREICA AGUDA | R204: Página 06
G205: Grupo de Edad
G206: < 01 Año | I206: 01 - 04 Años | K206: 05 - 11 Años | M206: Total
B207: 1. EDA Sin Complicación ( a + b + c + d ) | G207: =SUM(G208:H211) -> 7 | I207: =SUM(I208:J211) -> 9 | K207: =SUM(K208:L211) -> 9 | M207: =SUM(G207:L207) -> 25
B208: a. Acuosa Aguda s/deshidratación | G208: 5 | I208: 7 | K208: 7 | M208: =SUM(G208:L208) -> 19
B209: b. Sospechoso de cólera s/deshidratación | G209: 0 | I209: 0 | K209: 0 | M209: =SUM(G209:L209) -> 0
B210: c. Disenteria s/deshidratación | G210: 2 | I210: 2 | K210: 2 | M210: 6
B211: d. Diarrea persistente | G211: 0 | I211: 0 | K211: 0 | M211: =SUM(G211:L211) -> 0
B212: 2. EDA Complicada ( a + b + c + d + e + f ) | G212: =SUM(G213:H218) -> 0 | I212: =SUM(I213:J218) -> 0 | K212: =SUM(K213:L218) -> 0 | M212: =SUM(G212:L212) -> 0
B213: a. Acuosa Aguda c/deshidratación | G213: 0 | I213: 0 | K213: 0 | M213: 0
B214: b. Sospechoso de cólera c/deshidratación | G214: 0 | I214: 0 | K214: 0 | M214: 0
B215: c. Disenteria c/deshidratación | G215: 0 | I215: 0 | K215: 0 | M215: 0
B216: d. Acuosa Aguda c/deshidratación c/shock | G216: 0 | I216: 0 | K216: 0 | M216: 0
B217: e. Sospechoso de cólera c/deshidratación c/shock | G217: 0 | I217: 0 | K217: 0 | M217: 0
B218: f. Disenteria c/deshidratación c/shock | G218: 0 | I218: 0 | K218: 0 | M218: 0
B219: 3. Hospitalizados por EDA (Egresos) | M219: =SUM(G219:L219) -> 0
B221: C. ANEMIA Y PARASITOSIS
B222: CAUSAS DE MORBILIDAD | E222: Diagnósticado
E223: Total | G223: RN | I223: < 01 año | K223: 01 año | M223: 02 años | O223: 03 años | Q223: 04 años | S223: 05 - 11 años
E224: Dx. | F224: Recup. | G224: Dx. | H224: Recup. | I224: Dx. | J224: Recup. | K224: Dx. | L224: Recup. | M224: Dx. | N224: Recup. | O224: Dx. | P224: Recup. | Q224: Dx. | R224: Recup. | S224: Dx. | T224: Recup.
B225: Anemia por Deficiencia de Hierro | E225: =G225+I225+K225+M225+O225+Q225+S225 -> 77 | F225: =H225+J225+L225+N225+P225+R225+T225 -> 15 | G225: 0 | H225: 0 | I225: 41 | J225: 0 | K225: 28 | L225: 8 | M225: 3 | N225: 2 | O225: 0 | P225: 1 | Q225: 2 | R225: 2 | S225: 3 | T225: 2
B226: Parasitosis Intestinal | E226: =G226+I226+K226+M226+O226+Q226+S226 -> 13 | F226: =H226+J226+L226+N226+P226+R226+T226 -> 0 | G226: 0 | H226: 0 | I226: 0 | J226: 0 | K226: 1 | L226: 0 | M226: 2 | N226: 0 | O226: 1 | P226: 0 | Q226: 2 | R226: 0 | S226: 7 | T226: 0
B228: XVI. DEFUNCIONES
B229: GRUPOS DE EDAD | D229: Intrahospitalario | J229: Extrahospitalario | P229: TOTAL
D230: IRA | F230: EDA | H230: Todas las Causas | J230: IRA | L230: EDA | N230: Todas las Causas
B231: < 29 días | P231: =SUM(D231:O231) -> 0
B232: 29 días a 59 días | P232: 0
B233: 02 meses a 11 meses | P233: 0
... 23 more rows

Sheet octubre
AZ3: REPORTE MENSUAL DE ACTIVIDADES ATENCIÓN INTEGRAL DE SALUD DEL NIÑO
B5: Periodo: OCTUBRE MICRO RED
B6: Diresa/Red/M.Red/EE.SS: AREQUIPA/AREQUIPA CAYLLOMA/TODAS LAS MICRO REDES/TODOS LOS EE.SS
C9: I. ATENCIÓN DEL RECIÉN NACIDO
C11: A) Atención Inmediata
C13: ACTIVIDADES | X13: Nº
C14: Atención Inmediata | X14: 0
C15: Tamizaje Neonatal (Enfermed. Metabólicas) | X15: 0
C16: Tamizaje Visual y Auditivo | X16: 0
C17: Contacto Piel a Piel con la madre | X17: 0
C18: Alojamiento Conjunto | X18: 0
C19: Lactancia Materna en la 1º Hora | X19: 0
C21: B) Resultados del Tamizaje Neonatal
C23: DIAGNÓSTICOS | X23: Nº
C24: Hipotiroidismo Congénito | X24: 0
C25: Fenilcetonuria | X25: 0
C26: Galactosemia | X26: 0
C27: Hiperplasia Suprarrenal Congénita | X27: 0
C28: Fibrosis Quística | X28: 0
C29: Catarata Congénita | X29: 0
C30: Hipoacusia (todas las clasificaciones) | X30: 0
C33: D) Morbilidad Neonatal
C35: CAUSAS DE MORBILIDAD | Z35: Nº
C36: Síndrome de Dristres Respiratorio | Z36: 0
C37: Síndromes de Aspiración Neonatal | Z37: 0
C38: Asfixia Neonatal | Z38: 0
C39: Sepsis Neonatal | Z39: 0
C40: Ictericia | Z40: 1
C41: Hipoglucemia | Z41: 0
C42: Sífilis Congénita | Z42: 0
C43: VIH Expuesto | Z43: 0
C44: Retinopatía de la Prematuridad | Z44: 0
C47: II. CONTROL DE CRECIMIENTO Y DESARROLLO
C49: Grupo de Edad | K49: Número de Controles
K50: 1º | R50: 2º | AB50: 3º | AS50: 4º | BG50: 5º | BR50: 6º | CH50: 7º | CZ50: 8º | DN50: 9º | EG50: 10º | EP50: 11º | FD50: SN | FO50: TOTAL
C51: De 1d a 7d | K51: 0 | Q51: 0 | R51: 0 | AA51: 0 | AB51: 0 | AR51: 0 | AS51: 0 | BF51: 0 | BG51: 0 | BQ51: 0 | BR51: 0 | CG51: 0 | CH51: 0 | CY51: 0 | CZ51: 0 | DM51: 0 | DN51: 0 | EF51: 0 | EG51: 0 | EO51: 0 | EP51: 0 | FC51: 0 | FD51: 0 | FN51: 0 | FO51: 0
C52: De 8d a 14d | K52: 0 | Q52: 0 | R52: 0 | AA52: 0 | AB52: 0 | AR52: 0 | AS52: 0 | BF52: 0 | BG52: 0 | BQ52: 0 | BR52: 0 | CG52: 0 | CH52: 0 | CY52: 0 | CZ52: 0 | DM52: 0 | DN52: 0 | EF52: 0 | EG52: 0 | EO52: 0 | EP52: 0 | FC52: 0 | FD52: 0 | FN52: 0 | FO52: 0
C53: De 15d a 21d | K53: 0 | Q53: 0 | R53: 0 | AA53: 0 | AB53: 0 | AR53: 0 | AS53: 0 | BF53: 0 | BG53: 0 | BQ53: 0 | BR53: 0 | CG53: 0 | CH53: 0 | CY53: 0 | CZ53: 0 | DM53: 0 | DN53: 0 | EF53: 0 | EG53: 0 | EO53: 0 | EP53: 0 | FC53: 0 | FD53: 0 | FN53: 0 | FO53: 0
C54: De 22d a +d | K54: 0 | Q54: 0 | R54: 0 | AA54: 0 | AB54: 0 | AR54: 0 | AS54: 0 | BF54: 0 | BG54: 0 | BQ54: 0 | BR54: 0 | CG54: 0 | CH54: 0 | CY54: 0 | CZ54: 0 | DM54: 0 | DN54: 0 | EF54: 0 | EG54: 0 | EO54: 0 | EP54: 0 | FC54: 0 | FD54: 0 | FN54: 0 | FO54: 0
C55: 29 días - 11 meses | K55: 0 | Q55: 0 | R55: 0 | AA55: 0 | AB55: 0 | AR55: 0 | AS55: 0 | BF55: 0 | BG55: 0 | BQ55: 0 | BR55: 0 | CG55: 0 | CH55: 0 | CY55: 0 | CZ55: 0 | DM55: 0 | DN55: 0 | EF55: 0 | EG55: 0 | EO55: 0 | EP55: 0 | FC55: 0 | FD55: 0 | FN55: 0 | FO55: 0
C56: 01 año | K56: 0 | Q56: 0 | R56: 0 | AA56: 0 | AB56: 0 | AR56: 0 | AS56: 0 | BF56: 0 | BG56: 0 | BQ56: 0 | BR56: 0 | CG56: 0 | CH56: 0 | CY56: 0 | CZ56: 0 | DM56: 0 | DN56: 0 | EF56: 0 | EG56: 0 | EO56: 0 | EP56: 0 | FC56: 0 | FD56: 0 | FN56: 0 | FO56: 0
C57: 02 años | K57: 0 | Q57: 0 | R57: 0 | AA57: 0 | AB57: 0 | AR57: 0 | AS57: 0 | BF57: 0 | BG57: 0 | BQ57: 0 | BR57: 0 | CG57: 0 | CH57: 0 | CY57: 0 | CZ57: 0 | DM57: 0 | DN57: 0 | EF57: 0 | EG57: 0 | EO57: 0 | EP57: 0 | FC57: 0 | FD57: 0 | FN57: 0 | FO57: 0
C58: 03 años | K58: 0 | Q58: 0 | R58: 0 | AA58: 0 | AB58: 0 | AR58: 0 | AS58: 0 | BF58: 0 | BG58: 0 | BQ58: 0 | BR58: 0 | CG58: 0 | CH58: 0 | CY58: 0 | CZ58: 0 | DM58: 0 | DN58: 0 | EF58: 0 | EG58: 0 | EO58: 0 | EP58: 0 | FC58: 0 | FD58: 0 | FN58: 0 | FO58: 0
C59: 04 años | K59: 0 | Q59: 0 | R59: 0 | AA59: 0 | AB59: 0 | AR59: 0 | AS59: 0 | BF59: 0 | BG59: 0 | BQ59: 0 | BR59: 0 | CG59: 0 | CH59: 0 | CY59: 0 | CZ59: 0 | DM59: 0 | DN59: 0 | EF59: 0 | EG59: 0 | EO59: 0 | EP59: 0 | FC59: 0 | FD59: 0 | FN59: 0 | FO59: 0
C60: 05 a 11 años | K60: 0 | Q60: 0 | R60: 0 | AA60: 0 | AB60: 0 | AR60: 0 | AS60: 0 | BF60: 0 | BG60: 0 | BQ60: 0 | BR60: 0 | CG60: 0 | CH60: 0 | CY60: 0 | CZ60: 0 | DM60: 0 | DN60: 0 | EF60: 0 | EG60: 0 | EO60: 0 | EP60: 0 | FC60: 0 | FD60: 0 | FN60: 0 | FO60: 0
C63: Evaluación del Estado Nutricional Antropométricas (Por personal técnico)
C65: Grupo de Edad | J65: Número de Evaluaciones Antropométricas
J66: 1º | Q66: 2º | AA66: 3º | AR66: 4º | BF66: 5º | BQ66: 6º | CG66: 7º | CY66: 8º | DM66: 9º | EF66: 10º | EO66: 11º | FC66: SN | FN66: TOTAL
C67: De 1d a 7d | J67: 0 | Q67: 0 | AA67: 0 | AR67: 0 | BE67: 0 | BF67: 0 | BQ67: 0 | CG67: 0 | CY67: 0 | DM67: 0 | EF67: 0 | EO67: 0 | FC67: 0 | FN67: 0
C68: De 8d a 14d | J68: 0 | Q68: 0 | AA68: 0 | AR68: 0 | BE68: 0 | BF68: 0 | BQ68: 0 | CG68: 0 | CY68: 0 | DM68: 0 | EF68: 0 | EO68: 0 | FC68: 0 | FN68: 0
C69: De 15d a 21d | J69: 0 | Q69: 0 | AA69: 0 | AR69: 0 | BE69: 0 | BF69: 0 | BQ69: 0 | CG69: 0 | CY69: 0 | DM69: 0 | EF69: 0 | EO69: 0 | FC69: 0 | FN69: 0
C70: De 22d a +d | J70: 0 | Q70: 0 | AA70: 0 | AR70: 0 | BE70: 0 | BF70: 0 | BQ70: 0 | CG70: 0 | CY70: 0 | DM70: 0 | EF70: 0 | EO70: 0 | FC70: 0 | FN70: 0
C71: 29 días - 11 meses | J71: 0 | Q71: 0 | AA71: 0 | AR71: 0 | BE71: 0 | BF71: 0 | BQ71: 0 | CG71: 0 | CY71: 0 | DM71: 0 | EF71: 0 | EO71: 0 | FC71: 0 | FN71: 0
C72: 01 año | J72: 0 | Q72: 0 | AA72: 0 | AR72: 0 | BE72: 0 | BF72: 0 | BQ72: 0 | CG72: 0 | CY72: 0 | DM72: 0 | EF72: 0 | EO72: 0 | FC72: 0 | FN72: 0
C73: 02 años | J73: 0 | Q73: 0 | AA73: 0 | AR73: 0 | BE73: 0 | BF73: 0 | BQ73: 0 | CG73: 0 | CY73: 0 | DM73: 0 | EF73: 0 | EO73: 0 | FC73: 0 | FN73: 0
C74: 03 años | J74: 0 | Q74: 0 | AA74: 0 | AR74: 0 | BE74: 0 | BF74: 0 | BQ74: 0 | CG74: 0 | CY74: 0 | DM74: 0 | EF74: 0 | EO74: 0 | FC74: 0 | FN74: 0
C75: 04 años | J75: 0 | Q75: 0 | AA75: 0 | AR75: 0 | BE75: 0 | BF75: 0 | BQ75: 0 | CG75: 0 | CY75: 0 | DM75: 0 | EF75: 0 | EO75: 0 | FC75: 0 | FN75: 0
C76: 05 a 11 años | J76: 0 | Q76: 0 | AA76: 0 | AR76: 0 | BE76: 0 | BF76: 0 | BQ76: 0 | CG76: 0 | CY76: 0 | DM76: 0 | EF76: 0 | EO76: 0 | FC76: 0 | FN76: 0
C79: III. TAMIZAJE
C81: ACTIVIDADES | AO81: 01m* | AZ81: 06m | BO81: 01 a | CE81: 02 a | CV81: 03 a | DL81: 04 a | EB81: 05 -11 a | EM81: TOTAL
C82: Detección de Anemia | I82: Solicitud de Dosaje de Hb | AO82: 0 | AZ82: 0 | BO82: 0 | CE82: 0 | CV82: 0 | DL82: 0 | EB82: 0 | EM82: 0
I83: Resultados Evaluados | AO83: 1 | AZ83: 7 | BO83: 69 | CE83: 24 | CV83: 9 | DL83: 5 | EB83: 3 | EM83: 118
C84: Descarte de Parasitosis | I84: Solicitud de Examen | AO84: 0 | AZ84: 0 | BO84: 0 | CE84: 0 | CV84: 0 | DL84: 0 | EB84: 0 | EM84: 0
I85: Resultados Evaluados | AO85: 0 | AZ85: 0 | BO85: 0 | CE85: 0 | CV85: 0 | DL85: 0 | EB85: 0 | EM85: 0
C88: IV. ADMINISTRACIÓN DE PROFILAXIS ANTIPARASITARIA
C90: ACTIVIDADES | AH90: DOSIS
AH91: 01 año | CC91: 02 años | DP91: 03 años | EZ91: 04 años | GL91: 05 - 11 años
AH92: 1º | AZ92: 2º | CC92: 1º | CU92: 2º | DP92: 1º | EK92: 2º | EZ92: 1º | FQ92: 2º | GL92: 1º | GZ92: 2º
C93: Administración de Profilaxis Antiparasitaria | AH93: 0 | AZ93: 0 | CC93: 19 | CU93: 0 | DP93: 8 | EK93: 0 | EZ93: 11 | FQ93: 1 | GL93: 5 | GZ93: 0
C95: IV. ADMINISTRACIÓN DE PROFILAXIS ANTIPARASITARIA
C97: A) Sulfato Ferroso y Multimicronutriente (en polvo)
C99: ACTIVIDADES | R99: DOSIS
R100: 1º | AE100: 2º | AV100: 3º | BK100: 4º | BY100: 5º | CN100: 6º | DD100: 7º | DS100: 8º | EI100: 9º | EV100: 10º | FM100: 11º | FY100: 12º | GG100: TA
C101: < 06 meses (BPN y Prematuros (SF)) | R101: 0 | AD101: 0 | AE101: 0 | AU101: 0 | AV101: 0 | BJ101: 0 | BK101: 0 | BY101: 0 | CM101: 0 | CN101: 0 | DD101: 0 | DS101: 0 | EI101: 0 | EV101: 0 | FL101: 0 | FM101: 0 | FY101: 0 | GG101: 0
C102: De 4 a 5 meses (Sulfato Ferroso) | R102: 0 | AD102: 0 | AE102: 0 | AU102: 0 | AV102: 0 | BJ102: 0 | BK102: 0 | BY102: 0 | CM102: 0 | CN102: 0 | DD102: 0 | DS102: 0 | EI102: 0 | EV102: 0 | FL102: 0 | FM102: 0 | FY102: 0 | GG102: 0
C103: De 6 a 11 meses (MMN) | R103: 4 | AD103: 0 | AE103: 4 | AU103: 0 | AV103: 0 | BJ103: 0 | BK103: 0 | BY103: 0 | CM103: 0 | CN103: 0 | DD103: 0 | DS103: 0 | EI103: 0 | EV103: 0 | FL103: 0 | FM103: 0 | FY103: 0 | GG103: 0
C104: De 1 año (MMN) | R104: 1 | AD104: 0 | AE104: 1 | AU104: 0 | AV104: 2 | BJ104: 0 | BK104: 1 | BY104: 1 | CM104: 0 | CN104: 0 | DD104: 0 | DS104: 0 | EI104: 0 | EV104: 0 | FL104: 0 | FM104: 0 | FY104: 0 | GG104: 1
C105: De 2 año (MMN) | R105: 2 | AD105: 0 | AE105: 0 | AU105: 0 | AV105: 0 | BJ105: 0 | BK105: 2 | BY105: 1 | CM105: 0 | CN105: 1 | DD105: 1 | DS105: 0 | EI105: 0 | EV105: 0 | FL105: 0 | FM105: 0 | FY105: 0 | GG105: 2
C106: De 3 año (MMN) | R106: 0 | AD106: 0 | AE106: 0 | AU106: 0 | AV106: 0 | BJ106: 0 | BK106: 1 | BY106: 0 | CM106: 0 | CN106: 1 | DD106: 0 | DS106: 0 | EI106: 0 | EV106: 0 | FL106: 0 | FM106: 0 | FY106: 0 | GG106: 0
C107: De 4 año (MMN) | R107: 0 | AD107: 0 | AE107: 0 | AU107: 0 | AV107: 0 | BJ107: 0 | BK107: 0 | BY107: 0 | CM107: 0 | CN107: 0 | DD107: 0 | DS107: 0 | EI107: 0 | EV107: 0 | FL107: 0 | FM107: 0 | FY107: 0 | GG107: 0
B110: Polimaltosado
B112: ACTIVIDADES | P112: DOSIS
P113: 1º | AC113: 2º | AT113: 3º | BI113: 4º | BV113: 5º | CK113: 6º | DB113: 7º | DR113: 8º | EH113: 9º | ET113: 10º | FK113: 11º | FX113: 12º | GF113: TA
B114: < 06 meses (BPN y Prematuros) | P114: 0 | AC114: 0 | AT114: 0 | BI114: 0 | BV114: 0 | CK114: 0 | DB114: 0 | DR114: 0 | EH114: 0 | ET114: 0 | FK114: 0 | FX114: 0 | GF114: 0 | GP114: 0
B115: De 4 a 5 meses | P115: 33 | AC115: 2 | AT115: 0 | BI115: 0 | BV115: 0 | CK115: 0 | DB115: 0 | DR115: 0 | EH115: 0 | ET115: 0 | FK115: 0 | FX115: 0 | GF115: 0 | GP115: 0
B116: De 6 a 11 meses | P116: 30 | AC116: 7 | AT116: 3 | BI116: 0 | BV116: 0 | CK116: 0 | DB116: 0 | DR116: 0 | EH116: 0 | ET116: 0 | FK116: 0 | FX116: 0 | GF116: 0 | GP116: 0
B117: De 1 año | P117: 15 | AC117: 17 | AT117: 12 | BI117: 13 | BV117: 6 | CK117: 4 | DB117: 0 | DR117: 0 | EH117: 1 | ET117: 0 | FK117: 0 | FX117: 0 | GF117: 0 | GP117: 0
B118: De 2 años | P118: 3 | AC118: 2 | AT118: 0 | BI118: 4 | BV118: 2 | CK118: 3 | DB118: 0 | DR118: 0 | EH118: 0 | ET118: 0 | FK118: 0 | FX118: 0 | GF118: 0 | GP118: 0
B119: De 3 años | P119: 0 | AC119: 0 | AT119: 0 | BI119: 0 | BV119: 0 | CK119: 0 | DB119: 0 | DR119: 0 | EH119: 0 | ET119: 0 | FK119: 0 | FX119: 0 | GF119: 0 | GP119: 0
B120: De 4 años | P120: 1 | AC120: 0 | AT120: 0 | BI120: 0 | BV120: 0 | CK120: 0 | DB120: 0 | DR120: 0 | EH120: 0 | ET120: 0 | FK120: 0 | FX120: 0 | GF120: 0 | GP120: 0
C123: B) Vitamina "A"
Q125: 06 meses | AU125: 01 año | BY125: 02 años | DD125: 03 años | EI125: 04 años
C126: Dosis | Q126: 1º Dosis | AD126: 2º Dosis | AU126: 1º Dosis | BJ126: 2º Dosis | BY126: 1º Dosis | CN126: 2º Dosis | DD126: 1º Dosis | DS126: 2º Dosis | EI126: 1º Dosis | EV126: 2º Dosis
C127: Suplementados | Q127: 0 | AD127: 0 | AU127: 0 | BJ127: 0 | BY127: 0 | CM127: 0 | CN127: 0 | DD127: 0 | DS127: 0 | EI127: 0 | EV127: 0
C130: VI. LACTANCIA MATERNA EXCLUSIVA
C132: Condición | Q132: Nº
C133: Niños con LME a los 06 meses | Q133: 0
C135: VII. ALIMENTACIÓN COMPLEMENTARIA
C137: Condición | CA137: Nº
C138: Niños con Inicio de Alimentación Complementaria antes de los 06 meses | CA138: 0
C139: Niños con Inicio de Alimentación Complementaria después de los 06 meses | CA139: 0
C140: Niños con Inicio de Alimentación Complementaria Adecuada | CA140: 0
C141: Niños con Inicio de Alimentación Complementaria Inadecuada | CA141: 0
C144: VIII. EVALUACION DEL ESTADO NUTRICIONAL
C146: A) En el Recién Nacido de 01 día a 28 días
C148: Clasificación | O148: Dx | BP148: Nº
C149: RN Bajo Peso Recuperados | O149: RN Bajo Peso Recuperados | BP149: 0
C150: Peso al Nacer | O150: Extremadamente bajo | BP150: 0
O151: Muy bajo peso al nacer | BP151: 0
O152: Bajo peso al nacer | BP152: 0
O153: Normal | BP153: 0
O154: Macrosómico | BP154: 0
C155: Ganancia de Peso / Talla | O155: Ganancia Inadecuada de Peso Dx. | BP155: 0
O156: Ganancia Inadecuada de Peso Recup. | BP156: 0
O157: Ganancia Inadecuada de Talla Dx. | BP157: 0
O158: Ganancia Inadecuada de Talla Recup. | BP158: 0
C160: B) En los Niños y Niñas de 29 días a < 05 años
C162: Grupo de Edad | E162: Ganancia Inadecuada de Peso o Talla | BB162: Normal
E163: Peso | S163: Talla | BB163: Normal
E164: Dx. | L164: Recup. | S164: Dx. | AI164: Recup. | BB164: Normal
C165: < 1 año | E165: 10 | L165: 0 | S165: 2 | AI165: 0 | BB165: 78
C166: 1 año | E166: 5 | L166: 1 | S166: 0 | AI166: 1 | BB166: 80
C167: 2 años | E167: 1 | L167: 0 | S167: 5 | AI167: 0 | BB167: 35
C168: 3 años | E168: 0 | L168: 0 | S168: 3 | AI168: 0 | BB168: 13
C169: 4 años | E169: 1 | L169: 0 | S169: 1 | AI169: 0 | BB169: 21
C172: Grupo de Edad | D172: Peso para la Edad (PE) | BC172: Peso para la Edad (TP) | GI172: Talla para la Edad (TE)
D173: Sobrepeso | T173: Desnutrición | BC173: Obesidad | CP173: Sobrepeso | EC173: Desnutrición Aguda | FG173: Desnutrición Severa | GI173: Alto | HB173: Talla Baja
D174: Dx. | L174: Recup. | T174: Dx. | AJ174: Recup. | BC174: Dx. | BW174: Recup. | CP174: Dx. | DI174: Recup. | EC174: Dx. | EQ174: Recup. | FG174: Dx. | FU174: Recup. | GI174: Dx. | GV174: Recup. | HB174: Dx. | HI174: Recup.
C175: < 1 año | D175: 1 | L175: 0 | T175: 1 | AJ175: 0 | BC175: 1 | BW175: 0 | CP175: 3 | DI175: 0 | EC175: 0 | EQ175: 0 | FG175: 0 | FU175: 0 | GI175: 0 | GV175: 0 | HB175: 1 | HI175: 0
C176: 1 año | D176: 0 | L176: 0 | T176: 1 | AJ176: 0 | BC176: 0 | BW176: 0 | CP176: 1 | DI176: 0 | EC176: 0 | EQ176: 0 | FG176: 0 | FU176: 0 | GI176: 0 | GV176: 0 | HB176: 1 | HI176: 0
C177: 2 años | D177: 0 | L177: 0 | T177: 0 | AJ177: 0 | BC177: 0 | BW177: 0 | CP177: 1 | DI177: 0 | EC177: 0 | EQ177: 0 | FG177: 0 | FU177: 0 | GI177: 0 | GV177: 0 | HB177: 0 | HI177: 0
C178: 3 años | D178: 1 | L178: 0 | T178: 0 | AJ178: 0 | BC178: 2 | BW178: 0 | CP178: 1 | DI178: 0 | EC178: 0 | EQ178: 0 | FG178: 0 | FU178: 0 | GI178: 0 | GV178: 0 | HB178: 1 | HI178: 0
C179: 4 años | D179: 0 | L179: 0 | T179: 0 | AJ179: 0 | BC179: 0 | BW179: 0 | CP179: 1 | DI179: 0 | EC179: 0 | EQ179: 0 | FG179: 0 | FU179: 0 | GI179: 0 | GV179: 0 | HB179: 2 | HI179: 0
C182: C) En los Niños y Niñas de 05 a 11 años
C184: Grupo de Edad | E184: Índice de Masa Cororal (IMC) | DY184: Talla para la Edad (TE) | HA184: Normal
E185: Obesidad | S185: Sobrepeso | BB185: Delgadez | CO185: Delgadez Severa | DY185: Alto | FF185: Talla Baja | GE185: Talla Baja Severa | HA185: Normal
E186: Dx. | L186: Recup. | S186: Dx. | AI186: Recup. | BB186: Dx. | BT186: Recup. | CO186: Dx. | DE186: Recup. | DY186: Dx. | EN186: Recup. | FF186: Dx. | FR186: Recup. | GE186: Dx. | GS186: Recup. | HA186: Normal
C187: 05 a 11 años | E187: 4 | L187: 0 | S187: 5 | AI187: 0 | BB187: 0 | BS187: 0 | BT187: 0 | CO187: 0 | DE187: 0 | DY187: 1 | EN187: 0 | FF187: 0 | FR187: 0 | GE187: 0 | GS187: 0 | HA187: 8
C189: IX. EVALUACION DEL DESARROLLO
C191: Grupo de Edad | D191: Trastorno del Desarrollo | GJ191: Evaluac. Normal
D192: Lenguaje | U192: Motora | BD192: Social | CQ192: Coordinación | ED192: Cognitiva | FH192: Con + de 1 Trastorno | GJ192: Evaluac. Normal
D193: Dx. | L193: Recup. | U193: Dx. | AK193: Recup. | BD193: Dx. | BX193: Recup. | CQ193: Dx. | DJ193: Recup. | ED193: Dx. | ER193: Recup. | FH193: Dx. | FV193: Recup. | GJ193: Evaluac. Normal
C194: < 1 año | D194: 0 | L194: 0 | T194: 0 | U194: 0 | AJ194: 0 | AK194: 0 | BC194: 0 | BD194: 0 | BW194: 0 | BX194: 0 | CP194: 0 | CQ194: 0 | DI194: 0 | DJ194: 0 | EC194: 0 | ED194: 0 | EQ194: 0 | ER194: 0 | FG194: 0 | FH194: 0 | FU194: 0 | FV194: 0 | GI194: 0 | GJ194: 0
C195: 1 año | D195: 0 | L195: 0 | T195: 0 | U195: 0 | AJ195: 0 | AK195: 0 | BC195: 0 | BD195: 0 | BW195: 0 | BX195: 0 | CP195: 0 | CQ195: 0 | DI195: 0 | DJ195: 0 | EC195: 0 | ED195: 0 | EQ195: 0 | ER195: 0 | FG195: 0 | FH195: 0 | FU195: 0 | FV195: 0 | GI195: 0 | GJ195: 0
C196: 2 años | D196: 0 | L196: 0 | T196: 0 | U196: 0 | AJ196: 0 | AK196: 0 | BC196: 0 | BD196: 0 | BW196: 0 | BX196: 0 | CP196: 0 | CQ196: 0 | DI196: 0 | DJ196: 0 | EC196: 0 | ED196: 0 | EQ196: 0 | ER196: 0 | FG196: 0 | FH196: 0 | FU196: 0 | FV196: 0 | GI196: 0 | GJ196: 0
C199: Grupo de Edad | D199: Déficit del Desarrollo | GJ199: Evaluac. Normal
D200: Lenguaje | U200: Motora | BD200: Social | CQ200: Coordinación | ED200: Cognitiva | FH200: Más de 1 Déficit | GJ200: Evaluac. Normal
D201: Dx. | L201: Recup. | U201: Dx. | AK201: Recup. | BD201: Dx. | BX201: Recup. | CQ201: Dx. | DJ201: Recup. | ED201: Dx. | ER201: Recup. | FH201: Dx. | FV201: Recup. | GJ201: Evaluac. Normal
C202: 03 años | D202: 0 | L202: 0 | T202: 0 | U202: 0 | AJ202: 0 | AK202: 0 | BC202: 0 | BD202: 0 | BW202: 0 | BX202: 0 | CP202: 0 | CQ202: 0 | DI202: 0 | DJ202: 0 | EC202: 0 | ED202: 0 | EQ202: 0 | ER202: 0 | FG202: 0 | FH202: 0 | FU202: 0 | FV202: 0 | GI202: 0 | GJ202: 0
C203: 04 años | D203: 0 | L203: 0 | T203: 0 | U203: 0 | AJ203: 0 | AK203: 0 | BC203: 0 | BD203: 0 | BW203: 0 | BX203: 0 | CP203: 0 | CQ203: 0 | DI203: 0 | DJ203: 0 | EC203: 0 | ED203: 0 | EQ203: 0 | ER203: 0 | FG203: 0 | FH203: 0 | FU203: 0 | FV203: 0 | GI203: 0 | GJ203: 0
C205: X. PLAN DE ATENCION INTEGRAL
C207: Edades | F207: RN | M207: <1 año | V207: 01 año | AL207: 02 años | BE207: 03 años | BZ207: 04 años | CR207: 05 años | DK207: 06 años | EE207: 07 años | ES207: 08 años | FI207: 09 años | FW207: 10 años | GK207: 11 años
C208: Elaborado | F208: 0 | M208: 0 | V208: 0 | AL208: 0 | BE208: 0 | BZ208: 0 | CR208: 0 | DK208: 0 | EE208: 0 | ES208: 0 | FI208: 0 | FW208: 0 | GK208: 0
C209: Ejecutado | F209: 0 | M209: 0 | V209: 0 | AL209: 0 | BE209: 0 | BZ209: 0 | CR209: 0 | DK209: 0 | EE209: 0 | ES209: 0 | FI209: 0 | FW209: 0 | GK209: 0
C212: XI. CONSEJERÍA
C214: Tipos / Edades | AH214: TOTAL | AX214: RN | BN214: <1 año | CI214: 01 año | DC214: 02 años | DX214: 03 años | EL214: 04 años | FE214: 05 - 11 a
C215: Nutricional por Suplementación | AH215: 0 | AX215: 0 | BN215: 0 | CI215: 0 | DC215: 0 | DX215: 0 | EL215: 0 | FE215: 0
C216: Nutricional por Eval. PE, TP, TE, IMC | AH216: 588 | AX216: 0 | BN216: 220 | CI216: 262 | DC216: 50 | DX216: 18 | EL216: 19 | FE216: 19
C217: Integral por Eval. del Desarrollo | AH217: 0 | AX217: 0 | BN217: 0 | CI217: 0 | DC217: 0 | DX217: 0 | EL217: 0 | FE217: 0
C218: Integral por Aliment. Complement. | AH218: 0 | AX218: 0 | BN218: 0 | CI218: 0 | DC218: 0 | DX218: 0 | EL218: 0 | FE218: 0
C221: XII. VISITA DOMICILIARIA
C223: Tipos de Visita / Edades | AH223: TOTAL | AX223: RN | BN223: <1 año | CI223: 01 año | DC223: 02 años | DX223: 03 años | EL223: 04 años | FE223: 05 - 11 a
C224: Seguimiento al Control CRED | AH224: 0 | AX224: 0 | BN224: 0 | CI224: 0 | DC224: 0 | DX224: 0 | EL224: 0 | FE224: 0
C225: Seguimiento a Problemas Nutricionales | AH225: 0 | AX225: 0 | BN225: 0 | CI225: 0 | DC225: 0 | DX225: 0 | EL225: 0 | FE225: 0
C226: Seguimiento a Problemas del Desarrollo | AH226: 0 | AX226: 0 | BN226: 0 | CI226: 0 | DC226: 0 | DX226: 0 | EL226: 0 | FE226: 0
C227: Entrega de Suplementación | AH227: 33 | AX227: 0 | BN227: 12 | CI227: 19 | DC227: 1 | DX227: 1 | EL227: 0 | FE227: 0
C228: Verificación de Consumo de Micronutrientes | AH228: 0 | AX228: 0 | BN228: 0 | CI228: 0 | DC228: 0 | DX228: 0 | EL228: 0 | FE228: 0
C229: Seguimiento de IRA | AH229: 0 | AX229: 0 | BN229: 0 | CI229: 0 | DC229: 0 | DX229: 0 | EL229: 0 | FE229: 0
C230: Seguimiento de EDA | AH230: 0 | AX230: 0 | BN230: 0 | CI230: 0 | DC230: 0 | DX230: 0 | EL230: 0 | FE230: 0
C231: Seguimiento de Anemia | AH231: 4 | AX231: 0 | BN231: 2 | CI231: 2 | DC231: 0 | DX231: 0 | EL231: 0 | FE231: 0
C234: XIII. ESTIMULACION TEMPRANA
C236: Edad | G236: 1º | N236: 2º | AF236: 3º | AW236: 4º | BM236: 5º | CD236: 6º
C237: Recién Nacido | G237: 0 | N237: 0 | AF237: 0 | AW237: 0 | BM237: 0 | CD237: 0
C238: < 01 año | G238: 0 | N238: 0 | AF238: 0 | AW238: 0 | BM238: 0 | CD238: 0
C239: 01 año | G239: 0 | N239: 0 | AF239: 0 | AW239: 0 | BM239: 0 | CD239: 0
C240: 02 años | G240: 0 | N240: 0 | AF240: 0 | AW240: 0 | BM240: 0 | CD240: 0
C241: 03 años | G241: 0 | N241: 0 | AF241: 0 | AW241: 0 | BM241: 0 | CD241: 0
C243: XIV. ACTIVIDADES EXTRAMURALES, MASIVAS Y DE GESTIÓN
C245: Unidad Medida | G245: Actividad Extramural | BA245: Actividades de Gestión
G246: Sesiones Demostrativas | W246: Sesiones Educativas | BA246: Evaluación | CJ246: Supervisión | DQ246: Asistencia Técnica | EU246: Reu.Téc: Personal de Salud | FZ246: Reu.Téc: Agente Com. de Salud
C247: Actividades | G247: 0 | W247: 0 | BA247: 0 | CJ247: 0 | DQ247: 0 | EU247: 0 | FZ247: 0
C248: Participantes | G248: 0 | W248: 0 | BA248: 0 | CJ248: 0 | DQ248: 0 | EU248: 0 | FZ248: 0
C250: XV. ATENCION DE LAS ENFERMEDADES PREVALENTES DE LA INFANCIA
C252: A. INFECCIÓN RESPIRATORIA AGUDA
C254: DIAGNÓSTICOS | CX254: Grupo Edad
CX255: < 29 Días | EA255: 29 d a 59 Días | EX255: 02 - 11 Meses | GB255: 01 - 04 Años | GO255: 05 - 11 Años | HE255: TOTAL
C256: 1.1 N° casos de IRA sin complicaciones (a+b+c+d+e) | AH256: a. Infección Respiratoria Aguda (IRA) no complicada | CX256: 1 | DZ256: 0 | EA256: 1 | EW256: 0 | EX256: 8 | GA256: 0 | GB256: 9 | GN256: 0 | GO256: 2 | HD256: 0 | HE256: 21
AH257: b. Faringoamigdalitis Aguda | CX257: 0 | DZ257: 0 | EA257: 0 | EW257: 0 | EX257: 3 | GA257: 0 | GB257: 6 | GN257: 0 | GO257: 0 | HD257: 0 | HE257: 9
AH258: c. Otitis Media Aguda (OMA) | CX258: 0 | DZ258: 0 | EA258: 0 | EW258: 0 | EX258: 0 | GA258: 0 | GB258: 0 | GN258: 0 | GO258: 0 | HD258: 0 | HE258: 0
AH259: d. Sinusitis Aguda | CX259: 0 | DZ259: 0 | EA259: 0 | EW259: 0 | EX259: 0 | GA259: 0 | GB259: 0 | GN259: 0 | GO259: 0 | HD259: 0 | HE259: 0
AH260: e. Neumonía sin complicaciones | CX260: 0 | DZ260: 0 | EA260: 0 | EW260: 0 | EX260: 0 | GA260: 0 | GB260: 0 | GN260: 0 | GO260: 0 | HD260: 0 | HE260: 0
C261: 1.2 N° casos IRA con complicaciones (a+b+c) | AH261: a. Infecciones Respiratorias Agudas con complicaciones | CX261: 0 | DZ261: 0 | EA261: 0 | EW261: 0 | EX261: 0 | GA261: 0 | GB261: 0 | GN261: 0 | GO261: 0 | HD261: 0 | HE261: 0
AH262: b. Neumonía Grave o Enfermedad Muy Grave en Niños Menores de 2 Meses | CX262: 0 | DZ262: 0 | EA262: 0 | EW262: 0 | EX262: 0 | GA262: 0 | GB262: 0 | GN262: 0 | GO262: 0 | HD262: 0 | HE262: 0
AH263: c. Neumonía y Enfermedad Muy Grave en Niños de 2 Meses a 4 Años | CX263: 0 | DZ263: 0 | EA263: 0 | EW263: 0 | EX263: 0 | GA263: 0 | GB263: 0 | GN263: 0 | GO263: 0 | HD263: 0 | HE263: 0
C266: DIAGNÓSTICOS | CW266: < 29 Días | DZ266: 29 d a 59 Días | EW266: 02 - 11 Meses | GA266: 12 - 23 Meses | GN266: 02- 02 Años con 11 Meses | HD266: 03 - 04 Años | HM266: 05 - 11 Años | HR266: TOTAL
C267: 1.3 SOB/Asma | AH267: a. SOB/Asma | CW267: 0 | DZ267: 0 | EW267: 0 | GA267: 0 | GN267: 0 | HD267: 0 | HM267: 0 | HR267: 0
C269: B. ENFERMEDAD DIARREICA AGUDA
C271: DIAGNÓSTICOS | CW271: Grupo Edad
CW272: < 01 Año | DZ272: 01 - 04 Años | EW272: 05 - 11 Años | GA272: TOTAL
C273: 1. Enfermedades Diarreicas sin complicaciones ( a + b + c) | AH273: a. Diarrea Aguda Acuosa sin deshidratación | CW273: 4 | DZ273: 13 | EW273: 2 | GA273: 19
... 29 more rows

Sheet NOVIEMBRE
AZ3: REPORTE MENSUAL DE ACTIVIDADES ATENCIÓN INTEGRAL DE SALUD DEL NIÑO
B5: Periodo: NOVIEMBRE MICRO RED
B6: Diresa/Red/M.Red/EE.SS: AREQUIPA/AREQUIPA CAYLLOMA/TODAS LAS MICRO REDES/TODOS LOS EE.SS
C9: I. ATENCIÓN DEL RECIÉN NACIDO
C11: A) Atención Inmediata
C13: ACTIVIDADES | X13: Nº
C14: Atención Inmediata | X14: 0
C15: Tamizaje Neonatal (Enfermed. Metabólicas) | X15: 0
C16: Tamizaje Visual y Auditivo | X16: 0
C17: Contacto Piel a Piel con la madre | X17: 0
C18: Alojamiento Conjunto | X18: 0
C19: Lactancia Materna en la 1º Hora | X19: 9
C21: B) Resultados del Tamizaje Neonatal
C23: DIAGNÓSTICOS | X23: Nº
C24: Hipotiroidismo Congénito | X24: 0
C25: Fenilcetonuria | X25: 0
C26: Galactosemia | X26: 0
C27: Hiperplasia Suprarrenal Congénita | X27: 0
C28: Fibrosis Quística | X28: 0
C29: Catarata Congénita | X29: 0
C30: Hipoacusia (todas las clasificaciones) | X30: 0
C33: D) Morbilidad Neonatal
C35: CAUSAS DE MORBILIDAD | Z35: Nº
C36: Síndrome de Dristres Respiratorio | Z36: 0
C37: Síndromes de Aspiración Neonatal | Z37: 0
C38: Asfixia Neonatal | Z38: 0
C39: Sepsis Neonatal | Z39: 0
C40: Ictericia | Z40: 4
C41: Hipoglucemia | Z41: 0
C42: Sífilis Congénita | Z42: 0
C43: VIH Expuesto | Z43: 0
C44: Retinopatía de la Prematuridad | Z44: 0
C47: II. CONTROL DE CRECIMIENTO Y DESARROLLO
C49: Grupo de Edad | K49: Número de Controles
K50: 1º | R50: 2º | AB50: 3º | AS50: 4º | BG50: 5º | BR50: 6º | CH50: 7º | CZ50: 8º | DN50: 9º | EG50: 10º | EP50: 11º | FD50: SN | FO50: TOTAL
C51: De 1d a 7d | K51: 0 | Q51: 0 | R51: 0 | AA51: 0 | AB51: 0 | AR51: 0 | AS51: 0 | BF51: 0 | BG51: 0 | BQ51: 0 | BR51: 0 | CG51: 0 | CH51: 0 | CY51: 0 | CZ51: 0 | DM51: 0 | DN51: 0 | EF51: 0 | EG51: 0 | EO51: 0 | EP51: 0 | FC51: 0 | FD51: 0 | FN51: 0 | FO51: 0
C52: De 8d a 14d | K52: 0 | Q52: 0 | R52: 0 | AA52: 0 | AB52: 0 | AR52: 0 | AS52: 0 | BF52: 0 | BG52: 0 | BQ52: 0 | BR52: 0 | CG52: 0 | CH52: 0 | CY52: 0 | CZ52: 0 | DM52: 0 | DN52: 0 | EF52: 0 | EG52: 0 | EO52: 0 | EP52: 0 | FC52: 0 | FD52: 0 | FN52: 0 | FO52: 0
C53: De 15d a 21d | K53: 0 | Q53: 0 | R53: 0 | AA53: 0 | AB53: 0 | AR53: 0 | AS53: 0 | BF53: 0 | BG53: 0 | BQ53: 0 | BR53: 0 | CG53: 0 | CH53: 0 | CY53: 0 | CZ53: 0 | DM53: 0 | DN53: 0 | EF53: 0 | EG53: 0 | EO53: 0 | EP53: 0 | FC53: 0 | FD53: 0 | FN53: 0 | FO53: 0
C54: De 22d a +d | K54: 0 | Q54: 0 | R54: 0 | AA54: 0 | AB54: 0 | AR54: 0 | AS54: 0 | BF54: 0 | BG54: 0 | BQ54: 0 | BR54: 0 | CG54: 0 | CH54: 0 | CY54: 0 | CZ54: 0 | DM54: 0 | DN54: 0 | EF54: 0 | EG54: 0 | EO54: 0 | EP54: 0 | FC54: 0 | FD54: 0 | FN54: 0 | FO54: 0
C55: 29 días - 11 meses | K55: 0 | Q55: 0 | R55: 0 | AA55: 0 | AB55: 0 | AR55: 0 | AS55: 1 | BF55: 0 | BG55: 0 | BQ55: 0 | BR55: 0 | CG55: 0 | CH55: 0 | CY55: 0 | CZ55: 0 | DM55: 0 | DN55: 0 | EF55: 0 | EG55: 0 | EO55: 0 | EP55: 0 | FC55: 0 | FD55: 9 | FN55: 0 | FO55: 10
C56: 01 año | K56: 0 | Q56: 0 | R56: 0 | AA56: 0 | AB56: 0 | AR56: 0 | AS56: 0 | BF56: 0 | BG56: 0 | BQ56: 0 | BR56: 0 | CG56: 0 | CH56: 0 | CY56: 0 | CZ56: 0 | DM56: 0 | DN56: 0 | EF56: 0 | EG56: 0 | EO56: 0 | EP56: 0 | FC56: 0 | FD56: 13 | FN56: 0 | FO56: 13
C57: 02 años | K57: 0 | Q57: 0 | R57: 0 | AA57: 0 | AB57: 0 | AR57: 0 | AS57: 0 | BF57: 0 | BG57: 0 | BQ57: 0 | BR57: 0 | CG57: 0 | CH57: 0 | CY57: 0 | CZ57: 0 | DM57: 0 | DN57: 0 | EF57: 0 | EG57: 0 | EO57: 0 | EP57: 0 | FC57: 0 | FD57: 5 | FN57: 0 | FO57: 5
C58: 03 años | K58: 0 | Q58: 0 | R58: 0 | AA58: 0 | AB58: 0 | AR58: 0 | AS58: 0 | BF58: 0 | BG58: 0 | BQ58: 0 | BR58: 0 | CG58: 0 | CH58: 0 | CY58: 0 | CZ58: 0 | DM58: 0 | DN58: 0 | EF58: 0 | EG58: 0 | EO58: 0 | EP58: 0 | FC58: 0 | FD58: 0 | FN58: 0 | FO58: 0
C59: 04 años | K59: 0 | Q59: 0 | R59: 0 | AA59: 0 | AB59: 0 | AR59: 0 | AS59: 0 | BF59: 0 | BG59: 0 | BQ59: 0 | BR59: 0 | CG59: 0 | CH59: 0 | CY59: 0 | CZ59: 0 | DM59: 0 | DN59: 0 | EF59: 0 | EG59: 0 | EO59: 0 | EP59: 0 | FC59: 0 | FD59: 0 | FN59: 0 | FO59: 0
C60: 05 a 11 años | K60: 0 | Q60: 0 | R60: 0 | AA60: 0 | AB60: 0 | AR60: 0 | AS60: 0 | BF60: 0 | BG60: 0 | BQ60: 0 | BR60: 0 | CG60: 0 | CH60: 0 | CY60: 0 | CZ60: 0 | DM60: 0 | DN60: 0 | EF60: 0 | EG60: 0 | EO60: 0 | EP60: 0 | FC60: 0 | FD60: 0 | FN60: 0 | FO60: 0
C63: Evaluación del Estado Nutricional Antropométricas (Por personal técnico)
C65: Grupo de Edad | J65: Número de Evaluaciones Antropométricas
J66: 1º | Q66: 2º | AA66: 3º | AR66: 4º | BF66: 5º | BQ66: 6º | CG66: 7º | CY66: 8º | DM66: 9º | EF66: 10º | EO66: 11º | FC66: SN | FN66: TOTAL
C67: De 1d a 7d | J67: 0 | Q67: 0 | AA67: 0 | AR67: 0 | BE67: 0 | BF67: 0 | BQ67: 0 | CG67: 0 | CY67: 0 | DM67: 0 | EF67: 0 | EO67: 0 | FC67: 0 | FN67: 0
C68: De 8d a 14d | J68: 0 | Q68: 0 | AA68: 0 | AR68: 0 | BE68: 0 | BF68: 0 | BQ68: 0 | CG68: 0 | CY68: 0 | DM68: 0 | EF68: 0 | EO68: 0 | FC68: 0 | FN68: 0
C69: De 15d a 21d | J69: 0 | Q69: 0 | AA69: 0 | AR69: 0 | BE69: 0 | BF69: 0 | BQ69: 0 | CG69: 0 | CY69: 0 | DM69: 0 | EF69: 0 | EO69: 0 | FC69: 0 | FN69: 0
C70: De 22d a +d | J70: 0 | Q70: 0 | AA70: 0 | AR70: 0 | BE70: 0 | BF70: 0 | BQ70: 0 | CG70: 0 | CY70: 0 | DM70: 0 | EF70: 0 | EO70: 0 | FC70: 0 | FN70: 0
C71: 29 días - 11 meses | J71: 0 | Q71: 0 | AA71: 0 | AR71: 0 | BE71: 0 | BF71: 0 | BQ71: 0 | CG71: 0 | CY71: 0 | DM71: 0 | EF71: 0 | EO71: 0 | FC71: 0 | FN71: 0
C72: 01 año | J72: 0 | Q72: 0 | AA72: 0 | AR72: 0 | BE72: 0 | BF72: 0 | BQ72: 0 | CG72: 0 | CY72: 0 | DM72: 0 | EF72: 0 | EO72: 0 | FC72: 0 | FN72: 0
C73: 02 años | J73: 0 | Q73: 0 | AA73: 0 | AR73: 0 | BE73: 0 | BF73: 0 | BQ73: 0 | CG73: 0 | CY73: 0 | DM73: 0 | EF73: 0 | EO73: 0 | FC73: 0 | FN73: 0
C74: 03 años | J74: 0 | Q74: 0 | AA74: 0 | AR74: 0 | BE74: 0 | BF74: 0 | BQ74: 0 | CG74: 0 | CY74: 0 | DM74: 0 | EF74: 0 | EO74: 0 | FC74: 0 | FN74: 0
C75: 04 años | J75: 0 | Q75: 0 | AA75: 0 | AR75: 0 | BE75: 0 | BF75: 0 | BQ75: 0 | CG75: 0 | CY75: 0 | DM75: 0 | EF75: 0 | EO75: 0 | FC75: 0 | FN75: 0
C76: 05 a 11 años | J76: 0 | Q76: 0 | AA76: 0 | AR76: 0 | BE76: 0 | BF76: 0 | BQ76: 0 | CG76: 0 | CY76: 0 | DM76: 0 | EF76: 0 | EO76: 0 | FC76: 0 | FN76: 0
C79: III. TAMIZAJE
C81: ACTIVIDADES | AO81: 01m* | AZ81: 06m | BO81: 01 a | CE81: 02 a | CV81: 03 a | DL81: 04 a | EB81: 05 -11 a | EM81: TOTAL
C82: Detección de Anemia | I82: Solicitud de Dosaje de Hb | AO82: 0 | AZ82: 0 | BO82: 0 | CE82: 0 | CV82: 0 | DL82: 0 | EB82: 0 | EM82: 0
I83: Resultados Evaluados | AO83: 0 | AZ83: 11 | BO83: 97 | CE83: 37 | CV83: 25 | DL83: 16 | EB83: 16 | EM83: 202
C84: Descarte de Parasitosis | I84: Solicitud de Examen | AO84: 0 | AZ84: 0 | BO84: 0 | CE84: 0 | CV84: 0 | DL84: 0 | EB84: 0 | EM84: 0
I85: Resultados Evaluados | AO85: 0 | AZ85: 0 | BO85: 0 | CE85: 0 | CV85: 0 | DL85: 0 | EB85: 0 | EM85: 0
C88: IV. ADMINISTRACIÓN DE PROFILAXIS ANTIPARASITARIA
C90: ACTIVIDADES | AH90: DOSIS
AH91: 01 año | CC91: 02 años | DP91: 03 años | EZ91: 04 años | GL91: 05 - 11 años
AH92: 1º | AZ92: 2º | CC92: 1º | CU92: 2º | DP92: 1º | EK92: 2º | EZ92: 1º | FQ92: 2º | GL92: 1º | GZ92: 2º
C93: Administración de Profilaxis Antiparasitaria | AH93: 4 | AZ93: 0 | CC93: 94 | CU93: 0 | DP93: 125 | EK93: 0 | EZ93: 142 | FQ93: 1 | GL93: 766 | GZ93: 0
C95: IV. ADMINISTRACIÓN DE PROFILAXIS ANTIPARASITARIA
C97: A) Sulfato Ferroso y Multimicronutriente (en polvo)
C99: ACTIVIDADES | R99: DOSIS
R100: 1º | AE100: 2º | AV100: 3º | BK100: 4º | BY100: 5º | CN100: 6º | DD100: 7º | DS100: 8º | EI100: 9º | EV100: 10º | FM100: 11º | FY100: 12º | GG100: TA
C101: < 06 meses (BPN y Prematuros (SF)) | R101: 0 | AD101: 0 | AE101: 0 | AU101: 0 | AV101: 0 | BJ101: 0 | BK101: 0 | BY101: 0 | CM101: 0 | CN101: 0 | DD101: 0 | DS101: 0 | EI101: 0 | EV101: 0 | FL101: 0 | FM101: 0 | FY101: 0 | GG101: 0
C102: De 4 a 5 meses (Sulfato Ferroso) | R102: 0 | AD102: 0 | AE102: 0 | AU102: 0 | AV102: 0 | BJ102: 0 | BK102: 0 | BY102: 0 | CM102: 0 | CN102: 0 | DD102: 0 | DS102: 0 | EI102: 0 | EV102: 0 | FL102: 0 | FM102: 0 | FY102: 0 | GG102: 0
C103: De 6 a 11 meses (MMN) | R103: 18 | AD103: 0 | AE103: 13 | AU103: 0 | AV103: 6 | BJ103: 0 | BK103: 2 | BY103: 1 | CM103: 0 | CN103: 0 | DD103: 0 | DS103: 0 | EI103: 0 | EV103: 0 | FL103: 0 | FM103: 0 | FY103: 0 | GG103: 0
C104: De 1 año (MMN) | R104: 9 | AD104: 0 | AE104: 12 | AU104: 0 | AV104: 8 | BJ104: 0 | BK104: 10 | BY104: 7 | CM104: 0 | CN104: 3 | DD104: 2 | DS104: 0 | EI104: 0 | EV104: 1 | FL104: 0 | FM104: 0 | FY104: 0 | GG104: 1
C105: De 2 año (MMN) | R105: 5 | AD105: 0 | AE105: 4 | AU105: 0 | AV105: 2 | BJ105: 0 | BK105: 3 | BY105: 2 | CM105: 0 | CN105: 3 | DD105: 1 | DS105: 0 | EI105: 2 | EV105: 0 | FL105: 0 | FM105: 0 | FY105: 1 | GG105: 0
C106: De 3 año (MMN) | R106: 1 | AD106: 0 | AE106: 0 | AU106: 0 | AV106: 0 | BJ106: 0 | BK106: 0 | BY106: 0 | CM106: 0 | CN106: 0 | DD106: 0 | DS106: 0 | EI106: 0 | EV106: 0 | FL106: 0 | FM106: 0 | FY106: 0 | GG106: 0
C107: De 4 año (MMN) | R107: 2 | AD107: 0 | AE107: 0 | AU107: 0 | AV107: 0 | BJ107: 0 | BK107: 0 | BY107: 0 | CM107: 0 | CN107: 0 | DD107: 0 | DS107: 0 | EI107: 0 | EV107: 0 | FL107: 0 | FM107: 0 | FY107: 0 | GG107: 1
B110: Polimaltosado
B112: ACTIVIDADES | P112: DOSIS
P113: 1º | AC113: 2º | AT113: 3º | BI113: 4º | BV113: 5º | CK113: 6º | DB113: 7º | DR113: 8º | EH113: 9º | ET113: 10º | FK113: 11º | FX113: 12º | GF113: TA
B114: < 06 meses (BPN y Prematuros) | P114: 1 | AC114: 0 | AT114: 0 | BI114: 0 | BV114: 0 | CK114: 0 | DB114: 0 | DR114: 0 | EH114: 0 | ET114: 0 | FK114: 0 | FX114: 0 | GF114: 0 | GP114: 0
B115: De 4 a 5 meses | P115: 18 | AC115: 2 | AT115: 0 | BI115: 0 | BV115: 0 | CK115: 0 | DB115: 0 | DR115: 0 | EH115: 0 | ET115: 0 | FK115: 0 | FX115: 0 | GF115: 0 | GP115: 0
B116: De 6 a 11 meses | P116: 9 | AC116: 4 | AT116: 1 | BI116: 0 | BV116: 0 | CK116: 0 | DB116: 0 | DR116: 0 | EH116: 0 | ET116: 0 | FK116: 0 | FX116: 0 | GF116: 0 | GP116: 0
B117: De 1 año | P117: 1 | AC117: 1 | AT117: 4 | BI117: 0 | BV117: 2 | CK117: 2 | DB117: 0 | DR117: 1 | EH117: 0 | ET117: 0 | FK117: 0 | FX117: 0 | GF117: 0 | GP117: 0
B118: De 2 años | P118: 0 | AC118: 1 | AT118: 0 | BI118: 0 | BV118: 0 | CK118: 0 | DB118: 0 | DR118: 0 | EH118: 0 | ET118: 0 | FK118: 0 | FX118: 0 | GF118: 0 | GP118: 0
B119: De 3 años | P119: 0 | AC119: 0 | AT119: 0 | BI119: 0 | BV119: 0 | CK119: 0 | DB119: 0 | DR119: 0 | EH119: 0 | ET119: 0 | FK119: 0 | FX119: 0 | GF119: 0 | GP119: 0
B120: De 4 años | P120: 0 | AC120: 0 | AT120: 0 | BI120: 0 | BV120: 0 | CK120: 0 | DB120: 0 | DR120: 0 | EH120: 0 | ET120: 0 | FK120: 0 | FX120: 0 | GF120: 0 | GP120: 0
C123: B) Vitamina "A"
Q125: 06 meses | AU125: 01 año | BY125: 02 años | DD125: 03 años | EI125: 04 años
C126: Dosis | Q126: 1º Dosis | AD126: 2º Dosis | AU126: 1º Dosis | BJ126: 2º Dosis | BY126: 1º Dosis | CN126: 2º Dosis | DD126: 1º Dosis | DS126: 2º Dosis | EI126: 1º Dosis | EV126: 2º Dosis
C127: Suplementados | Q127: 0 | AD127: 0 | AU127: 0 | BJ127: 0 | BY127: 0 | CM127: 0 | CN127: 0 | DD127: 0 | DS127: 0 | EI127: 0 | EV127: 0
C130: VI. LACTANCIA MATERNA EXCLUSIVA
C132: Condición | Q132: Nº
C133: Niños con LME a los 06 meses | Q133: 0
C135: VII. ALIMENTACIÓN COMPLEMENTARIA
C137: Condición | CA137: Nº
C138: Niños con Inicio de Alimentación Complementaria antes de los 06 meses | CA138: 1
C139: Niños con Inicio de Alimentación Complementaria después de los 06 meses | CA139: 0
C140: Niños con Inicio de Alimentación Complementaria Adecuada | CA140: 4
C141: Niños con Inicio de Alimentación Complementaria Inadecuada | CA141: 0
C144: VIII. EVALUACION DEL ESTADO NUTRICIONAL
C146: A) En el Recién Nacido de 01 día a 28 días
C148: Clasificación | O148: Dx | BP148: Nº
C149: RN Bajo Peso Recuperados | O149: RN Bajo Peso Recuperados | BP149: 0
C150: Peso al Nacer | O150: Extremadamente bajo | BP150: 0
O151: Muy bajo peso al nacer | BP151: 0
O152: Bajo peso al nacer | BP152: 0
O153: Normal | BP153: 0
O154: Macrosómico | BP154: 0
C155: Ganancia de Peso / Talla | O155: Ganancia Inadecuada de Peso Dx. | BP155: 1
O156: Ganancia Inadecuada de Peso Recup. | BP156: 0
O157: Ganancia Inadecuada de Talla Dx. | BP157: 0
O158: Ganancia Inadecuada de Talla Recup. | BP158: 0
C160: B) En los Niños y Niñas de 29 días a < 05 años
C162: Grupo de Edad | E162: Ganancia Inadecuada de Peso o Talla | BB162: Normal
E163: Peso | S163: Talla | BB163: Normal
E164: Dx. | L164: Recup. | S164: Dx. | AI164: Recup. | BB164: Normal
C165: < 1 año | E165: 8 | L165: 0 | S165: 3 | AI165: 0 | BB165: 84
C166: 1 año | E166: 1 | L166: 0 | S166: 0 | AI166: 0 | BB166: 85
C167: 2 años | E167: 1 | L167: 0 | S167: 0 | AI167: 0 | BB167: 50
C168: 3 años | E168: 0 | L168: 0 | S168: 1 | AI168: 0 | BB168: 66
C169: 4 años | E169: 1 | L169: 0 | S169: 0 | AI169: 0 | BB169: 55
C172: Grupo de Edad | D172: Peso para la Edad (PE) | BC172: Peso para la Edad (TP) | GI172: Talla para la Edad (TE)
D173: Sobrepeso | T173: Desnutrición | BC173: Obesidad | CP173: Sobrepeso | EC173: Desnutrición Aguda | FG173: Desnutrición Severa | GI173: Alto | HB173: Talla Baja
D174: Dx. | L174: Recup. | T174: Dx. | AJ174: Recup. | BC174: Dx. | BW174: Recup. | CP174: Dx. | DI174: Recup. | EC174: Dx. | EQ174: Recup. | FG174: Dx. | FU174: Recup. | GI174: Dx. | GV174: Recup. | HB174: Dx. | HI174: Recup.
C175: < 1 año | D175: 0 | L175: 0 | T175: 0 | AJ175: 0 | BC175: 0 | BW175: 0 | CP175: 2 | DI175: 0 | EC175: 1 | EQ175: 0 | FG175: 0 | FU175: 0 | GI175: 0 | GV175: 0 | HB175: 0 | HI175: 0
C176: 1 año | D176: 1 | L176: 0 | T176: 1 | AJ176: 0 | BC176: 2 | BW176: 0 | CP176: 3 | DI176: 0 | EC176: 1 | EQ176: 0 | FG176: 0 | FU176: 0 | GI176: 0 | GV176: 0 | HB176: 2 | HI176: 0
C177: 2 años | D177: 1 | L177: 0 | T177: 0 | AJ177: 0 | BC177: 1 | BW177: 0 | CP177: 1 | DI177: 0 | EC177: 0 | EQ177: 0 | FG177: 0 | FU177: 0 | GI177: 0 | GV177: 0 | HB177: 0 | HI177: 0
C178: 3 años | D178: 1 | L178: 0 | T178: 0 | AJ178: 0 | BC178: 0 | BW178: 0 | CP178: 0 | DI178: 0 | EC178: 0 | EQ178: 0 | FG178: 0 | FU178: 0 | GI178: 0 | GV178: 0 | HB178: 0 | HI178: 0
C179: 4 años | D179: 0 | L179: 0 | T179: 0 | AJ179: 0 | BC179: 0 | BW179: 0 | CP179: 2 | DI179: 0 | EC179: 0 | EQ179: 0 | FG179: 0 | FU179: 0 | GI179: 0 | GV179: 0 | HB179: 1 | HI179: 0
C182: C) En los Niños y Niñas de 05 a 11 años
C184: Grupo de Edad | E184: Índice de Masa Cororal (IMC) | DY184: Talla para la Edad (TE) | HA184: Normal
E185: Obesidad | S185: Sobrepeso | BB185: Delgadez | CO185: Delgadez Severa | DY185: Alto | FF185: Talla Baja | GE185: Talla Baja Severa | HA185: Normal
E186: Dx. | L186: Recup. | S186: Dx. | AI186: Recup. | BB186: Dx. | BT186: Recup. | CO186: Dx. | DE186: Recup. | DY186: Dx. | EN186: Recup. | FF186: Dx. | FR186: Recup. | GE186: Dx. | GS186: Recup. | HA186: Normal
C187: 05 a 11 años | E187: 10 | L187: 0 | S187: 17 | AI187: 0 | BB187: 1 | BS187: 0 | BT187: 0 | CO187: 0 | DE187: 0 | DY187: 0 | EN187: 0 | FF187: 1 | FR187: 0 | GE187: 0 | GS187: 0 | HA187: 99
C189: IX. EVALUACION DEL DESARROLLO
C191: Grupo de Edad | D191: Trastorno del Desarrollo | GJ191: Evaluac. Normal
D192: Lenguaje | U192: Motora | BD192: Social | CQ192: Coordinación | ED192: Cognitiva | FH192: Con + de 1 Trastorno | GJ192: Evaluac. Normal
D193: Dx. | L193: Recup. | U193: Dx. | AK193: Recup. | BD193: Dx. | BX193: Recup. | CQ193: Dx. | DJ193: Recup. | ED193: Dx. | ER193: Recup. | FH193: Dx. | FV193: Recup. | GJ193: Evaluac. Normal
C194: < 1 año | D194: 0 | L194: 0 | T194: 0 | U194: 0 | AJ194: 0 | AK194: 0 | BC194: 0 | BD194: 0 | BW194: 0 | BX194: 0 | CP194: 0 | CQ194: 0 | DI194: 0 | DJ194: 0 | EC194: 0 | ED194: 0 | EQ194: 0 | ER194: 0 | FG194: 0 | FH194: 0 | FU194: 0 | FV194: 0 | GI194: 0 | GJ194: 1
C195: 1 año | D195: 0 | L195: 0 | T195: 0 | U195: 0 | AJ195: 0 | AK195: 0 | BC195: 0 | BD195: 0 | BW195: 0 | BX195: 0 | CP195: 0 | CQ195: 0 | DI195: 0 | DJ195: 0 | EC195: 0 | ED195: 0 | EQ195: 0 | ER195: 0 | FG195: 0 | FH195: 0 | FU195: 0 | FV195: 0 | GI195: 0 | GJ195: 0
C196: 2 años | D196: 0 | L196: 0 | T196: 0 | U196: 0 | AJ196: 0 | AK196: 0 | BC196: 0 | BD196: 0 | BW196: 0 | BX196: 0 | CP196: 0 | CQ196: 0 | DI196: 0 | DJ196: 0 | EC196: 0 | ED196: 0 | EQ196: 0 | ER196: 0 | FG196: 0 | FH196: 0 | FU196: 0 | FV196: 0 | GI196: 0 | GJ196: 0
C199: Grupo de Edad | D199: Déficit del Desarrollo | GJ199: Evaluac. Normal
D200: Lenguaje | U200: Motora | BD200: Social | CQ200: Coordinación | ED200: Cognitiva | FH200: Más de 1 Déficit | GJ200: Evaluac. Normal
D201: Dx. | L201: Recup. | U201: Dx. | AK201: Recup. | BD201: Dx. | BX201: Recup. | CQ201: Dx. | DJ201: Recup. | ED201: Dx. | ER201: Recup. | FH201: Dx. | FV201: Recup. | GJ201: Evaluac. Normal
C202: 03 años | D202: 0 | L202: 0 | T202: 0 | U202: 0 | AJ202: 0 | AK202: 0 | BC202: 0 | BD202: 0 | BW202: 0 | BX202: 0 | CP202: 0 | CQ202: 0 | DI202: 0 | DJ202: 0 | EC202: 0 | ED202: 0 | EQ202: 0 | ER202: 0 | FG202: 0 | FH202: 0 | FU202: 0 | FV202: 0 | GI202: 0 | GJ202: 0
C203: 04 años | D203: 0 | L203: 0 | T203: 0 | U203: 0 | AJ203: 0 | AK203: 0 | BC203: 0 | BD203: 0 | BW203: 0 | BX203: 0 | CP203: 0 | CQ203: 0 | DI203: 0 | DJ203: 0 | EC203: 0 | ED203: 0 | EQ203: 0 | ER203: 0 | FG203: 0 | FH203: 0 | FU203: 0 | FV203: 0 | GI203: 0 | GJ203: 0
C205: X. PLAN DE ATENCION INTEGRAL
C207: Edades | F207: RN | M207: <1 año | V207: 01 año | AL207: 02 años | BE207: 03 años | BZ207: 04 años | CR207: 05 años | DK207: 06 años | EE207: 07 años | ES207: 08 años | FI207: 09 años | FW207: 10 años | GK207: 11 años
C208: Elaborado | F208: 0 | M208: 0 | V208: 0 | AL208: 0 | BE208: 0 | BZ208: 0 | CR208: 0 | DK208: 0 | EE208: 0 | ES208: 0 | FI208: 0 | FW208: 0 | GK208: 1
C209: Ejecutado | F209: 0 | M209: 0 | V209: 0 | AL209: 0 | BE209: 0 | BZ209: 0 | CR209: 0 | DK209: 0 | EE209: 0 | ES209: 0 | FI209: 0 | FW209: 0 | GK209: 0
C212: XI. CONSEJERÍA
C214: Tipos / Edades | AH214: TOTAL | AX214: RN | BN214: <1 año | CI214: 01 año | DC214: 02 años | DX214: 03 años | EL214: 04 años | FE214: 05 - 11 a
C215: Nutricional por Suplementación | AH215: 2 | AX215: 0 | BN215: 1 | CI215: 1 | DC215: 0 | DX215: 0 | EL215: 0 | FE215: 0
C216: Nutricional por Eval. PE, TP, TE, IMC | AH216: 432 | AX216: 0 | BN216: 172 | CI216: 148 | DC216: 40 | DX216: 10 | EL216: 26 | FE216: 36
C217: Integral por Eval. del Desarrollo | AH217: 0 | AX217: 0 | BN217: 0 | CI217: 0 | DC217: 0 | DX217: 0 | EL217: 0 | FE217: 0
C218: Integral por Aliment. Complement. | AH218: 0 | AX218: 0 | BN218: 0 | CI218: 0 | DC218: 0 | DX218: 0 | EL218: 0 | FE218: 0
C221: XII. VISITA DOMICILIARIA
C223: Tipos de Visita / Edades | AH223: TOTAL | AX223: RN | BN223: <1 año | CI223: 01 año | DC223: 02 años | DX223: 03 años | EL223: 04 años | FE223: 05 - 11 a
C224: Seguimiento al Control CRED | AH224: 3 | AX224: 0 | BN224: 3 | CI224: 0 | DC224: 0 | DX224: 0 | EL224: 0 | FE224: 0
C225: Seguimiento a Problemas Nutricionales | AH225: 0 | AX225: 0 | BN225: 0 | CI225: 0 | DC225: 0 | DX225: 0 | EL225: 0 | FE225: 0
C226: Seguimiento a Problemas del Desarrollo | AH226: 0 | AX226: 0 | BN226: 0 | CI226: 0 | DC226: 0 | DX226: 0 | EL226: 0 | FE226: 0
C227: Entrega de Suplementación | AH227: 10 | AX227: 0 | BN227: 2 | CI227: 3 | DC227: 5 | DX227: 0 | EL227: 0 | FE227: 0
C228: Verificación de Consumo de Micronutrientes | AH228: 0 | AX228: 0 | BN228: 0 | CI228: 0 | DC228: 0 | DX228: 0 | EL228: 0 | FE228: 0
C229: Seguimiento de IRA | AH229: 0 | AX229: 0 | BN229: 0 | CI229: 0 | DC229: 0 | DX229: 0 | EL229: 0 | FE229: 0
C230: Seguimiento de EDA | AH230: 0 | AX230: 0 | BN230: 0 | CI230: 0 | DC230: 0 | DX230: 0 | EL230: 0 | FE230: 0
C231: Seguimiento de Anemia | AH231: 8 | AX231: 0 | BN231: 0 | CI231: 6 | DC231: 2 | DX231: 0 | EL231: 0 | FE231: 0
C234: XIII. ESTIMULACION TEMPRANA
C236: Edad | G236: 1º | N236: 2º | AF236: 3º | AW236: 4º | BM236: 5º | CD236: 6º
C237: Recién Nacido | G237: 0 | N237: 0 | AF237: 0 | AW237: 0 | BM237: 0 | CD237: 0
C238: < 01 año | G238: 0 | N238: 0 | AF238: 0 | AW238: 0 | BM238: 0 | CD238: 0
C239: 01 año | G239: 0 | N239: 0 | AF239: 0 | AW239: 0 | BM239: 0 | CD239: 0
C240: 02 años | G240: 0 | N240: 0 | AF240: 0 | AW240: 0 | BM240: 0 | CD240: 0
C241: 03 años | G241: 0 | N241: 0 | AF241: 0 | AW241: 0 | BM241: 0 | CD241: 0
C243: XIV. ACTIVIDADES EXTRAMURALES, MASIVAS Y DE GESTIÓN
C245: Unidad Medida | G245: Actividad Extramural | BA245: Actividades de Gestión
G246: Sesiones Demostrativas | W246: Sesiones Educativas | BA246: Evaluación | CJ246: Supervisión | DQ246: Asistencia Técnica | EU246: Reu.Téc: Personal de Salud | FZ246: Reu.Téc: Agente Com. de Salud
C247: Actividades | G247: 0 | W247: 0 | BA247: 0 | CJ247: 0 | DQ247: 7 | EU247: 0 | FZ247: 0
C248: Participantes | G248: 0 | W248: 0 | BA248: 0 | CJ248: 0 | DQ248: 7 | EU248: 0 | FZ248: 0
C250: XV. ATENCION DE LAS ENFERMEDADES PREVALENTES DE LA INFANCIA
C252: A. INFECCIÓN RESPIRATORIA AGUDA
C254: DIAGNÓSTICOS | CX254: Grupo Edad
CX255: < 29 Días | EA255: 29 d a 59 Días | EX255: 02 - 11 Meses | GB255: 01 - 04 Años | GO255: 05 - 11 Años | HE255: TOTAL
C256: 1.1 N° casos de IRA sin complicaciones (a+b+c+d+e) | AH256: a. Infección Respiratoria Aguda (IRA) no complicada | CX256: 2 | DZ256: 0 | EA256: 2 | EW256: 0 | EX256: 23 | GA256: 0 | GB256: 25 | GN256: 0 | GO256: 15 | HD256: 0 | HE256: 67
AH257: b. Faringoamigdalitis Aguda | CX257: 0 | DZ257: 0 | EA257: 0 | EW257: 0 | EX257: 3 | GA257: 0 | GB257: 11 | GN257: 0 | GO257: 12 | HD257: 0 | HE257: 26
AH258: c. Otitis Media Aguda (OMA) | CX258: 0 | DZ258: 0 | EA258: 0 | EW258: 0 | EX258: 0 | GA258: 0 | GB258: 2 | GN258: 0 | GO258: 0 | HD258: 0 | HE258: 2
AH259: d. Sinusitis Aguda | CX259: 0 | DZ259: 0 | EA259: 0 | EW259: 0 | EX259: 0 | GA259: 0 | GB259: 0 | GN259: 0 | GO259: 0 | HD259: 0 | HE259: 0
AH260: e. Neumonía sin complicaciones | CX260: 0 | DZ260: 0 | EA260: 0 | EW260: 0 | EX260: 0 | GA260: 0 | GB260: 0 | GN260: 0 | GO260: 0 | HD260: 0 | HE260: 0
C261: 1.2 N° casos IRA con complicaciones (a+b+c) | AH261: a. Infecciones Respiratorias Agudas con complicaciones | CX261: 0 | DZ261: 0 | EA261: 0 | EW261: 0 | EX261: 0 | GA261: 0 | GB261: 0 | GN261: 0 | GO261: 0 | HD261: 0 | HE261: 0
AH262: b. Neumonía Grave o Enfermedad Muy Grave en Niños Menores de 2 Meses | CX262: 0 | DZ262: 0 | EA262: 0 | EW262: 0 | EX262: 0 | GA262: 0 | GB262: 0 | GN262: 0 | GO262: 0 | HD262: 0 | HE262: 0
AH263: c. Neumonía y Enfermedad Muy Grave en Niños de 2 Meses a 4 Años | CX263: 0 | DZ263: 0 | EA263: 0 | EW263: 0 | EX263: 0 | GA263: 0 | GB263: 0 | GN263: 0 | GO263: 0 | HD263: 0 | HE263: 0
C266: DIAGNÓSTICOS | CW266: < 29 Días | DZ266: 29 d a 59 Días | EW266: 02 - 11 Meses | GA266: 12 - 23 Meses | GN266: 02- 02 Años con 11 Meses | HD266: 03 - 04 Años | HM266: 05 - 11 Años | HR266: TOTAL
C267: 1.3 SOB/Asma | AH267: a. SOB/Asma | CW267: 0 | DZ267: 0 | EW267: 2 | GA267: 0 | GN267: 0 | HD267: 0 | HM267: 0 | HR267: 2
C269: B. ENFERMEDAD DIARREICA AGUDA
C271: DIAGNÓSTICOS | CW271: Grupo Edad
CW272: < 01 Año | DZ272: 01 - 04 Años | EW272: 05 - 11 Años | GA272: TOTAL
C273: 1. Enfermedades Diarreicas sin complicaciones ( a + b + c) | AH273: a. Diarrea Aguda Acuosa sin deshidratación | CW273: 8 | DZ273: 12 | EW273: 5 | GA273: 25
... 29 more rows

Sheet configuracion (hidden)
A1: 1 | B1: Niño | C1: X14:AL19,X24:AL30,Z36:AL44,K51:GB60,J67:GC76,AO82:EZ85,AH93:HE93,R101:GP107,P114:GP120,Q127:FK127,Q133:AC133,CA138:CK141,BP149:CE158,E165:BR169,D175:HM179,E187:HF187,D194:GU196,D202:GU203,F208:GW209,AH215:FR218,AH224:FR231,G237:CZ241,G247:GS248,CX256:HI263,CW267:HS267,CW273:GL281,AG287:DU288,Q294:HR295,H304:DS306,W313:DS314

Sheet DICIEMBRE
AZ3: REPORTE MENSUAL DE ACTIVIDADES ATENCIÓN INTEGRAL DE SALUD DEL NIÑO
B5: Periodo: DICIEMBRE
B6: g
C9: I. ATENCIÓN DEL RECIÉN NACIDO
C11: A) Atención Inmediata
C13: ACTIVIDADES | X13: Nº
C14: Atención Inmediata | X14: 0
C15: Tamizaje Neonatal (Enfermed. Metabólicas) | X15: 0
C16: Tamizaje Visual y Auditivo | X16: 0
C17: Contacto Piel a Piel con la madre | X17: 0
C18: Alojamiento Conjunto | X18: 0
C19: Lactancia Materna en la 1º Hora | X19: 4
C21: B) Resultados del Tamizaje Neonatal
C23: DIAGNÓSTICOS | X23: Nº
C24: Hipotiroidismo Congénito | X24: 0
C25: Fenilcetonuria | X25: 0
C26: Galactosemia | X26: 0
C27: Hiperplasia Suprarrenal Congénita | X27: 0
C28: Fibrosis Quística | X28: 0
C29: Catarata Congénita | X29: 0
C30: Hipoacusia (todas las clasificaciones) | X30: 0
C33: D) Morbilidad Neonatal
C35: CAUSAS DE MORBILIDAD | Z35: Nº
C36: Síndrome de Dristres Respiratorio | Z36: 0
C37: Síndromes de Aspiración Neonatal | Z37: 0
C38: Asfixia Neonatal | Z38: 0
C39: Sepsis Neonatal | Z39: 0
C40: Ictericia | Z40: 0
C41: Hipoglucemia | Z41: 0
C42: Sífilis Congénita | Z42: 0
C43: VIH Expuesto | Z43: 0
C44: Retinopatía de la Prematuridad | Z44: 0
C47: II. CONTROL DE CRECIMIENTO Y DESARROLLO
C49: Grupo de Edad | K49: Número de Controles
K50: 1º | R50: 2º | AB50: 3º | AS50: 4º | BG50: 5º | BR50: 6º | CH50: 7º | CZ50: 8º | DN50: 9º | EG50: 10º | EP50: 11º | FD50: SN | FO50: TOTAL
C51: De 1d a 7d | K51: 0 | Q51: 0 | R51: 0 | AA51: 0 | AB51: 0 | AR51: 0 | AS51: 0 | BF51: 0 | BG51: 0 | BQ51: 0 | BR51: 0 | CG51: 0 | CH51: 0 | CY51: 0 | CZ51: 0 | DM51: 0 | DN51: 0 | EF51: 0 | EG51: 0 | EO51: 0 | EP51: 0 | FC51: 0 | FD51: 0 | FN51: 0 | FO51: 0
C52: De 8d a 14d | K52: 0 | Q52: 0 | R52: 0 | AA52: 0 | AB52: 0 | AR52: 0 | AS52: 0 | BF52: 0 | BG52: 0 | BQ52: 0 | BR52: 0 | CG52: 0 | CH52: 0 | CY52: 0 | CZ52: 0 | DM52: 0 | DN52: 0 | EF52: 0 | EG52: 0 | EO52: 0 | EP52: 0 | FC52: 0 | FD52: 0 | FN52: 0 | FO52: 0
C53: De 15d a 21d | K53: 0 | Q53: 0 | R53: 0 | AA53: 0 | AB53: 0 | AR53: 0 | AS53: 0 | BF53: 0 | BG53: 0 | BQ53: 0 | BR53: 0 | CG53: 0 | CH53: 0 | CY53: 0 | CZ53: 0 | DM53: 0 | DN53: 0 | EF53: 0 | EG53: 0 | EO53: 0 | EP53: 0 | FC53: 0 | FD53: 0 | FN53: 0 | FO53: 0
C54: De 22d a +d | K54: 0 | Q54: 0 | R54: 0 | AA54: 0 | AB54: 0 | AR54: 0 | AS54: 0 | BF54: 0 | BG54: 0 | BQ54: 0 | BR54: 0 | CG54: 0 | CH54: 0 | CY54: 0 | CZ54: 0 | DM54: 0 | DN54: 0 | EF54: 0 | EG54: 0 | EO54: 0 | EP54: 0 | FC54: 0 | FD54: 0 | FN54: 0 | FO54: 0
C55: 29 días - 11 meses | K55: 0 | Q55: 0 | R55: 0 | AA55: 0 | AB55: 0 | AR55: 0 | AS55: 0 | BF55: 0 | BG55: 0 | BQ55: 0 | BR55: 0 | CG55: 0 | CH55: 0 | CY55: 0 | CZ55: 0 | DM55: 0 | DN55: 0 | EF55: 0 | EG55: 0 | EO55: 0 | EP55: 0 | FC55: 0 | FD55: 28 | FN55: 0 | FO55: 28
C56: 01 año | K56: 0 | Q56: 0 | R56: 0 | AA56: 0 | AB56: 0 | AR56: 0 | AS56: 0 | BF56: 0 | BG56: 0 | BQ56: 0 | BR56: 0 | CG56: 0 | CH56: 0 | CY56: 0 | CZ56: 0 | DM56: 0 | DN56: 0 | EF56: 0 | EG56: 0 | EO56: 0 | EP56: 0 | FC56: 0 | FD56: 23 | FN56: 0 | FO56: 23
C57: 02 años | K57: 0 | Q57: 0 | R57: 0 | AA57: 0 | AB57: 0 | AR57: 0 | AS57: 0 | BF57: 0 | BG57: 0 | BQ57: 0 | BR57: 0 | CG57: 0 | CH57: 0 | CY57: 0 | CZ57: 0 | DM57: 0 | DN57: 0 | EF57: 0 | EG57: 0 | EO57: 0 | EP57: 0 | FC57: 0 | FD57: 6 | FN57: 0 | FO57: 6
C58: 03 años | K58: 0 | Q58: 0 | R58: 0 | AA58: 0 | AB58: 0 | AR58: 0 | AS58: 0 | BF58: 0 | BG58: 0 | BQ58: 0 | BR58: 0 | CG58: 0 | CH58: 0 | CY58: 0 | CZ58: 0 | DM58: 0 | DN58: 0 | EF58: 0 | EG58: 0 | EO58: 0 | EP58: 0 | FC58: 0 | FD58: 1 | FN58: 0 | FO58: 1
C59: 04 años | K59: 0 | Q59: 0 | R59: 0 | AA59: 0 | AB59: 0 | AR59: 0 | AS59: 0 | BF59: 0 | BG59: 0 | BQ59: 0 | BR59: 0 | CG59: 0 | CH59: 0 | CY59: 0 | CZ59: 0 | DM59: 0 | DN59: 0 | EF59: 0 | EG59: 0 | EO59: 0 | EP59: 0 | FC59: 0 | FD59: 0 | FN59: 0 | FO59: 0
C60: 05 a 11 años | K60: 0 | Q60: 0 | R60: 0 | AA60: 0 | AB60: 0 | AR60: 0 | AS60: 0 | BF60: 0 | BG60: 0 | BQ60: 0 | BR60: 0 | CG60: 0 | CH60: 0 | CY60: 0 | CZ60: 0 | DM60: 0 | DN60: 0 | EF60: 0 | EG60: 0 | EO60: 0 | EP60: 0 | FC60: 0 | FD60: 0 | FN60: 0 | FO60: 0
C63: Evaluación del Estado Nutricional Antropométricas (Por personal técnico)
C65: Grupo de Edad | J65: Número de Evaluaciones Antropométricas
J66: 1º | Q66: 2º | AA66: 3º | AR66: 4º | BF66: 5º | BQ66: 6º | CG66: 7º | CY66: 8º | DM66: 9º | EF66: 10º | EO66: 11º | FC66: SN | FN66: TOTAL
C67: De 1d a 7d | J67: 0 | Q67: 0 | AA67: 0 | AR67: 0 | BE67: 0 | BF67: 0 | BQ67: 0 | CG67: 0 | CY67: 0 | DM67: 0 | EF67: 0 | EO67: 0 | FC67: 0 | FN67: 0
C68: De 8d a 14d | J68: 0 | Q68: 0 | AA68: 0 | AR68: 0 | BE68: 0 | BF68: 0 | BQ68: 0 | CG68: 0 | CY68: 0 | DM68: 0 | EF68: 0 | EO68: 0 | FC68: 0 | FN68: 0
C69: De 15d a 21d | J69: 0 | Q69: 0 | AA69: 0 | AR69: 0 | BE69: 0 | BF69: 0 | BQ69: 0 | CG69: 0 | CY69: 0 | DM69: 0 | EF69: 0 | EO69: 0 | FC69: 0 | FN69: 0
C70: De 22d a +d | J70: 0 | Q70: 0 | AA70: 0 | AR70: 0 | BE70: 0 | BF70: 0 | BQ70: 0 | CG70: 0 | CY70: 0 | DM70: 0 | EF70: 0 | EO70: 0 | FC70: 0 | FN70: 0
C71: 29 días - 11 meses | J71: 0 | Q71: 0 | AA71: 0 | AR71: 0 | BE71: 0 | BF71: 0 | BQ71: 0 | CG71: 0 | CY71: 0 | DM71: 0 | EF71: 0 | EO71: 0 | FC71: 0 | FN71: 0
C72: 01 año | J72: 0 | Q72: 0 | AA72: 0 | AR72: 0 | BE72: 0 | BF72: 0 | BQ72: 0 | CG72: 0 | CY72: 0 | DM72: 0 | EF72: 0 | EO72: 0 | FC72: 0 | FN72: 0
C73: 02 años | J73: 0 | Q73: 0 | AA73: 0 | AR73: 0 | BE73: 0 | BF73: 0 | BQ73: 0 | CG73: 0 | CY73: 0 | DM73: 0 | EF73: 0 | EO73: 0 | FC73: 0 | FN73: 0
C74: 03 años | J74: 0 | Q74: 0 | AA74: 0 | AR74: 0 | BE74: 0 | BF74: 0 | BQ74: 0 | CG74: 0 | CY74: 0 | DM74: 0 | EF74: 0 | EO74: 0 | FC74: 0 | FN74: 0
C75: 04 años | J75: 0 | Q75: 0 | AA75: 0 | AR75: 0 | BE75: 0 | BF75: 0 | BQ75: 0 | CG75: 0 | CY75: 0 | DM75: 0 | EF75: 0 | EO75: 0 | FC75: 0 | FN75: 0
C76: 05 a 11 años | J76: 0 | Q76: 0 | AA76: 0 | AR76: 0 | BE76: 0 | BF76: 0 | BQ76: 0 | CG76: 0 | CY76: 0 | DM76: 0 | EF76: 0 | EO76: 0 | FC76: 0 | FN76: 0
C79: III. TAMIZAJE
C81: ACTIVIDADES | AO81: 01m* | AZ81: 06m | BO81: 01 a | CE81: 02 a | CV81: 03 a | DL81: 04 a | EB81: 05 -11 a | EM81: TOTAL
C82: Detección de Anemia | I82: Solicitud de Dosaje de Hb | AO82: 0 | AZ82: 0 | BO82: 0 | CE82: 0 | CV82: 0 | DL82: 0 | EB82: 0 | EM82: 0
I83: Resultados Evaluados | AO83: 0 | AZ83: 24 | BO83: 91 | CE83: 19 | CV83: 13 | DL83: 7 | EB83: 7 | EM83: 161
C84: Descarte de Parasitosis | I84: Solicitud de Examen | AO84: 0 | AZ84: 0 | BO84: 0 | CE84: 0 | CV84: 0 | DL84: 0 | EB84: 0 | EM84: 0
I85: Resultados Evaluados | AO85: 0 | AZ85: 0 | BO85: 0 | CE85: 0 | CV85: 0 | DL85: 0 | EB85: 0 | EM85: 0
C88: IV. ADMINISTRACIÓN DE PROFILAXIS ANTIPARASITARIA
C90: ACTIVIDADES | AH90: DOSIS
AH91: 01 año | CC91: 02 años | DP91: 03 años | EZ91: 04 años | GL91: 05 - 11 años
AH92: 1º | AZ92: 2º | CC92: 1º | CU92: 2º | DP92: 1º | EK92: 2º | EZ92: 1º | FQ92: 2º | GL92: 1º | GZ92: 2º
C93: Administración de Profilaxis Antiparasitaria | AH93: 1 | AZ93: 0 | CC93: 17 | CU93: 0 | DP93: 23 | EK93: 0 | EZ93: 37 | FQ93: 0 | GL93: 406 | GZ93: 0
C95: IV. ADMINISTRACIÓN DE PROFILAXIS ANTIPARASITARIA
C97: A) Sulfato Ferroso y Multimicronutriente (en polvo)
C99: ACTIVIDADES | R99: DOSIS
R100: 1º | AE100: 2º | AV100: 3º | BK100: 4º | BY100: 5º | CN100: 6º | DD100: 7º | DS100: 8º | EI100: 9º | EV100: 10º | FM100: 11º | FY100: 12º | GG100: TA
C101: < 06 meses (BPN y Prematuros (SF)) | R101: 0 | AD101: 0 | AE101: 0 | AU101: 0 | AV101: 0 | BJ101: 0 | BK101: 0 | BY101: 0 | CM101: 0 | CN101: 0 | DD101: 0 | DS101: 0 | EI101: 0 | EV101: 0 | FL101: 0 | FM101: 0 | FY101: 0 | GG101: 0
C102: De 4 a 5 meses (Sulfato Ferroso) | R102: 4 | AD102: 0 | AE102: 0 | AU102: 0 | AV102: 0 | BJ102: 0 | BK102: 0 | BY102: 0 | CM102: 0 | CN102: 0 | DD102: 0 | DS102: 0 | EI102: 0 | EV102: 0 | FL102: 0 | FM102: 0 | FY102: 0 | GG102: 0
C103: De 6 a 11 meses (MMN) | R103: 15 | AD103: 0 | AE103: 18 | AU103: 0 | AV103: 3 | BJ103: 0 | BK103: 2 | BY103: 0 | CM103: 0 | CN103: 0 | DD103: 0 | DS103: 0 | EI103: 0 | EV103: 0 | FL103: 0 | FM103: 0 | FY103: 0 | GG103: 0
C104: De 1 año (MMN) | R104: 5 | AD104: 0 | AE104: 11 | AU104: 0 | AV104: 9 | BJ104: 0 | BK104: 4 | BY104: 6 | CM104: 0 | CN104: 3 | DD104: 0 | DS104: 0 | EI104: 0 | EV104: 0 | FL104: 0 | FM104: 0 | FY104: 0 | GG104: 9
C105: De 2 año (MMN) | R105: 2 | AD105: 0 | AE105: 4 | AU105: 0 | AV105: 0 | BJ105: 0 | BK105: 0 | BY105: 2 | CM105: 0 | CN105: 3 | DD105: 0 | DS105: 0 | EI105: 0 | EV105: 0 | FL105: 0 | FM105: 0 | FY105: 0 | GG105: 5
C106: De 3 año (MMN) | R106: 0 | AD106: 0 | AE106: 0 | AU106: 0 | AV106: 0 | BJ106: 0 | BK106: 0 | BY106: 0 | CM106: 0 | CN106: 1 | DD106: 0 | DS106: 0 | EI106: 0 | EV106: 0 | FL106: 0 | FM106: 0 | FY106: 0 | GG106: 1
C107: De 4 año (MMN) | R107: 0 | AD107: 0 | AE107: 0 | AU107: 0 | AV107: 1 | BJ107: 0 | BK107: 0 | BY107: 0 | CM107: 0 | CN107: 0 | DD107: 0 | DS107: 0 | EI107: 0 | EV107: 0 | FL107: 0 | FM107: 0 | FY107: 0 | GG107: 0
B110: Polimaltosado
B112: ACTIVIDADES | P112: DOSIS
P113: 1º | AC113: 2º | AT113: 3º | BI113: 4º | BV113: 5º | CK113: 6º | DB113: 7º | DR113: 8º | EH113: 9º | ET113: 10º | FK113: 11º | FX113: 12º | GF113: TA
B114: < 06 meses (BPN y Prematuros) | P114: 0 | AC114: 0 | AT114: 0 | BI114: 0 | BV114: 0 | CK114: 0 | DB114: 0 | DR114: 0 | EH114: 0 | ET114: 0 | FK114: 0 | FX114: 0 | GF114: 0 | GP114: 0
B115: De 4 a 5 meses | P115: 23 | AC115: 1 | AT115: 0 | BI115: 0 | BV115: 0 | CK115: 0 | DB115: 0 | DR115: 0 | EH115: 0 | ET115: 0 | FK115: 0 | FX115: 0 | GF115: 0 | GP115: 0
B116: De 6 a 11 meses | P116: 3 | AC116: 0 | AT116: 1 | BI116: 0 | BV116: 0 | CK116: 0 | DB116: 0 | DR116: 0 | EH116: 0 | ET116: 0 | FK116: 0 | FX116: 0 | GF116: 0 | GP116: 0
B117: De 1 año | P117: 0 | AC117: 1 | AT117: 0 | BI117: 0 | BV117: 0 | CK117: 0 | DB117: 0 | DR117: 0 | EH117: 0 | ET117: 0 | FK117: 0 | FX117: 0 | GF117: 0 | GP117: 0
B118: De 2 años | P118: 0 | AC118: 0 | AT118: 0 | BI118: 0 | BV118: 0 | CK118: 0 | DB118: 0 | DR118: 0 | EH118: 0 | ET118: 0 | FK118: 0 | FX118: 0 | GF118: 0 | GP118: 0
B119: De 3 años | P119: 0 | AC119: 0 | AT119: 0 | BI119: 0 | BV119: 0 | CK119: 0 | DB119: 0 | DR119: 0 | EH119: 0 | ET119: 0 | FK119: 0 | FX119: 0 | GF119: 0 | GP119: 0
B120: De 4 años | P120: 0 | AC120: 0 | AT120: 0 | BI120: 0 | BV120: 0 | CK120: 0 | DB120: 0 | DR120: 0 | EH120: 0 | ET120: 0 | FK120: 0 | FX120: 0 | GF120: 0 | GP120: 0
C123: B) Vitamina "A"
Q125: 06 meses | AU125: 01 año | BY125: 02 años | DD125: 03 años | EI125: 04 años
C126: Dosis | Q126: 1º Dosis | AD126: 2º Dosis | AU126: 1º Dosis | BJ126: 2º Dosis | BY126: 1º Dosis | CN126: 2º Dosis | DD126: 1º Dosis | DS126: 2º Dosis | EI126: 1º Dosis | EV126: 2º Dosis
C127: Suplementados | Q127: 0 | AD127: 0 | AU127: 0 | BJ127: 0 | BY127: 0 | CM127: 0 | CN127: 0 | DD127: 0 | DS127: 0 | EI127: 0 | EV127: 0
C130: VI. LACTANCIA MATERNA EXCLUSIVA
C132: Condición | Q132: Nº
C133: Niños con LME a los 06 meses | Q133: 0
C135: VII. ALIMENTACIÓN COMPLEMENTARIA
C137: Condición | CA137: Nº
C138: Niños con Inicio de Alimentación Complementaria antes de los 06 meses | CA138: 4
C139: Niños con Inicio de Alimentación Complementaria después de los 06 meses | CA139: 0
C140: Niños con Inicio de Alimentación Complementaria Adecuada | CA140: 3
C141: Niños con Inicio de Alimentación Complementaria Inadecuada | CA141: 0
C144: VIII. EVALUACION DEL ESTADO NUTRICIONAL
C146: A) En el Recién Nacido de 01 día a 28 días
C148: Clasificación | O148: Dx | BP148: Nº
C149: RN Bajo Peso Recuperados | O149: RN Bajo Peso Recuperados | BP149: 0
C150: Peso al Nacer | O150: Extremadamente bajo | BP150: 0
O151: Muy bajo peso al nacer | BP151: 0
O152: Bajo peso al nacer | BP152: 0
O153: Normal | BP153: 1
O154: Macrosómico | BP154: 0
C155: Ganancia de Peso / Talla | O155: Ganancia Inadecuada de Peso Dx. | BP155: 2
O156: Ganancia Inadecuada de Peso Recup. | BP156: 0
O157: Ganancia Inadecuada de Talla Dx. | BP157: 0
O158: Ganancia Inadecuada de Talla Recup. | BP158: 0
C160: B) En los Niños y Niñas de 29 días a < 05 años
C162: Grupo de Edad | E162: Ganancia Inadecuada de Peso o Talla | BB162: Normal
E163: Peso | S163: Talla | BB163: Normal
E164: Dx. | L164: Recup. | S164: Dx. | AI164: Recup. | BB164: Normal
C165: < 1 año | E165: 8 | L165: 0 | S165: 2 | AI165: 0 | BB165: 63
C166: 1 año | E166: 5 | L166: 0 | S166: 2 | AI166: 0 | BB166: 47
C167: 2 años | E167: 0 | L167: 0 | S167: 1 | AI167: 0 | BB167: 20
C168: 3 años | E168: 0 | L168: 0 | S168: 1 | AI168: 0 | BB168: 4
C169: 4 años | E169: 1 | L169: 0 | S169: 1 | AI169: 0 | BB169: 10
C172: Grupo de Edad | D172: Peso para la Edad (PE) | BC172: Peso para la Edad (TP) | GI172: Talla para la Edad (TE)
D173: Sobrepeso | T173: Desnutrición | BC173: Obesidad | CP173: Sobrepeso | EC173: Desnutrición Aguda | FG173: Desnutrición Severa | GI173: Alto | HB173: Talla Baja
D174: Dx. | L174: Recup. | T174: Dx. | AJ174: Recup. | BC174: Dx. | BW174: Recup. | CP174: Dx. | DI174: Recup. | EC174: Dx. | EQ174: Recup. | FG174: Dx. | FU174: Recup. | GI174: Dx. | GV174: Recup. | HB174: Dx. | HI174: Recup.
C175: < 1 año | D175: 2 | L175: 0 | T175: 1 | AJ175: 0 | BC175: 1 | BW175: 0 | CP175: 10 | DI175: 0 | EC175: 0 | EQ175: 0 | FG175: 0 | FU175: 0 | GI175: 0 | GV175: 0 | HB175: 2 | HI175: 0
C176: 1 año | D176: 2 | L176: 0 | T176: 0 | AJ176: 0 | BC176: 1 | BW176: 0 | CP176: 2 | DI176: 0 | EC176: 0 | EQ176: 0 | FG176: 0 | FU176: 0 | GI176: 1 | GV176: 0 | HB176: 0 | HI176: 0
C177: 2 años | D177: 0 | L177: 0 | T177: 0 | AJ177: 0 | BC177: 0 | BW177: 0 | CP177: 2 | DI177: 0 | EC177: 1 | EQ177: 0 | FG177: 0 | FU177: 0 | GI177: 0 | GV177: 0 | HB177: 1 | HI177: 0
C178: 3 años | D178: 0 | L178: 0 | T178: 0 | AJ178: 0 | BC178: 0 | BW178: 0 | CP178: 0 | DI178: 0 | EC178: 0 | EQ178: 0 | FG178: 0 | FU178: 0 | GI178: 0 | GV178: 0 | HB178: 0 | HI178: 0
C179: 4 años | D179: 0 | L179: 0 | T179: 0 | AJ179: 0 | BC179: 0 | BW179: 0 | CP179: 0 | DI179: 0 | EC179: 0 | EQ179: 0 | FG179: 0 | FU179: 0 | GI179: 0 | GV179: 0 | HB179: 0 | HI179: 0
C182: C) En los Niños y Niñas de 05 a 11 años
C184: Grupo de Edad | E184: Índice de Masa Cororal (IMC) | DY184: Talla para la Edad (TE) | HA184: Normal
E185: Obesidad | S185: Sobrepeso | BB185: Delgadez | CO185: Delgadez Severa | DY185: Alto | FF185: Talla Baja | GE185: Talla Baja Severa | HA185: Normal
E186: Dx. | L186: Recup. | S186: Dx. | AI186: Recup. | BB186: Dx. | BT186: Recup. | CO186: Dx. | DE186: Recup. | DY186: Dx. | EN186: Recup. | FF186: Dx. | FR186: Recup. | GE186: Dx. | GS186: Recup. | HA186: Normal
C187: 05 a 11 años | E187: 5 | L187: 0 | S187: 5 | AI187: 0 | BB187: 0 | BS187: 0 | BT187: 0 | CO187: 0 | DE187: 0 | DY187: 0 | EN187: 0 | FF187: 0 | FR187: 0 | GE187: 0 | GS187: 0 | HA187: 8
C189: IX. EVALUACION DEL DESARROLLO
C191: Grupo de Edad | D191: Trastorno del Desarrollo | GJ191: Evaluac. Normal
D192: Lenguaje | U192: Motora | BD192: Social | CQ192: Coordinación | ED192: Cognitiva | FH192: Con + de 1 Trastorno | GJ192: Evaluac. Normal
D193: Dx. | L193: Recup. | U193: Dx. | AK193: Recup. | BD193: Dx. | BX193: Recup. | CQ193: Dx. | DJ193: Recup. | ED193: Dx. | ER193: Recup. | FH193: Dx. | FV193: Recup. | GJ193: Evaluac. Normal
C194: < 1 año | D194: 0 | L194: 0 | T194: 0 | U194: 0 | AJ194: 0 | AK194: 0 | BC194: 0 | BD194: 0 | BW194: 0 | BX194: 0 | CP194: 0 | CQ194: 0 | DI194: 0 | DJ194: 0 | EC194: 0 | ED194: 0 | EQ194: 0 | ER194: 0 | FG194: 0 | FH194: 0 | FU194: 0 | FV194: 0 | GI194: 0 | GJ194: 0
C195: 1 año | D195: 0 | L195: 0 | T195: 0 | U195: 0 | AJ195: 0 | AK195: 0 | BC195: 0 | BD195: 0 | BW195: 0 | BX195: 0 | CP195: 0 | CQ195: 0 | DI195: 0 | DJ195: 0 | EC195: 0 | ED195: 0 | EQ195: 0 | ER195: 0 | FG195: 0 | FH195: 0 | FU195: 0 | FV195: 0 | GI195: 0 | GJ195: 0
C196: 2 años | D196: 0 | L196: 0 | T196: 0 | U196: 0 | AJ196: 0 | AK196: 0 | BC196: 0 | BD196: 0 | BW196: 0 | BX196: 0 | CP196: 0 | CQ196: 0 | DI196: 0 | DJ196: 0 | EC196: 0 | ED196: 0 | EQ196: 0 | ER196: 0 | FG196: 0 | FH196: 0 | FU196: 0 | FV196: 0 | GI196: 0 | GJ196: 0
C199: Grupo de Edad | D199: Déficit del Desarrollo | GJ199: Evaluac. Normal
D200: Lenguaje | U200: Motora | BD200: Social | CQ200: Coordinación | ED200: Cognitiva | FH200: Más de 1 Déficit | GJ200: Evaluac. Normal
D201: Dx. | L201: Recup. | U201: Dx. | AK201: Recup. | BD201: Dx. | BX201: Recup. | CQ201: Dx. | DJ201: Recup. | ED201: Dx. | ER201: Recup. | FH201: Dx. | FV201: Recup. | GJ201: Evaluac. Normal
C202: 03 años | D202: 0 | L202: 0 | T202: 0 | U202: 0 | AJ202: 0 | AK202: 0 | BC202: 0 | BD202: 0 | BW202: 0 | BX202: 0 | CP202: 0 | CQ202: 0 | DI202: 0 | DJ202: 0 | EC202: 0 | ED202: 0 | EQ202: 0 | ER202: 0 | FG202: 0 | FH202: 0 | FU202: 0 | FV202: 0 | GI202: 0 | GJ202: 0
C203: 04 años | D203: 0 | L203: 0 | T203: 0 | U203: 0 | AJ203: 0 | AK203: 0 | BC203: 0 | BD203: 0 | BW203: 0 | BX203: 0 | CP203: 0 | CQ203: 0 | DI203: 0 | DJ203: 0 | EC203: 0 | ED203: 0 | EQ203: 0 | ER203: 0 | FG203: 0 | FH203: 0 | FU203: 0 | FV203: 0 | GI203: 0 | GJ203: 0
C205: X. PLAN DE ATENCION INTEGRAL
C207: Edades | F207: RN | M207: <1 año | V207: 01 año | AL207: 02 años | BE207: 03 años | BZ207: 04 años | CR207: 05 años | DK207: 06 años | EE207: 07 años | ES207: 08 años | FI207: 09 años | FW207: 10 años | GK207: 11 años
C208: Elaborado | F208: 0 | M208: 0 | V208: 0 | AL208: 0 | BE208: 0 | BZ208: 0 | CR208: 0 | DK208: 0 | EE208: 0 | ES208: 0 | FI208: 0 | FW208: 0 | GK208: 0
C209: Ejecutado | F209: 0 | M209: 0 | V209: 0 | AL209: 0 | BE209: 0 | BZ209: 0 | CR209: 0 | DK209: 0 | EE209: 0 | ES209: 0 | FI209: 0 | FW209: 0 | GK209: 0
C212: XI. CONSEJERÍA
C214: Tipos / Edades | AH214: TOTAL | AX214: RN | BN214: <1 año | CI214: 01 año | DC214: 02 años | DX214: 03 años | EL214: 04 años | FE214: 05 - 11 a
C215: Nutricional por Suplementación | AH215: 15 | AX215: 0 | BN215: 0 | CI215: 9 | DC215: 5 | DX215: 1 | EL215: 0 | FE215: 0
C216: Nutricional por Eval. PE, TP, TE, IMC | AH216: 326 | AX216: 1 | BN216: 155 | CI216: 121 | DC216: 28 | DX216: 7 | EL216: 8 | FE216: 6
C217: Integral por Eval. del Desarrollo | AH217: 0 | AX217: 0 | BN217: 0 | CI217: 0 | DC217: 0 | DX217: 0 | EL217: 0 | FE217: 0
C218: Integral por Aliment. Complement. | AH218: 0 | AX218: 0 | BN218: 0 | CI218: 0 | DC218: 0 | DX218: 0 | EL218: 0 | FE218: 0
C221: XII. VISITA DOMICILIARIA
C223: Tipos de Visita / Edades | AH223: TOTAL | AX223: RN | BN223: <1 año | CI223: 01 año | DC223: 02 años | DX223: 03 años | EL223: 04 años | FE223: 05 - 11 a
C224: Seguimiento al Control CRED | AH224: 31 | AX224: 0 | BN224: 11 | CI224: 16 | DC224: 2 | DX224: 1 | EL224: 1 | FE224: 0
C225: Seguimiento a Problemas Nutricionales | AH225: 0 | AX225: 0 | BN225: 0 | CI225: 0 | DC225: 0 | DX225: 0 | EL225: 0 | FE225: 0
C226: Seguimiento a Problemas del Desarrollo | AH226: 0 | AX226: 0 | BN226: 0 | CI226: 0 | DC226: 0 | DX226: 0 | EL226: 0 | FE226: 0
C227: Entrega de Suplementación | AH227: 4 | AX227: 0 | BN227: 1 | CI227: 3 | DC227: 0 | DX227: 0 | EL227: 0 | FE227: 0
C228: Verificación de Consumo de Micronutrientes | AH228: 0 | AX228: 0 | BN228: 0 | CI228: 0 | DC228: 0 | DX228: 0 | EL228: 0 | FE228: 0
C229: Seguimiento de IRA | AH229: 0 | AX229: 0 | BN229: 0 | CI229: 0 | DC229: 0 | DX229: 0 | EL229: 0 | FE229: 0
C230: Seguimiento de EDA | AH230: 0 | AX230: 0 | BN230: 0 | CI230: 0 | DC230: 0 | DX230: 0 | EL230: 0 | FE230: 0
C231: Seguimiento de Anemia | AH231: 10 | AX231: 0 | BN231: 3 | CI231: 4 | DC231: 1 | DX231: 1 | EL231: 0 | FE231: 1
C234: XIII. ESTIMULACION TEMPRANA
C236: Edad | G236: 1º | N236: 2º | AF236: 3º | AW236: 4º | BM236: 5º | CD236: 6º
C237: Recién Nacido | G237: 0 | N237: 0 | AF237: 0 | AW237: 0 | BM237: 0 | CD237: 0
C238: < 01 año | G238: 0 | N238: 0 | AF238: 0 | AW238: 0 | BM238: 0 | CD238: 0
C239: 01 año | G239: 0 | N239: 0 | AF239: 0 | AW239: 0 | BM239: 0 | CD239: 0
C240: 02 años | G240: 0 | N240: 0 | AF240: 0 | AW240: 0 | BM240: 0 | CD240: 0
C241: 03 años | G241: 0 | N241: 0 | AF241: 0 | AW241: 0 | BM241: 0 | CD241: 0
C243: XIV. ACTIVIDADES EXTRAMURALES, MASIVAS Y DE GESTIÓN
C245: Unidad Medida | G245: Actividad Extramural | BA245: Actividades de Gestión
G246: Sesiones Demostrativas | W246: Sesiones Educativas | BA246: Evaluación | CJ246: Supervisión | DQ246: Asistencia Técnica | EU246: Reu.Téc: Personal de Salud | FZ246: Reu.Téc: Agente Com. de Salud
C247: Actividades | G247: 0 | W247: 0 | BA247: 0 | CJ247: 0 | DQ247: 0 | EU247: 0 | FZ247: 0
C248: Participantes | G248: 0 | W248: 0 | BA248: 0 | CJ248: 0 | DQ248: 0 | EU248: 0 | FZ248: 0
C250: XV. ATENCION DE LAS ENFERMEDADES PREVALENTES DE LA INFANCIA
C252: A. INFECCIÓN RESPIRATORIA AGUDA
C254: DIAGNÓSTICOS | CX254: Grupo Edad
CX255: < 29 Días | EA255: 29 d a 59 Días | EX255: 02 - 11 Meses | GB255: 01 - 04 Años | GO255: 05 - 11 Años | HE255: TOTAL
C256: 1.1 N° casos de IRA sin complicaciones (a+b+c+d+e) | AH256: a. Infección Respiratoria Aguda (IRA) no complicada | CX256: 0 | DZ256: 0 | EA256: 0 | EW256: 0 | EX256: 9 | GA256: 0 | GB256: 26 | GN256: 0 | GO256: 6 | HD256: 0 | HE256: 41
AH257: b. Faringoamigdalitis Aguda | CX257: 0 | DZ257: 0 | EA257: 0 | EW257: 0 | EX257: 7 | GA257: 0 | GB257: 11 | GN257: 0 | GO257: 5 | HD257: 0 | HE257: 23
AH258: c. Otitis Media Aguda (OMA) | CX258: 0 | DZ258: 0 | EA258: 0 | EW258: 0 | EX258: 0 | GA258: 0 | GB258: 0 | GN258: 0 | GO258: 0 | HD258: 0 | HE258: 0
AH259: d. Sinusitis Aguda | CX259: 0 | DZ259: 0 | EA259: 0 | EW259: 0 | EX259: 0 | GA259: 0 | GB259: 0 | GN259: 0 | GO259: 0 | HD259: 0 | HE259: 0
AH260: e. Neumonía sin complicaciones | CX260: 0 | DZ260: 0 | EA260: 0 | EW260: 0 | EX260: 0 | GA260: 0 | GB260: 0 | GN260: 0 | GO260: 0 | HD260: 0 | HE260: 0
C261: 1.2 N° casos IRA con complicaciones (a+b+c) | AH261: a. Infecciones Respiratorias Agudas con complicaciones | CX261: 0 | DZ261: 0 | EA261: 0 | EW261: 0 | EX261: 0 | GA261: 0 | GB261: 0 | GN261: 0 | GO261: 0 | HD261: 0 | HE261: 0
AH262: b. Neumonía Grave o Enfermedad Muy Grave en Niños Menores de 2 Meses | CX262: 0 | DZ262: 0 | EA262: 0 | EW262: 0 | EX262: 0 | GA262: 0 | GB262: 0 | GN262: 0 | GO262: 0 | HD262: 0 | HE262: 0
AH263: c. Neumonía y Enfermedad Muy Grave en Niños de 2 Meses a 4 Años | CX263: 0 | DZ263: 0 | EA263: 0 | EW263: 0 | EX263: 0 | GA263: 0 | GB263: 0 | GN263: 0 | GO263: 0 | HD263: 0 | HE263: 0
C266: DIAGNÓSTICOS | CW266: < 29 Días | DZ266: 29 d a 59 Días | EW266: 02 - 11 Meses | GA266: 12 - 23 Meses | GN266: 02- 02 Años con 11 Meses | HD266: 03 - 04 Años | HM266: 05 - 11 Años | HR266: TOTAL
C267: 1.3 SOB/Asma | AH267: a. SOB/Asma | CW267: 0 | DZ267: 0 | EW267: 1 | GA267: 0 | GN267: 1 | HD267: 0 | HM267: 1 | HR267: 3
C269: B. ENFERMEDAD DIARREICA AGUDA
C271: DIAGNÓSTICOS | CW271: Grupo Edad
CW272: < 01 Año | DZ272: 01 - 04 Años | EW272: 05 - 11 Años | GA272: TOTAL
C273: 1. Enfermedades Diarreicas sin complicaciones ( a + b + c) | AH273: a. Diarrea Aguda Acuosa sin deshidratación | CW273: 9 | DZ273: 14 | EW273: 3 | GA273: 26
... 29 more rows

Sheet IVTRIMESTRE
AZ3: REPORTE MENSUAL DE ACTIVIDADES ATENCIÓN INTEGRAL DE SALUD DEL NIÑO
B5: Periodo: ITRIMESTRE
B6: Diresa/Red/M.Red/EE.SS: AREQUIPA/AREQUIPA CAYLLOMA/TODAS LAS MICRO REDES/TODOS LOS EE.SS
C9: I. ATENCIÓN DEL RECIÉN NACIDO
C11: A) Atención Inmediata
C13: ACTIVIDADES | X13: Nº
C14: Atención Inmediata | X14: 0
C15: Tamizaje Neonatal (Enfermed. Metabólicas) | X15: 0
C16: Tamizaje Visual y Auditivo | X16: 0
C17: Contacto Piel a Piel con la madre | X17: 0
C18: Alojamiento Conjunto | X18: 0
C19: Lactancia Materna en la 1º Hora | X19: 13
C21: B) Resultados del Tamizaje Neonatal
C23: DIAGNÓSTICOS | X23: Nº
C24: Hipotiroidismo Congénito | X24: 0
C25: Fenilcetonuria | X25: 0
C26: Galactosemia | X26: 0
C27: Hiperplasia Suprarrenal Congénita | X27: 0
C28: Fibrosis Quística | X28: 0
C29: Catarata Congénita | X29: 0
C30: Hipoacusia (todas las clasificaciones) | X30: 0
C33: D) Morbilidad Neonatal
C35: CAUSAS DE MORBILIDAD | Z35: Nº
C36: Síndrome de Dristres Respiratorio | Z36: 0
C37: Síndromes de Aspiración Neonatal | Z37: 0
C38: Asfixia Neonatal | Z38: 0
C39: Sepsis Neonatal | Z39: 0
C40: Ictericia | Z40: 5
C41: Hipoglucemia | Z41: 0
C42: Sífilis Congénita | Z42: 0
C43: VIH Expuesto | Z43: 0
C44: Retinopatía de la Prematuridad | Z44: 0
C47: II. CONTROL DE CRECIMIENTO Y DESARROLLO
C49: Grupo de Edad | K49: Número de Controles
K50: 1º | R50: 2º | AB50: 3º | AS50: 4º | BG50: 5º | BR50: 6º | CH50: 7º | CZ50: 8º | DN50: 9º | EG50: 10º | EP50: 11º | FD50: SN | FO50: TOTAL
C51: De 1d a 7d | K51: 0 | Q51: 0 | R51: 0 | AA51: 0 | AB51: 0 | AR51: 0 | AS51: 0 | BF51: 0 | BG51: 0 | BQ51: 0 | BR51: 0 | CG51: 0 | CH51: 0 | CY51: 0 | CZ51: 0 | DM51: 0 | DN51: 0 | EF51: 0 | EG51: 0 | EO51: 0 | EP51: 0 | FC51: 0 | FD51: 0 | FN51: 0 | FO51: 0
C52: De 8d a 14d | K52: 0 | Q52: 0 | R52: 0 | AA52: 0 | AB52: 0 | AR52: 0 | AS52: 0 | BF52: 0 | BG52: 0 | BQ52: 0 | BR52: 0 | CG52: 0 | CH52: 0 | CY52: 0 | CZ52: 0 | DM52: 0 | DN52: 0 | EF52: 0 | EG52: 0 | EO52: 0 | EP52: 0 | FC52: 0 | FD52: 0 | FN52: 0 | FO52: 0
C53: De 15d a 21d | K53: 0 | Q53: 0 | R53: 0 | AA53: 0 | AB53: 0 | AR53: 0 | AS53: 0 | BF53: 0 | BG53: 0 | BQ53: 0 | BR53: 0 | CG53: 0 | CH53: 0 | CY53: 0 | CZ53: 0 | DM53: 0 | DN53: 0 | EF53: 0 | EG53: 0 | EO53: 0 | EP53: 0 | FC53: 0 | FD53: 0 | FN53: 0 | FO53: 0
C54: De 22d a +d | K54: 0 | Q54: 0 | R54: 0 | AA54: 0 | AB54: 0 | AR54: 0 | AS54: 0 | BF54: 0 | BG54: 0 | BQ54: 0 | BR54: 0 | CG54: 0 | CH54: 0 | CY54: 0 | CZ54: 0 | DM54: 0 | DN54: 0 | EF54: 0 | EG54: 0 | EO54: 0 | EP54: 0 | FC54: 0 | FD54: 0 | FN54: 0 | FO54: 0
C55: 29 días - 11 meses | K55: 0 | Q55: 0 | R55: 0 | AA55: 0 | AB55: 0 | AR55: 0 | AS55: 1 | BF55: 0 | BG55: 0 | BQ55: 0 | BR55: 0 | CG55: 0 | CH55: 0 | CY55: 0 | CZ55: 0 | DM55: 0 | DN55: 0 | EF55: 0 | EG55: 0 | EO55: 0 | EP55: 0 | FC55: 0 | FD55: 52 | FN55: 0 | FO55: 53
C56: 01 año | K56: 0 | Q56: 0 | R56: 0 | AA56: 0 | AB56: 0 | AR56: 0 | AS56: 0 | BF56: 0 | BG56: 0 | BQ56: 0 | BR56: 0 | CG56: 0 | CH56: 0 | CY56: 0 | CZ56: 0 | DM56: 0 | DN56: 0 | EF56: 0 | EG56: 0 | EO56: 0 | EP56: 0 | FC56: 0 | FD56: 47 | FN56: 0 | FO56: 47
C57: 02 años | K57: 0 | Q57: 0 | R57: 0 | AA57: 0 | AB57: 0 | AR57: 0 | AS57: 0 | BF57: 0 | BG57: 0 | BQ57: 0 | BR57: 0 | CG57: 0 | CH57: 0 | CY57: 0 | CZ57: 0 | DM57: 0 | DN57: 0 | EF57: 0 | EG57: 0 | EO57: 0 | EP57: 0 | FC57: 0 | FD57: 16 | FN57: 0 | FO57: 16
C58: 03 años | K58: 0 | Q58: 0 | R58: 0 | AA58: 0 | AB58: 0 | AR58: 0 | AS58: 0 | BF58: 0 | BG58: 0 | BQ58: 0 | BR58: 0 | CG58: 0 | CH58: 0 | CY58: 0 | CZ58: 0 | DM58: 0 | DN58: 0 | EF58: 0 | EG58: 0 | EO58: 0 | EP58: 0 | FC58: 0 | FD58: 2 | FN58: 0 | FO58: 2
C59: 04 años | K59: 0 | Q59: 0 | R59: 0 | AA59: 0 | AB59: 0 | AR59: 0 | AS59: 0 | BF59: 0 | BG59: 0 | BQ59: 0 | BR59: 0 | CG59: 0 | CH59: 0 | CY59: 0 | CZ59: 0 | DM59: 0 | DN59: 0 | EF59: 0 | EG59: 0 | EO59: 0 | EP59: 0 | FC59: 0 | FD59: 1 | FN59: 0 | FO59: 1
C60: 05 a 11 años | K60: 0 | Q60: 0 | R60: 0 | AA60: 0 | AB60: 0 | AR60: 0 | AS60: 0 | BF60: 0 | BG60: 0 | BQ60: 0 | BR60: 0 | CG60: 0 | CH60: 0 | CY60: 0 | CZ60: 0 | DM60: 0 | DN60: 0 | EF60: 0 | EG60: 0 | EO60: 0 | EP60: 0 | FC60: 0 | FD60: 0 | FN60: 0 | FO60: 0
C63: Evaluación del Estado Nutricional Antropométricas (Por personal técnico)
C65: Grupo de Edad | J65: Número de Evaluaciones Antropométricas
J66: 1º | Q66: 2º | AA66: 3º | AR66: 4º | BF66: 5º | BQ66: 6º | CG66: 7º | CY66: 8º | DM66: 9º | EF66: 10º | EO66: 11º | FC66: SN | FN66: TOTAL
C67: De 1d a 7d | J67: 0 | Q67: 0 | AA67: 0 | AR67: 0 | BE67: 0 | BF67: 0 | BQ67: 0 | CG67: 0 | CY67: 0 | DM67: 0 | EF67: 0 | EO67: 0 | FC67: 0 | FN67: 0
C68: De 8d a 14d | J68: 0 | Q68: 0 | AA68: 0 | AR68: 0 | BE68: 0 | BF68: 0 | BQ68: 0 | CG68: 0 | CY68: 0 | DM68: 0 | EF68: 0 | EO68: 0 | FC68: 0 | FN68: 0
C69: De 15d a 21d | J69: 0 | Q69: 0 | AA69: 0 | AR69: 0 | BE69: 0 | BF69: 0 | BQ69: 0 | CG69: 0 | CY69: 0 | DM69: 0 | EF69: 0 | EO69: 0 | FC69: 0 | FN69: 0
C70: De 22d a +d | J70: 0 | Q70: 0 | AA70: 0 | AR70: 0 | BE70: 0 | BF70: 0 | BQ70: 0 | CG70: 0 | CY70: 0 | DM70: 0 | EF70: 0 | EO70: 0 | FC70: 0 | FN70: 0
C71: 29 días - 11 meses | J71: 0 | Q71: 0 | AA71: 0 | AR71: 0 | BE71: 0 | BF71: 0 | BQ71: 0 | CG71: 0 | CY71: 0 | DM71: 0 | EF71: 0 | EO71: 0 | FC71: 0 | FN71: 0
C72: 01 año | J72: 0 | Q72: 0 | AA72: 0 | AR72: 0 | BE72: 0 | BF72: 0 | BQ72: 0 | CG72: 0 | CY72: 0 | DM72: 0 | EF72: 0 | EO72: 0 | FC72: 0 | FN72: 0
C73: 02 años | J73: 0 | Q73: 0 | AA73: 0 | AR73: 0 | BE73: 0 | BF73: 0 | BQ73: 0 | CG73: 0 | CY73: 0 | DM73: 0 | EF73: 0 | EO73: 0 | FC73: 0 | FN73: 0
C74: 03 años | J74: 0 | Q74: 0 | AA74: 0 | AR74: 0 | BE74: 0 | BF74: 0 | BQ74: 0 | CG74: 0 | CY74: 0 | DM74: 0 | EF74: 0 | EO74: 0 | FC74: 0 | FN74: 0
C75: 04 años | J75: 0 | Q75: 0 | AA75: 0 | AR75: 0 | BE75: 0 | BF75: 0 | BQ75: 0 | CG75: 0 | CY75: 0 | DM75: 0 | EF75: 0 | EO75: 0 | FC75: 0 | FN75: 0
C76: 05 a 11 años | J76: 0 | Q76: 0 | AA76: 0 | AR76: 0 | BE76: 0 | BF76: 0 | BQ76: 0 | CG76: 0 | CY76: 0 | DM76: 0 | EF76: 0 | EO76: 0 | FC76: 0 | FN76: 0
C79: III. TAMIZAJE
C81: ACTIVIDADES | AO81: 01m* | AZ81: 06m | BO81: 01 a | CE81: 02 a | CV81: 03 a | DL81: 04 a | EB81: 05 -11 a | EM81: TOTAL
C82: Detección de Anemia | I82: Solicitud de Dosaje de Hb | AO82: 0 | AZ82: 0 | BO82: 0 | CE82: 0 | CV82: 0 | DL82: 0 | EB82: 0 | EM82: 0
I83: Resultados Evaluados | AO83: 2 | AZ83: 48 | BO83: 348 | CE83: 118 | CV83: 60 | DL83: 49 | EB83: 37 | EM83: 662
C84: Descarte de Parasitosis | I84: Solicitud de Examen | AO84: 0 | AZ84: 0 | BO84: 0 | CE84: 0 | CV84: 0 | DL84: 0 | EB84: 0 | EM84: 0
I85: Resultados Evaluados | AO85: 0 | AZ85: 0 | BO85: 0 | CE85: 0 | CV85: 0 | DL85: 0 | EB85: 0 | EM85: 0
C88: IV. ADMINISTRACIÓN DE PROFILAXIS ANTIPARASITARIA
C90: ACTIVIDADES | AH90: DOSIS
AH91: 01 año | CC91: 02 años | DP91: 03 años | EZ91: 04 años | GL91: 05 - 11 años
AH92: 1º | AZ92: 2º | CC92: 1º | CU92: 2º | DP92: 1º | EK92: 2º | EZ92: 1º | FQ92: 2º | GL92: 1º | GZ92: 2º
C93: Administración de Profilaxis Antiparasitaria | AH93: 6 | AZ93: 0 | CC93: 153 | CU93: 0 | DP93: 168 | EK93: 0 | EZ93: 206 | FQ93: 2 | GL93: 1229 | GZ93: 0
C95: IV. ADMINISTRACIÓN DE PROFILAXIS ANTIPARASITARIA
C97: A) Sulfato Ferroso y Multimicronutriente (en polvo)
C99: ACTIVIDADES | R99: DOSIS
R100: 1º | AE100: 2º | AV100: 3º | BK100: 4º | BY100: 5º | CN100: 6º | DD100: 7º | DS100: 8º | EI100: 9º | EV100: 10º | FM100: 11º | FY100: 12º | GG100: TA
C101: < 06 meses (BPN y Prematuros (SF)) | R101: 0 | AD101: 0 | AE101: 0 | AU101: 0 | AV101: 0 | BJ101: 0 | BK101: 0 | BY101: 0 | CM101: 0 | CN101: 0 | DD101: 0 | DS101: 0 | EI101: 0 | EV101: 0 | FL101: 0 | FM101: 0 | FY101: 0 | GG101: 0
C102: De 4 a 5 meses (Sulfato Ferroso) | R102: 4 | AD102: 0 | AE102: 0 | AU102: 0 | AV102: 0 | BJ102: 0 | BK102: 0 | BY102: 0 | CM102: 0 | CN102: 0 | DD102: 0 | DS102: 0 | EI102: 0 | EV102: 0 | FL102: 0 | FM102: 0 | FY102: 0 | GG102: 0
C103: De 6 a 11 meses (MMN) | R103: 43 | AD103: 0 | AE103: 40 | AU103: 0 | AV103: 9 | BJ103: 0 | BK103: 4 | BY103: 1 | CM103: 0 | CN103: 0 | DD103: 0 | DS103: 0 | EI103: 0 | EV103: 0 | FL103: 0 | FM103: 0 | FY103: 0 | GG103: 0
C104: De 1 año (MMN) | R104: 14 | AD104: 0 | AE104: 29 | AU104: 0 | AV104: 19 | BJ104: 0 | BK104: 15 | BY104: 13 | CM104: 0 | CN104: 8 | DD104: 2 | DS104: 0 | EI104: 0 | EV104: 1 | FL104: 0 | FM104: 0 | FY104: 0 | GG104: 16
C105: De 2 año (MMN) | R105: 15 | AD105: 0 | AE105: 8 | AU105: 0 | AV105: 6 | BJ105: 0 | BK105: 6 | BY105: 7 | CM105: 0 | CN105: 6 | DD105: 1 | DS105: 0 | EI105: 2 | EV105: 0 | FL105: 0 | FM105: 0 | FY105: 1 | GG105: 10
C106: De 3 año (MMN) | R106: 1 | AD106: 0 | AE106: 0 | AU106: 0 | AV106: 0 | BJ106: 0 | BK106: 1 | BY106: 0 | CM106: 0 | CN106: 2 | DD106: 0 | DS106: 0 | EI106: 0 | EV106: 0 | FL106: 0 | FM106: 0 | FY106: 1 | GG106: 3
C107: De 4 año (MMN) | R107: 3 | AD107: 0 | AE107: 0 | AU107: 0 | AV107: 1 | BJ107: 0 | BK107: 0 | BY107: 0 | CM107: 0 | CN107: 0 | DD107: 0 | DS107: 0 | EI107: 0 | EV107: 0 | FL107: 0 | FM107: 0 | FY107: 0 | GG107: 2
B110: Polimaltosado
B112: ACTIVIDADES | P112: DOSIS
P113: 1º | AC113: 2º | AT113: 3º | BI113: 4º | BV113: 5º | CK113: 6º | DB113: 7º | DR113: 8º | EH113: 9º | ET113: 10º | FK113: 11º | FX113: 12º | GF113: TA
B114: < 06 meses (BPN y Prematuros) | P114: 1 | AC114: 0 | AT114: 0 | BI114: 0 | BV114: 0 | CK114: 0 | DB114: 0 | DR114: 0 | EH114: 0 | ET114: 0 | FK114: 0 | FX114: 0 | GF114: 0 | GP114: 0
B115: De 4 a 5 meses | P115: 91 | AC115: 5 | AT115: 0 | BI115: 0 | BV115: 0 | CK115: 0 | DB115: 0 | DR115: 0 | EH115: 0 | ET115: 0 | FK115: 0 | FX115: 0 | GF115: 0 | GP115: 0
B116: De 6 a 11 meses | P116: 55 | AC116: 20 | AT116: 5 | BI116: 0 | BV116: 0 | CK116: 0 | DB116: 0 | DR116: 0 | EH116: 0 | ET116: 0 | FK116: 0 | FX116: 0 | GF116: 0 | GP116: 0
B117: De 1 año | P117: 20 | AC117: 31 | AT117: 21 | BI117: 20 | BV117: 14 | CK117: 17 | DB117: 0 | DR117: 1 | EH117: 1 | ET117: 0 | FK117: 0 | FX117: 1 | GF117: 0 | GP117: 0
B118: De 2 años | P118: 4 | AC118: 3 | AT118: 0 | BI118: 4 | BV118: 2 | CK118: 4 | DB118: 0 | DR118: 0 | EH118: 0 | ET118: 0 | FK118: 1 | FX118: 0 | GF118: 0 | GP118: 0
B119: De 3 años | P119: 0 | AC119: 0 | AT119: 0 | BI119: 0 | BV119: 0 | CK119: 0 | DB119: 0 | DR119: 0 | EH119: 0 | ET119: 0 | FK119: 0 | FX119: 0 | GF119: 0 | GP119: 0
B120: De 4 años | P120: 1 | AC120: 0 | AT120: 0 | BI120: 0 | BV120: 0 | CK120: 0 | DB120: 0 | DR120: 0 | EH120: 0 | ET120: 0 | FK120: 0 | FX120: 0 | GF120: 0 | GP120: 0
C123: B) Vitamina "A"
Q125: 06 meses | AU125: 01 año | BY125: 02 años | DD125: 03 años | EI125: 04 años
C126: Dosis | Q126: 1º Dosis | AD126: 2º Dosis | AU126: 1º Dosis | BJ126: 2º Dosis | BY126: 1º Dosis | CN126: 2º Dosis | DD126: 1º Dosis | DS126: 2º Dosis | EI126: 1º Dosis | EV126: 2º Dosis
C127: Suplementados | Q127: 0 | AD127: 0 | AU127: 0 | BJ127: 0 | BY127: 0 | CM127: 0 | CN127: 0 | DD127: 0 | DS127: 0 | EI127: 0 | EV127: 0
C130: VI. LACTANCIA MATERNA EXCLUSIVA
C132: Condición | Q132: Nº
C133: Niños con LME a los 06 meses | Q133: 0
C135: VII. ALIMENTACIÓN COMPLEMENTARIA
C137: Condición | CA137: Nº
C138: Niños con Inicio de Alimentación Complementaria antes de los 06 meses | CA138: 5
C139: Niños con Inicio de Alimentación Complementaria después de los 06 meses | CA139: 0
C140: Niños con Inicio de Alimentación Complementaria Adecuada | CA140: 7
C141: Niños con Inicio de Alimentación Complementaria Inadecuada | CA141: 0
C144: VIII. EVALUACION DEL ESTADO NUTRICIONAL
C146: A) En el Recién Nacido de 01 día a 28 días
C148: Clasificación | O148: Dx | BP148: Nº
C149: RN Bajo Peso Recuperados | O149: RN Bajo Peso Recuperados | BP149: 0
C150: Peso al Nacer | O150: Extremadamente bajo | BP150: 0
O151: Muy bajo peso al nacer | BP151: 0
O152: Bajo peso al nacer | BP152: 0
O153: Normal | BP153: 1
O154: Macrosómico | BP154: 0
C155: Ganancia de Peso / Talla | O155: Ganancia Inadecuada de Peso Dx. | BP155: 3
O156: Ganancia Inadecuada de Peso Recup. | BP156: 0
O157: Ganancia Inadecuada de Talla Dx. | BP157: 0
O158: Ganancia Inadecuada de Talla Recup. | BP158: 0
C160: B) En los Niños y Niñas de 29 días a < 05 años
C162: Grupo de Edad | E162: Ganancia Inadecuada de Peso o Talla | BB162: Normal
E163: Peso | S163: Talla | BB163: Normal
E164: Dx. | L164: Recup. | S164: Dx. | AI164: Recup. | BB164: Normal
C165: < 1 año | E165: 26 | L165: 0 | S165: 7 | AI165: 0 | BB165: 271
C166: 1 año | E166: 11 | L166: 1 | S166: 2 | AI166: 1 | BB166: 263
C167: 2 años | E167: 2 | L167: 0 | S167: 6 | AI167: 0 | BB167: 124
C168: 3 años | E168: 0 | L168: 0 | S168: 5 | AI168: 0 | BB168: 100
C169: 4 años | E169: 3 | L169: 0 | S169: 2 | AI169: 0 | BB169: 103
C172: Grupo de Edad | D172: Peso para la Edad (PE) | BC172: Peso para la Edad (TP) | GI172: Talla para la Edad (TE)
D173: Sobrepeso | T173: Desnutrición | BC173: Obesidad | CP173: Sobrepeso | EC173: Desnutrición Aguda | FG173: Desnutrición Severa | GI173: Alto | HB173: Talla Baja
D174: Dx. | L174: Recup. | T174: Dx. | AJ174: Recup. | BC174: Dx. | BW174: Recup. | CP174: Dx. | DI174: Recup. | EC174: Dx. | EQ174: Recup. | FG174: Dx. | FU174: Recup. | GI174: Dx. | GV174: Recup. | HB174: Dx. | HI174: Recup.
C175: < 1 año | D175: 3 | L175: 0 | T175: 2 | AJ175: 0 | BC175: 3 | BW175: 0 | CP175: 16 | DI175: 0 | EC175: 1 | EQ175: 0 | FG175: 0 | FU175: 0 | GI175: 0 | GV175: 0 | HB175: 4 | HI175: 0
C176: 1 año | D176: 3 | L176: 0 | T176: 2 | AJ176: 0 | BC176: 3 | BW176: 0 | CP176: 7 | DI176: 0 | EC176: 1 | EQ176: 0 | FG176: 0 | FU176: 0 | GI176: 1 | GV176: 0 | HB176: 3 | HI176: 0
C177: 2 años | D177: 2 | L177: 0 | T177: 0 | AJ177: 0 | BC177: 1 | BW177: 0 | CP177: 4 | DI177: 0 | EC177: 1 | EQ177: 0 | FG177: 0 | FU177: 0 | GI177: 0 | GV177: 0 | HB177: 2 | HI177: 0
C178: 3 años | D178: 2 | L178: 0 | T178: 0 | AJ178: 0 | BC178: 2 | BW178: 0 | CP178: 1 | DI178: 0 | EC178: 0 | EQ178: 0 | FG178: 0 | FU178: 0 | GI178: 0 | GV178: 0 | HB178: 1 | HI178: 0
C179: 4 años | D179: 2 | L179: 0 | T179: 0 | AJ179: 0 | BC179: 1 | BW179: 0 | CP179: 3 | DI179: 0 | EC179: 0 | EQ179: 0 | FG179: 0 | FU179: 0 | GI179: 0 | GV179: 0 | HB179: 3 | HI179: 0
C182: C) En los Niños y Niñas de 05 a 11 años
C184: Grupo de Edad | E184: Índice de Masa Cororal (IMC) | DY184: Talla para la Edad (TE) | HA184: Normal
E185: Obesidad | S185: Sobrepeso | BB185: Delgadez | CO185: Delgadez Severa | DY185: Alto | FF185: Talla Baja | GE185: Talla Baja Severa | HA185: Normal
E186: Dx. | L186: Recup. | S186: Dx. | AI186: Recup. | BB186: Dx. | BT186: Recup. | CO186: Dx. | DE186: Recup. | DY186: Dx. | EN186: Recup. | FF186: Dx. | FR186: Recup. | GE186: Dx. | GS186: Recup. | HA186: Normal
C187: 05 a 11 años | E187: 19 | L187: 0 | S187: 27 | AI187: 0 | BB187: 1 | BS187: 0 | BT187: 0 | CO187: 0 | DE187: 0 | DY187: 1 | EN187: 0 | FF187: 1 | FR187: 0 | GE187: 0 | GS187: 0 | HA187: 116
C189: IX. EVALUACION DEL DESARROLLO
C191: Grupo de Edad | D191: Trastorno del Desarrollo | GJ191: Evaluac. Normal
D192: Lenguaje | U192: Motora | BD192: Social | CQ192: Coordinación | ED192: Cognitiva | FH192: Con + de 1 Trastorno | GJ192: Evaluac. Normal
D193: Dx. | L193: Recup. | U193: Dx. | AK193: Recup. | BD193: Dx. | BX193: Recup. | CQ193: Dx. | DJ193: Recup. | ED193: Dx. | ER193: Recup. | FH193: Dx. | FV193: Recup. | GJ193: Evaluac. Normal
C194: < 1 año | D194: 0 | L194: 0 | T194: 0 | U194: 0 | AJ194: 0 | AK194: 0 | BC194: 0 | BD194: 0 | BW194: 0 | BX194: 0 | CP194: 0 | CQ194: 0 | DI194: 0 | DJ194: 0 | EC194: 0 | ED194: 0 | EQ194: 0 | ER194: 0 | FG194: 0 | FH194: 0 | FU194: 0 | FV194: 0 | GI194: 0 | GJ194: 1
C195: 1 año | D195: 0 | L195: 0 | T195: 0 | U195: 0 | AJ195: 0 | AK195: 0 | BC195: 0 | BD195: 0 | BW195: 0 | BX195: 0 | CP195: 0 | CQ195: 0 | DI195: 0 | DJ195: 0 | EC195: 0 | ED195: 0 | EQ195: 0 | ER195: 0 | FG195: 0 | FH195: 0 | FU195: 0 | FV195: 0 | GI195: 0 | GJ195: 0
C196: 2 años | D196: 0 | L196: 0 | T196: 0 | U196: 0 | AJ196: 0 | AK196: 0 | BC196: 0 | BD196: 0 | BW196: 0 | BX196: 0 | CP196: 0 | CQ196: 0 | DI196: 0 | DJ196: 0 | EC196: 0 | ED196: 0 | EQ196: 0 | ER196: 0 | FG196: 0 | FH196: 0 | FU196: 0 | FV196: 0 | GI196: 0 | GJ196: 0
C199: Grupo de Edad | D199: Déficit del Desarrollo | GJ199: Evaluac. Normal
D200: Lenguaje | U200: Motora | BD200: Social | CQ200: Coordinación | ED200: Cognitiva | FH200: Más de 1 Déficit | GJ200: Evaluac. Normal
D201: Dx. | L201: Recup. | U201: Dx. | AK201: Recup. | BD201: Dx. | BX201: Recup. | CQ201: Dx. | DJ201: Recup. | ED201: Dx. | ER201: Recup. | FH201: Dx. | FV201: Recup. | GJ201: Evaluac. Normal
C202: 03 años | D202: 0 | L202: 0 | T202: 0 | U202: 0 | AJ202: 0 | AK202: 0 | BC202: 0 | BD202: 0 | BW202: 0 | BX202: 0 | CP202: 0 | CQ202: 0 | DI202: 0 | DJ202: 0 | EC202: 0 | ED202: 0 | EQ202: 0 | ER202: 0 | FG202: 0 | FH202: 0 | FU202: 0 | FV202: 0 | GI202: 0 | GJ202: 0
C203: 04 años | D203: 0 | L203: 0 | T203: 0 | U203: 0 | AJ203: 0 | AK203: 0 | BC203: 0 | BD203: 0 | BW203: 0 | BX203: 0 | CP203: 0 | CQ203: 0 | DI203: 0 | DJ203: 0 | EC203: 0 | ED203: 0 | EQ203: 0 | ER203: 0 | FG203: 0 | FH203: 0 | FU203: 0 | FV203: 0 | GI203: 0 | GJ203: 0
C205: X. PLAN DE ATENCION INTEGRAL
C207: Edades | F207: RN | M207: <1 año | V207: 01 año | AL207: 02 años | BE207: 03 años | BZ207: 04 años | CR207: 05 años | DK207: 06 años | EE207: 07 años | ES207: 08 años | FI207: 09 años | FW207: 10 años | GK207: 11 años
C208: Elaborado | F208: 0 | M208: 0 | V208: 0 | AL208: 0 | BE208: 0 | BZ208: 0 | CR208: 0 | DK208: 0 | EE208: 0 | ES208: 0 | FI208: 0 | FW208: 0 | GK208: 1
C209: Ejecutado | F209: 0 | M209: 0 | V209: 0 | AL209: 0 | BE209: 0 | BZ209: 0 | CR209: 0 | DK209: 0 | EE209: 0 | ES209: 0 | FI209: 0 | FW209: 0 | GK209: 0
C212: XI. CONSEJERÍA
C214: Tipos / Edades | AH214: TOTAL | AX214: RN | BN214: <1 año | CI214: 01 año | DC214: 02 años | DX214: 03 años | EL214: 04 años | FE214: 05 - 11 a
C215: Nutricional por Suplementación | AH215: 22 | AX215: 0 | BN215: 1 | CI215: 13 | DC215: 5 | DX215: 3 | EL215: 0 | FE215: 0
C216: Nutricional por Eval. PE, TP, TE, IMC | AH216: 1541 | AX216: 1 | BN216: 617 | CI216: 618 | DC216: 144 | DX216: 38 | EL216: 55 | FE216: 68
C217: Integral por Eval. del Desarrollo | AH217: 0 | AX217: 0 | BN217: 0 | CI217: 0 | DC217: 0 | DX217: 0 | EL217: 0 | FE217: 0
C218: Integral por Aliment. Complement. | AH218: 0 | AX218: 0 | BN218: 0 | CI218: 0 | DC218: 0 | DX218: 0 | EL218: 0 | FE218: 0
C221: XII. VISITA DOMICILIARIA
C223: Tipos de Visita / Edades | AH223: TOTAL | AX223: RN | BN223: <1 año | CI223: 01 año | DC223: 02 años | DX223: 03 años | EL223: 04 años | FE223: 05 - 11 a
C224: Seguimiento al Control CRED | AH224: 41 | AX224: 0 | BN224: 19 | CI224: 18 | DC224: 2 | DX224: 1 | EL224: 1 | FE224: 0
C225: Seguimiento a Problemas Nutricionales | AH225: 0 | AX225: 0 | BN225: 0 | CI225: 0 | DC225: 0 | DX225: 0 | EL225: 0 | FE225: 0
C226: Seguimiento a Problemas del Desarrollo | AH226: 0 | AX226: 0 | BN226: 0 | CI226: 0 | DC226: 0 | DX226: 0 | EL226: 0 | FE226: 0
C227: Entrega de Suplementación | AH227: 71 | AX227: 0 | BN227: 24 | CI227: 36 | DC227: 9 | DX227: 2 | EL227: 0 | FE227: 0
C228: Verificación de Consumo de Micronutrientes | AH228: 1 | AX228: 0 | BN228: 1 | CI228: 0 | DC228: 0 | DX228: 0 | EL228: 0 | FE228: 0
C229: Seguimiento de IRA | AH229: 0 | AX229: 0 | BN229: 0 | CI229: 0 | DC229: 0 | DX229: 0 | EL229: 0 | FE229: 0
C230: Seguimiento de EDA | AH230: 0 | AX230: 0 | BN230: 0 | CI230: 0 | DC230: 0 | DX230: 0 | EL230: 0 | FE230: 0
C231: Seguimiento de Anemia | AH231: 26 | AX231: 0 | BN231: 6 | CI231: 15 | DC231: 3 | DX231: 1 | EL231: 0 | FE231: 1
C234: XIII. ESTIMULACION TEMPRANA
C236: Edad | G236: 1º | N236: 2º | AF236: 3º | AW236: 4º | BM236: 5º | CD236: 6º
C237: Recién Nacido | G237: 0 | N237: 0 | AF237: 0 | AW237: 0 | BM237: 0 | CD237: 0
C238: < 01 año | G238: 0 | N238: 0 | AF238: 0 | AW238: 0 | BM238: 0 | CD238: 0
C239: 01 año | G239: 0 | N239: 0 | AF239: 0 | AW239: 0 | BM239: 0 | CD239: 0
C240: 02 años | G240: 0 | N240: 0 | AF240: 0 | AW240: 0 | BM240: 0 | CD240: 0
C241: 03 años | G241: 0 | N241: 0 | AF241: 0 | AW241: 0 | BM241: 0 | CD241: 0
C243: XIV. ACTIVIDADES EXTRAMURALES, MASIVAS Y DE GESTIÓN
C245: Unidad Medida | G245: Actividad Extramural | BA245: Actividades de Gestión
G246: Sesiones Demostrativas | W246: Sesiones Educativas | BA246: Evaluación | CJ246: Supervisión | DQ246: Asistencia Técnica | EU246: Reu.Téc: Personal de Salud | FZ246: Reu.Téc: Agente Com. de Salud
C247: Actividades | G247: 0 | W247: 0 | BA247: 0 | CJ247: 0 | DQ247: 7 | EU247: 0 | FZ247: 0
C248: Participantes | G248: 0 | W248: 0 | BA248: 0 | CJ248: 0 | DQ248: 7 | EU248: 0 | FZ248: 0
C250: XV. ATENCION DE LAS ENFERMEDADES PREVALENTES DE LA INFANCIA
C252: A. INFECCIÓN RESPIRATORIA AGUDA
C254: DIAGNÓSTICOS | CX254: Grupo Edad
CX255: < 29 Días | EA255: 29 d a 59 Días | EX255: 02 - 11 Meses | GB255: 01 - 04 Años | GO255: 05 - 11 Años | HE255: TOTAL
C256: 1.1 N° casos de IRA sin complicaciones (a+b+c+d+e) | AH256: a. Infección Respiratoria Aguda (IRA) no complicada | CX256: 5 | DZ256: 0 | EA256: 4 | EW256: 0 | EX256: 42 | GA256: 0 | GB256: 66 | GN256: 0 | GO256: 27 | HD256: 0 | HE256: 144
AH257: b. Faringoamigdalitis Aguda | CX257: 0 | DZ257: 0 | EA257: 0 | EW257: 0 | EX257: 14 | GA257: 0 | GB257: 35 | GN257: 0 | GO257: 19 | HD257: 0 | HE257: 68
AH258: c. Otitis Media Aguda (OMA) | CX258: 0 | DZ258: 0 | EA258: 0 | EW258: 0 | EX258: 0 | GA258: 0 | GB258: 2 | GN258: 0 | GO258: 0 | HD258: 0 | HE258: 2
AH259: d. Sinusitis Aguda | CX259: 0 | DZ259: 0 | EA259: 0 | EW259: 0 | EX259: 0 | GA259: 0 | GB259: 0 | GN259: 0 | GO259: 0 | HD259: 0 | HE259: 0
AH260: e. Neumonía sin complicaciones | CX260: 0 | DZ260: 0 | EA260: 0 | EW260: 0 | EX260: 0 | GA260: 0 | GB260: 0 | GN260: 0 | GO260: 0 | HD260: 0 | HE260: 0
C261: 1.2 N° casos IRA con complicaciones (a+b+c) | AH261: a. Infecciones Respiratorias Agudas con complicaciones | CX261: 0 | DZ261: 0 | EA261: 0 | EW261: 0 | EX261: 0 | GA261: 0 | GB261: 0 | GN261: 0 | GO261: 0 | HD261: 0 | HE261: 0
AH262: b. Neumonía Grave o Enfermedad Muy Grave en Niños Menores de 2 Meses | CX262: 0 | DZ262: 0 | EA262: 0 | EW262: 0 | EX262: 0 | GA262: 0 | GB262: 0 | GN262: 0 | GO262: 0 | HD262: 0 | HE262: 0
AH263: c. Neumonía y Enfermedad Muy Grave en Niños de 2 Meses a 4 Años | CX263: 0 | DZ263: 0 | EA263: 0 | EW263: 0 | EX263: 0 | GA263: 0 | GB263: 0 | GN263: 0 | GO263: 0 | HD263: 0 | HE263: 0
C266: DIAGNÓSTICOS | CW266: < 29 Días | DZ266: 29 d a 59 Días | EW266: 02 - 11 Meses | GA266: 12 - 23 Meses | GN266: 02- 02 Años con 11 Meses | HD266: 03 - 04 Años | HM266: 05 - 11 Años | HR266: TOTAL
C267: 1.3 SOB/Asma | AH267: a. SOB/Asma | CW267: 0 | DZ267: 0 | EW267: 4 | GA267: 0 | GN267: 1 | HD267: 0 | HM267: 1 | HR267: 6
C269: B. ENFERMEDAD DIARREICA AGUDA
C271: DIAGNÓSTICOS | CW271: Grupo Edad
CW272: < 01 Año | DZ272: 01 - 04 Años | EW272: 05 - 11 Años | GA272: TOTAL
C273: 1. Enfermedades Diarreicas sin complicaciones ( a + b + c) | AH273: a. Diarrea Aguda Acuosa sin deshidratación | CW273: 21 | DZ273: 43 | EW273: 10 | GA273: 74
... 29 more rows

Sheet IISEMESTRE
AZ3: REPORTE MENSUAL DE ACTIVIDADES ATENCIÓN INTEGRAL DE SALUD DEL NIÑO
B5: Periodo: IISEMESTRE
B6: Diresa/Red/M.Red/EE.SS: AREQUIPA/AREQUIPA CAYLLOMA/TODAS LAS MICRO REDES/TODOS LOS EE.SS
C9: I. ATENCIÓN DEL RECIÉN NACIDO
C11: A) Atención Inmediata
C13: ACTIVIDADES | X13: Nº
C14: Atención Inmediata | X14: 0
C15: Tamizaje Neonatal (Enfermed. Metabólicas) | X15: 0
C16: Tamizaje Visual y Auditivo | X16: 0
C17: Contacto Piel a Piel con la madre | X17: 0
C18: Alojamiento Conjunto | X18: 0
C19: Lactancia Materna en la 1º Hora | X19: 13
C21: B) Resultados del Tamizaje Neonatal
C23: DIAGNÓSTICOS | X23: Nº
C24: Hipotiroidismo Congénito | X24: 0
C25: Fenilcetonuria | X25: 0
C26: Galactosemia | X26: 0
C27: Hiperplasia Suprarrenal Congénita | X27: 0
C28: Fibrosis Quística | X28: 0
C29: Catarata Congénita | X29: 0
C30: Hipoacusia (todas las clasificaciones) | X30: 0
C33: D) Morbilidad Neonatal
C35: CAUSAS DE MORBILIDAD | Z35: Nº
C36: Síndrome de Dristres Respiratorio | Z36: 0
C37: Síndromes de Aspiración Neonatal | Z37: 0
C38: Asfixia Neonatal | Z38: 0
C39: Sepsis Neonatal | Z39: 0
C40: Ictericia | Z40: 6
C41: Hipoglucemia | Z41: 0
C42: Sífilis Congénita | Z42: 0
C43: VIH Expuesto | Z43: 0
C44: Retinopatía de la Prematuridad | Z44: 0
C47: II. CONTROL DE CRECIMIENTO Y DESARROLLO
C49: Grupo de Edad | K49: Número de Controles
K50: 1º | R50: 2º | AB50: 3º | AS50: 4º | BG50: 5º | BR50: 6º | CH50: 7º | CZ50: 8º | DN50: 9º | EG50: 10º | EP50: 11º | FD50: SN | FO50: TOTAL
C51: De 1d a 7d | K51: 0 | Q51: 0 | R51: 0 | AA51: 0 | AB51: 0 | AR51: 0 | AS51: 0 | BF51: 0 | BG51: 0 | BQ51: 0 | BR51: 0 | CG51: 0 | CH51: 0 | CY51: 0 | CZ51: 0 | DM51: 0 | DN51: 0 | EF51: 0 | EG51: 0 | EO51: 0 | EP51: 0 | FC51: 0 | FD51: 0 | FN51: 0 | FO51: 0
C52: De 8d a 14d | K52: 0 | Q52: 0 | R52: 0 | AA52: 0 | AB52: 0 | AR52: 0 | AS52: 0 | BF52: 0 | BG52: 0 | BQ52: 0 | BR52: 0 | CG52: 0 | CH52: 0 | CY52: 0 | CZ52: 0 | DM52: 0 | DN52: 0 | EF52: 0 | EG52: 0 | EO52: 0 | EP52: 0 | FC52: 0 | FD52: 0 | FN52: 0 | FO52: 0
C53: De 15d a 21d | K53: 0 | Q53: 0 | R53: 0 | AA53: 0 | AB53: 0 | AR53: 0 | AS53: 0 | BF53: 0 | BG53: 0 | BQ53: 0 | BR53: 0 | CG53: 0 | CH53: 0 | CY53: 0 | CZ53: 0 | DM53: 0 | DN53: 0 | EF53: 0 | EG53: 0 | EO53: 0 | EP53: 0 | FC53: 0 | FD53: 0 | FN53: 0 | FO53: 0
C54: De 22d a +d | K54: 0 | Q54: 0 | R54: 0 | AA54: 0 | AB54: 0 | AR54: 0 | AS54: 0 | BF54: 0 | BG54: 0 | BQ54: 0 | BR54: 0 | CG54: 0 | CH54: 0 | CY54: 0 | CZ54: 0 | DM54: 0 | DN54: 0 | EF54: 0 | EG54: 0 | EO54: 0 | EP54: 0 | FC54: 0 | FD54: 0 | FN54: 0 | FO54: 0
C55: 29 días - 11 meses | K55: 0 | Q55: 0 | R55: 0 | AA55: 0 | AB55: 0 | AR55: 0 | AS55: 1 | BF55: 0 | BG55: 0 | BQ55: 0 | BR55: 0 | CG55: 0 | CH55: 0 | CY55: 0 | CZ55: 0 | DM55: 0 | DN55: 0 | EF55: 0 | EG55: 0 | EO55: 0 | EP55: 0 | FC55: 0 | FD55: 52 | FN55: 0 | FO55: 53
C56: 01 año | K56: 0 | Q56: 0 | R56: 0 | AA56: 0 | AB56: 0 | AR56: 0 | AS56: 0 | BF56: 0 | BG56: 0 | BQ56: 0 | BR56: 0 | CG56: 0 | CH56: 0 | CY56: 0 | CZ56: 0 | DM56: 0 | DN56: 0 | EF56: 0 | EG56: 0 | EO56: 0 | EP56: 0 | FC56: 0 | FD56: 47 | FN56: 0 | FO56: 47
C57: 02 años | K57: 0 | Q57: 0 | R57: 0 | AA57: 0 | AB57: 0 | AR57: 0 | AS57: 0 | BF57: 0 | BG57: 0 | BQ57: 0 | BR57: 0 | CG57: 0 | CH57: 0 | CY57: 0 | CZ57: 0 | DM57: 0 | DN57: 0 | EF57: 0 | EG57: 0 | EO57: 0 | EP57: 0 | FC57: 0 | FD57: 16 | FN57: 0 | FO57: 16
C58: 03 años | K58: 0 | Q58: 0 | R58: 0 | AA58: 0 | AB58: 0 | AR58: 0 | AS58: 0 | BF58: 0 | BG58: 0 | BQ58: 0 | BR58: 0 | CG58: 0 | CH58: 0 | CY58: 0 | CZ58: 0 | DM58: 0 | DN58: 0 | EF58: 0 | EG58: 0 | EO58: 0 | EP58: 0 | FC58: 0 | FD58: 2 | FN58: 0 | FO58: 2
C59: 04 años | K59: 0 | Q59: 0 | R59: 0 | AA59: 0 | AB59: 0 | AR59: 0 | AS59: 0 | BF59: 0 | BG59: 0 | BQ59: 0 | BR59: 0 | CG59: 0 | CH59: 0 | CY59: 0 | CZ59: 0 | DM59: 0 | DN59: 0 | EF59: 0 | EG59: 0 | EO59: 0 | EP59: 0 | FC59: 0 | FD59: 1 | FN59: 0 | FO59: 1
C60: 05 a 11 años | K60: 0 | Q60: 0 | R60: 0 | AA60: 0 | AB60: 0 | AR60: 0 | AS60: 0 | BF60: 0 | BG60: 0 | BQ60: 0 | BR60: 0 | CG60: 0 | CH60: 0 | CY60: 0 | CZ60: 0 | DM60: 0 | DN60: 0 | EF60: 0 | EG60: 0 | EO60: 0 | EP60: 0 | FC60: 0 | FD60: 0 | FN60: 0 | FO60: 0
C63: Evaluación del Estado Nutricional Antropométricas (Por personal técnico)
C65: Grupo de Edad | J65: Número de Evaluaciones Antropométricas
J66: 1º | Q66: 2º | AA66: 3º | AR66: 4º | BF66: 5º | BQ66: 6º | CG66: 7º | CY66: 8º | DM66: 9º | EF66: 10º | EO66: 11º | FC66: SN | FN66: TOTAL
C67: De 1d a 7d | J67: 0 | Q67: 0 | AA67: 0 | AR67: 0 | BE67: 0 | BF67: 0 | BQ67: 0 | CG67: 0 | CY67: 0 | DM67: 0 | EF67: 0 | EO67: 0 | FC67: 0 | FN67: 0
C68: De 8d a 14d | J68: 0 | Q68: 0 | AA68: 0 | AR68: 0 | BE68: 0 | BF68: 0 | BQ68: 0 | CG68: 0 | CY68: 0 | DM68: 0 | EF68: 0 | EO68: 0 | FC68: 0 | FN68: 0
C69: De 15d a 21d | J69: 0 | Q69: 0 | AA69: 0 | AR69: 0 | BE69: 0 | BF69: 0 | BQ69: 0 | CG69: 0 | CY69: 0 | DM69: 0 | EF69: 0 | EO69: 0 | FC69: 0 | FN69: 0
C70: De 22d a +d | J70: 0 | Q70: 0 | AA70: 0 | AR70: 0 | BE70: 0 | BF70: 0 | BQ70: 0 | CG70: 0 | CY70: 0 | DM70: 0 | EF70: 0 | EO70: 0 | FC70: 0 | FN70: 0
C71: 29 días - 11 meses | J71: 0 | Q71: 0 | AA71: 0 | AR71: 0 | BE71: 0 | BF71: 0 | BQ71: 0 | CG71: 0 | CY71: 0 | DM71: 0 | EF71: 0 | EO71: 0 | FC71: 0 | FN71: 0
C72: 01 año | J72: 0 | Q72: 0 | AA72: 0 | AR72: 0 | BE72: 0 | BF72: 0 | BQ72: 0 | CG72: 0 | CY72: 0 | DM72: 0 | EF72: 0 | EO72: 0 | FC72: 0 | FN72: 0
C73: 02 años | J73: 0 | Q73: 0 | AA73: 0 | AR73: 0 | BE73: 0 | BF73: 0 | BQ73: 0 | CG73: 0 | CY73: 0 | DM73: 0 | EF73: 0 | EO73: 0 | FC73: 0 | FN73: 0
C74: 03 años | J74: 0 | Q74: 0 | AA74: 0 | AR74: 0 | BE74: 0 | BF74: 0 | BQ74: 0 | CG74: 0 | CY74: 0 | DM74: 0 | EF74: 0 | EO74: 0 | FC74: 0 | FN74: 0
C75: 04 años | J75: 0 | Q75: 0 | AA75: 0 | AR75: 0 | BE75: 0 | BF75: 0 | BQ75: 0 | CG75: 0 | CY75: 0 | DM75: 0 | EF75: 0 | EO75: 0 | FC75: 0 | FN75: 0
C76: 05 a 11 años | J76: 0 | Q76: 0 | AA76: 0 | AR76: 0 | BE76: 0 | BF76: 0 | BQ76: 0 | CG76: 0 | CY76: 0 | DM76: 0 | EF76: 0 | EO76: 0 | FC76: 0 | FN76: 0
C79: III. TAMIZAJE
C81: ACTIVIDADES | AO81: 01m* | AZ81: 06m | BO81: 01 a | CE81: 02 a | CV81: 03 a | DL81: 04 a | EB81: 05 -11 a | EM81: TOTAL
C82: Detección de Anemia | I82: Solicitud de Dosaje de Hb | AO82: 0 | AZ82: 4 | BO82: 5 | CE82: 0 | CV82: 0 | DL82: 0 | EB82: 0 | EM82: 9
I83: Resultados Evaluados | AO83: 2 | AZ83: 73 | BO83: 436 | CE83: 122 | CV83: 63 | DL83: 53 | EB83: 39 | EM83: 788
C84: Descarte de Parasitosis | I84: Solicitud de Examen | AO84: 0 | AZ84: 0 | BO84: 0 | CE84: 0 | CV84: 0 | DL84: 0 | EB84: 0 | EM84: 0
I85: Resultados Evaluados | AO85: 0 | AZ85: 0 | BO85: 0 | CE85: 0 | CV85: 0 | DL85: 0 | EB85: 0 | EM85: 0
C88: IV. ADMINISTRACIÓN DE PROFILAXIS ANTIPARASITARIA
C90: ACTIVIDADES | AH90: DOSIS
AH91: 01 año | CC91: 02 años | DP91: 03 años | EZ91: 04 años | GL91: 05 - 11 años
AH92: 1º | AZ92: 2º | CC92: 1º | CU92: 2º | DP92: 1º | EK92: 2º | EZ92: 1º | FQ92: 2º | GL92: 1º | GZ92: 2º
C93: Administración de Profilaxis Antiparasitaria | AH93: 6 | AZ93: 0 | CC93: 158 | CU93: 0 | DP93: 169 | EK93: 0 | EZ93: 208 | FQ93: 2 | GL93: 1229 | GZ93: 0
C95: IV. ADMINISTRACIÓN DE PROFILAXIS ANTIPARASITARIA
C97: A) Sulfato Ferroso y Multimicronutriente (en polvo)
C99: ACTIVIDADES | R99: DOSIS
R100: 1º | AE100: 2º | AV100: 3º | BK100: 4º | BY100: 5º | CN100: 6º | DD100: 7º | DS100: 8º | EI100: 9º | EV100: 10º | FM100: 11º | FY100: 12º | GG100: TA
C101: < 06 meses (BPN y Prematuros (SF)) | R101: 0 | AD101: 0 | AE101: 0 | AU101: 0 | AV101: 0 | BJ101: 0 | BK101: 0 | BY101: 0 | CM101: 0 | CN101: 0 | DD101: 0 | DS101: 0 | EI101: 0 | EV101: 0 | FL101: 0 | FM101: 0 | FY101: 0 | GG101: 0
C102: De 4 a 5 meses (Sulfato Ferroso) | R102: 4 | AD102: 0 | AE102: 0 | AU102: 0 | AV102: 0 | BJ102: 0 | BK102: 0 | BY102: 0 | CM102: 0 | CN102: 0 | DD102: 0 | DS102: 0 | EI102: 0 | EV102: 0 | FL102: 0 | FM102: 0 | FY102: 0 | GG102: 0
C103: De 6 a 11 meses (MMN) | R103: 46 | AD103: 0 | AE103: 41 | AU103: 0 | AV103: 9 | BJ103: 0 | BK103: 5 | BY103: 4 | CM103: 0 | CN103: 1 | DD103: 0 | DS103: 0 | EI103: 0 | EV103: 0 | FL103: 0 | FM103: 0 | FY103: 0 | GG103: 0
C104: De 1 año (MMN) | R104: 14 | AD104: 0 | AE104: 30 | AU104: 0 | AV104: 21 | BJ104: 0 | BK104: 16 | BY104: 15 | CM104: 0 | CN104: 9 | DD104: 2 | DS104: 0 | EI104: 0 | EV104: 1 | FL104: 0 | FM104: 0 | FY104: 0 | GG104: 16
C105: De 2 año (MMN) | R105: 15 | AD105: 0 | AE105: 8 | AU105: 0 | AV105: 6 | BJ105: 0 | BK105: 6 | BY105: 7 | CM105: 0 | CN105: 7 | DD105: 1 | DS105: 0 | EI105: 2 | EV105: 0 | FL105: 0 | FM105: 0 | FY105: 1 | GG105: 11
C106: De 3 año (MMN) | R106: 1 | AD106: 0 | AE106: 0 | AU106: 0 | AV106: 0 | BJ106: 0 | BK106: 1 | BY106: 0 | CM106: 0 | CN106: 2 | DD106: 0 | DS106: 0 | EI106: 0 | EV106: 0 | FL106: 0 | FM106: 0 | FY106: 1 | GG106: 3
C107: De 4 año (MMN) | R107: 3 | AD107: 0 | AE107: 0 | AU107: 0 | AV107: 1 | BJ107: 0 | BK107: 0 | BY107: 0 | CM107: 0 | CN107: 0 | DD107: 0 | DS107: 0 | EI107: 0 | EV107: 0 | FL107: 0 | FM107: 0 | FY107: 0 | GG107: 2
B110: Polimaltosado
B112: ACTIVIDADES | P112: DOSIS
P113: 1º | AC113: 2º | AT113: 3º | BI113: 4º | BV113: 5º | CK113: 6º | DB113: 7º | DR113: 8º | EH113: 9º | ET113: 10º | FK113: 11º | FX113: 12º | GF113: TA
B114: < 06 meses (BPN y Prematuros) | P114: 1 | AC114: 0 | AT114: 0 | BI114: 0 | BV114: 0 | CK114: 0 | DB114: 0 | DR114: 0 | EH114: 0 | ET114: 0 | FK114: 0 | FX114: 0 | GF114: 0 | GP114: 0
B115: De 4 a 5 meses | P115: 104 | AC115: 11 | AT115: 0 | BI115: 0 | BV115: 0 | CK115: 0 | DB115: 0 | DR115: 0 | EH115: 0 | ET115: 0 | FK115: 0 | FX115: 0 | GF115: 0 | GP115: 0
B116: De 6 a 11 meses | P116: 146 | AC116: 40 | AT116: 26 | BI116: 5 | BV116: 3 | CK116: 5 | DB116: 0 | DR116: 0 | EH116: 0 | ET116: 0 | FK116: 0 | FX116: 0 | GF116: 0 | GP116: 0
B117: De 1 año | P117: 50 | AC117: 39 | AT117: 34 | BI117: 29 | BV117: 19 | CK117: 20 | DB117: 1 | DR117: 5 | EH117: 3 | ET117: 3 | FK117: 1 | FX117: 1 | GF117: 0 | GP117: 0
B118: De 2 años | P118: 11 | AC118: 4 | AT118: 0 | BI118: 6 | BV118: 3 | CK118: 5 | DB118: 0 | DR118: 0 | EH118: 0 | ET118: 0 | FK118: 1 | FX118: 0 | GF118: 0 | GP118: 0
B119: De 3 años | P119: 0 | AC119: 0 | AT119: 0 | BI119: 0 | BV119: 0 | CK119: 1 | DB119: 0 | DR119: 0 | EH119: 0 | ET119: 0 | FK119: 0 | FX119: 0 | GF119: 0 | GP119: 0
B120: De 4 años | P120: 4 | AC120: 0 | AT120: 0 | BI120: 0 | BV120: 0 | CK120: 0 | DB120: 0 | DR120: 0 | EH120: 0 | ET120: 0 | FK120: 0 | FX120: 0 | GF120: 0 | GP120: 0
C123: B) Vitamina "A"
Q125: 06 meses | AU125: 01 año | BY125: 02 años | DD125: 03 años | EI125: 04 años
C126: Dosis | Q126: 1º Dosis | AD126: 2º Dosis | AU126: 1º Dosis | BJ126: 2º Dosis | BY126: 1º Dosis | CN126: 2º Dosis | DD126: 1º Dosis | DS126: 2º Dosis | EI126: 1º Dosis | EV126: 2º Dosis
C127: Suplementados | Q127: 0 | AD127: 0 | AU127: 0 | BJ127: 0 | BY127: 0 | CM127: 0 | CN127: 0 | DD127: 0 | DS127: 0 | EI127: 0 | EV127: 0
C130: VI. LACTANCIA MATERNA EXCLUSIVA
C132: Condición | Q132: Nº
C133: Niños con LME a los 06 meses | Q133: 2
C135: VII. ALIMENTACIÓN COMPLEMENTARIA
C137: Condición | CA137: Nº
C138: Niños con Inicio de Alimentación Complementaria antes de los 06 meses | CA138: 5
C139: Niños con Inicio de Alimentación Complementaria después de los 06 meses | CA139: 0
C140: Niños con Inicio de Alimentación Complementaria Adecuada | CA140: 13
C141: Niños con Inicio de Alimentación Complementaria Inadecuada | CA141: 0
C144: VIII. EVALUACION DEL ESTADO NUTRICIONAL
C146: A) En el Recién Nacido de 01 día a 28 días
C148: Clasificación | O148: Dx | BP148: Nº
C149: RN Bajo Peso Recuperados | O149: RN Bajo Peso Recuperados | BP149: 0
C150: Peso al Nacer | O150: Extremadamente bajo | BP150: 0
O151: Muy bajo peso al nacer | BP151: 0
O152: Bajo peso al nacer | BP152: 0
O153: Normal | BP153: 1
O154: Macrosómico | BP154: 0
C155: Ganancia de Peso / Talla | O155: Ganancia Inadecuada de Peso Dx. | BP155: 3
O156: Ganancia Inadecuada de Peso Recup. | BP156: 0
O157: Ganancia Inadecuada de Talla Dx. | BP157: 0
O158: Ganancia Inadecuada de Talla Recup. | BP158: 0
C160: B) En los Niños y Niñas de 29 días a < 05 años
C162: Grupo de Edad | E162: Ganancia Inadecuada de Peso o Talla | BB162: Normal
E163: Peso | S163: Talla | BB163: Normal
E164: Dx. | L164: Recup. | S164: Dx. | AI164: Recup. | BB164: Normal
C165: < 1 año | E165: 29 | L165: 0 | S165: 7 | AI165: 0 | BB165: 385
C166: 1 año | E166: 11 | L166: 1 | S166: 3 | AI166: 1 | BB166: 358
C167: 2 años | E167: 2 | L167: 0 | S167: 6 | AI167: 0 | BB167: 137
C168: 3 años | E168: 0 | L168: 0 | S168: 5 | AI168: 0 | BB168: 105
